{"text_format":"1","workbook":"xlsx","n_sheets":5,"sheets":["Titulní list","Seznam regulačních obvodů","Akční členy regulačních obvodů","Návod na vyplnění","Číselníky"],"not_rendered":{"charts":0,"images":0,"macros":1,"external_links":1,"defined_names":7,"comments":0,"pivot_tables":0},"unopened":[],"bounds":{"document_bytes":16777216,"sheet_cells":100000,"rows_first":2000,"rows_last":500,"rows_between":2000,"halvings":0,"cell_chars":16384,"cell_head_chars":4096},"cells_cut":0,"cells_raw":0,"read":"whole","date_system":"1900"}

{"sheet":"Titulní list","index":0,"n_rows":38,"n_cols":82,"rows_kept":38,"cut":false,"hidden":false,"merged":[[5,81,7,81],[1,3,1,70],[1,79,2,82],[4,3,4,19],[4,20,4,36],[4,37,4,53],[4,54,4,70],[5,3,7,19],[5,20,7,36],[5,37,7,53],[5,80,7,80],[14,63,16,70],[16,3,16,19],[16,20,18,53],[9,54,12,70],[19,3,19,19],[19,54,19,62],[10,26,11,35],[10,43,11,52],[13,3,13,19],[13,20,15,53],[13,54,13,62],[10,9,11,18],[27,63,28,70],[20,20,22,53],[20,63,21,70],[23,3,23,19],[23,54,23,62],[23,63,24,70],[24,16,28,53],[25,54,25,62],[25,63,26,70],[29,80,33,81],[37,3,41,70],[5,54,5,70],[36,3,36,70],[31,3,31,20],[31,21,31,38],[31,39,31,44],[31,45,31,70],[32,3,33,20],[32,21,33,38],[32,39,33,44],[32,45,33,70],[34,39,34,44],[29,54,30,62],[29,63,30,70],[27,54,28,62]]}
[]
[null,null,null,"Titulní list",null,null,null,null,null,null,null,null,null,null,null,null,null,null,null,null,null,null,null,null,null,null,null,null,null,null,null,null,null,null,null,null,null,null,null,null,null,null,null,null,null,null,null,null,null,null,null,null,null,null,null,null,null,null,null,null,null,null,null,null,null,null,null,null,null,null,null,null,null,null,null,null,null,null,null,"Při vyplňování položek Titulního listu postupujte podle pokynů uvedených ve \nStandardu ČEZ_ST_0093 (Požadavky na projektovou a související dokumentaci)"]
[]
[]
[null,null,null,"VYPRACOVAL:",null,null,null,null,null,null,null,null,null,null,null,null,null,null,null,null,"KONTROLOVAL:",null,null,null,null,null,null,null,null,null,null,null,null,null,null,null,null,"HIP:",null,null,null,null,null,null,null,null,null,null,null,null,null,null,null,null,"PROJEKTOVÁ FIRMA:"]
[null,null,null,{"$f":"CD9","v":" "},null,null,null,null,null,null,null,null,null,null,null,null,null,null,null,null,{"$f":"CD10","v":" "},null,null,null,null,null,null,null,null,null,null,null,null,null,null,null,null,{"$f":"CD11","v":" "},null,null,null,null,null,null,null,null,null,null,null,null,null,null,null,null,"Logo:\n",null,null,null,null,null,null,null,null,null,null,null,null,null,null,null,null,null,null,null,null,null,null,null,null,null,"Položka Titulního listu","Údaje vyplněné v tomto sloupci jsou automaticky přenášeny na příslušné místo v Titulním Listu\nŘÁDKY VYPLŇUJTE POSTUPNĚ SHORA DOLŮ"]
[]
[]
[null,null,null,null,null,null,null,null,null,null,null,null,null,null,null,null,null,null,null,null,null,null,null,null,null,null,null,null,null,null,null,null,null,null,null,null,null,null,null,null,null,null,null,null,null,null,null,null,null,null,null,null,null,null,null,null,null,null,null,null,null,null,null,null,null,null,null,null,null,null,null,null,null,null,null,null,null,null,null,null,"VYPRACOVAL:"," "]
[null,null,null,"INVESTOR:",null,null,null,null,null,null,null,null,null,null,null,null,null,null,null,null,"LOKALITA:",null,null,null,null,null,null,null,null,null,null,null,null,null,null,null,null,"DATUM:",null,null,null,null,null,null,null,null,null,null,null,null,null,null,null,null,{"$f":"CD12","v":" "},null,null,null,null,null,null,null,null,null,null,null,null,null,null,null,null,null,null,null,null,null,null,null,null,null,"KONTROLOVAL:"," "]
[null,null,null,null,null,null,null,null,null,{"$f":"CD13","v":" "},null,null,null,null,null,null,null,null,null,null,null,null,null,null,null,null,{"$f":"CD14","v":" "},null,null,null,null,null,null,null,null,null,null,null,null,null,null,null,null,{"$f":"CD15","v":" "},null,null,null,null,null,null,null,null,null,null,null,null,null,null,null,null,null,null,null,null,null,null,null,null,null,null,null,null,null,null,null,null,null,null,null,null,"HIP:"," "]
[null,null,null,null,null,null,null,null,null,null,null,null,null,null,null,null,null,null,null,null,null,null,null,null,null,null,null,null,null,null,null,null,null,null,null,null,null,null,null,null,null,null,null,null,null,null,null,null,null,null,null,null,null,null,null,null,null,null,null,null,null,null,null,null,null,null,null,null,null,null,null,null,null,null,null,null,null,null,null,null,"PROJEKTOVÁ FIRMA:"," "]
[null,null,null,null,null,null,null,null,null,null,null,null,null,null,null,null,null,null,null,null,null,null,null,null,null,null,null,null,null,null,null,null,null,null,null,null,null,null,null,null,null,null,null,null,null,null,null,null,null,null,null,null,null,null,null,null,null,null,null,null,null,null,null,null,null,null,null,null,null,null,null,null,null,null,null,null,null,null,null,null,"INVESTOR:"," "]
[null,null,null,"ČÍSLO A NÁZEV AKCE:",null,null,null,null,null,null,null,null,null,null,null,null,null,null,null,null,{"$f":"CD16","v":" "},null,null,null,null,null,null,null,null,null,null,null,null,null,null,null,null,null,null,null,null,null,null,null,null,null,null,null,null,null,null,null,null,null,"PARE:",null,null,null,null,null,null,null,null,null,null,null,null,null,null,null,null,null,null,null,null,null,null,null,null,null,"LOKALITA:"," "]
[null,null,null,null,null,null,null,null,null,null,null,null,null,null,null,null,null,null,null,null,null,null,null,null,null,null,null,null,null,null,null,null,null,null,null,null,null,null,null,null,null,null,null,null,null,null,null,null,null,null,null,null,null,null,null,null,null,null,null,null,null,null,null,null,null,null,null,null,null,null,null,null,null,null,null,null,null,null,null,null,"DATUM:"," "]
[null,null,null,null,null,null,null,null,null,null,null,null,null,null,null,null,null,null,null,null,null,null,null,null,null,null,null,null,null,null,null,null,null,null,null,null,null,null,null,null,null,null,null,null,null,null,null,null,null,null,null,null,null,null,null,null,null,null,null,null,null,null,null,null,null,null,null,null,null,null,null,null,null,null,null,null,null,null,null,null,"ČÍSLO A NÁZEV AKCE:"," "]
[null,null,null,"ČÍSLO A NÁZEV SO / DPS:",null,null,null,null,null,null,null,null,null,null,null,null,null,null,null,null,{"$f":"CD17","v":" "},null,null,null,null,null,null,null,null,null,null,null,null,null,null,null,null,null,null,null,null,null,null,null,null,null,null,null,null,null,null,null,null,null,null,null,null,null,null,null,null,null,null,null,null,null,null,null,null,null,null,null,null,null,null,null,null,null,null,null,"ČÍSLO A NÁZEV SO / DPS:"," "]
[null,null,null,null,null,null,null,null,null,null,null,null,null,null,null,null,null,null,null,null,null,null,null,null,null,null,null,null,null,null,null,null,null,null,null,null,null,null,null,null,null,null,null,null,null,null,null,null,null,null,null,null,null,null,null,null,null,null,null,null,null,null,null,null,null,null,null,null,null,null,null,null,null,null,null,null,null,null,null,null,"SLOŽKA:"," "]
[null,null,null,null,null,null,null,null,null,null,null,null,null,null,null,null,null,null,null,null,null,null,null,null,null,null,null,null,null,null,null,null,null,null,null,null,null,null,null,null,null,null,null,null,null,null,null,null,null,null,null,null,null,null,null,null,null,null,null,null,null,null,null,null,null,null,null,null,null,null,null,null,null,null,null,null,null,null,null,null,"PARE:","při tisku zůstane prázdné - očíslujte ručně dle počtu výtisků"]
[null,null,null,"SLOŽKA:",null,null,null,null,null,null,null,null,null,null,null,null,null,null,null,null,null,null,null,null,null,null,null,null,null,null,null,null,null,null,null,null,null,null,null,null,null,null,null,null,null,null,null,null,null,null,null,null,null,null,"STUPEŇ:",null,null,null,null,null,null,null,null,null,null,null,null,null,null,null,null,null,null,null,null,null,null,null,null,null,"STUPEŇ:"," "]
[null,null,null,null,null,null,null,null,null,null,null,null,null,null,null,null,null,null,null,null,{"$f":"CD18","v":" "},null,null,null,null,null,null,null,null,null,null,null,null,null,null,null,null,null,null,null,null,null,null,null,null,null,null,null,null,null,null,null,null,null,null,null,null,null,null,null,null,null,null,{"$f":"CD20","v":" "},null,null,null,null,null,null,null,null,null,null,null,null,null,null,null,null,"POČET LISTŮ:"," "]
[null,null,null,null,null,null,null,null,null,null,null,null,null,null,null,null,null,null,null,null,null,null,null,null,null,null,null,null,null,null,null,null,null,null,null,null,null,null,null,null,null,null,null,null,null,null,null,null,null,null,null,null,null,null,null,null,null,null,null,null,null,null,null,null,null,null,null,null,null,null,null,null,null,null,null,null,null,null,null,null,"POŘ. ČÍSLO:"," "]
[null,null,null,null,null,null,null,null,null,null,null,null,null,null,null,null,null,null,null,null,null,null,null,null,null,null,null,null,null,null,null,null,null,null,null,null,null,null,null,null,null,null,null,null,null,null,null,null,null,null,null,null,null,null,null,null,null,null,null,null,null,null,null,null,null,null,null,null,null,null,null,null,null,null,null,null,null,null,null,null,"TYP / PODTYP:"," "]
[null,null,null,"NÁZEV DOKUMENTU:",null,null,null,null,null,null,null,null,null,null,null,null,null,null,null,null,null,null,null,null,null,null,null,null,null,null,null,null,null,null,null,null,null,null,null,null,null,null,null,null,null,null,null,null,null,null,null,null,null,null,"POČET LISTŮ:",null,null,null,null,null,null,null,null,{"$f":"CD21","v":" "},null,null,null,null,null,null,null,null,null,null,null,null,null,null,null,null,"ZAKÁZKA ČÍSLO:"," "]
[null,null,null,null,null,null,null,null,null,null,null,null,null,null,null,null,"Seznam regulačních obvodů a akční členy RO",null,null,null,null,null,null,null,null,null,null,null,null,null,null,null,null,null,null,null,null,null,null,null,null,null,null,null,null,null,null,null,null,null,null,null,null,null,null,null,null,null,null,null,null,null,null,null,null,null,null,null,null,null,null,null,null,null,null,null,null,null,null,null,"DODAVATELSKÉ ČÍSLO:"," "]
[null,null,null,null,null,null,null,null,null,null,null,null,null,null,null,null,null,null,null,null,null,null,null,null,null,null,null,null,null,null,null,null,null,null,null,null,null,null,null,null,null,null,null,null,null,null,null,null,null,null,null,null,null,null,"POŘ. ČÍSLO:",null,null,null,null,null,null,null,null,{"$f":"CD22","v":" "},null,null,null,null,null,null,null,null,null,null,null,null,null,null,null,null,"REVIZE:"," "]
[null,null,null,null,null,null,null,null,null,null,null,null,null,null,null,null,null,null,null,null,null,null,null,null,null,null,null,null,null,null,null,null,null,null,null,null,null,null,null,null,null,null,null,null,null,null,null,null,null,null,null,null,null,null,null,null,null,null,null,null,null,null,null,null,null,null,null,null,null,null,null,null,null,null,null,null,null,null,null,null,"EL. SOUBOR:"," "]
[null,null,null,null,null,null,null,null,null,null,null,null,null,null,null,null,null,null,null,null,null,null,null,null,null,null,null,null,null,null,null,null,null,null,null,null,null,null,null,null,null,null,null,null,null,null,null,null,null,null,null,null,null,null,"TYP / PODTYP:",null,null,null,null,null,null,null,null,{"$f":"CD23","v":" "}]
[]
[null,null,null,null,null,null,null,null,null,null,null,null,null,null,null,null,null,null,null,null,null,null,null,null,null,null,null,null,null,null,null,null,null,null,null,null,null,null,null,null,null,null,null,null,null,null,null,null,null,null,null,null,null,null,"KÓD TŔÍDY DOKUMENTU:",null,null,null,null,null,null,null,null,"EC25",null,null,null,null,null,null,null,null,null,null,null,null,null,null,null,null,"DOPLNĚNÍ ČÍSELNÍKU:\nList \"Číselníky\" obsahuje číselníky používané v tomto formuláři. \nPokud Vám v některém číselníku použitém na listech v tomto sešitu bude chybět položka pro výběr, je možné jí zadat na listu \"Číselníky\" v příslušném číselníku do zeleně podbarvené buňky. Při vyplňování v tomto sešitu jí pak budete moci použít."]
[]
[null,null,null,"ZAKÁZKA ČÍSLO:",null,null,null,null,null,null,null,null,null,null,null,null,null,null,null,null,null,"DODAVATELSKÉ ČÍSLO:",null,null,null,null,null,null,null,null,null,null,null,null,null,null,null,null,null,"REVIZE:",null,null,null,null,null,"EL. SOUBOR:"]
[null,null,null,{"$f":"CD24","v":" "},null,null,null,null,null,null,null,null,null,null,null,null,null,null,null,null,null,{"$f":"CD25","v":" "},null,null,null,null,null,null,null,null,null,null,null,null,null,null,null,null,null,{"$f":"CD26","v":" "},null,null,null,null,null,{"$f":"CD27","v":" "}]
[]
[]
[]
[]
[null,null,null,"Tabulka \"Titulní list\" je zamčená. \nKonkrétní údaje (položky titulního listu) se do ní propíšou po jejich vyplnění v šedivě orámovaném okně napravo. \nModře podbarvená políčka obsahují výběr z nabídky.\nTisk Titulního listu je nastaven:      A4 na výšku, vycentrování vodorovně a přispůsobení listu na jednu stránku. "]

{"sheet":"Seznam regulačních obvodů","index":1,"n_rows":1000,"n_cols":17,"rows_kept":1000,"cut":false,"hidden":false,"merged":[[0,2,0,3]]}
[null,null,"Ukázka vyplnění:"]
[null,"Tento sloupec se netiskne","7.09.20","70920C201A","Reg. Armatura TV","A","NE","T vzduchu","70920T201A",null,"20","25","°C","Schneider",null,"N"]
["č. ř.","Kód třídy MATRIO\nvyplní se automaticky","DPS","Označení","Název","Druh ovládání","Ruční ovládání","Regulovaná veličina","Měřicí obvod RV","RV nom","RV min","RV max","RV jedn","Regulátor","Algoritmus SW","Změna","Poznámka"]
[1,"ECD_Okruh ASŘ"]
[2,"ECD_Okruh ASŘ"]
[3,"ECD_Okruh ASŘ"]
[4,"ECD_Okruh ASŘ"]
[5,"ECD_Okruh ASŘ"]
[6,"ECD_Okruh ASŘ"]
[7,"ECD_Okruh ASŘ"]
[8,"ECD_Okruh ASŘ"]
[9,"ECD_Okruh ASŘ"]
[10,"ECD_Okruh ASŘ"]
[11,"ECD_Okruh ASŘ"]
[12,"ECD_Okruh ASŘ"]
[13,"ECD_Okruh ASŘ"]
[14,"ECD_Okruh ASŘ"]
[15,"ECD_Okruh ASŘ"]
[16,"ECD_Okruh ASŘ"]
[17,"ECD_Okruh ASŘ"]
[18,"ECD_Okruh ASŘ"]
[19,"ECD_Okruh ASŘ"]
[20,"ECD_Okruh ASŘ"]
[21,"ECD_Okruh ASŘ"]
[22,"ECD_Okruh ASŘ"]
[23,"ECD_Okruh ASŘ"]
[24,"ECD_Okruh ASŘ"]
[25,"ECD_Okruh ASŘ"]
[26,"ECD_Okruh ASŘ"]
[27,"ECD_Okruh ASŘ"]
[28,"ECD_Okruh ASŘ"]
[29,"ECD_Okruh ASŘ"]
[30,"ECD_Okruh ASŘ"]
[31,"ECD_Okruh ASŘ"]
[32,"ECD_Okruh ASŘ"]
[33,"ECD_Okruh ASŘ"]
[34,"ECD_Okruh ASŘ"]
[35,"ECD_Okruh ASŘ"]
[36,"ECD_Okruh ASŘ"]
[37,"ECD_Okruh ASŘ"]
[38,"ECD_Okruh ASŘ"]
[39,"ECD_Okruh ASŘ"]
[40,"ECD_Okruh ASŘ"]
[41,"ECD_Okruh ASŘ"]
[42,"ECD_Okruh ASŘ"]
[43,"ECD_Okruh ASŘ"]
[44,"ECD_Okruh ASŘ"]
[45,"ECD_Okruh ASŘ"]
[46,"ECD_Okruh ASŘ"]
[47,"ECD_Okruh ASŘ"]
[48,"ECD_Okruh ASŘ"]
[49,"ECD_Okruh ASŘ"]
[50,"ECD_Okruh ASŘ"]
[51,"ECD_Okruh ASŘ"]
[52,"ECD_Okruh ASŘ"]
[53,"ECD_Okruh ASŘ"]
[54,"ECD_Okruh ASŘ"]
[55,"ECD_Okruh ASŘ"]
[56,"ECD_Okruh ASŘ"]
[57,"ECD_Okruh ASŘ"]
[58,"ECD_Okruh ASŘ"]
[59,"ECD_Okruh ASŘ"]
[60,"ECD_Okruh ASŘ"]
[61,"ECD_Okruh ASŘ"]
[62,"ECD_Okruh ASŘ"]
[63,"ECD_Okruh ASŘ"]
[64,"ECD_Okruh ASŘ"]
[65,"ECD_Okruh ASŘ"]
[66,"ECD_Okruh ASŘ"]
[67,"ECD_Okruh ASŘ"]
[68,"ECD_Okruh ASŘ"]
[69,"ECD_Okruh ASŘ"]
[70,"ECD_Okruh ASŘ"]
[71,"ECD_Okruh ASŘ"]
[72,"ECD_Okruh ASŘ"]
[73,"ECD_Okruh ASŘ"]
[74,"ECD_Okruh ASŘ"]
[75,"ECD_Okruh ASŘ"]
[76,"ECD_Okruh ASŘ"]
[77,"ECD_Okruh ASŘ"]
[78,"ECD_Okruh ASŘ"]
[79,"ECD_Okruh ASŘ"]
[80,"ECD_Okruh ASŘ"]
[81,"ECD_Okruh ASŘ"]
[82,"ECD_Okruh ASŘ"]
[83,"ECD_Okruh ASŘ"]
[84,"ECD_Okruh ASŘ"]
[85,"ECD_Okruh ASŘ"]
[86,"ECD_Okruh ASŘ"]
[87,"ECD_Okruh ASŘ"]
[88,"ECD_Okruh ASŘ"]
[89,"ECD_Okruh ASŘ"]
[90,"ECD_Okruh ASŘ"]
[91,"ECD_Okruh ASŘ"]
[92,"ECD_Okruh ASŘ"]
[93,"ECD_Okruh ASŘ"]
[94,"ECD_Okruh ASŘ"]
[95,"ECD_Okruh ASŘ"]
[96,"ECD_Okruh ASŘ"]
[97,"ECD_Okruh ASŘ"]
[98,"ECD_Okruh ASŘ"]
[99,"ECD_Okruh ASŘ"]
[100,"ECD_Okruh ASŘ"]
[101,"ECD_Okruh ASŘ"]
[102,"ECD_Okruh ASŘ"]
[103,"ECD_Okruh ASŘ"]
[104,"ECD_Okruh ASŘ"]
[105,"ECD_Okruh ASŘ"]
[106,"ECD_Okruh ASŘ"]
[107,"ECD_Okruh ASŘ"]
[108,"ECD_Okruh ASŘ"]
[109,"ECD_Okruh ASŘ"]
[110,"ECD_Okruh ASŘ"]
[111,"ECD_Okruh ASŘ"]
[112,"ECD_Okruh ASŘ"]
[113,"ECD_Okruh ASŘ"]
[114,"ECD_Okruh ASŘ"]
[115,"ECD_Okruh ASŘ"]
[116,"ECD_Okruh ASŘ"]
[117,"ECD_Okruh ASŘ"]
[118,"ECD_Okruh ASŘ"]
[119,"ECD_Okruh ASŘ"]
[120,"ECD_Okruh ASŘ"]
[121,"ECD_Okruh ASŘ"]
[122,"ECD_Okruh ASŘ"]
[123,"ECD_Okruh ASŘ"]
[124,"ECD_Okruh ASŘ"]
[125,"ECD_Okruh ASŘ"]
[126,"ECD_Okruh ASŘ"]
[127,"ECD_Okruh ASŘ"]
[128,"ECD_Okruh ASŘ"]
[129,"ECD_Okruh ASŘ"]
[130,"ECD_Okruh ASŘ"]
[131,"ECD_Okruh ASŘ"]
[132,"ECD_Okruh ASŘ"]
[133,"ECD_Okruh ASŘ"]
[134,"ECD_Okruh ASŘ"]
[135,"ECD_Okruh ASŘ"]
[136,"ECD_Okruh ASŘ"]
[137,"ECD_Okruh ASŘ"]
[138,"ECD_Okruh ASŘ"]
[139,"ECD_Okruh ASŘ"]
[140,"ECD_Okruh ASŘ"]
[141,"ECD_Okruh ASŘ"]
[142,"ECD_Okruh ASŘ"]
[143,"ECD_Okruh ASŘ"]
[144,"ECD_Okruh ASŘ"]
[145,"ECD_Okruh ASŘ"]
[146,"ECD_Okruh ASŘ"]
[147,"ECD_Okruh ASŘ"]
[148,"ECD_Okruh ASŘ"]
[149,"ECD_Okruh ASŘ"]
[150,"ECD_Okruh ASŘ"]
[151,"ECD_Okruh ASŘ"]
[152,"ECD_Okruh ASŘ"]
[153,"ECD_Okruh ASŘ"]
[154,"ECD_Okruh ASŘ"]
[155,"ECD_Okruh ASŘ"]
[156,"ECD_Okruh ASŘ"]
[157,"ECD_Okruh ASŘ"]
[158,"ECD_Okruh ASŘ"]
[159,"ECD_Okruh ASŘ"]
[160,"ECD_Okruh ASŘ"]
[161,"ECD_Okruh ASŘ"]
[162,"ECD_Okruh ASŘ"]
[163,"ECD_Okruh ASŘ"]
[164,"ECD_Okruh ASŘ"]
[165,"ECD_Okruh ASŘ"]
[166,"ECD_Okruh ASŘ"]
[167,"ECD_Okruh ASŘ"]
[168,"ECD_Okruh ASŘ"]
[169,"ECD_Okruh ASŘ"]
[170,"ECD_Okruh ASŘ"]
[171,"ECD_Okruh ASŘ"]
[172,"ECD_Okruh ASŘ"]
[173,"ECD_Okruh ASŘ"]
[174,"ECD_Okruh ASŘ"]
[175,"ECD_Okruh ASŘ"]
[176,"ECD_Okruh ASŘ"]
[177,"ECD_Okruh ASŘ"]
[178,"ECD_Okruh ASŘ"]
[179,"ECD_Okruh ASŘ"]
[180,"ECD_Okruh ASŘ"]
[181,"ECD_Okruh ASŘ"]
[182,"ECD_Okruh ASŘ"]
[183,"ECD_Okruh ASŘ"]
[184,"ECD_Okruh ASŘ"]
[185,"ECD_Okruh ASŘ"]
[186,"ECD_Okruh ASŘ"]
[187,"ECD_Okruh ASŘ"]
[188,"ECD_Okruh ASŘ"]
[189,"ECD_Okruh ASŘ"]
[190,"ECD_Okruh ASŘ"]
[191,"ECD_Okruh ASŘ"]
[192,"ECD_Okruh ASŘ"]
[193,"ECD_Okruh ASŘ"]
[194,"ECD_Okruh ASŘ"]
[195,"ECD_Okruh ASŘ"]
[196,"ECD_Okruh ASŘ"]
[197,"ECD_Okruh ASŘ"]
[198,"ECD_Okruh ASŘ"]
[199,"ECD_Okruh ASŘ"]
[200,"ECD_Okruh ASŘ"]
[201,"ECD_Okruh ASŘ"]
[202,"ECD_Okruh ASŘ"]
[203,"ECD_Okruh ASŘ"]
[204,"ECD_Okruh ASŘ"]
[205,"ECD_Okruh ASŘ"]
[206,"ECD_Okruh ASŘ"]
[207,"ECD_Okruh ASŘ"]
[208,"ECD_Okruh ASŘ"]
[209,"ECD_Okruh ASŘ"]
[210,"ECD_Okruh ASŘ"]
[211,"ECD_Okruh ASŘ"]
[212,"ECD_Okruh ASŘ"]
[213,"ECD_Okruh ASŘ"]
[214,"ECD_Okruh ASŘ"]
[215,"ECD_Okruh ASŘ"]
[216,"ECD_Okruh ASŘ"]
[217,"ECD_Okruh ASŘ"]
[218,"ECD_Okruh ASŘ"]
[219,"ECD_Okruh ASŘ"]
[220,"ECD_Okruh ASŘ"]
[221,"ECD_Okruh ASŘ"]
[222,"ECD_Okruh ASŘ"]
[223,"ECD_Okruh ASŘ"]
[224,"ECD_Okruh ASŘ"]
[225,"ECD_Okruh ASŘ"]
[226,"ECD_Okruh ASŘ"]
[227,"ECD_Okruh ASŘ"]
[228,"ECD_Okruh ASŘ"]
[229,"ECD_Okruh ASŘ"]
[230,"ECD_Okruh ASŘ"]
[231,"ECD_Okruh ASŘ"]
[232,"ECD_Okruh ASŘ"]
[233,"ECD_Okruh ASŘ"]
[234,"ECD_Okruh ASŘ"]
[235,"ECD_Okruh ASŘ"]
[236,"ECD_Okruh ASŘ"]
[237,"ECD_Okruh ASŘ"]
[238,"ECD_Okruh ASŘ"]
[239,"ECD_Okruh ASŘ"]
[240,"ECD_Okruh ASŘ"]
[241,"ECD_Okruh ASŘ"]
[242,"ECD_Okruh ASŘ"]
[243,"ECD_Okruh ASŘ"]
[244,"ECD_Okruh ASŘ"]
[245,"ECD_Okruh ASŘ"]
[246,"ECD_Okruh ASŘ"]
[247,"ECD_Okruh ASŘ"]
[248,"ECD_Okruh ASŘ"]
[249,"ECD_Okruh ASŘ"]
[250,"ECD_Okruh ASŘ"]
[251,"ECD_Okruh ASŘ"]
[252,"ECD_Okruh ASŘ"]
[253,"ECD_Okruh ASŘ"]
[254,"ECD_Okruh ASŘ"]
[255,"ECD_Okruh ASŘ"]
[256,"ECD_Okruh ASŘ"]
[257,"ECD_Okruh ASŘ"]
[258,"ECD_Okruh ASŘ"]
[259,"ECD_Okruh ASŘ"]
[260,"ECD_Okruh ASŘ"]
[261,"ECD_Okruh ASŘ"]
[262,"ECD_Okruh ASŘ"]
[263,"ECD_Okruh ASŘ"]
[264,"ECD_Okruh ASŘ"]
[265,"ECD_Okruh ASŘ"]
[266,"ECD_Okruh ASŘ"]
[267,"ECD_Okruh ASŘ"]
[268,"ECD_Okruh ASŘ"]
[269,"ECD_Okruh ASŘ"]
[270,"ECD_Okruh ASŘ"]
[271,"ECD_Okruh ASŘ"]
[272,"ECD_Okruh ASŘ"]
[273,"ECD_Okruh ASŘ"]
[274,"ECD_Okruh ASŘ"]
[275,"ECD_Okruh ASŘ"]
[276,"ECD_Okruh ASŘ"]
[277,"ECD_Okruh ASŘ"]
[278,"ECD_Okruh ASŘ"]
[279,"ECD_Okruh ASŘ"]
[280,"ECD_Okruh ASŘ"]
[281,"ECD_Okruh ASŘ"]
[282,"ECD_Okruh ASŘ"]
[283,"ECD_Okruh ASŘ"]
[284,"ECD_Okruh ASŘ"]
[285,"ECD_Okruh ASŘ"]
[286,"ECD_Okruh ASŘ"]
[287,"ECD_Okruh ASŘ"]
[288,"ECD_Okruh ASŘ"]
[289,"ECD_Okruh ASŘ"]
[290,"ECD_Okruh ASŘ"]
[291,"ECD_Okruh ASŘ"]
[292,"ECD_Okruh ASŘ"]
[293,"ECD_Okruh ASŘ"]
[294,"ECD_Okruh ASŘ"]
[295,"ECD_Okruh ASŘ"]
[296,"ECD_Okruh ASŘ"]
[297,"ECD_Okruh ASŘ"]
[298,"ECD_Okruh ASŘ"]
[299,"ECD_Okruh ASŘ"]
[300,"ECD_Okruh ASŘ"]
[301,"ECD_Okruh ASŘ"]
[302,"ECD_Okruh ASŘ"]
[303,"ECD_Okruh ASŘ"]
[304,"ECD_Okruh ASŘ"]
[305,"ECD_Okruh ASŘ"]
[306,"ECD_Okruh ASŘ"]
[307,"ECD_Okruh ASŘ"]
[308,"ECD_Okruh ASŘ"]
[309,"ECD_Okruh ASŘ"]
[310,"ECD_Okruh ASŘ"]
[311,"ECD_Okruh ASŘ"]
[312,"ECD_Okruh ASŘ"]
[313,"ECD_Okruh ASŘ"]
[314,"ECD_Okruh ASŘ"]
[315,"ECD_Okruh ASŘ"]
[316,"ECD_Okruh ASŘ"]
[317,"ECD_Okruh ASŘ"]
[318,"ECD_Okruh ASŘ"]
[319,"ECD_Okruh ASŘ"]
[320,"ECD_Okruh ASŘ"]
[321,"ECD_Okruh ASŘ"]
[322,"ECD_Okruh ASŘ"]
[323,"ECD_Okruh ASŘ"]
[324,"ECD_Okruh ASŘ"]
[325,"ECD_Okruh ASŘ"]
[326,"ECD_Okruh ASŘ"]
[327,"ECD_Okruh ASŘ"]
[328,"ECD_Okruh ASŘ"]
[329,"ECD_Okruh ASŘ"]
[330,"ECD_Okruh ASŘ"]
[331,"ECD_Okruh ASŘ"]
[332,"ECD_Okruh ASŘ"]
[333,"ECD_Okruh ASŘ"]
[334,"ECD_Okruh ASŘ"]
[335,"ECD_Okruh ASŘ"]
[336,"ECD_Okruh ASŘ"]
[337,"ECD_Okruh ASŘ"]
[338,"ECD_Okruh ASŘ"]
[339,"ECD_Okruh ASŘ"]
[340,"ECD_Okruh ASŘ"]
[341,"ECD_Okruh ASŘ"]
[342,"ECD_Okruh ASŘ"]
[343,"ECD_Okruh ASŘ"]
[344,"ECD_Okruh ASŘ"]
[345,"ECD_Okruh ASŘ"]
[346,"ECD_Okruh ASŘ"]
[347,"ECD_Okruh ASŘ"]
[348,"ECD_Okruh ASŘ"]
[349,"ECD_Okruh ASŘ"]
[350,"ECD_Okruh ASŘ"]
[351,"ECD_Okruh ASŘ"]
[352,"ECD_Okruh ASŘ"]
[353,"ECD_Okruh ASŘ"]
[354,"ECD_Okruh ASŘ"]
[355,"ECD_Okruh ASŘ"]
[356,"ECD_Okruh ASŘ"]
[357,"ECD_Okruh ASŘ"]
[358,"ECD_Okruh ASŘ"]
[359,"ECD_Okruh ASŘ"]
[360,"ECD_Okruh ASŘ"]
[361,"ECD_Okruh ASŘ"]
[362,"ECD_Okruh ASŘ"]
[363,"ECD_Okruh ASŘ"]
[364,"ECD_Okruh ASŘ"]
[365,"ECD_Okruh ASŘ"]
[366,"ECD_Okruh ASŘ"]
[367,"ECD_Okruh ASŘ"]
[368,"ECD_Okruh ASŘ"]
[369,"ECD_Okruh ASŘ"]
[370,"ECD_Okruh ASŘ"]
[371,"ECD_Okruh ASŘ"]
[372,"ECD_Okruh ASŘ"]
[373,"ECD_Okruh ASŘ"]
[374,"ECD_Okruh ASŘ"]
[375,"ECD_Okruh ASŘ"]
[376,"ECD_Okruh ASŘ"]
[377,"ECD_Okruh ASŘ"]
[378,"ECD_Okruh ASŘ"]
[379,"ECD_Okruh ASŘ"]
[380,"ECD_Okruh ASŘ"]
[381,"ECD_Okruh ASŘ"]
[382,"ECD_Okruh ASŘ"]
[383,"ECD_Okruh ASŘ"]
[384,"ECD_Okruh ASŘ"]
[385,"ECD_Okruh ASŘ"]
[386,"ECD_Okruh ASŘ"]
[387,"ECD_Okruh ASŘ"]
[388,"ECD_Okruh ASŘ"]
[389,"ECD_Okruh ASŘ"]
[390,"ECD_Okruh ASŘ"]
[391,"ECD_Okruh ASŘ"]
[392,"ECD_Okruh ASŘ"]
[393,"ECD_Okruh ASŘ"]
[394,"ECD_Okruh ASŘ"]
[395,"ECD_Okruh ASŘ"]
[396,"ECD_Okruh ASŘ"]
[397,"ECD_Okruh ASŘ"]
[398,"ECD_Okruh ASŘ"]
[399,"ECD_Okruh ASŘ"]
[400,"ECD_Okruh ASŘ"]
[401,"ECD_Okruh ASŘ"]
[402,"ECD_Okruh ASŘ"]
[403,"ECD_Okruh ASŘ"]
[404,"ECD_Okruh ASŘ"]
[405,"ECD_Okruh ASŘ"]
[406,"ECD_Okruh ASŘ"]
[407,"ECD_Okruh ASŘ"]
[408,"ECD_Okruh ASŘ"]
[409,"ECD_Okruh ASŘ"]
[410,"ECD_Okruh ASŘ"]
[411,"ECD_Okruh ASŘ"]
[412,"ECD_Okruh ASŘ"]
[413,"ECD_Okruh ASŘ"]
[414,"ECD_Okruh ASŘ"]
[415,"ECD_Okruh ASŘ"]
[416,"ECD_Okruh ASŘ"]
[417,"ECD_Okruh ASŘ"]
[418,"ECD_Okruh ASŘ"]
[419,"ECD_Okruh ASŘ"]
[420,"ECD_Okruh ASŘ"]
[421,"ECD_Okruh ASŘ"]
[422,"ECD_Okruh ASŘ"]
[423,"ECD_Okruh ASŘ"]
[424,"ECD_Okruh ASŘ"]
[425,"ECD_Okruh ASŘ"]
[426,"ECD_Okruh ASŘ"]
[427,"ECD_Okruh ASŘ"]
[428,"ECD_Okruh ASŘ"]
[429,"ECD_Okruh ASŘ"]
[430,"ECD_Okruh ASŘ"]
[431,"ECD_Okruh ASŘ"]
[432,"ECD_Okruh ASŘ"]
[433,"ECD_Okruh ASŘ"]
[434,"ECD_Okruh ASŘ"]
[435,"ECD_Okruh ASŘ"]
[436,"ECD_Okruh ASŘ"]
[437,"ECD_Okruh ASŘ"]
[438,"ECD_Okruh ASŘ"]
[439,"ECD_Okruh ASŘ"]
[440,"ECD_Okruh ASŘ"]
[441,"ECD_Okruh ASŘ"]
[442,"ECD_Okruh ASŘ"]
[443,"ECD_Okruh ASŘ"]
[444,"ECD_Okruh ASŘ"]
[445,"ECD_Okruh ASŘ"]
[446,"ECD_Okruh ASŘ"]
[447,"ECD_Okruh ASŘ"]
[448,"ECD_Okruh ASŘ"]
[449,"ECD_Okruh ASŘ"]
[450,"ECD_Okruh ASŘ"]
[451,"ECD_Okruh ASŘ"]
[452,"ECD_Okruh ASŘ"]
[453,"ECD_Okruh ASŘ"]
[454,"ECD_Okruh ASŘ"]
[455,"ECD_Okruh ASŘ"]
[456,"ECD_Okruh ASŘ"]
[457,"ECD_Okruh ASŘ"]
[458,"ECD_Okruh ASŘ"]
[459,"ECD_Okruh ASŘ"]
[460,"ECD_Okruh ASŘ"]
[461,"ECD_Okruh ASŘ"]
[462,"ECD_Okruh ASŘ"]
[463,"ECD_Okruh ASŘ"]
[464,"ECD_Okruh ASŘ"]
[465,"ECD_Okruh ASŘ"]
[466,"ECD_Okruh ASŘ"]
[467,"ECD_Okruh ASŘ"]
[468,"ECD_Okruh ASŘ"]
[469,"ECD_Okruh ASŘ"]
[470,"ECD_Okruh ASŘ"]
[471,"ECD_Okruh ASŘ"]
[472,"ECD_Okruh ASŘ"]
[473,"ECD_Okruh ASŘ"]
[474,"ECD_Okruh ASŘ"]
[475,"ECD_Okruh ASŘ"]
[476,"ECD_Okruh ASŘ"]
[477,"ECD_Okruh ASŘ"]
[478,"ECD_Okruh ASŘ"]
[479,"ECD_Okruh ASŘ"]
[480,"ECD_Okruh ASŘ"]
[481,"ECD_Okruh ASŘ"]
[482,"ECD_Okruh ASŘ"]
[483,"ECD_Okruh ASŘ"]
[484,"ECD_Okruh ASŘ"]
[485,"ECD_Okruh ASŘ"]
[486,"ECD_Okruh ASŘ"]
[487,"ECD_Okruh ASŘ"]
[488,"ECD_Okruh ASŘ"]
[489,"ECD_Okruh ASŘ"]
[490,"ECD_Okruh ASŘ"]
[491,"ECD_Okruh ASŘ"]
[492,"ECD_Okruh ASŘ"]
[493,"ECD_Okruh ASŘ"]
[494,"ECD_Okruh ASŘ"]
[495,"ECD_Okruh ASŘ"]
[496,"ECD_Okruh ASŘ"]
[497,"ECD_Okruh ASŘ"]
[498,"ECD_Okruh ASŘ"]
[499,"ECD_Okruh ASŘ"]
[500,"ECD_Okruh ASŘ"]
[501,"ECD_Okruh ASŘ"]
[502,"ECD_Okruh ASŘ"]
[503,"ECD_Okruh ASŘ"]
[504,"ECD_Okruh ASŘ"]
[505,"ECD_Okruh ASŘ"]
[506,"ECD_Okruh ASŘ"]
[507,"ECD_Okruh ASŘ"]
[508,"ECD_Okruh ASŘ"]
[509,"ECD_Okruh ASŘ"]
[510,"ECD_Okruh ASŘ"]
[511,"ECD_Okruh ASŘ"]
[512,"ECD_Okruh ASŘ"]
[513,"ECD_Okruh ASŘ"]
[514,"ECD_Okruh ASŘ"]
[515,"ECD_Okruh ASŘ"]
[516,"ECD_Okruh ASŘ"]
[517,"ECD_Okruh ASŘ"]
[518,"ECD_Okruh ASŘ"]
[519,"ECD_Okruh ASŘ"]
[520,"ECD_Okruh ASŘ"]
[521,"ECD_Okruh ASŘ"]
[522,"ECD_Okruh ASŘ"]
[523,"ECD_Okruh ASŘ"]
[524,"ECD_Okruh ASŘ"]
[525,"ECD_Okruh ASŘ"]
[526,"ECD_Okruh ASŘ"]
[527,"ECD_Okruh ASŘ"]
[528,"ECD_Okruh ASŘ"]
[529,"ECD_Okruh ASŘ"]
[530,"ECD_Okruh ASŘ"]
[531,"ECD_Okruh ASŘ"]
[532,"ECD_Okruh ASŘ"]
[533,"ECD_Okruh ASŘ"]
[534,"ECD_Okruh ASŘ"]
[535,"ECD_Okruh ASŘ"]
[536,"ECD_Okruh ASŘ"]
[537,"ECD_Okruh ASŘ"]
[538,"ECD_Okruh ASŘ"]
[539,"ECD_Okruh ASŘ"]
[540,"ECD_Okruh ASŘ"]
[541,"ECD_Okruh ASŘ"]
[542,"ECD_Okruh ASŘ"]
[543,"ECD_Okruh ASŘ"]
[544,"ECD_Okruh ASŘ"]
[545,"ECD_Okruh ASŘ"]
[546,"ECD_Okruh ASŘ"]
[547,"ECD_Okruh ASŘ"]
[548,"ECD_Okruh ASŘ"]
[549,"ECD_Okruh ASŘ"]
[550,"ECD_Okruh ASŘ"]
[551,"ECD_Okruh ASŘ"]
[552,"ECD_Okruh ASŘ"]
[553,"ECD_Okruh ASŘ"]
[554,"ECD_Okruh ASŘ"]
[555,"ECD_Okruh ASŘ"]
[556,"ECD_Okruh ASŘ"]
[557,"ECD_Okruh ASŘ"]
[558,"ECD_Okruh ASŘ"]
[559,"ECD_Okruh ASŘ"]
[560,"ECD_Okruh ASŘ"]
[561,"ECD_Okruh ASŘ"]
[562,"ECD_Okruh ASŘ"]
[563,"ECD_Okruh ASŘ"]
[564,"ECD_Okruh ASŘ"]
[565,"ECD_Okruh ASŘ"]
[566,"ECD_Okruh ASŘ"]
[567,"ECD_Okruh ASŘ"]
[568,"ECD_Okruh ASŘ"]
[569,"ECD_Okruh ASŘ"]
[570,"ECD_Okruh ASŘ"]
[571,"ECD_Okruh ASŘ"]
[572,"ECD_Okruh ASŘ"]
[573,"ECD_Okruh ASŘ"]
[574,"ECD_Okruh ASŘ"]
[575,"ECD_Okruh ASŘ"]
[576,"ECD_Okruh ASŘ"]
[577,"ECD_Okruh ASŘ"]
[578,"ECD_Okruh ASŘ"]
[579,"ECD_Okruh ASŘ"]
[580,"ECD_Okruh ASŘ"]
[581,"ECD_Okruh ASŘ"]
[582,"ECD_Okruh ASŘ"]
[583,"ECD_Okruh ASŘ"]
[584,"ECD_Okruh ASŘ"]
[585,"ECD_Okruh ASŘ"]
[586,"ECD_Okruh ASŘ"]
[587,"ECD_Okruh ASŘ"]
[588,"ECD_Okruh ASŘ"]
[589,"ECD_Okruh ASŘ"]
[590,"ECD_Okruh ASŘ"]
[591,"ECD_Okruh ASŘ"]
[592,"ECD_Okruh ASŘ"]
[593,"ECD_Okruh ASŘ"]
[594,"ECD_Okruh ASŘ"]
[595,"ECD_Okruh ASŘ"]
[596,"ECD_Okruh ASŘ"]
[597,"ECD_Okruh ASŘ"]
[598,"ECD_Okruh ASŘ"]
[599,"ECD_Okruh ASŘ"]
[600,"ECD_Okruh ASŘ"]
[601,"ECD_Okruh ASŘ"]
[602,"ECD_Okruh ASŘ"]
[603,"ECD_Okruh ASŘ"]
[604,"ECD_Okruh ASŘ"]
[605,"ECD_Okruh ASŘ"]
[606,"ECD_Okruh ASŘ"]
[607,"ECD_Okruh ASŘ"]
[608,"ECD_Okruh ASŘ"]
[609,"ECD_Okruh ASŘ"]
[610,"ECD_Okruh ASŘ"]
[611,"ECD_Okruh ASŘ"]
[612,"ECD_Okruh ASŘ"]
[613,"ECD_Okruh ASŘ"]
[614,"ECD_Okruh ASŘ"]
[615,"ECD_Okruh ASŘ"]
[616,"ECD_Okruh ASŘ"]
[617,"ECD_Okruh ASŘ"]
[618,"ECD_Okruh ASŘ"]
[619,"ECD_Okruh ASŘ"]
[620,"ECD_Okruh ASŘ"]
[621,"ECD_Okruh ASŘ"]
[622,"ECD_Okruh ASŘ"]
[623,"ECD_Okruh ASŘ"]
[624,"ECD_Okruh ASŘ"]
[625,"ECD_Okruh ASŘ"]
[626,"ECD_Okruh ASŘ"]
[627,"ECD_Okruh ASŘ"]
[628,"ECD_Okruh ASŘ"]
[629,"ECD_Okruh ASŘ"]
[630,"ECD_Okruh ASŘ"]
[631,"ECD_Okruh ASŘ"]
[632,"ECD_Okruh ASŘ"]
[633,"ECD_Okruh ASŘ"]
[634,"ECD_Okruh ASŘ"]
[635,"ECD_Okruh ASŘ"]
[636,"ECD_Okruh ASŘ"]
[637,"ECD_Okruh ASŘ"]
[638,"ECD_Okruh ASŘ"]
[639,"ECD_Okruh ASŘ"]
[640,"ECD_Okruh ASŘ"]
[641,"ECD_Okruh ASŘ"]
[642,"ECD_Okruh ASŘ"]
[643,"ECD_Okruh ASŘ"]
[644,"ECD_Okruh ASŘ"]
[645,"ECD_Okruh ASŘ"]
[646,"ECD_Okruh ASŘ"]
[647,"ECD_Okruh ASŘ"]
[648,"ECD_Okruh ASŘ"]
[649,"ECD_Okruh ASŘ"]
[650,"ECD_Okruh ASŘ"]
[651,"ECD_Okruh ASŘ"]
[652,"ECD_Okruh ASŘ"]
[653,"ECD_Okruh ASŘ"]
[654,"ECD_Okruh ASŘ"]
[655,"ECD_Okruh ASŘ"]
[656,"ECD_Okruh ASŘ"]
[657,"ECD_Okruh ASŘ"]
[658,"ECD_Okruh ASŘ"]
[659,"ECD_Okruh ASŘ"]
[660,"ECD_Okruh ASŘ"]
[661,"ECD_Okruh ASŘ"]
[662,"ECD_Okruh ASŘ"]
[663,"ECD_Okruh ASŘ"]
[664,"ECD_Okruh ASŘ"]
[665,"ECD_Okruh ASŘ"]
[666,"ECD_Okruh ASŘ"]
[667,"ECD_Okruh ASŘ"]
[668,"ECD_Okruh ASŘ"]
[669,"ECD_Okruh ASŘ"]
[670,"ECD_Okruh ASŘ"]
[671,"ECD_Okruh ASŘ"]
[672,"ECD_Okruh ASŘ"]
[673,"ECD_Okruh ASŘ"]
[674,"ECD_Okruh ASŘ"]
[675,"ECD_Okruh ASŘ"]
[676,"ECD_Okruh ASŘ"]
[677,"ECD_Okruh ASŘ"]
[678,"ECD_Okruh ASŘ"]
[679,"ECD_Okruh ASŘ"]
[680,"ECD_Okruh ASŘ"]
[681,"ECD_Okruh ASŘ"]
[682,"ECD_Okruh ASŘ"]
[683,"ECD_Okruh ASŘ"]
[684,"ECD_Okruh ASŘ"]
[685,"ECD_Okruh ASŘ"]
[686,"ECD_Okruh ASŘ"]
[687,"ECD_Okruh ASŘ"]
[688,"ECD_Okruh ASŘ"]
[689,"ECD_Okruh ASŘ"]
[690,"ECD_Okruh ASŘ"]
[691,"ECD_Okruh ASŘ"]
[692,"ECD_Okruh ASŘ"]
[693,"ECD_Okruh ASŘ"]
[694,"ECD_Okruh ASŘ"]
[695,"ECD_Okruh ASŘ"]
[696,"ECD_Okruh ASŘ"]
[697,"ECD_Okruh ASŘ"]
[698,"ECD_Okruh ASŘ"]
[699,"ECD_Okruh ASŘ"]
[700,"ECD_Okruh ASŘ"]
[701,"ECD_Okruh ASŘ"]
[702,"ECD_Okruh ASŘ"]
[703,"ECD_Okruh ASŘ"]
[704,"ECD_Okruh ASŘ"]
[705,"ECD_Okruh ASŘ"]
[706,"ECD_Okruh ASŘ"]
[707,"ECD_Okruh ASŘ"]
[708,"ECD_Okruh ASŘ"]
[709,"ECD_Okruh ASŘ"]
[710,"ECD_Okruh ASŘ"]
[711,"ECD_Okruh ASŘ"]
[712,"ECD_Okruh ASŘ"]
[713,"ECD_Okruh ASŘ"]
[714,"ECD_Okruh ASŘ"]
[715,"ECD_Okruh ASŘ"]
[716,"ECD_Okruh ASŘ"]
[717,"ECD_Okruh ASŘ"]
[718,"ECD_Okruh ASŘ"]
[719,"ECD_Okruh ASŘ"]
[720,"ECD_Okruh ASŘ"]
[721,"ECD_Okruh ASŘ"]
[722,"ECD_Okruh ASŘ"]
[723,"ECD_Okruh ASŘ"]
[724,"ECD_Okruh ASŘ"]
[725,"ECD_Okruh ASŘ"]
[726,"ECD_Okruh ASŘ"]
[727,"ECD_Okruh ASŘ"]
[728,"ECD_Okruh ASŘ"]
[729,"ECD_Okruh ASŘ"]
[730,"ECD_Okruh ASŘ"]
[731,"ECD_Okruh ASŘ"]
[732,"ECD_Okruh ASŘ"]
[733,"ECD_Okruh ASŘ"]
[734,"ECD_Okruh ASŘ"]
[735,"ECD_Okruh ASŘ"]
[736,"ECD_Okruh ASŘ"]
[737,"ECD_Okruh ASŘ"]
[738,"ECD_Okruh ASŘ"]
[739,"ECD_Okruh ASŘ"]
[740,"ECD_Okruh ASŘ"]
[741,"ECD_Okruh ASŘ"]
[742,"ECD_Okruh ASŘ"]
[743,"ECD_Okruh ASŘ"]
[744,"ECD_Okruh ASŘ"]
[745,"ECD_Okruh ASŘ"]
[746,"ECD_Okruh ASŘ"]
[747,"ECD_Okruh ASŘ"]
[748,"ECD_Okruh ASŘ"]
[749,"ECD_Okruh ASŘ"]
[750,"ECD_Okruh ASŘ"]
[751,"ECD_Okruh ASŘ"]
[752,"ECD_Okruh ASŘ"]
[753,"ECD_Okruh ASŘ"]
[754,"ECD_Okruh ASŘ"]
[755,"ECD_Okruh ASŘ"]
[756,"ECD_Okruh ASŘ"]
[757,"ECD_Okruh ASŘ"]
[758,"ECD_Okruh ASŘ"]
[759,"ECD_Okruh ASŘ"]
[760,"ECD_Okruh ASŘ"]
[761,"ECD_Okruh ASŘ"]
[762,"ECD_Okruh ASŘ"]
[763,"ECD_Okruh ASŘ"]
[764,"ECD_Okruh ASŘ"]
[765,"ECD_Okruh ASŘ"]
[766,"ECD_Okruh ASŘ"]
[767,"ECD_Okruh ASŘ"]
[768,"ECD_Okruh ASŘ"]
[769,"ECD_Okruh ASŘ"]
[770,"ECD_Okruh ASŘ"]
[771,"ECD_Okruh ASŘ"]
[772,"ECD_Okruh ASŘ"]
[773,"ECD_Okruh ASŘ"]
[774,"ECD_Okruh ASŘ"]
[775,"ECD_Okruh ASŘ"]
[776,"ECD_Okruh ASŘ"]
[777,"ECD_Okruh ASŘ"]
[778,"ECD_Okruh ASŘ"]
[779,"ECD_Okruh ASŘ"]
[780,"ECD_Okruh ASŘ"]
[781,"ECD_Okruh ASŘ"]
[782,"ECD_Okruh ASŘ"]
[783,"ECD_Okruh ASŘ"]
[784,"ECD_Okruh ASŘ"]
[785,"ECD_Okruh ASŘ"]
[786,"ECD_Okruh ASŘ"]
[787,"ECD_Okruh ASŘ"]
[788,"ECD_Okruh ASŘ"]
[789,"ECD_Okruh ASŘ"]
[790,"ECD_Okruh ASŘ"]
[791,"ECD_Okruh ASŘ"]
[792,"ECD_Okruh ASŘ"]
[793,"ECD_Okruh ASŘ"]
[794,"ECD_Okruh ASŘ"]
[795,"ECD_Okruh ASŘ"]
[796,"ECD_Okruh ASŘ"]
[797,"ECD_Okruh ASŘ"]
[798,"ECD_Okruh ASŘ"]
[799,"ECD_Okruh ASŘ"]
[800,"ECD_Okruh ASŘ"]
[801,"ECD_Okruh ASŘ"]
[802,"ECD_Okruh ASŘ"]
[803,"ECD_Okruh ASŘ"]
[804,"ECD_Okruh ASŘ"]
[805,"ECD_Okruh ASŘ"]
[806,"ECD_Okruh ASŘ"]
[807,"ECD_Okruh ASŘ"]
[808,"ECD_Okruh ASŘ"]
[809,"ECD_Okruh ASŘ"]
[810,"ECD_Okruh ASŘ"]
[811,"ECD_Okruh ASŘ"]
[812,"ECD_Okruh ASŘ"]
[813,"ECD_Okruh ASŘ"]
[814,"ECD_Okruh ASŘ"]
[815,"ECD_Okruh ASŘ"]
[816,"ECD_Okruh ASŘ"]
[817,"ECD_Okruh ASŘ"]
[818,"ECD_Okruh ASŘ"]
[819,"ECD_Okruh ASŘ"]
[820,"ECD_Okruh ASŘ"]
[821,"ECD_Okruh ASŘ"]
[822,"ECD_Okruh ASŘ"]
[823,"ECD_Okruh ASŘ"]
[824,"ECD_Okruh ASŘ"]
[825,"ECD_Okruh ASŘ"]
[826,"ECD_Okruh ASŘ"]
[827,"ECD_Okruh ASŘ"]
[828,"ECD_Okruh ASŘ"]
[829,"ECD_Okruh ASŘ"]
[830,"ECD_Okruh ASŘ"]
[831,"ECD_Okruh ASŘ"]
[832,"ECD_Okruh ASŘ"]
[833,"ECD_Okruh ASŘ"]
[834,"ECD_Okruh ASŘ"]
[835,"ECD_Okruh ASŘ"]
[836,"ECD_Okruh ASŘ"]
[837,"ECD_Okruh ASŘ"]
[838,"ECD_Okruh ASŘ"]
[839,"ECD_Okruh ASŘ"]
[840,"ECD_Okruh ASŘ"]
[841,"ECD_Okruh ASŘ"]
[842,"ECD_Okruh ASŘ"]
[843,"ECD_Okruh ASŘ"]
[844,"ECD_Okruh ASŘ"]
[845,"ECD_Okruh ASŘ"]
[846,"ECD_Okruh ASŘ"]
[847,"ECD_Okruh ASŘ"]
[848,"ECD_Okruh ASŘ"]
[849,"ECD_Okruh ASŘ"]
[850,"ECD_Okruh ASŘ"]
[851,"ECD_Okruh ASŘ"]
[852,"ECD_Okruh ASŘ"]
[853,"ECD_Okruh ASŘ"]
[854,"ECD_Okruh ASŘ"]
[855,"ECD_Okruh ASŘ"]
[856,"ECD_Okruh ASŘ"]
[857,"ECD_Okruh ASŘ"]
[858,"ECD_Okruh ASŘ"]
[859,"ECD_Okruh ASŘ"]
[860,"ECD_Okruh ASŘ"]
[861,"ECD_Okruh ASŘ"]
[862,"ECD_Okruh ASŘ"]
[863,"ECD_Okruh ASŘ"]
[864,"ECD_Okruh ASŘ"]
[865,"ECD_Okruh ASŘ"]
[866,"ECD_Okruh ASŘ"]
[867,"ECD_Okruh ASŘ"]
[868,"ECD_Okruh ASŘ"]
[869,"ECD_Okruh ASŘ"]
[870,"ECD_Okruh ASŘ"]
[871,"ECD_Okruh ASŘ"]
[872,"ECD_Okruh ASŘ"]
[873,"ECD_Okruh ASŘ"]
[874,"ECD_Okruh ASŘ"]
[875,"ECD_Okruh ASŘ"]
[876,"ECD_Okruh ASŘ"]
[877,"ECD_Okruh ASŘ"]
[878,"ECD_Okruh ASŘ"]
[879,"ECD_Okruh ASŘ"]
[880,"ECD_Okruh ASŘ"]
[881,"ECD_Okruh ASŘ"]
[882,"ECD_Okruh ASŘ"]
[883,"ECD_Okruh ASŘ"]
[884,"ECD_Okruh ASŘ"]
[885,"ECD_Okruh ASŘ"]
[886,"ECD_Okruh ASŘ"]
[887,"ECD_Okruh ASŘ"]
[888,"ECD_Okruh ASŘ"]
[889,"ECD_Okruh ASŘ"]
[890,"ECD_Okruh ASŘ"]
[891,"ECD_Okruh ASŘ"]
[892,"ECD_Okruh ASŘ"]
[893,"ECD_Okruh ASŘ"]
[894,"ECD_Okruh ASŘ"]
[895,"ECD_Okruh ASŘ"]
[896,"ECD_Okruh ASŘ"]
[897,"ECD_Okruh ASŘ"]
[898,"ECD_Okruh ASŘ"]
[899,"ECD_Okruh ASŘ"]
[900,"ECD_Okruh ASŘ"]
[901,"ECD_Okruh ASŘ"]
[902,"ECD_Okruh ASŘ"]
[903,"ECD_Okruh ASŘ"]
[904,"ECD_Okruh ASŘ"]
[905,"ECD_Okruh ASŘ"]
[906,"ECD_Okruh ASŘ"]
[907,"ECD_Okruh ASŘ"]
[908,"ECD_Okruh ASŘ"]
[909,"ECD_Okruh ASŘ"]
[910,"ECD_Okruh ASŘ"]
[911,"ECD_Okruh ASŘ"]
[912,"ECD_Okruh ASŘ"]
[913,"ECD_Okruh ASŘ"]
[914,"ECD_Okruh ASŘ"]
[915,"ECD_Okruh ASŘ"]
[916,"ECD_Okruh ASŘ"]
[917,"ECD_Okruh ASŘ"]
[918,"ECD_Okruh ASŘ"]
[919,"ECD_Okruh ASŘ"]
[920,"ECD_Okruh ASŘ"]
[921,"ECD_Okruh ASŘ"]
[922,"ECD_Okruh ASŘ"]
[923,"ECD_Okruh ASŘ"]
[924,"ECD_Okruh ASŘ"]
[925,"ECD_Okruh ASŘ"]
[926,"ECD_Okruh ASŘ"]
[927,"ECD_Okruh ASŘ"]
[928,"ECD_Okruh ASŘ"]
[929,"ECD_Okruh ASŘ"]
[930,"ECD_Okruh ASŘ"]
[931,"ECD_Okruh ASŘ"]
[932,"ECD_Okruh ASŘ"]
[933,"ECD_Okruh ASŘ"]
[934,"ECD_Okruh ASŘ"]
[935,"ECD_Okruh ASŘ"]
[936,"ECD_Okruh ASŘ"]
[937,"ECD_Okruh ASŘ"]
[938,"ECD_Okruh ASŘ"]
[939,"ECD_Okruh ASŘ"]
[940,"ECD_Okruh ASŘ"]
[941,"ECD_Okruh ASŘ"]
[942,"ECD_Okruh ASŘ"]
[943,"ECD_Okruh ASŘ"]
[944,"ECD_Okruh ASŘ"]
[945,"ECD_Okruh ASŘ"]
[946,"ECD_Okruh ASŘ"]
[947,"ECD_Okruh ASŘ"]
[948,"ECD_Okruh ASŘ"]
[949,"ECD_Okruh ASŘ"]
[950,"ECD_Okruh ASŘ"]
[951,"ECD_Okruh ASŘ"]
[952,"ECD_Okruh ASŘ"]
[953,"ECD_Okruh ASŘ"]
[954,"ECD_Okruh ASŘ"]
[955,"ECD_Okruh ASŘ"]
[956,"ECD_Okruh ASŘ"]
[957,"ECD_Okruh ASŘ"]
[958,"ECD_Okruh ASŘ"]
[959,"ECD_Okruh ASŘ"]
[960,"ECD_Okruh ASŘ"]
[961,"ECD_Okruh ASŘ"]
[962,"ECD_Okruh ASŘ"]
[963,"ECD_Okruh ASŘ"]
[964,"ECD_Okruh ASŘ"]
[965,"ECD_Okruh ASŘ"]
[966,"ECD_Okruh ASŘ"]
[967,"ECD_Okruh ASŘ"]
[968,"ECD_Okruh ASŘ"]
[969,"ECD_Okruh ASŘ"]
[970,"ECD_Okruh ASŘ"]
[971,"ECD_Okruh ASŘ"]
[972,"ECD_Okruh ASŘ"]
[973,"ECD_Okruh ASŘ"]
[974,"ECD_Okruh ASŘ"]
[975,"ECD_Okruh ASŘ"]
[976,"ECD_Okruh ASŘ"]
[977,"ECD_Okruh ASŘ"]
[978,"ECD_Okruh ASŘ"]
[979,"ECD_Okruh ASŘ"]
[980,"ECD_Okruh ASŘ"]
[981,"ECD_Okruh ASŘ"]
[982,"ECD_Okruh ASŘ"]
[983,"ECD_Okruh ASŘ"]
[984,"ECD_Okruh ASŘ"]
[985,"ECD_Okruh ASŘ"]
[986,"ECD_Okruh ASŘ"]
[987,"ECD_Okruh ASŘ"]
[988,"ECD_Okruh ASŘ"]
[989,"ECD_Okruh ASŘ"]
[990,"ECD_Okruh ASŘ"]
[991,"ECD_Okruh ASŘ"]
[992,"ECD_Okruh ASŘ"]
[993,"ECD_Okruh ASŘ"]
[994,"ECD_Okruh ASŘ"]
[995,"ECD_Okruh ASŘ"]
[996,"ECD_Okruh ASŘ"]
[997,"ECD_Okruh ASŘ"]

{"sheet":"Akční členy regulačních obvodů","index":2,"n_rows":1000,"n_cols":15,"rows_kept":1000,"cut":false,"hidden":false,"merged":[[0,2,0,3]]}
[null,null,"Ukázka vyplnění:"]
[null,"Tento sloupec se netiskne","7.09.20","70920C201.07A","Reg. Armatura TV","B","NE","70920C201A","70920C201.07A","TL3","N","TSOF_M1_ELDV1"]
["č. ř.","Kód třídy MATRIO\nvyplní se automaticky","DPS","Akční člen","Název","Druh ovl.","Ruční ovl.","Označení regulačního obvodu","Prvek \nregulačního obvodu","Technolog. systém","Divize","TSCH obvodu","TSCH dopl. údaje","Změna","Poznámka"]
[1,"ECD_Okruh ASŘ"]
[2,"ECD_Okruh ASŘ"]
[3,"ECD_Okruh ASŘ"]
[4,"ECD_Okruh ASŘ"]
[5,"ECD_Okruh ASŘ"]
[6,"ECD_Okruh ASŘ"]
[7,"ECD_Okruh ASŘ"]
[8,"ECD_Okruh ASŘ"]
[9,"ECD_Okruh ASŘ"]
[10,"ECD_Okruh ASŘ"]
[11,"ECD_Okruh ASŘ"]
[12,"ECD_Okruh ASŘ"]
[13,"ECD_Okruh ASŘ"]
[14,"ECD_Okruh ASŘ"]
[15,"ECD_Okruh ASŘ"]
[16,"ECD_Okruh ASŘ"]
[17,"ECD_Okruh ASŘ"]
[18,"ECD_Okruh ASŘ"]
[19,"ECD_Okruh ASŘ"]
[20,"ECD_Okruh ASŘ"]
[21,"ECD_Okruh ASŘ"]
[22,"ECD_Okruh ASŘ"]
[23,"ECD_Okruh ASŘ"]
[24,"ECD_Okruh ASŘ"]
[25,"ECD_Okruh ASŘ"]
[26,"ECD_Okruh ASŘ"]
[27,"ECD_Okruh ASŘ"]
[28,"ECD_Okruh ASŘ"]
[29,"ECD_Okruh ASŘ"]
[30,"ECD_Okruh ASŘ"]
[31,"ECD_Okruh ASŘ"]
[32,"ECD_Okruh ASŘ"]
[33,"ECD_Okruh ASŘ"]
[34,"ECD_Okruh ASŘ"]
[35,"ECD_Okruh ASŘ"]
[36,"ECD_Okruh ASŘ"]
[37,"ECD_Okruh ASŘ"]
[38,"ECD_Okruh ASŘ"]
[39,"ECD_Okruh ASŘ"]
[40,"ECD_Okruh ASŘ"]
[41,"ECD_Okruh ASŘ"]
[42,"ECD_Okruh ASŘ"]
[43,"ECD_Okruh ASŘ"]
[44,"ECD_Okruh ASŘ"]
[45,"ECD_Okruh ASŘ"]
[46,"ECD_Okruh ASŘ"]
[47,"ECD_Okruh ASŘ"]
[48,"ECD_Okruh ASŘ"]
[49,"ECD_Okruh ASŘ"]
[50,"ECD_Okruh ASŘ"]
[51,"ECD_Okruh ASŘ"]
[52,"ECD_Okruh ASŘ"]
[53,"ECD_Okruh ASŘ"]
[54,"ECD_Okruh ASŘ"]
[55,"ECD_Okruh ASŘ"]
[56,"ECD_Okruh ASŘ"]
[57,"ECD_Okruh ASŘ"]
[58,"ECD_Okruh ASŘ"]
[59,"ECD_Okruh ASŘ"]
[60,"ECD_Okruh ASŘ"]
[61,"ECD_Okruh ASŘ"]
[62,"ECD_Okruh ASŘ"]
[63,"ECD_Okruh ASŘ"]
[64,"ECD_Okruh ASŘ"]
[65,"ECD_Okruh ASŘ"]
[66,"ECD_Okruh ASŘ"]
[67,"ECD_Okruh ASŘ"]
[68,"ECD_Okruh ASŘ"]
[69,"ECD_Okruh ASŘ"]
[70,"ECD_Okruh ASŘ"]
[71,"ECD_Okruh ASŘ"]
[72,"ECD_Okruh ASŘ"]
[73,"ECD_Okruh ASŘ"]
[74,"ECD_Okruh ASŘ"]
[75,"ECD_Okruh ASŘ"]
[76,"ECD_Okruh ASŘ"]
[77,"ECD_Okruh ASŘ"]
[78,"ECD_Okruh ASŘ"]
[79,"ECD_Okruh ASŘ"]
[80,"ECD_Okruh ASŘ"]
[81,"ECD_Okruh ASŘ"]
[82,"ECD_Okruh ASŘ"]
[83,"ECD_Okruh ASŘ"]
[84,"ECD_Okruh ASŘ"]
[85,"ECD_Okruh ASŘ"]
[86,"ECD_Okruh ASŘ"]
[87,"ECD_Okruh ASŘ"]
[88,"ECD_Okruh ASŘ"]
[89,"ECD_Okruh ASŘ"]
[90,"ECD_Okruh ASŘ"]
[91,"ECD_Okruh ASŘ"]
[92,"ECD_Okruh ASŘ"]
[93,"ECD_Okruh ASŘ"]
[94,"ECD_Okruh ASŘ"]
[95,"ECD_Okruh ASŘ"]
[96,"ECD_Okruh ASŘ"]
[97,"ECD_Okruh ASŘ"]
[98,"ECD_Okruh ASŘ"]
[99,"ECD_Okruh ASŘ"]
[100,"ECD_Okruh ASŘ"]
[101,"ECD_Okruh ASŘ"]
[102,"ECD_Okruh ASŘ"]
[103,"ECD_Okruh ASŘ"]
[104,"ECD_Okruh ASŘ"]
[105,"ECD_Okruh ASŘ"]
[106,"ECD_Okruh ASŘ"]
[107,"ECD_Okruh ASŘ"]
[108,"ECD_Okruh ASŘ"]
[109,"ECD_Okruh ASŘ"]
[110,"ECD_Okruh ASŘ"]
[111,"ECD_Okruh ASŘ"]
[112,"ECD_Okruh ASŘ"]
[113,"ECD_Okruh ASŘ"]
[114,"ECD_Okruh ASŘ"]
[115,"ECD_Okruh ASŘ"]
[116,"ECD_Okruh ASŘ"]
[117,"ECD_Okruh ASŘ"]
[118,"ECD_Okruh ASŘ"]
[119,"ECD_Okruh ASŘ"]
[120,"ECD_Okruh ASŘ"]
[121,"ECD_Okruh ASŘ"]
[122,"ECD_Okruh ASŘ"]
[123,"ECD_Okruh ASŘ"]
[124,"ECD_Okruh ASŘ"]
[125,"ECD_Okruh ASŘ"]
[126,"ECD_Okruh ASŘ"]
[127,"ECD_Okruh ASŘ"]
[128,"ECD_Okruh ASŘ"]
[129,"ECD_Okruh ASŘ"]
[130,"ECD_Okruh ASŘ"]
[131,"ECD_Okruh ASŘ"]
[132,"ECD_Okruh ASŘ"]
[133,"ECD_Okruh ASŘ"]
[134,"ECD_Okruh ASŘ"]
[135,"ECD_Okruh ASŘ"]
[136,"ECD_Okruh ASŘ"]
[137,"ECD_Okruh ASŘ"]
[138,"ECD_Okruh ASŘ"]
[139,"ECD_Okruh ASŘ"]
[140,"ECD_Okruh ASŘ"]
[141,"ECD_Okruh ASŘ"]
[142,"ECD_Okruh ASŘ"]
[143,"ECD_Okruh ASŘ"]
[144,"ECD_Okruh ASŘ"]
[145,"ECD_Okruh ASŘ"]
[146,"ECD_Okruh ASŘ"]
[147,"ECD_Okruh ASŘ"]
[148,"ECD_Okruh ASŘ"]
[149,"ECD_Okruh ASŘ"]
[150,"ECD_Okruh ASŘ"]
[151,"ECD_Okruh ASŘ"]
[152,"ECD_Okruh ASŘ"]
[153,"ECD_Okruh ASŘ"]
[154,"ECD_Okruh ASŘ"]
[155,"ECD_Okruh ASŘ"]
[156,"ECD_Okruh ASŘ"]
[157,"ECD_Okruh ASŘ"]
[158,"ECD_Okruh ASŘ"]
[159,"ECD_Okruh ASŘ"]
[160,"ECD_Okruh ASŘ"]
[161,"ECD_Okruh ASŘ"]
[162,"ECD_Okruh ASŘ"]
[163,"ECD_Okruh ASŘ"]
[164,"ECD_Okruh ASŘ"]
[165,"ECD_Okruh ASŘ"]
[166,"ECD_Okruh ASŘ"]
[167,"ECD_Okruh ASŘ"]
[168,"ECD_Okruh ASŘ"]
[169,"ECD_Okruh ASŘ"]
[170,"ECD_Okruh ASŘ"]
[171,"ECD_Okruh ASŘ"]
[172,"ECD_Okruh ASŘ"]
[173,"ECD_Okruh ASŘ"]
[174,"ECD_Okruh ASŘ"]
[175,"ECD_Okruh ASŘ"]
[176,"ECD_Okruh ASŘ"]
[177,"ECD_Okruh ASŘ"]
[178,"ECD_Okruh ASŘ"]
[179,"ECD_Okruh ASŘ"]
[180,"ECD_Okruh ASŘ"]
[181,"ECD_Okruh ASŘ"]
[182,"ECD_Okruh ASŘ"]
[183,"ECD_Okruh ASŘ"]
[184,"ECD_Okruh ASŘ"]
[185,"ECD_Okruh ASŘ"]
[186,"ECD_Okruh ASŘ"]
[187,"ECD_Okruh ASŘ"]
[188,"ECD_Okruh ASŘ"]
[189,"ECD_Okruh ASŘ"]
[190,"ECD_Okruh ASŘ"]
[191,"ECD_Okruh ASŘ"]
[192,"ECD_Okruh ASŘ"]
[193,"ECD_Okruh ASŘ"]
[194,"ECD_Okruh ASŘ"]
[195,"ECD_Okruh ASŘ"]
[196,"ECD_Okruh ASŘ"]
[197,"ECD_Okruh ASŘ"]
[198,"ECD_Okruh ASŘ"]
[199,"ECD_Okruh ASŘ"]
[200,"ECD_Okruh ASŘ"]
[201,"ECD_Okruh ASŘ"]
[202,"ECD_Okruh ASŘ"]
[203,"ECD_Okruh ASŘ"]
[204,"ECD_Okruh ASŘ"]
[205,"ECD_Okruh ASŘ"]
[206,"ECD_Okruh ASŘ"]
[207,"ECD_Okruh ASŘ"]
[208,"ECD_Okruh ASŘ"]
[209,"ECD_Okruh ASŘ"]
[210,"ECD_Okruh ASŘ"]
[211,"ECD_Okruh ASŘ"]
[212,"ECD_Okruh ASŘ"]
[213,"ECD_Okruh ASŘ"]
[214,"ECD_Okruh ASŘ"]
[215,"ECD_Okruh ASŘ"]
[216,"ECD_Okruh ASŘ"]
[217,"ECD_Okruh ASŘ"]
[218,"ECD_Okruh ASŘ"]
[219,"ECD_Okruh ASŘ"]
[220,"ECD_Okruh ASŘ"]
[221,"ECD_Okruh ASŘ"]
[222,"ECD_Okruh ASŘ"]
[223,"ECD_Okruh ASŘ"]
[224,"ECD_Okruh ASŘ"]
[225,"ECD_Okruh ASŘ"]
[226,"ECD_Okruh ASŘ"]
[227,"ECD_Okruh ASŘ"]
[228,"ECD_Okruh ASŘ"]
[229,"ECD_Okruh ASŘ"]
[230,"ECD_Okruh ASŘ"]
[231,"ECD_Okruh ASŘ"]
[232,"ECD_Okruh ASŘ"]
[233,"ECD_Okruh ASŘ"]
[234,"ECD_Okruh ASŘ"]
[235,"ECD_Okruh ASŘ"]
[236,"ECD_Okruh ASŘ"]
[237,"ECD_Okruh ASŘ"]
[238,"ECD_Okruh ASŘ"]
[239,"ECD_Okruh ASŘ"]
[240,"ECD_Okruh ASŘ"]
[241,"ECD_Okruh ASŘ"]
[242,"ECD_Okruh ASŘ"]
[243,"ECD_Okruh ASŘ"]
[244,"ECD_Okruh ASŘ"]
[245,"ECD_Okruh ASŘ"]
[246,"ECD_Okruh ASŘ"]
[247,"ECD_Okruh ASŘ"]
[248,"ECD_Okruh ASŘ"]
[249,"ECD_Okruh ASŘ"]
[250,"ECD_Okruh ASŘ"]
[251,"ECD_Okruh ASŘ"]
[252,"ECD_Okruh ASŘ"]
[253,"ECD_Okruh ASŘ"]
[254,"ECD_Okruh ASŘ"]
[255,"ECD_Okruh ASŘ"]
[256,"ECD_Okruh ASŘ"]
[257,"ECD_Okruh ASŘ"]
[258,"ECD_Okruh ASŘ"]
[259,"ECD_Okruh ASŘ"]
[260,"ECD_Okruh ASŘ"]
[261,"ECD_Okruh ASŘ"]
[262,"ECD_Okruh ASŘ"]
[263,"ECD_Okruh ASŘ"]
[264,"ECD_Okruh ASŘ"]
[265,"ECD_Okruh ASŘ"]
[266,"ECD_Okruh ASŘ"]
[267,"ECD_Okruh ASŘ"]
[268,"ECD_Okruh ASŘ"]
[269,"ECD_Okruh ASŘ"]
[270,"ECD_Okruh ASŘ"]
[271,"ECD_Okruh ASŘ"]
[272,"ECD_Okruh ASŘ"]
[273,"ECD_Okruh ASŘ"]
[274,"ECD_Okruh ASŘ"]
[275,"ECD_Okruh ASŘ"]
[276,"ECD_Okruh ASŘ"]
[277,"ECD_Okruh ASŘ"]
[278,"ECD_Okruh ASŘ"]
[279,"ECD_Okruh ASŘ"]
[280,"ECD_Okruh ASŘ"]
[281,"ECD_Okruh ASŘ"]
[282,"ECD_Okruh ASŘ"]
[283,"ECD_Okruh ASŘ"]
[284,"ECD_Okruh ASŘ"]
[285,"ECD_Okruh ASŘ"]
[286,"ECD_Okruh ASŘ"]
[287,"ECD_Okruh ASŘ"]
[288,"ECD_Okruh ASŘ"]
[289,"ECD_Okruh ASŘ"]
[290,"ECD_Okruh ASŘ"]
[291,"ECD_Okruh ASŘ"]
[292,"ECD_Okruh ASŘ"]
[293,"ECD_Okruh ASŘ"]
[294,"ECD_Okruh ASŘ"]
[295,"ECD_Okruh ASŘ"]
[296,"ECD_Okruh ASŘ"]
[297,"ECD_Okruh ASŘ"]
[298,"ECD_Okruh ASŘ"]
[299,"ECD_Okruh ASŘ"]
[300,"ECD_Okruh ASŘ"]
[301,"ECD_Okruh ASŘ"]
[302,"ECD_Okruh ASŘ"]
[303,"ECD_Okruh ASŘ"]
[304,"ECD_Okruh ASŘ"]
[305,"ECD_Okruh ASŘ"]
[306,"ECD_Okruh ASŘ"]
[307,"ECD_Okruh ASŘ"]
[308,"ECD_Okruh ASŘ"]
[309,"ECD_Okruh ASŘ"]
[310,"ECD_Okruh ASŘ"]
[311,"ECD_Okruh ASŘ"]
[312,"ECD_Okruh ASŘ"]
[313,"ECD_Okruh ASŘ"]
[314,"ECD_Okruh ASŘ"]
[315,"ECD_Okruh ASŘ"]
[316,"ECD_Okruh ASŘ"]
[317,"ECD_Okruh ASŘ"]
[318,"ECD_Okruh ASŘ"]
[319,"ECD_Okruh ASŘ"]
[320,"ECD_Okruh ASŘ"]
[321,"ECD_Okruh ASŘ"]
[322,"ECD_Okruh ASŘ"]
[323,"ECD_Okruh ASŘ"]
[324,"ECD_Okruh ASŘ"]
[325,"ECD_Okruh ASŘ"]
[326,"ECD_Okruh ASŘ"]
[327,"ECD_Okruh ASŘ"]
[328,"ECD_Okruh ASŘ"]
[329,"ECD_Okruh ASŘ"]
[330,"ECD_Okruh ASŘ"]
[331,"ECD_Okruh ASŘ"]
[332,"ECD_Okruh ASŘ"]
[333,"ECD_Okruh ASŘ"]
[334,"ECD_Okruh ASŘ"]
[335,"ECD_Okruh ASŘ"]
[336,"ECD_Okruh ASŘ"]
[337,"ECD_Okruh ASŘ"]
[338,"ECD_Okruh ASŘ"]
[339,"ECD_Okruh ASŘ"]
[340,"ECD_Okruh ASŘ"]
[341,"ECD_Okruh ASŘ"]
[342,"ECD_Okruh ASŘ"]
[343,"ECD_Okruh ASŘ"]
[344,"ECD_Okruh ASŘ"]
[345,"ECD_Okruh ASŘ"]
[346,"ECD_Okruh ASŘ"]
[347,"ECD_Okruh ASŘ"]
[348,"ECD_Okruh ASŘ"]
[349,"ECD_Okruh ASŘ"]
[350,"ECD_Okruh ASŘ"]
[351,"ECD_Okruh ASŘ"]
[352,"ECD_Okruh ASŘ"]
[353,"ECD_Okruh ASŘ"]
[354,"ECD_Okruh ASŘ"]
[355,"ECD_Okruh ASŘ"]
[356,"ECD_Okruh ASŘ"]
[357,"ECD_Okruh ASŘ"]
[358,"ECD_Okruh ASŘ"]
[359,"ECD_Okruh ASŘ"]
[360,"ECD_Okruh ASŘ"]
[361,"ECD_Okruh ASŘ"]
[362,"ECD_Okruh ASŘ"]
[363,"ECD_Okruh ASŘ"]
[364,"ECD_Okruh ASŘ"]
[365,"ECD_Okruh ASŘ"]
[366,"ECD_Okruh ASŘ"]
[367,"ECD_Okruh ASŘ"]
[368,"ECD_Okruh ASŘ"]
[369,"ECD_Okruh ASŘ"]
[370,"ECD_Okruh ASŘ"]
[371,"ECD_Okruh ASŘ"]
[372,"ECD_Okruh ASŘ"]
[373,"ECD_Okruh ASŘ"]
[374,"ECD_Okruh ASŘ"]
[375,"ECD_Okruh ASŘ"]
[376,"ECD_Okruh ASŘ"]
[377,"ECD_Okruh ASŘ"]
[378,"ECD_Okruh ASŘ"]
[379,"ECD_Okruh ASŘ"]
[380,"ECD_Okruh ASŘ"]
[381,"ECD_Okruh ASŘ"]
[382,"ECD_Okruh ASŘ"]
[383,"ECD_Okruh ASŘ"]
[384,"ECD_Okruh ASŘ"]
[385,"ECD_Okruh ASŘ"]
[386,"ECD_Okruh ASŘ"]
[387,"ECD_Okruh ASŘ"]
[388,"ECD_Okruh ASŘ"]
[389,"ECD_Okruh ASŘ"]
[390,"ECD_Okruh ASŘ"]
[391,"ECD_Okruh ASŘ"]
[392,"ECD_Okruh ASŘ"]
[393,"ECD_Okruh ASŘ"]
[394,"ECD_Okruh ASŘ"]
[395,"ECD_Okruh ASŘ"]
[396,"ECD_Okruh ASŘ"]
[397,"ECD_Okruh ASŘ"]
[398,"ECD_Okruh ASŘ"]
[399,"ECD_Okruh ASŘ"]
[400,"ECD_Okruh ASŘ"]
[401,"ECD_Okruh ASŘ"]
[402,"ECD_Okruh ASŘ"]
[403,"ECD_Okruh ASŘ"]
[404,"ECD_Okruh ASŘ"]
[405,"ECD_Okruh ASŘ"]
[406,"ECD_Okruh ASŘ"]
[407,"ECD_Okruh ASŘ"]
[408,"ECD_Okruh ASŘ"]
[409,"ECD_Okruh ASŘ"]
[410,"ECD_Okruh ASŘ"]
[411,"ECD_Okruh ASŘ"]
[412,"ECD_Okruh ASŘ"]
[413,"ECD_Okruh ASŘ"]
[414,"ECD_Okruh ASŘ"]
[415,"ECD_Okruh ASŘ"]
[416,"ECD_Okruh ASŘ"]
[417,"ECD_Okruh ASŘ"]
[418,"ECD_Okruh ASŘ"]
[419,"ECD_Okruh ASŘ"]
[420,"ECD_Okruh ASŘ"]
[421,"ECD_Okruh ASŘ"]
[422,"ECD_Okruh ASŘ"]
[423,"ECD_Okruh ASŘ"]
[424,"ECD_Okruh ASŘ"]
[425,"ECD_Okruh ASŘ"]
[426,"ECD_Okruh ASŘ"]
[427,"ECD_Okruh ASŘ"]
[428,"ECD_Okruh ASŘ"]
[429,"ECD_Okruh ASŘ"]
[430,"ECD_Okruh ASŘ"]
[431,"ECD_Okruh ASŘ"]
[432,"ECD_Okruh ASŘ"]
[433,"ECD_Okruh ASŘ"]
[434,"ECD_Okruh ASŘ"]
[435,"ECD_Okruh ASŘ"]
[436,"ECD_Okruh ASŘ"]
[437,"ECD_Okruh ASŘ"]
[438,"ECD_Okruh ASŘ"]
[439,"ECD_Okruh ASŘ"]
[440,"ECD_Okruh ASŘ"]
[441,"ECD_Okruh ASŘ"]
[442,"ECD_Okruh ASŘ"]
[443,"ECD_Okruh ASŘ"]
[444,"ECD_Okruh ASŘ"]
[445,"ECD_Okruh ASŘ"]
[446,"ECD_Okruh ASŘ"]
[447,"ECD_Okruh ASŘ"]
[448,"ECD_Okruh ASŘ"]
[449,"ECD_Okruh ASŘ"]
[450,"ECD_Okruh ASŘ"]
[451,"ECD_Okruh ASŘ"]
[452,"ECD_Okruh ASŘ"]
[453,"ECD_Okruh ASŘ"]
[454,"ECD_Okruh ASŘ"]
[455,"ECD_Okruh ASŘ"]
[456,"ECD_Okruh ASŘ"]
[457,"ECD_Okruh ASŘ"]
[458,"ECD_Okruh ASŘ"]
[459,"ECD_Okruh ASŘ"]
[460,"ECD_Okruh ASŘ"]
[461,"ECD_Okruh ASŘ"]
[462,"ECD_Okruh ASŘ"]
[463,"ECD_Okruh ASŘ"]
[464,"ECD_Okruh ASŘ"]
[465,"ECD_Okruh ASŘ"]
[466,"ECD_Okruh ASŘ"]
[467,"ECD_Okruh ASŘ"]
[468,"ECD_Okruh ASŘ"]
[469,"ECD_Okruh ASŘ"]
[470,"ECD_Okruh ASŘ"]
[471,"ECD_Okruh ASŘ"]
[472,"ECD_Okruh ASŘ"]
[473,"ECD_Okruh ASŘ"]
[474,"ECD_Okruh ASŘ"]
[475,"ECD_Okruh ASŘ"]
[476,"ECD_Okruh ASŘ"]
[477,"ECD_Okruh ASŘ"]
[478,"ECD_Okruh ASŘ"]
[479,"ECD_Okruh ASŘ"]
[480,"ECD_Okruh ASŘ"]
[481,"ECD_Okruh ASŘ"]
[482,"ECD_Okruh ASŘ"]
[483,"ECD_Okruh ASŘ"]
[484,"ECD_Okruh ASŘ"]
[485,"ECD_Okruh ASŘ"]
[486,"ECD_Okruh ASŘ"]
[487,"ECD_Okruh ASŘ"]
[488,"ECD_Okruh ASŘ"]
[489,"ECD_Okruh ASŘ"]
[490,"ECD_Okruh ASŘ"]
[491,"ECD_Okruh ASŘ"]
[492,"ECD_Okruh ASŘ"]
[493,"ECD_Okruh ASŘ"]
[494,"ECD_Okruh ASŘ"]
[495,"ECD_Okruh ASŘ"]
[496,"ECD_Okruh ASŘ"]
[497,"ECD_Okruh ASŘ"]
[498,"ECD_Okruh ASŘ"]
[499,"ECD_Okruh ASŘ"]
[500,"ECD_Okruh ASŘ"]
[501,"ECD_Okruh ASŘ"]
[502,"ECD_Okruh ASŘ"]
[503,"ECD_Okruh ASŘ"]
[504,"ECD_Okruh ASŘ"]
[505,"ECD_Okruh ASŘ"]
[506,"ECD_Okruh ASŘ"]
[507,"ECD_Okruh ASŘ"]
[508,"ECD_Okruh ASŘ"]
[509,"ECD_Okruh ASŘ"]
[510,"ECD_Okruh ASŘ"]
[511,"ECD_Okruh ASŘ"]
[512,"ECD_Okruh ASŘ"]
[513,"ECD_Okruh ASŘ"]
[514,"ECD_Okruh ASŘ"]
[515,"ECD_Okruh ASŘ"]
[516,"ECD_Okruh ASŘ"]
[517,"ECD_Okruh ASŘ"]
[518,"ECD_Okruh ASŘ"]
[519,"ECD_Okruh ASŘ"]
[520,"ECD_Okruh ASŘ"]
[521,"ECD_Okruh ASŘ"]
[522,"ECD_Okruh ASŘ"]
[523,"ECD_Okruh ASŘ"]
[524,"ECD_Okruh ASŘ"]
[525,"ECD_Okruh ASŘ"]
[526,"ECD_Okruh ASŘ"]
[527,"ECD_Okruh ASŘ"]
[528,"ECD_Okruh ASŘ"]
[529,"ECD_Okruh ASŘ"]
[530,"ECD_Okruh ASŘ"]
[531,"ECD_Okruh ASŘ"]
[532,"ECD_Okruh ASŘ"]
[533,"ECD_Okruh ASŘ"]
[534,"ECD_Okruh ASŘ"]
[535,"ECD_Okruh ASŘ"]
[536,"ECD_Okruh ASŘ"]
[537,"ECD_Okruh ASŘ"]
[538,"ECD_Okruh ASŘ"]
[539,"ECD_Okruh ASŘ"]
[540,"ECD_Okruh ASŘ"]
[541,"ECD_Okruh ASŘ"]
[542,"ECD_Okruh ASŘ"]
[543,"ECD_Okruh ASŘ"]
[544,"ECD_Okruh ASŘ"]
[545,"ECD_Okruh ASŘ"]
[546,"ECD_Okruh ASŘ"]
[547,"ECD_Okruh ASŘ"]
[548,"ECD_Okruh ASŘ"]
[549,"ECD_Okruh ASŘ"]
[550,"ECD_Okruh ASŘ"]
[551,"ECD_Okruh ASŘ"]
[552,"ECD_Okruh ASŘ"]
[553,"ECD_Okruh ASŘ"]
[554,"ECD_Okruh ASŘ"]
[555,"ECD_Okruh ASŘ"]
[556,"ECD_Okruh ASŘ"]
[557,"ECD_Okruh ASŘ"]
[558,"ECD_Okruh ASŘ"]
[559,"ECD_Okruh ASŘ"]
[560,"ECD_Okruh ASŘ"]
[561,"ECD_Okruh ASŘ"]
[562,"ECD_Okruh ASŘ"]
[563,"ECD_Okruh ASŘ"]
[564,"ECD_Okruh ASŘ"]
[565,"ECD_Okruh ASŘ"]
[566,"ECD_Okruh ASŘ"]
[567,"ECD_Okruh ASŘ"]
[568,"ECD_Okruh ASŘ"]
[569,"ECD_Okruh ASŘ"]
[570,"ECD_Okruh ASŘ"]
[571,"ECD_Okruh ASŘ"]
[572,"ECD_Okruh ASŘ"]
[573,"ECD_Okruh ASŘ"]
[574,"ECD_Okruh ASŘ"]
[575,"ECD_Okruh ASŘ"]
[576,"ECD_Okruh ASŘ"]
[577,"ECD_Okruh ASŘ"]
[578,"ECD_Okruh ASŘ"]
[579,"ECD_Okruh ASŘ"]
[580,"ECD_Okruh ASŘ"]
[581,"ECD_Okruh ASŘ"]
[582,"ECD_Okruh ASŘ"]
[583,"ECD_Okruh ASŘ"]
[584,"ECD_Okruh ASŘ"]
[585,"ECD_Okruh ASŘ"]
[586,"ECD_Okruh ASŘ"]
[587,"ECD_Okruh ASŘ"]
[588,"ECD_Okruh ASŘ"]
[589,"ECD_Okruh ASŘ"]
[590,"ECD_Okruh ASŘ"]
[591,"ECD_Okruh ASŘ"]
[592,"ECD_Okruh ASŘ"]
[593,"ECD_Okruh ASŘ"]
[594,"ECD_Okruh ASŘ"]
[595,"ECD_Okruh ASŘ"]
[596,"ECD_Okruh ASŘ"]
[597,"ECD_Okruh ASŘ"]
[598,"ECD_Okruh ASŘ"]
[599,"ECD_Okruh ASŘ"]
[600,"ECD_Okruh ASŘ"]
[601,"ECD_Okruh ASŘ"]
[602,"ECD_Okruh ASŘ"]
[603,"ECD_Okruh ASŘ"]
[604,"ECD_Okruh ASŘ"]
[605,"ECD_Okruh ASŘ"]
[606,"ECD_Okruh ASŘ"]
[607,"ECD_Okruh ASŘ"]
[608,"ECD_Okruh ASŘ"]
[609,"ECD_Okruh ASŘ"]
[610,"ECD_Okruh ASŘ"]
[611,"ECD_Okruh ASŘ"]
[612,"ECD_Okruh ASŘ"]
[613,"ECD_Okruh ASŘ"]
[614,"ECD_Okruh ASŘ"]
[615,"ECD_Okruh ASŘ"]
[616,"ECD_Okruh ASŘ"]
[617,"ECD_Okruh ASŘ"]
[618,"ECD_Okruh ASŘ"]
[619,"ECD_Okruh ASŘ"]
[620,"ECD_Okruh ASŘ"]
[621,"ECD_Okruh ASŘ"]
[622,"ECD_Okruh ASŘ"]
[623,"ECD_Okruh ASŘ"]
[624,"ECD_Okruh ASŘ"]
[625,"ECD_Okruh ASŘ"]
[626,"ECD_Okruh ASŘ"]
[627,"ECD_Okruh ASŘ"]
[628,"ECD_Okruh ASŘ"]
[629,"ECD_Okruh ASŘ"]
[630,"ECD_Okruh ASŘ"]
[631,"ECD_Okruh ASŘ"]
[632,"ECD_Okruh ASŘ"]
[633,"ECD_Okruh ASŘ"]
[634,"ECD_Okruh ASŘ"]
[635,"ECD_Okruh ASŘ"]
[636,"ECD_Okruh ASŘ"]
[637,"ECD_Okruh ASŘ"]
[638,"ECD_Okruh ASŘ"]
[639,"ECD_Okruh ASŘ"]
[640,"ECD_Okruh ASŘ"]
[641,"ECD_Okruh ASŘ"]
[642,"ECD_Okruh ASŘ"]
[643,"ECD_Okruh ASŘ"]
[644,"ECD_Okruh ASŘ"]
[645,"ECD_Okruh ASŘ"]
[646,"ECD_Okruh ASŘ"]
[647,"ECD_Okruh ASŘ"]
[648,"ECD_Okruh ASŘ"]
[649,"ECD_Okruh ASŘ"]
[650,"ECD_Okruh ASŘ"]
[651,"ECD_Okruh ASŘ"]
[652,"ECD_Okruh ASŘ"]
[653,"ECD_Okruh ASŘ"]
[654,"ECD_Okruh ASŘ"]
[655,"ECD_Okruh ASŘ"]
[656,"ECD_Okruh ASŘ"]
[657,"ECD_Okruh ASŘ"]
[658,"ECD_Okruh ASŘ"]
[659,"ECD_Okruh ASŘ"]
[660,"ECD_Okruh ASŘ"]
[661,"ECD_Okruh ASŘ"]
[662,"ECD_Okruh ASŘ"]
[663,"ECD_Okruh ASŘ"]
[664,"ECD_Okruh ASŘ"]
[665,"ECD_Okruh ASŘ"]
[666,"ECD_Okruh ASŘ"]
[667,"ECD_Okruh ASŘ"]
[668,"ECD_Okruh ASŘ"]
[669,"ECD_Okruh ASŘ"]
[670,"ECD_Okruh ASŘ"]
[671,"ECD_Okruh ASŘ"]
[672,"ECD_Okruh ASŘ"]
[673,"ECD_Okruh ASŘ"]
[674,"ECD_Okruh ASŘ"]
[675,"ECD_Okruh ASŘ"]
[676,"ECD_Okruh ASŘ"]
[677,"ECD_Okruh ASŘ"]
[678,"ECD_Okruh ASŘ"]
[679,"ECD_Okruh ASŘ"]
[680,"ECD_Okruh ASŘ"]
[681,"ECD_Okruh ASŘ"]
[682,"ECD_Okruh ASŘ"]
[683,"ECD_Okruh ASŘ"]
[684,"ECD_Okruh ASŘ"]
[685,"ECD_Okruh ASŘ"]
[686,"ECD_Okruh ASŘ"]
[687,"ECD_Okruh ASŘ"]
[688,"ECD_Okruh ASŘ"]
[689,"ECD_Okruh ASŘ"]
[690,"ECD_Okruh ASŘ"]
[691,"ECD_Okruh ASŘ"]
[692,"ECD_Okruh ASŘ"]
[693,"ECD_Okruh ASŘ"]
[694,"ECD_Okruh ASŘ"]
[695,"ECD_Okruh ASŘ"]
[696,"ECD_Okruh ASŘ"]
[697,"ECD_Okruh ASŘ"]
[698,"ECD_Okruh ASŘ"]
[699,"ECD_Okruh ASŘ"]
[700,"ECD_Okruh ASŘ"]
[701,"ECD_Okruh ASŘ"]
[702,"ECD_Okruh ASŘ"]
[703,"ECD_Okruh ASŘ"]
[704,"ECD_Okruh ASŘ"]
[705,"ECD_Okruh ASŘ"]
[706,"ECD_Okruh ASŘ"]
[707,"ECD_Okruh ASŘ"]
[708,"ECD_Okruh ASŘ"]
[709,"ECD_Okruh ASŘ"]
[710,"ECD_Okruh ASŘ"]
[711,"ECD_Okruh ASŘ"]
[712,"ECD_Okruh ASŘ"]
[713,"ECD_Okruh ASŘ"]
[714,"ECD_Okruh ASŘ"]
[715,"ECD_Okruh ASŘ"]
[716,"ECD_Okruh ASŘ"]
[717,"ECD_Okruh ASŘ"]
[718,"ECD_Okruh ASŘ"]
[719,"ECD_Okruh ASŘ"]
[720,"ECD_Okruh ASŘ"]
[721,"ECD_Okruh ASŘ"]
[722,"ECD_Okruh ASŘ"]
[723,"ECD_Okruh ASŘ"]
[724,"ECD_Okruh ASŘ"]
[725,"ECD_Okruh ASŘ"]
[726,"ECD_Okruh ASŘ"]
[727,"ECD_Okruh ASŘ"]
[728,"ECD_Okruh ASŘ"]
[729,"ECD_Okruh ASŘ"]
[730,"ECD_Okruh ASŘ"]
[731,"ECD_Okruh ASŘ"]
[732,"ECD_Okruh ASŘ"]
[733,"ECD_Okruh ASŘ"]
[734,"ECD_Okruh ASŘ"]
[735,"ECD_Okruh ASŘ"]
[736,"ECD_Okruh ASŘ"]
[737,"ECD_Okruh ASŘ"]
[738,"ECD_Okruh ASŘ"]
[739,"ECD_Okruh ASŘ"]
[740,"ECD_Okruh ASŘ"]
[741,"ECD_Okruh ASŘ"]
[742,"ECD_Okruh ASŘ"]
[743,"ECD_Okruh ASŘ"]
[744,"ECD_Okruh ASŘ"]
[745,"ECD_Okruh ASŘ"]
[746,"ECD_Okruh ASŘ"]
[747,"ECD_Okruh ASŘ"]
[748,"ECD_Okruh ASŘ"]
[749,"ECD_Okruh ASŘ"]
[750,"ECD_Okruh ASŘ"]
[751,"ECD_Okruh ASŘ"]
[752,"ECD_Okruh ASŘ"]
[753,"ECD_Okruh ASŘ"]
[754,"ECD_Okruh ASŘ"]
[755,"ECD_Okruh ASŘ"]
[756,"ECD_Okruh ASŘ"]
[757,"ECD_Okruh ASŘ"]
[758,"ECD_Okruh ASŘ"]
[759,"ECD_Okruh ASŘ"]
[760,"ECD_Okruh ASŘ"]
[761,"ECD_Okruh ASŘ"]
[762,"ECD_Okruh ASŘ"]
[763,"ECD_Okruh ASŘ"]
[764,"ECD_Okruh ASŘ"]
[765,"ECD_Okruh ASŘ"]
[766,"ECD_Okruh ASŘ"]
[767,"ECD_Okruh ASŘ"]
[768,"ECD_Okruh ASŘ"]
[769,"ECD_Okruh ASŘ"]
[770,"ECD_Okruh ASŘ"]
[771,"ECD_Okruh ASŘ"]
[772,"ECD_Okruh ASŘ"]
[773,"ECD_Okruh ASŘ"]
[774,"ECD_Okruh ASŘ"]
[775,"ECD_Okruh ASŘ"]
[776,"ECD_Okruh ASŘ"]
[777,"ECD_Okruh ASŘ"]
[778,"ECD_Okruh ASŘ"]
[779,"ECD_Okruh ASŘ"]
[780,"ECD_Okruh ASŘ"]
[781,"ECD_Okruh ASŘ"]
[782,"ECD_Okruh ASŘ"]
[783,"ECD_Okruh ASŘ"]
[784,"ECD_Okruh ASŘ"]
[785,"ECD_Okruh ASŘ"]
[786,"ECD_Okruh ASŘ"]
[787,"ECD_Okruh ASŘ"]
[788,"ECD_Okruh ASŘ"]
[789,"ECD_Okruh ASŘ"]
[790,"ECD_Okruh ASŘ"]
[791,"ECD_Okruh ASŘ"]
[792,"ECD_Okruh ASŘ"]
[793,"ECD_Okruh ASŘ"]
[794,"ECD_Okruh ASŘ"]
[795,"ECD_Okruh ASŘ"]
[796,"ECD_Okruh ASŘ"]
[797,"ECD_Okruh ASŘ"]
[798,"ECD_Okruh ASŘ"]
[799,"ECD_Okruh ASŘ"]
[800,"ECD_Okruh ASŘ"]
[801,"ECD_Okruh ASŘ"]
[802,"ECD_Okruh ASŘ"]
[803,"ECD_Okruh ASŘ"]
[804,"ECD_Okruh ASŘ"]
[805,"ECD_Okruh ASŘ"]
[806,"ECD_Okruh ASŘ"]
[807,"ECD_Okruh ASŘ"]
[808,"ECD_Okruh ASŘ"]
[809,"ECD_Okruh ASŘ"]
[810,"ECD_Okruh ASŘ"]
[811,"ECD_Okruh ASŘ"]
[812,"ECD_Okruh ASŘ"]
[813,"ECD_Okruh ASŘ"]
[814,"ECD_Okruh ASŘ"]
[815,"ECD_Okruh ASŘ"]
[816,"ECD_Okruh ASŘ"]
[817,"ECD_Okruh ASŘ"]
[818,"ECD_Okruh ASŘ"]
[819,"ECD_Okruh ASŘ"]
[820,"ECD_Okruh ASŘ"]
[821,"ECD_Okruh ASŘ"]
[822,"ECD_Okruh ASŘ"]
[823,"ECD_Okruh ASŘ"]
[824,"ECD_Okruh ASŘ"]
[825,"ECD_Okruh ASŘ"]
[826,"ECD_Okruh ASŘ"]
[827,"ECD_Okruh ASŘ"]
[828,"ECD_Okruh ASŘ"]
[829,"ECD_Okruh ASŘ"]
[830,"ECD_Okruh ASŘ"]
[831,"ECD_Okruh ASŘ"]
[832,"ECD_Okruh ASŘ"]
[833,"ECD_Okruh ASŘ"]
[834,"ECD_Okruh ASŘ"]
[835,"ECD_Okruh ASŘ"]
[836,"ECD_Okruh ASŘ"]
[837,"ECD_Okruh ASŘ"]
[838,"ECD_Okruh ASŘ"]
[839,"ECD_Okruh ASŘ"]
[840,"ECD_Okruh ASŘ"]
[841,"ECD_Okruh ASŘ"]
[842,"ECD_Okruh ASŘ"]
[843,"ECD_Okruh ASŘ"]
[844,"ECD_Okruh ASŘ"]
[845,"ECD_Okruh ASŘ"]
[846,"ECD_Okruh ASŘ"]
[847,"ECD_Okruh ASŘ"]
[848,"ECD_Okruh ASŘ"]
[849,"ECD_Okruh ASŘ"]
[850,"ECD_Okruh ASŘ"]
[851,"ECD_Okruh ASŘ"]
[852,"ECD_Okruh ASŘ"]
[853,"ECD_Okruh ASŘ"]
[854,"ECD_Okruh ASŘ"]
[855,"ECD_Okruh ASŘ"]
[856,"ECD_Okruh ASŘ"]
[857,"ECD_Okruh ASŘ"]
[858,"ECD_Okruh ASŘ"]
[859,"ECD_Okruh ASŘ"]
[860,"ECD_Okruh ASŘ"]
[861,"ECD_Okruh ASŘ"]
[862,"ECD_Okruh ASŘ"]
[863,"ECD_Okruh ASŘ"]
[864,"ECD_Okruh ASŘ"]
[865,"ECD_Okruh ASŘ"]
[866,"ECD_Okruh ASŘ"]
[867,"ECD_Okruh ASŘ"]
[868,"ECD_Okruh ASŘ"]
[869,"ECD_Okruh ASŘ"]
[870,"ECD_Okruh ASŘ"]
[871,"ECD_Okruh ASŘ"]
[872,"ECD_Okruh ASŘ"]
[873,"ECD_Okruh ASŘ"]
[874,"ECD_Okruh ASŘ"]
[875,"ECD_Okruh ASŘ"]
[876,"ECD_Okruh ASŘ"]
[877,"ECD_Okruh ASŘ"]
[878,"ECD_Okruh ASŘ"]
[879,"ECD_Okruh ASŘ"]
[880,"ECD_Okruh ASŘ"]
[881,"ECD_Okruh ASŘ"]
[882,"ECD_Okruh ASŘ"]
[883,"ECD_Okruh ASŘ"]
[884,"ECD_Okruh ASŘ"]
[885,"ECD_Okruh ASŘ"]
[886,"ECD_Okruh ASŘ"]
[887,"ECD_Okruh ASŘ"]
[888,"ECD_Okruh ASŘ"]
[889,"ECD_Okruh ASŘ"]
[890,"ECD_Okruh ASŘ"]
[891,"ECD_Okruh ASŘ"]
[892,"ECD_Okruh ASŘ"]
[893,"ECD_Okruh ASŘ"]
[894,"ECD_Okruh ASŘ"]
[895,"ECD_Okruh ASŘ"]
[896,"ECD_Okruh ASŘ"]
[897,"ECD_Okruh ASŘ"]
[898,"ECD_Okruh ASŘ"]
[899,"ECD_Okruh ASŘ"]
[900,"ECD_Okruh ASŘ"]
[901,"ECD_Okruh ASŘ"]
[902,"ECD_Okruh ASŘ"]
[903,"ECD_Okruh ASŘ"]
[904,"ECD_Okruh ASŘ"]
[905,"ECD_Okruh ASŘ"]
[906,"ECD_Okruh ASŘ"]
[907,"ECD_Okruh ASŘ"]
[908,"ECD_Okruh ASŘ"]
[909,"ECD_Okruh ASŘ"]
[910,"ECD_Okruh ASŘ"]
[911,"ECD_Okruh ASŘ"]
[912,"ECD_Okruh ASŘ"]
[913,"ECD_Okruh ASŘ"]
[914,"ECD_Okruh ASŘ"]
[915,"ECD_Okruh ASŘ"]
[916,"ECD_Okruh ASŘ"]
[917,"ECD_Okruh ASŘ"]
[918,"ECD_Okruh ASŘ"]
[919,"ECD_Okruh ASŘ"]
[920,"ECD_Okruh ASŘ"]
[921,"ECD_Okruh ASŘ"]
[922,"ECD_Okruh ASŘ"]
[923,"ECD_Okruh ASŘ"]
[924,"ECD_Okruh ASŘ"]
[925,"ECD_Okruh ASŘ"]
[926,"ECD_Okruh ASŘ"]
[927,"ECD_Okruh ASŘ"]
[928,"ECD_Okruh ASŘ"]
[929,"ECD_Okruh ASŘ"]
[930,"ECD_Okruh ASŘ"]
[931,"ECD_Okruh ASŘ"]
[932,"ECD_Okruh ASŘ"]
[933,"ECD_Okruh ASŘ"]
[934,"ECD_Okruh ASŘ"]
[935,"ECD_Okruh ASŘ"]
[936,"ECD_Okruh ASŘ"]
[937,"ECD_Okruh ASŘ"]
[938,"ECD_Okruh ASŘ"]
[939,"ECD_Okruh ASŘ"]
[940,"ECD_Okruh ASŘ"]
[941,"ECD_Okruh ASŘ"]
[942,"ECD_Okruh ASŘ"]
[943,"ECD_Okruh ASŘ"]
[944,"ECD_Okruh ASŘ"]
[945,"ECD_Okruh ASŘ"]
[946,"ECD_Okruh ASŘ"]
[947,"ECD_Okruh ASŘ"]
[948,"ECD_Okruh ASŘ"]
[949,"ECD_Okruh ASŘ"]
[950,"ECD_Okruh ASŘ"]
[951,"ECD_Okruh ASŘ"]
[952,"ECD_Okruh ASŘ"]
[953,"ECD_Okruh ASŘ"]
[954,"ECD_Okruh ASŘ"]
[955,"ECD_Okruh ASŘ"]
[956,"ECD_Okruh ASŘ"]
[957,"ECD_Okruh ASŘ"]
[958,"ECD_Okruh ASŘ"]
[959,"ECD_Okruh ASŘ"]
[960,"ECD_Okruh ASŘ"]
[961,"ECD_Okruh ASŘ"]
[962,"ECD_Okruh ASŘ"]
[963,"ECD_Okruh ASŘ"]
[964,"ECD_Okruh ASŘ"]
[965,"ECD_Okruh ASŘ"]
[966,"ECD_Okruh ASŘ"]
[967,"ECD_Okruh ASŘ"]
[968,"ECD_Okruh ASŘ"]
[969,"ECD_Okruh ASŘ"]
[970,"ECD_Okruh ASŘ"]
[971,"ECD_Okruh ASŘ"]
[972,"ECD_Okruh ASŘ"]
[973,"ECD_Okruh ASŘ"]
[974,"ECD_Okruh ASŘ"]
[975,"ECD_Okruh ASŘ"]
[976,"ECD_Okruh ASŘ"]
[977,"ECD_Okruh ASŘ"]
[978,"ECD_Okruh ASŘ"]
[979,"ECD_Okruh ASŘ"]
[980,"ECD_Okruh ASŘ"]
[981,"ECD_Okruh ASŘ"]
[982,"ECD_Okruh ASŘ"]
[983,"ECD_Okruh ASŘ"]
[984,"ECD_Okruh ASŘ"]
[985,"ECD_Okruh ASŘ"]
[986,"ECD_Okruh ASŘ"]
[987,"ECD_Okruh ASŘ"]
[988,"ECD_Okruh ASŘ"]
[989,"ECD_Okruh ASŘ"]
[990,"ECD_Okruh ASŘ"]
[991,"ECD_Okruh ASŘ"]
[992,"ECD_Okruh ASŘ"]
[993,"ECD_Okruh ASŘ"]
[994,"ECD_Okruh ASŘ"]
[995,"ECD_Okruh ASŘ"]
[996,"ECD_Okruh ASŘ"]
[997,"ECD_Okruh ASŘ"]

{"sheet":"Návod na vyplnění","index":3,"n_rows":54,"n_cols":5,"rows_kept":54,"cut":false,"hidden":false,"merged":[[45,2,49,4],[4,2,4,4],[23,2,23,4],[3,2,3,4],[42,2,42,4],[22,2,22,4]]}
[]
[]
[]
[null,null,"Návod na vyplnění položek"]
[null,null,"Seznam regulačních obvodů"]
[null,null,"Název pole","Obsah pole","Vyplnění"]
[null,null,"Kód třídy MATRIO","ECD_Okruh ASŘ","automatické"]
[null,null,"DPS","Označení dílčího provozního souboru","výběr z číselníku"]
[null,null,"Označení","Označení regulačního obvodu","volný text"]
[null,null,"Název","Název ovládacího obvodu","volný text"]
[null,null,"Druh ovl.","Druh ovládání dle průběhu regulované veličiny (A = spojité; B = nespojité)","výběr z číselníku"]
[null,null,"Ruční ovl.","Možnost ručního ovládání (Ano/Ne)","výběr z číselníku"]
[null,null,"Regulovaná veličina","Fyzikální veličina, kterou je třeba regulovat","volný text"]
[null,null,"Měřicí obvod RV","Odkaz na měřicí obvod v tabulce Seznam měřicích obvodů, kterým se regulovaná veličina měří","volný text"]
[null,null,"RV nom","Rozsah regulované veličiny -žádaná (nominální) hodnota. Pokud se žádaná hodnota mění (závisí na jiné veličině), pole není vyplněno","volný text"]
[null,null,"RR min","Rozsah regulované veličiny -min. hodnota","volný text"]
[null,null,"RR max","Rozsah regulované veličiny AČ -max. hodnota","volný text"]
[null,null,"RR jedn","Rozsah regulované veličiny AČ -jednotky","volný text"]
[null,null,"Regulátor","Obchodní název regulátoru, který příslušnou regulaci zajišťuje (např. SAIA, Schneider, apod.)","volný text"]
[null,null,"Algoritmus SW","Odkaz na popis SW algoritmu, dle kterého se daná regulace zajišťuje. Zahrnuje i ovládání příslušejících akčních členů","volný text"]
[null,null,"Změna","Změna: N=nový, Z=zrušený, S=stávající (např. jiné připojení žil), V=výměna, M=modifikace","výběr z číselníku"]
[null,null,"Poznámka","Poznámka","volný text"]
[null,null,"Tabulku \"Seznam refulačních obvodů\" vyplňute od prvního řádku, nevynechávejte řádky a pro pohyb použijte rolování."]
[null,null,"Akční členy regulačních obvodů"]
[null,null,"Název pole","Obsah pole","Vyplnění"]
[null,null,"Kód třídy MATRIO ","ECD_Okruh ASŘ","automatické"]
[null,null,"DPS","Označení dílčího provozního souboru obvodu akčního členu (obvykle stejný jako DPS regulačního obvodu)","výběr z číselníku"]
[null,null,"Akční člen","Označení akčního členu, který se podílí na regulaci. Návaznost na vstupní tabulku Seznam AČ, pole Označení","volný text"]
[null,null,"Název","Název (popis) akčního členu, který se podílí na regulaci","volný text"]
[null,null,"Druh ovl.","Druh ovládání AČ (A = analogové (spojité) / B = binární (dvoustavové)","výběr z číselníku"]
[null,null,"Ruční ovl.","Možnost ručního ovládání","výběr z číselníku"]
[null,null,"Označení regulačního  obvodu","Odkaz na regulační obvod, jehož je akční člen součástí","volný text"]
[null,null,"Prvek regulačního bvodu","Označení prvku v rámci regulačního obvodu (je-li stanoveno) - typicky označení servopohonu","volný text"]
[null,null,"RR min","Regulační rozsah AČ pro stanovený rozsah regulované veličiny - min. hodnota","volný text"]
[null,null,"RR max","Regulační rozsah AČ pro stanovený rozsah regulované veličiny - max. hodnota","volný text"]
[null,null,"RR jedn","Regulační rozsah AČ pro stanovený rozsah regulované veličiny - jednotky","volný text"]
[null,null,"Systém","Označení systému, v rámci kterého je AČ řízen","výběr z číselníku"]
[null,null,"Divize","Divize bezpečnostního systému, resp. nezávislého systému","výběr z číselníku"]
[null,null,"TSCH obvodu","Označení typového schématu ovládacího obvodu v části SKŘ. Pokud není zpracováno typové schéma, pak uvést arch.č. výkresu konkrétního obvodu","volný text"]
[null,null,"TSCH dopl. Údaje","Parametry či atributy typového schématu ovládacího obvodu v části SKŘ, pokud jsou pro dané typové schéma relevantní. ","volný text"]
[null,null,"Změna","Změna: N=nový, Z=zrušený, S=stávající (např. jiné připojení žil), V=výměna, M=modifikace","výběr z číselníku"]
[null,null,"Poznámka","Poznámka","volný text"]
[null,null,"Tabulku \"Akční členy regulačních obvodů\" vyplňute od prvního řádku, nevynechávejte řádky a pro pohyb použijte rolování."]
[]
[]
[null,null,"UPOZORNĚNÍ:\nTISK JE PŘEDNASTAVEN, tisknou se pouze řádky, kde je vyplněný údaj  DPS pro \"Seznam regulačních obvodů\" i pro \"Akční členy regulačních obvodů\" . \nFormáty tisku jsou nastavené dle velikosti tabulky. \nObě tabulky (seznamy) se tisknou na  formát A3 \"na šířku\". \n"]
[]
[]
[]
[]
[]
[null,null,"Pozn. Klasifikace a požadavky na kvalifikaci jsou řešeny na samostatných formulářích dle příloh CEZ_ST_0093: "]
[null,null,"ČEZ_FO_1529","Seznam klasifikovaných zařízení"]
[null,null,"ČEZ_FO_1531","Seznam kvalifikovaných zařízení"]

{"sheet":"Číselníky","index":4,"n_rows":3728,"n_cols":17,"rows_kept":3728,"cut":false,"hidden":false,"merged":[[1,2,1,16],[2,2,2,16],[3,1,5,1]]}
[]
[null,null,"Použité číselníky"]
[null,null,"Vysvětlivky:  Nad názvem atributu: TE+DU = číselník je stejný pro obě elektrárny,  TE nebo DU = číselník je pro každou elektrárnu specifický,  TE <>DU = podmíněné prohození dle vybrané lokality na titulním listu"]
[null,"Aktuálně vybraná lokalita na Titulním listu",1,2,3,4,5,9,10,24,27,28,29,30,31,32,33]
[null,null,null,"TE+DU","TE","DU","TE <>DU","TE+DU","TE+DU","TE+DU","TE","DU","TE <>DU","TE","DU","TE <>DU","TE+DU"]
[null,null,"Lokalita","Stupeň","Typ/Podtyp (ETE)","Typ/Podtyp (EDU)","Typ/Podtyp ","Druh ovládání","Ruční\novládání","Změna dle JMA","DPS ETE","DPS EDU","DPS","Systém SKŘ ETE","Systém SKŘ EDU","Systém SKŘ","Divize"]
[null,{"$f":"'Titulní list'!CD14","v":" "}," "," "," "," ",{"$f":"IF($B$7=\"ETE\",E7,IF($B$7=\"EDU\",F7,\" \"))","v":" "}," "," "," "," "," ",{"$f":"IF($B$7=\"ETE\",K7,L7)","v":" "}," "," ",{"$f":"IF($B$7=\"ETE\",N7,O7)","v":" "}," "]
[null,null,"ETE","PDPS","PPPT","H16T ",{"$f":"IF($B$7=\"ETE\",E8,IF($B$7=\"EDU\",F8,\" \"))","v":" "},"A","Ano","N","0.00","A.32.00","A.32.00","AD","AM1","AM1",1]
[null,null,"EDU","DoSP","PPPS","H16S",{"$f":"IF($B$7=\"ETE\",E9,IF($B$7=\"EDU\",F9,\" \"))","v":" "},"B","Ne","S","0.01","A.32.01","A.32.01","ADO","AM2","AM2",2]
[null,null,null,"PDSŘ","EDST/SKT","H01S",{"$f":"IF($B$7=\"ETE\",E10,IF($B$7=\"EDU\",F10,\" \"))","v":" "},null,null,"Z","0.01A","A.32.03","A.32.03","ASBS","AM3","AM3",3]
[null,null,null,null,"EDSS/SKT","H01S",{"$f":"IF($B$7=\"ETE\",E11,IF($B$7=\"EDU\",F11,\" \"))","v":" "},null,null,"V","004","A.32.06","A.32.06","ASDV","AM4","AM4","N"]
[null,null,null,null,null,null,null,null,null,"M","0.05","A.32.08","A.32.08","ASHO","AM5","AM5"]
[null,null,null,null,null,null,null,null,null,null,"0.05A","A.32.09","A.32.09","ASPD","AO","AO"]
[null,null,null,null,null,null,null,null,null,null,"0.05S","A.32.10","A.32.10","ASPO","ASRI","ASRI"]
[null,null,null,null,null,null,null,null,null,null,"0.05V","III.13","III.13","ASSO","ASRP","ASRP"]
[null,null,null,null,null,null,null,null,null,null,"0.05W","III.14","III.14","ASSV","ASRS","ASRS"]
[null,null,null,null,null,null,null,null,null,null,"0.05X","III.15","III.15","BFVF","ASRX","ASRX"]
[null,null,null,null,null,null,null,null,null,null,"0.06","III.16","III.16","BNIS","AT1","AT1"]
[null,null,null,null,null,null,null,null,null,null,"0.06A","III.17","III.17","BUK","AT2","AT2"]
[null,null,null,null,null,null,null,null,null,null,"0.06B","III.19","III.19","CO","AT3","AT3"]
[null,null,null,null,null,null,null,null,null,null,"0.06C","III.20","III.20","COV","AT4","AT4"]
[null,null,null,null,null,null,null,null,null,null,"0.06D","III.22","III.22","CSOT","AT5","AT5"]
[null,null,null,null,null,null,null,null,null,null,"0.06H","III.25","III.25","DEKO","COH","COH"]
[null,null,null,null,null,null,null,null,null,null,"0.06M","III.29","III.29","DGS","CSRK","CSRK"]
[null,null,null,null,null,null,null,null,null,null,"0.06S","III.30","III.30","DHM","CVNZ","CVNZ"]
[null,null,null,null,null,null,null,null,null,null,"0.06T","III.31","III.31","DIAG","DGSM","DGSM"]
[null,null,null,null,null,null,null,null,null,null,"0.06V","III.38","III.38","DIL","DIAG","DIAG"]
[null,null,null,null,null,null,null,null,null,null,"0.06X","III.40","III.40","DSK","DP","DP"]
[null,null,null,null,null,null,null,null,null,null,"0.07","III.46","III.46","EPDS","DPR","DPR"]
[null,null,null,null,null,null,null,null,null,null,"0.07A","III.74","III.74","EPS","EM1","EM1"]
[null,null,null,null,null,null,null,null,null,null,"0.07B","II.15","II.15","FRAO","EM2","EM2"]
[null,null,null,null,null,null,null,null,null,null,"009","IV.13","IV.13","G-DG","HDA","HDA"]
[null,null,null,null,null,null,null,null,null,null,"0.10","IV.14","IV.14","GEN","IO","IO"]
[null,null,null,null,null,null,null,null,null,null,"010","IV.15","IV.15","GEO","IS","IS"]
[null,null,null,null,null,null,null,null,null,null,"0.10A","IV.16","IV.16","H2","JAO","JAO"]
[null,null,null,null,null,null,null,null,null,null,"0.10D","IV.51","IV.51","HERM","KAB","KAB"]
[null,null,null,null,null,null,null,null,null,null,"0.10T","IV.52","IV.52","HRB","KCHA","KCHA"]
[null,null,null,null,null,null,null,null,null,null,"0.10V","IV.53","IV.53","HZS","KO","KO"]
[null,null,null,null,null,null,null,null,null,null,"0.104","IV.54","IV.54","CHM","KO1","KO1"]
[null,null,null,null,null,null,null,null,null,null,"0.104A","IV.55","IV.55","CHOM","KO1M","KO1M"]
[null,null,null,null,null,null,null,null,null,null,"0.104B","IV.57","IV.57","CHUV","KO2","KO2"]
[null,null,null,null,null,null,null,null,null,null,"0.104D","IV.58","IV.58","INSI","KO3","KO3"]
[null,null,null,null,null,null,null,null,null,null,"0.104E","IV.60","IV.60","ISE1","N11","N11"]
[null,null,null,null,null,null,null,null,null,null,"0.105","IV.61","IV.61","ISE2","N12","N12"]
[null,null,null,null,null,null,null,null,null,null,"0.105D","IV.62","IV.62","IVS","N13","N13"]
[null,null,null,null,null,null,null,null,null,null,"0.105F","IV.64","IV.64","JAO1","N21","N21"]
[null,null,null,null,null,null,null,null,null,null,"0.105M","IV.67","IV.67","JAO2","N22","N22"]
[null,null,null,null,null,null,null,null,null,null,"0.105V","IV.70","IV.70","JAO3","N23","N23"]
[null,null,null,null,null,null,null,null,null,null,"0.106","IV.75","IV.75","JOUL","N24","N24"]
[null,null,null,null,null,null,null,null,null,null,"0.107","IV.79","IV.79","KOM","NJO","NJO"]
[null,null,null,null,null,null,null,null,null,null,"0.108","IV.90","IV.90","KTM","NLA","NLA"]
[null,null,null,null,null,null,null,null,null,null,"0.11","I.15","I.15","KTMP","NV1","NV1"]
[null,null,null,null,null,null,null,null,null,null,"0.11D","I.16","I.16","KTMT","NV2","NV2"]
[null,null,null,null,null,null,null,null,null,null,"0.11V","M.08","M.08","KUCH","NV3","NV3"]
[null,null,null,null,null,null,null,null,null,null,"0.144","M.12","M.12","LAB","NV4","NV4"]
[null,null,null,null,null,null,null,null,null,null,"0.144A","M.12.01","M.12.01","LMIZ","NV5","NV5"]
[null,null,null,null,null,null,null,null,null,null,"0.144E","M.12.02","M.12.02","LRKO","NV6","NV6"]
[null,null,null,null,null,null,null,null,null,null,"0.144T","M.74","M.74","LSKR","NW1","NW1"]
[null,null,null,null,null,null,null,null,null,null,"0.145","M.74.01","M.74.01","N2","NW2","NW2"]
[null,null,null,null,null,null,null,null,null,null,"0.145A","M.74.03","M.74.03","NANA","NW3","NW3"]
[null,null,null,null,null,null,null,null,null,null,"0.145T","M.85.01","M.85.01","NEM","NW4","NW4"]
[null,null,null,null,null,null,null,null,null,null,"0.146","M.85.02","M.85.02","NEUT","NW5","NW5"]
[null,null,null,null,null,null,null,null,null,null,"0.147","M.85.03","M.85.03","NN1","NW6","NW6"]
[null,null,null,null,null,null,null,null,null,null,"0.147A","M.85.04","M.85.04","NN2","NW7","NW7"]
[null,null,null,null,null,null,null,null,null,null,"0.147B","M.85.05","M.85.05","NN3","OB1","OB1"]
[null,null,null,null,null,null,null,null,null,null,"0.147C","M.85.06","M.85.06","NN4","OB2","OB2"]
[null,null,null,null,null,null,null,null,null,null,"0.147D","M.85.07","M.85.07","NN5","OB3","OB3"]
[null,null,null,null,null,null,null,null,null,null,"0.147F","M.85.08","M.85.08","NTKS","OB4","OB4"]
[null,null,null,null,null,null,null,null,null,null,"0.147G","U.010","U.010","NTO","OO","OO"]
[null,null,null,null,null,null,null,null,null,null,"0.148","U.011","U.011","ODK","OS","OS"]
[null,null,null,null,null,null,null,null,null,null,"0.148D","U.011.1",{"$f":"IF($B$7=\"ETE\",K71,L71)","v":"U.011.1"},"ODOL","PARC",{"$f":"IF($B$7=\"ETE\",N71,O71)","v":"PARC"}]
[null,null,null,null,null,null,null,null,null,null,"0.148T","U.011.2","U.011.2","ODPA","PCSI","PCSI"]
[null,null,null,null,null,null,null,null,null,null,"0.148V","U.012","U.012","OCH","PCSP","PCSP"]
[null,null,null,null,null,null,null,null,null,null,"0.150","U.102.00","U.102.00","OSO","PCSS","PCSS"]
[null,null,null,null,null,null,null,null,null,null,"0.151","U.102.01","U.102.01","OSTR","PCSX","PCSX"]
[null,null,null,null,null,null,null,null,null,null,"0.152","U.102.03","U.102.03","OV","PMSI","PMSI"]
[null,null,null,null,null,null,null,null,null,null,"0.162","U.102.06","U.102.06","PAL","PMSP","PMSP"]
[null,null,null,null,null,null,null,null,null,null,"0.162T","U.102.08","U.102.08","PHM","PMSS","PMSS"]
[null,null,null,null,null,null,null,null,null,null,"0.163","U.102.09","U.102.09","PK","PMSX","PMSX"]
[null,null,null,null,null,null,null,null,null,null,"0.163A","U.102.10","U.102.10","PRO1","PP","PP"]
[null,null,null,null,null,null,null,null,null,null,"0.163T","U.200.00","U.200.00","PRO2","PR","PR"]
[null,null,null,null,null,null,null,null,null,null,"0.163V","U.200.01","U.200.01","PRO3","PT1","PT1"]
[null,null,null,null,null,null,null,null,null,null,"0.165","U.200.03","U.200.03","PT","PT2","PT2"]
[null,null,null,null,null,null,null,null,null,null,"0.166","U.200.06","U.200.06","PTPO","PT3","PT3"]
[null,null,null,null,null,null,null,null,null,null,"0.167","U.200.08","U.200.08","PTV","QA","QA"]
[null,null,null,null,null,null,null,null,null,null,"0.168","U.200.09","U.200.09","RG","QF","QF"]
[null,null,null,null,null,null,null,null,null,null,"0.168B","U.200.10","U.200.10","RPO","QM","QM"]
[null,null,null,null,null,null,null,null,null,null,"0.169","U.202.00","U.202.00","RQ","QP","QP"]
[null,null,null,null,null,null,null,null,null,null,"0.170","U.202.01","U.202.01","RRMS","QS","QS"]
[null,null,null,null,null,null,null,null,null,null,"0.170A","U.202.03","U.202.03","RY","QV","QV"]
[null,null,null,null,null,null,null,null,null,null,"0.170D","U.202.06","U.202.06","SAUT","QW","QW"]
[null,null,null,null,null,null,null,null,null,null,"0.170E","U.202.08","U.202.08","SC","QX","QX"]
[null,null,null,null,null,null,null,null,null,null,"0.170F","U.202.09","U.202.09","SD","QZE","QZE"]
[null,null,null,null,null,null,null,null,null,null,"0.173","U.202.10","U.202.10","SF","QZM","QZM"]
[null,null,null,null,null,null,null,null,null,null,"0.174","VII.30","VII.30","SHZ","QZS","QZS"]
[null,null,null,null,null,null,null,null,null,null,"0.174A","VII.31","VII.31","SIM","RA","RA"]
[null,null,null,null,null,null,null,null,null,null,"0.174R","XII.13","XII.13","SJ","RB","RB"]
[null,null,null,null,null,null,null,null,null,null,"0.174S","XI.13","XI.13","SKOL","RKO","RKO"]
[null,null,null,null,null,null,null,null,null,null,"0.174T","XI.15","XI.15","SPP","RKT","RKT"]
[null,null,null,null,null,null,null,null,null,null,"0.174V","XI.16","XI.16","SPPR","RKV","RKV"]
[null,null,null,null,null,null,null,null,null,null,"0.18","Z.12","Z.12","SRAO","RL1","RL1"]
[null,null,null,null,null,null,null,null,null,null,"0.18A","Z.12.01","Z.12.01","SSRK","RL2","RL2"]
[null,null,null,null,null,null,null,null,null,null,"0.18T","Z.12.02","Z.12.02","TA","RM1","RM1"]
[null,null,null,null,null,null,null,null,null,null,"0.18V","Z.83.01","Z.83.01","TAUT","RM2","RM2"]
[null,null,null,null,null,null,null,null,null,null,"0.181","Z.83.02","Z.83.02","TB","RM2M","RM2M"]
[null,null,null,null,null,null,null,null,null,null,"0.182","Z.83.03","Z.83.03","TBN","RP","RP"]
[null,null,null,null,null,null,null,null,null,null,"0.184","Z.83.04","Z.83.04","TC","RQ1","RQ1"]
[null,null,null,null,null,null,null,null,null,null,"0.184A","Z.83.05","Z.83.05","TD","RR","RR"]
[null,null,null,null,null,null,null,null,null,null,"0.185","Z.83.06","Z.83.06","TE","RRCS","RRCS"]
[null,null,null,null,null,null,null,null,null,null,"0.185A","Z.83.07","Z.83.07","TF","RSBB","RSBB"]
[null,null,null,null,null,null,null,null,null,null,"0.188","Z.83.08","Z.83.08","TG","RSBBI","RSBBI"]
[null,null,null,null,null,null,null,null,null,null,"0.188D","Z.942.7.00","Z.942.7.00","TH","RSBBP","RSBBP"]
[null,null,null,null,null,null,null,null,null,null,"0.188G","Z.942.7.01","Z.942.7.01","TK","RSBBS","RSBBS"]
[null,null,null,null,null,null,null,null,null,null,"0.188K","Z.942.7.03","Z.942.7.03","TM","RSBBX","RSBBX"]
[null,null,null,null,null,null,null,null,null,null,"0.188V","Z.942.7.06","Z.942.7.06","TMDS","RSBN","RSBN"]
[null,null,null,null,null,null,null,null,null,null,"0.189","Z.942.7.08","Z.942.7.08","TN","RSBNI","RSBNI"]
[null,null,null,null,null,null,null,null,null,null,"0.19","Z.942.7.09","Z.942.7.09","TOSO","RSBNP","RSBNP"]
[null,null,null,null,null,null,null,null,null,null,"0.19A","Z.942.7.10","Z.942.7.10","TPPO","RSBNS","RSBNS"]
[null,null,null,null,null,null,null,null,null,null,"0.19T","0.A11","0.A11","TQ","RSBNX","RSBNX"]
[null,null,null,null,null,null,null,null,null,null,"0.19V","0.A16-1","0.A16-1","TS10","RSBP","RSBP"]
[null,null,null,null,null,null,null,null,null,null,"0.190","0.A16-1.01","0.A16-1.01","TS20","RSBPI","RSBPI"]
[null,null,null,null,null,null,null,null,null,null,"0.190A","0.A16-1.02","0.A16-1.02","TTC","RSBPP","RSBPP"]
[null,null,null,null,null,null,null,null,null,null,"0.190B","0.A16-1.03","0.A16-1.03","TTS","RSBPX","RSBPX"]
[null,null,null,null,null,null,null,null,null,null,"0.190E","0.A16-1.04","0.A16-1.04","TX","RSBS","RSBS"]
[null,null,null,null,null,null,null,null,null,null,"0.191","0.A16-1.05","0.A16-1.05","TXHS","RSBSI","RSBSI"]
[null,null,null,null,null,null,null,null,null,null,"0.20","0.A16-1.06","0.A16-1.06","TXNS","RSBSS","RSBSS"]
[null,null,null,null,null,null,null,null,null,null,"0.20D","0.A16-1.07.1","0.A16-1.07.1","TY","RSBSX","RSBSX"]
[null,null,null,null,null,null,null,null,null,null,"0.20L","0.A16-1.07.2","0.A16-1.07.2","UD","RSBT","RSBT"]
[null,null,null,null,null,null,null,null,null,null,"0.205","0.A16-1.08.1","0.A16-1.08.1","UE","RSBTI","RSBTI"]
[null,null,null,null,null,null,null,null,null,null,"0.205A","0.A16-1.08.2","0.A16-1.08.2","UCHV","RSBTS","RSBTS"]
[null,null,null,null,null,null,null,null,null,null,"0.205B","0.A16-1.09","0.A16-1.09","UJ","RSBTX","RSBTX"]
[null,null,null,null,null,null,null,null,null,null,"0.205C","0.A16-1.10","0.A16-1.10","UR","RSCP","RSCP"]
[null,null,null,null,null,null,null,null,null,null,"0.210","0.A16-1.11","0.A16-1.11","UX","RSCS","RSCS"]
[null,null,null,null,null,null,null,null,null,null,"0.24","0.A16-1.12","0.A16-1.12","VB","RV1","RV1"]
[null,null,null,null,null,null,null,null,null,null,"0.24A","0.A30-1",{"$f":"IF($B$7=\"ETE\",K135,L135)","v":"0.A30-1"},"VC","RV1M",{"$f":"IF($B$7=\"ETE\",N135,O135)","v":"RV1M"}]
[null,null,null,null,null,null,null,null,null,null,"0.24D","0.A30-1.01.1","0.A30-1.01.1","VF","RV2","RV2"]
[null,null,null,null,null,null,null,null,null,null,"0.24F","0.A30-1.08","0.A30-1.08","VG","RV3","RV3"]
[null,null,null,null,null,null,null,null,null,null,"0.24T","0.A30-1.10","0.A30-1.10","VN","RY","RY"]
[null,null,null,null,null,null,null,null,null,null,"0.25","0.A30-2.10","0.A30-2.10","VSVZ","SCOR","SCOR"]
[null,null,null,null,null,null,null,null,null,null,"0.25B","0.A9","0.A9","VTKS","SGPI","SGPI"]
[null,null,null,null,null,null,null,null,null,null,"0.25D","0.A9.01","0.A9.01","VTO","SGPP","SGPP"]
[null,null,null,null,null,null,null,null,null,null,"0.25L","0.A9.03","0.A9.03","VVN","SGPX","SGPX"]
[null,null,null,null,null,null,null,null,null,null,"0.25S","0.A9.08","0.A9.08","VVOD","SH","SH"]
[null,null,null,null,null,null,null,null,null,null,"0.25T","0.A9.10","0.A9.10","VVS","SIM","SIM"]
[null,null,null,null,null,null,null,null,null,null,"0.25V","0.A9.19","0.A9.19","VY","SK","SK"]
[null,null,null,null,null,null,null,null,null,null,"0.25X","0.B9","0.B9","VZTP","SMS","SMS"]
[null,null,null,null,null,null,null,null,null,null,"0.25Z","0.B9.08","0.B9.08","VZTS","SP","SP"]
[null,null,null,null,null,null,null,null,null,null,"0.26","0.C12","0.C12","VZTT","SP3I","SP3I"]
[null,null,null,null,null,null,null,null,null,null,"0.26B","0.C3.1.00","0.C3.1.00","YA","SP3P","SP3P"]
[null,null,null,null,null,null,null,null,null,null,"0.27","0.C3.1.01","0.C3.1.01","YB","SP3X","SP3X"]
[null,null,null,null,null,null,null,null,null,null,"0.27A","0.C3.1.03","0.C3.1.03","YC","SPY","SPY"]
[null,null,null,null,null,null,null,null,null,null,"0.27D","0.C3.1.06","0.C3.1.06","YD","SS","SS"]
[null,null,null,null,null,null,null,null,null,null,"0.27E","0.C3.1.08","0.C3.1.08","YP","ST","ST"]
[null,null,null,null,null,null,null,null,null,null,"0.27X","0.C3.1.09","0.C3.1.09","YR","SU","SU"]
[null,null,null,null,null,null,null,null,null,null,"0.28","0.C3.1.10","0.C3.1.10","YT","TA2","TA2"]
[null,null,null,null,null,null,null,null,null,null,"0.28A","0.C3.2.00","0.C3.2.00","ZIV","TB1","TB1"]
[null,null,null,null,null,null,null,null,null,null,"0.28B","0.C3.2.01","0.C3.2.01","ZN","TB2","TB2"]
[null,null,null,null,null,null,null,null,null,null,"0.28D","0.C3.2.03","0.C3.2.03","ZNAO","TC","TC"]
[null,null,null,null,null,null,null,null,null,null,"0.28G","0.C3.2.06","0.C3.2.06","ZRAO","TD1","TD1"]
[null,null,null,null,null,null,null,null,null,null,"0.28J","0.C3.2.08","0.C3.2.08","ZVOD","TD3","TD3"]
[null,null,null,null,null,null,null,null,null,null,"0.28Q","0.C3.2.09","0.C3.2.09","ZZ","TDS","TDS"]
[null,null,null,null,null,null,null,null,null,null,"0.28R","0.C3.2.10","0.C3.2.10"," ","TE","TE"]
[null,null,null,null,null,null,null,null,null,null,"0.28V","0.C3.3","0.C3.3"," ","TELE","TELE"]
[null,null,null,null,null,null,null,null,null,null,"0.28Z","0.C3.3.00","0.C3.3.00"," ","TF1","TF1"]
[null,null,null,null,null,null,null,null,null,null,"0.29","0.C3.3.01","0.C3.3.01"," ","TF3","TF3"]
[null,null,null,null,null,null,null,null,null,null,"0.29A","0.C3.3.03","0.C3.3.03"," ","TG1","TG1"]
[null,null,null,null,null,null,null,null,null,null,"0.29B","0.C3.3.06","0.C3.3.06"," ","TH1","TH1"]
[null,null,null,null,null,null,null,null,null,null,"0.29F","0.C3.3.08","0.C3.3.08"," ","TJ","TJ"]
[null,null,null,null,null,null,null,null,null,null,"0.29G","0.C3.3.09","0.C3.3.09"," ","TK1","TK1"]
[null,null,null,null,null,null,null,null,null,null,"0.29J","0.C3.3.10","0.C3.3.10"," ","TK2","TK2"]
[null,null,null,null,null,null,null,null,null,null,"0.29K","0.C5","0.C5"," ","TL1","TL1"]
[null,null,null,null,null,null,null,null,null,null,"0.29L","0.C5.01","0.C5.01"," ","TL2","TL2"]
[null,null,null,null,null,null,null,null,null,null,"0.29T","0.C5.08","0.C5.08"," ","TL3","TL3"]
[null,null,null,null,null,null,null,null,null,null,"0.29W","0.C5.10","0.C5.10"," ","TM","TM"]
[null,null,null,null,null,null,null,null,null,null,"0.29X","0.C6","0.C6"," ","TN","TN"]
[null,null,null,null,null,null,null,null,null,null,"0.29Z","0.C6M.00","0.C6M.00"," ","TN2","TN2"]
[null,null,null,null,null,null,null,null,null,null,"030","0.C6M.01","0.C6M.01"," ","TP1","TP1"]
[null,null,null,null,null,null,null,null,null,null,"0.31","0.C6M.06","0.C6M.06"," ","TP2","TP2"]
[null,null,null,null,null,null,null,null,null,null,"0.31A","0.C6M.08","0.C6M.08"," ","TP2M","TP2M"]
[null,null,null,null,null,null,null,null,null,null,"0.31E","0.C6M.10","0.C6M.10"," ","TP3","TP3"]
[null,null,null,null,null,null,null,null,null,null,"0.31S","0.C6.00","0.C6.00"," ","TP3M","TP3M"]
[null,null,null,null,null,null,null,null,null,null,"0.31T","0.C6.01","0.C6.01"," ","TP4","TP4"]
[null,null,null,null,null,null,null,null,null,null,"0.31V","0.C6.03","0.C6.03"," ","TP4M","TP4M"]
[null,null,null,null,null,null,null,null,null,null,"0.35","0.C6.06","0.C6.06"," ","TP7","TP7"]
[null,null,null,null,null,null,null,null,null,null,"0.35A","0.C6.08","0.C6.08"," ","TQ","TQ"]
[null,null,null,null,null,null,null,null,null,null,"0.35D","0.C6.09","0.C6.09"," ","TR","TR"]
[null,null,null,null,null,null,null,null,null,null,"0.35E","0.C6.10","0.C6.10"," ","TRS","TRS"]
[null,null,null,null,null,null,null,null,null,null,"0.35R","0.C7.1.00","0.C7.1.00"," ","TRSM","TRSM"]
[null,null,null,null,null,null,null,null,null,null,"0.38","0.C7.1.01","0.C7.1.01"," ","TS1","TS1"]
[null,null,null,null,null,null,null,null,null,null,"0.38A","0.C7.1.03","0.C7.1.03"," ","TS2","TS2"]
[null,null,null,null,null,null,null,null,null,null,"0.38Q","0.C7.1.06","0.C7.1.06"," ","TS7","TS7"]
[null,null,null,null,null,null,null,null,null,null,"0.38T","0.C7.1.08","0.C7.1.08"," ","TS8","TS8"]
[null,null,null,null,null,null,null,null,null,null,"0.38V","0.C7.1.09","0.C7.1.09"," ","TT","TT"]
[null,null,null,null,null,null,null,null,null,null,"0.42","0.C7.1.10","0.C7.1.10"," ","TU","TU"]
[null,null,null,null,null,null,null,null,null,null,"0.42A","0.C7.1.1.00","0.C7.1.1.00"," ","TW","TW"]
[null,null,null,null,null,null,null,null,null,null,"0.42F","0.C7.1.1.01","0.C7.1.1.01"," ","TY1","TY1"]
[null,null,null,null,null,null,null,null,null,null,"0.43","0.C7.1.1.03","0.C7.1.1.03"," ","TY2","TY2"]
[null,null,null,null,null,null,null,null,null,null,"0.44","0.C7.1.1.06","0.C7.1.1.06"," ","TY3","TY3"]
[null,null,null,null,null,null,null,null,null,null,"0.44A","0.C7.1.1.08",{"$f":"IF($B$7=\"ETE\",K199,L199)","v":"0.C7.1.1.08"}," ","TY5",{"$f":"IF($B$7=\"ETE\",N199,O199)","v":"TY5"}]
[null,null,null,null,null,null,null,null,null,null,"0.44D","0.C7.1.1.09","0.C7.1.1.09"," ","UD","UD"]
[null,null,null,null,null,null,null,null,null,null,"0.44M","0.C7.1.1.10","0.C7.1.1.10"," ","UDM","UDM"]
[null,null,null,null,null,null,null,null,null,null,"0.44Q","0.C7.2.00","0.C7.2.00"," ","UJ1","UJ1"]
[null,null,null,null,null,null,null,null,null,null,"0.44S","0.C7.2.01","0.C7.2.01"," ","UJ2","UJ2"]
[null,null,null,null,null,null,null,null,null,null,"0.44T","0.C7.2.03","0.C7.2.03"," ","UQ1","UQ1"]
[null,null,null,null,null,null,null,null,null,null,"0.44V","0.C7.2.06","0.C7.2.06"," ","UQ2","UQ2"]
[null,null,null,null,null,null,null,null,null,null,"0.45","0.C7.2.08","0.C7.2.08"," ","UQ3","UQ3"]
[null,null,null,null,null,null,null,null,null,null,"0.45A","0.C7.2.09","0.C7.2.09"," ","US1","US1"]
[null,null,null,null,null,null,null,null,null,null,"0.45T","0.C7.2.10","0.C7.2.10"," ","US1M","US1M"]
[null,null,null,null,null,null,null,null,null,null,"0.46","0.C7.3.00","0.C7.3.00"," ","US2","US2"]
[null,null,null,null,null,null,null,null,null,null,"0.46A","0.C7.3.01","0.C7.3.01"," ","UU1","UU1"]
[null,null,null,null,null,null,null,null,null,null,"0.46K","0.C7.3.03","0.C7.3.03"," ","UW1","UW1"]
[null,null,null,null,null,null,null,null,null,null,"0.47","0.C7.3.06","0.C7.3.06"," ","UW2","UW2"]
[null,null,null,null,null,null,null,null,null,null,"0.47A","0.C7.3.08","0.C7.3.08"," ","UW3","UW3"]
[null,null,null,null,null,null,null,null,null,null,"0.47B","0.C7.3.09","0.C7.3.09"," ","UW4","UW4"]
[null,null,null,null,null,null,null,null,null,null,"0.47C","0.C7.3.10","0.C7.3.10"," ","UX","UX"]
[null,null,null,null,null,null,null,null,null,null,"0.47T","02.00","02.00"," ","VC1","VC1"]
[null,null,null,null,null,null,null,null,null,null,"0.47V","0.20.01","0.20.01"," ","VC1M","VC1M"]
[null,null,null,null,null,null,null,null,null,null,"0.48","0.20.08","0.20.08"," ","VF1","VF1"]
[null,null,null,null,null,null,null,null,null,null,"0.48A","0.20.09","0.20.09"," ","VF2","VF2"]
[null,null,null,null,null,null,null,null,null,null,"0.48C","02.01","02.01"," ","VF3","VF3"]
[null,null,null,null,null,null,null,null,null,null,"0.48D","0.20.10","0.20.10"," ","VF3M","VF3M"]
[null,null,null,null,null,null,null,null,null,null,"0.48T","02.03","02.03"," ","VFP","VFP"]
[null,null,null,null,null,null,null,null,null,null,"0.49","02.06","02.06"," ","VFS","VFS"]
[null,null,null,null,null,null,null,null,null,null,"0.49A","02.08","02.08"," ","VFV","VFV"]
[null,null,null,null,null,null,null,null,null,null,"0.49B","02.09","02.09"," ","VG1","VG1"]
[null,null,null,null,null,null,null,null,null,null,"0.49C","02.10","02.10"," ","VG1M","VG1M"]
[null,null,null,null,null,null,null,null,null,null,"0.49D","0.49.01","0.49.01"," ","VG2","VG2"]
[null,null,null,null,null,null,null,null,null,null,"0.49E","0.49.02","0.49.02"," ","VH1","VH1"]
[null,null,null,null,null,null,null,null,null,null,"0.49F","0.49.08","0.49.08"," ","VH1M","VH1M"]
[null,null,null,null,null,null,null,null,null,null,"0.49H","0.49.10","0.49.10"," ","VH2","VH2"]
[null,null,null,null,null,null,null,null,null,null,"0.49I","08.650","08.650"," ","VL","VL"]
[null,null,null,null,null,null,null,null,null,null,"0.49J","08.803","08.803"," ","VLM","VLM"]
[null,null,null,null,null,null,null,null,null,null,"0.49T","08.803.1","08.803.1"," ","VTZ","VTZ"]
[null,null,null,null,null,null,null,null,null,null,"0.49U","08.803.3","08.803.3"," ","VTZI","VTZI"]
[null,null,null,null,null,null,null,null,null,null,"0.49V","1","1"," ","VTZP","VTZP"]
[null,null,null,null,null,null,null,null,null,null,"0.49W","1.A1","1.A1"," ","VTZS","VTZS"]
[null,null,null,null,null,null,null,null,null,null,"0.50","1.A10","1.A10"," ","VTZX","VTZX"]
[null,null,null,null,null,null,null,null,null,null,"050","1.A10.01","1.A10.01"," ","X","X"]
[null,null,null,null,null,null,null,null,null,null,"0.50A","1.A10.08","1.A10.08"," ","XA","XA"]
[null,null,null,null,null,null,null,null,null,null,"0.50R","1.A10.08.01","1.A10.08.01"," ","XL","XL"]
[null,null,null,null,null,null,null,null,null,null,"0.50S","1.A1.01","1.A1.01"," ","XT","XT"]
[null,null,null,null,null,null,null,null,null,null,"0.50T","1.A10.10","1.A10.10"," ","YA1","YA1"]
[null,null,null,null,null,null,null,null,null,null,"0.50V","1.A10.10.01","1.A10.10.01"," ","YA2","YA2"]
[null,null,null,null,null,null,null,null,null,null,"0.52","1.A10-2","1.A10-2"," ","YB","YB"]
[null,null,null,null,null,null,null,null,null,null,"0.52A","1.A10-2.01","1.A10-2.01"," ","YC1","YC1"]
[null,null,null,null,null,null,null,null,null,null,"0.52D","1.A10-2.02","1.A10-2.02"," ","YD1","YD1"]
[null,null,null,null,null,null,null,null,null,null,"0.52E","1.A1.08","1.A1.08"," ","YP1","YP1"]
[null,null,null,null,null,null,null,null,null,null,"0.52F","1.A1.10","1.A1.10"," ","ZN1","ZN1"]
[null,null,null,null,null,null,null,null,null,null,"0.52G","1.A12A","1.A12A"," ","ZN2","ZN2"]
[null,null,null,null,null,null,null,null,null,null,"0.52M","1.A12A.08","1.A12A.08"," ","ZN3","ZN3"]
[null,null,null,null,null,null,null,null,null,null,"0.52N","1.A12A.10","1.A12A.10"," ","ZN4","ZN4"]
[null,null,null,null,null,null,null,null,null,null,"0.52P","1.A12B","1.A12B"," ","ZN5","ZN5"]
[null,null,null,null,null,null,null,null,null,null,"0.52R","1.A12B.01","1.A12B.01"," ","ZN6","ZN6"]
[null,null,null,null,null,null,null,null,null,null,"0.52S","1.A16-1","1.A16-1"," ","ZN7","ZN7"]
[null,null,null,null,null,null,null,null,null,null,"0.52T","1.A16-1.01","1.A16-1.01"," ","ZN8","ZN8"]
[null,null,null,null,null,null,null,null,null,null,"0.52U","1.A16-1.08","1.A16-1.08"," ","ZZ","ZZ"]
[null,null,null,null,null,null,null,null,null,null,"0.52V","1.A16-2","1.A16-2"]
[null,null,null,null,null,null,null,null,null,null,"0.52W","1.A16-2.01","1.A16-2.01"]
[null,null,null,null,null,null,null,null,null,null,"0.52X","1.A21.01","1.A21.01"]
[null,null,null,null,null,null,null,null,null,null,"0.52Y","1.A21.08","1.A21.08"]
[null,null,null,null,null,null,null,null,null,null,"0.56","1.A21.10","1.A21.10"]
[null,null,null,null,null,null,null,null,null,null,"0.56A","1.A23A","1.A23A"]
[null,null,null,null,null,null,null,null,null,null,"0.56R","1.A23A.05",{"$f":"IF($B$7=\"ETE\",K263,L263)","v":"1.A23A.05"}]
[null,null,null,null,null,null,null,null,null,null,"0.56T","1.A23A.08","1.A23A.08"]
[null,null,null,null,null,null,null,null,null,null,"0.56V","1.A23A.10","1.A23A.10"]
[null,null,null,null,null,null,null,null,null,null,"0.59","1.A23B","1.A23B"]
[null,null,null,null,null,null,null,null,null,null,"0.59A","1.A23B.01","1.A23B.01"]
[null,null,null,null,null,null,null,null,null,null,"0.59T","1.A23B.08","1.A23B.08"]
[null,null,null,null,null,null,null,null,null,null,"0.60","1.A23B.10","1.A23B.10"]
[null,null,null,null,null,null,null,null,null,null,"060","1.A23C","1.A23C"]
[null,null,null,null,null,null,null,null,null,null,"0.60A","1.A23C.01","1.A23C.01"]
[null,null,null,null,null,null,null,null,null,null,"0.60D","1.A23C.08","1.A23C.08"]
[null,null,null,null,null,null,null,null,null,null,"0.60E","1.A23C.10","1.A23C.10"]
[null,null,null,null,null,null,null,null,null,null,"0.60G","1.A23.00","1.A23.00"]
[null,null,null,null,null,null,null,null,null,null,"0.60J","1.A23.01","1.A23.01"]
[null,null,null,null,null,null,null,null,null,null,"0.60R","1.A23.03","1.A23.03"]
[null,null,null,null,null,null,null,null,null,null,"0.60S","1.A23.05","1.A23.05"]
[null,null,null,null,null,null,null,null,null,null,"0.60T","1.A23.06","1.A23.06"]
[null,null,null,null,null,null,null,null,null,null,"0601","1.A23.08","1.A23.08"]
[null,null,null,null,null,null,null,null,null,null,"0602","1.A23.09","1.A23.09"]
[null,null,null,null,null,null,null,null,null,null,"0603","1.A23.10","1.A23.10"]
[null,null,null,null,null,null,null,null,null,null,"0604","1.A25","1.A25"]
[null,null,null,null,null,null,null,null,null,null,"0.61","1.A25.08","1.A25.08"]
[null,null,null,null,null,null,null,null,null,null,"0.61A","1.A25.09","1.A25.09"]
[null,null,null,null,null,null,null,null,null,null,"0.61D","1.A25.10","1.A25.10"]
[null,null,null,null,null,null,null,null,null,null,"0.61E","1.A3","1.A3"]
[null,null,null,null,null,null,null,null,null,null,"0.61F","1.A3.01","1.A3.01"]
[null,null,null,null,null,null,null,null,null,null,"0.61J","1.A30-1.01.1","1.A30-1.01.1"]
[null,null,null,null,null,null,null,null,null,null,"0.61K","1.A4","1.A4"]
[null,null,null,null,null,null,null,null,null,null,"0.61L","1.A4.01","1.A4.01"]
[null,null,null,null,null,null,null,null,null,null,"0.61M","1.A4.08","1.A4.08"]
[null,null,null,null,null,null,null,null,null,null,"0.61R","1.A4.10","1.A4.10"]
[null,null,null,null,null,null,null,null,null,null,"0.61T","1.A5","1.A5"]
[null,null,null,null,null,null,null,null,null,null,"0.62","1.A5.01","1.A5.01"]
[null,null,null,null,null,null,null,null,null,null,"0.62A","1.A5.08","1.A5.08"]
[null,null,null,null,null,null,null,null,null,null,"0.62F","1.A5.10","1.A5.10"]
[null,null,null,null,null,null,null,null,null,null,"0.62J","1.A7","1.A7"]
[null,null,null,null,null,null,null,null,null,null,"0.62S","1.A7.01","1.A7.01"]
[null,null,null,null,null,null,null,null,null,null,"0.63","1.A7.10","1.A7.10"]
[null,null,null,null,null,null,null,null,null,null,"0.63A","1.A8","1.A8"]
[null,null,null,null,null,null,null,null,null,null,"0.63D","1.A8.01","1.A8.01"]
[null,null,null,null,null,null,null,null,null,null,"0.63E","1.A8.10","1.A8.10"]
[null,null,null,null,null,null,null,null,null,null,"0.63J","1.A9","1.A9"]
[null,null,null,null,null,null,null,null,null,null,"0.63M","1.A9.01","1.A9.01"]
[null,null,null,null,null,null,null,null,null,null,"0.64","1.A9.02","1.A9.02"]
[null,null,null,null,null,null,null,null,null,null,"0.64A","1.A9.08","1.A9.08"]
[null,null,null,null,null,null,null,null,null,null,"0.65","1.A9.10","1.A9.10"]
[null,null,null,null,null,null,null,null,null,null,"0.65A","1.A9.12","1.A9.12"]
[null,null,null,null,null,null,null,null,null,null,"0.65D","1.A9.14","1.A9.14"]
[null,null,null,null,null,null,null,null,null,null,"0.65E","1.B1","1.B1"]
[null,null,null,null,null,null,null,null,null,null,"0.65F","1.B10.08","1.B10.08"]
[null,null,null,null,null,null,null,null,null,null,"0.65J","1.B1.01","1.B1.01"]
[null,null,null,null,null,null,null,null,null,null,"0.65K","1.B1.08","1.B1.08"]
[null,null,null,null,null,null,null,null,null,null,"0.65M","1.B1.10","1.B1.10"]
[null,null,null,null,null,null,null,null,null,null,"0.65N","1.B13A","1.B13A"]
[null,null,null,null,null,null,null,null,null,null,"0.65R","1.B13A.01","1.B13A.01"]
[null,null,null,null,null,null,null,null,null,null,"0.65S","1.B13A.02","1.B13A.02"]
[null,null,null,null,null,null,null,null,null,null,"0.65T","1.B13A.08","1.B13A.08"]
[null,null,null,null,null,null,null,null,null,null,"0.66","1.B13B","1.B13B"]
[null,null,null,null,null,null,null,null,null,null,"0.66A","1.B13B.01","1.B13B.01"]
[null,null,null,null,null,null,null,null,null,null,"0.66B","1.B13B.08","1.B13B.08"]
[null,null,null,null,null,null,null,null,null,null,"0.66S","1.B13B.09","1.B13B.09"]
[null,null,null,null,null,null,null,null,null,null,"0.66T","1.B13B.10","1.B13B.10"]
[null,null,null,null,null,null,null,null,null,null,"0.66V","1.B3","1.B3"]
[null,null,null,null,null,null,null,null,null,null,"0.66X","1.B3.01","1.B3.01"]
[null,null,null,null,null,null,null,null,null,null,"0.67","1.B3.08","1.B3.08"]
[null,null,null,null,null,null,null,null,null,null,"0.67A","1.B3.09",{"$f":"IF($B$7=\"ETE\",K327,L327)","v":"1.B3.09"}]
[null,null,null,null,null,null,null,null,null,null,"0.67T","1.B3.10","1.B3.10"]
[null,null,null,null,null,null,null,null,null,null,"0.68","1.B4","1.B4"]
[null,null,null,null,null,null,null,null,null,null,"0.68A","1.B4.01","1.B4.01"]
[null,null,null,null,null,null,null,null,null,null,"0.68D","1.B4.08","1.B4.08"]
[null,null,null,null,null,null,null,null,null,null,"0.68E","1.B4.10","1.B4.10"]
[null,null,null,null,null,null,null,null,null,null,"0.68T","1.B5-1.01","1.B5-1.01"]
[null,null,null,null,null,null,null,null,null,null,"0.68V","1.B5-1.08","1.B5-1.08"]
[null,null,null,null,null,null,null,null,null,null,"0.70","1.B5-1.10","1.B5-1.10"]
[null,null,null,null,null,null,null,null,null,null,"0.70A","1.B5-2","1.B5-2"]
[null,null,null,null,null,null,null,null,null,null,"0.70T","1.B5-2.01","1.B5-2.01"]
[null,null,null,null,null,null,null,null,null,null,"0.70V","1.B5-2.08","1.B5-2.08"]
[null,null,null,null,null,null,null,null,null,null,"0.73","1.B5-2.10","1.B5-2.10"]
[null,null,null,null,null,null,null,null,null,null,"0.73A","1.B5-3","1.B5-3"]
[null,null,null,null,null,null,null,null,null,null,"0.73E","1.B5-3.01","1.B5-3.01"]
[null,null,null,null,null,null,null,null,null,null,"0.73T","1.B5-3.08","1.B5-3.08"]
[null,null,null,null,null,null,null,null,null,null,"0.73V","1.B5-3.10","1.B5-3.10"]
[null,null,null,null,null,null,null,null,null,null,"0.74","1.B7.01","1.B7.01"]
[null,null,null,null,null,null,null,null,null,null,"0.74A","1.B7.08","1.B7.08"]
[null,null,null,null,null,null,null,null,null,null,"0.74T","1.I","1.I"]
[null,null,null,null,null,null,null,null,null,null,"0.74V","1.II","1.II"]
[null,null,null,null,null,null,null,null,null,null,"0.75","1.III","1.III"]
[null,null,null,null,null,null,null,null,null,null,"0.75A","1.IV","1.IV"]
[null,null,null,null,null,null,null,null,null,null,"0.75D","1.V","1.V"]
[null,null,null,null,null,null,null,null,null,null,"0.75M","1.VI","1.VI"]
[null,null,null,null,null,null,null,null,null,null,"0.75T","1.VII","1.VII"]
[null,null,null,null,null,null,null,null,null,null,"0.75V","1.VIII","1.VIII"]
[null,null,null,null,null,null,null,null,null,null,"0.76","1.X","1.X"]
[null,null,null,null,null,null,null,null,null,null,"0.76A","1.XI","1.XI"]
[null,null,null,null,null,null,null,null,null,null,"0.76C","1.XII","1.XII"]
[null,null,null,null,null,null,null,null,null,null,"0.76D","10","10"]
[null,null,null,null,null,null,null,null,null,null,"0.76K","10.I","10.I"]
[null,null,null,null,null,null,null,null,null,null,"0.76T","10.II","10.II"]
[null,null,null,null,null,null,null,null,null,null,"0.76U","10.III","10.III"]
[null,null,null,null,null,null,null,null,null,null,"0.78","10.IV","10.IV"]
[null,null,null,null,null,null,null,null,null,null,"0.78A","10.V","10.V"]
[null,null,null,null,null,null,null,null,null,null,"0.78G","10.VIII","10.VIII"]
[null,null,null,null,null,null,null,null,null,null,"0.78K","10.X","10.X"]
[null,null,null,null,null,null,null,null,null,null,"0.78X","10.XI","10.XI"]
[null,null,null,null,null,null,null,null,null,null,"0.79","10.XII","10.XII"]
[null,null,null,null,null,null,null,null,null,null,"0.79A","101","101"]
[null,null,null,null,null,null,null,null,null,null,"0.79D","1.01.01","1.01.01"]
[null,null,null,null,null,null,null,null,null,null,"0.79E","101.01","101.01"]
[null,null,null,null,null,null,null,null,null,null,"0.79F","1.01.02","1.01.02"]
[null,null,null,null,null,null,null,null,null,null,"0.79J","101.02","101.02"]
[null,null,null,null,null,null,null,null,null,null,"0.80","1.01.03","1.01.03"]
[null,null,null,null,null,null,null,null,null,null,"0.80D","101.03","101.03"]
[null,null,null,null,null,null,null,null,null,null,"0.80E","1.01.04","1.01.04"]
[null,null,null,null,null,null,null,null,null,null,"0.80F","1.01.05","1.01.05"]
[null,null,null,null,null,null,null,null,null,null,"0.80H","1.01.06","1.01.06"]
[null,null,null,null,null,null,null,null,null,null,"0.80J","1.01.07","1.01.07"]
[null,null,null,null,null,null,null,null,null,null,"0.80K","1.01.08","1.01.08"]
[null,null,null,null,null,null,null,null,null,null,"0.80Y","1.01.10","1.01.10"]
[null,null,null,null,null,null,null,null,null,null,"0.80Z","1.01.11","1.01.11"]
[null,null,null,null,null,null,null,null,null,null,"0.81","1.01.12","1.01.12"]
[null,null,null,null,null,null,null,null,null,null,"0.82","1.01.15","1.01.15"]
[null,null,null,null,null,null,null,null,null,null,"0.82A","1.01.16","1.01.16"]
[null,null,null,null,null,null,null,null,null,null,"0.82T","1.01.17","1.01.17"]
[null,null,null,null,null,null,null,null,null,null,"0.83","102","102"]
[null,null,null,null,null,null,null,null,null,null,"0.83A","1.02.01","1.02.01"]
[null,null,null,null,null,null,null,null,null,null,"0.83B","102.01","102.01"]
[null,null,null,null,null,null,null,null,null,null,"0.83T","1.02.02","1.02.02"]
[null,null,null,null,null,null,null,null,null,null,"0.84","102.02","102.02"]
[null,null,null,null,null,null,null,null,null,null,"0.84Q","1.02.03","1.02.03"]
[null,null,null,null,null,null,null,null,null,null,"0.84T","102.03",{"$f":"IF($B$7=\"ETE\",K391,L391)","v":"102.03"}]
[null,null,null,null,null,null,null,null,null,null,"0.84V","1.02.06","1.02.06"]
[null,null,null,null,null,null,null,null,null,null,"0.85","1.02.08","1.02.08"]
[null,null,null,null,null,null,null,null,null,null,"0.85A","1.02.12","1.02.12"]
[null,null,null,null,null,null,null,null,null,null,"0.85T","1.02.15","1.02.15"]
[null,null,null,null,null,null,null,null,null,null,"0.85V","1.03.01","1.03.01"]
[null,null,null,null,null,null,null,null,null,null,"0.86","1.03.02","1.03.02"]
[null,null,null,null,null,null,null,null,null,null,"0.86G","1.03.03","1.03.03"]
[null,null,null,null,null,null,null,null,null,null,"0.86T","1.03.04","1.03.04"]
[null,null,null,null,null,null,null,null,null,null,"0.87","1.03.05","1.03.05"]
[null,null,null,null,null,null,null,null,null,null,"0.87A","1.03.06","1.03.06"]
[null,null,null,null,null,null,null,null,null,null,"0.87T","1.03.07","1.03.07"]
[null,null,null,null,null,null,null,null,null,null,"0.87V","1.03.08","1.03.08"]
[null,null,null,null,null,null,null,null,null,null,"0.87W","1.03.10","1.03.10"]
[null,null,null,null,null,null,null,null,null,null,"0.88","1.03.12","1.03.12"]
[null,null,null,null,null,null,null,null,null,null,"0.88A","1.03.13","1.03.13"]
[null,null,null,null,null,null,null,null,null,null,"0.88J","1.03.15","1.03.15"]
[null,null,null,null,null,null,null,null,null,null,"0.88K","1.03.17","1.03.17"]
[null,null,null,null,null,null,null,null,null,null,"0.88X","1.04.01","1.04.01"]
[null,null,null,null,null,null,null,null,null,null,"0.89","1.04.02","1.04.02"]
[null,null,null,null,null,null,null,null,null,null,"0.89A","1.04.03","1.04.03"]
[null,null,null,null,null,null,null,null,null,null,"0.89G","1.04.05","1.04.05"]
[null,null,null,null,null,null,null,null,null,null,"0.89J","1.04.06","1.04.06"]
[null,null,null,null,null,null,null,null,null,null,"0.89T","1.04.07","1.04.07"]
[null,null,null,null,null,null,null,null,null,null,"0.89V","1.04.08","1.04.08"]
[null,null,null,null,null,null,null,null,null,null,"0.90","1.04.09","1.04.09"]
[null,null,null,null,null,null,null,null,null,null,"0.90G","1.04.09.01","1.04.09.01"]
[null,null,null,null,null,null,null,null,null,null,"0.90J","1.04.09.08","1.04.09.08"]
[null,null,null,null,null,null,null,null,null,null,"0.91","1.04.10","1.04.10"]
[null,null,null,null,null,null,null,null,null,null,"0.92","1.04.10.4","1.04.10.4"]
[null,null,null,null,null,null,null,null,null,null,"0.92A","1.04.11","1.04.11"]
[null,null,null,null,null,null,null,null,null,null,"0.92D","1.04.12","1.04.12"]
[null,null,null,null,null,null,null,null,null,null,"0.92E","1.04.13","1.04.13"]
[null,null,null,null,null,null,null,null,null,null,"0.92Q","1.04.14","1.04.14"]
[null,null,null,null,null,null,null,null,null,null,"0.92S","1.04.15","1.04.15"]
[null,null,null,null,null,null,null,null,null,null,"0.93","1.04.16","1.04.16"]
[null,null,null,null,null,null,null,null,null,null,"0.93A","1.05.01","1.05.01"]
[null,null,null,null,null,null,null,null,null,null,"0.93T","1.05.02","1.05.02"]
[null,null,null,null,null,null,null,null,null,null,"0.94","1.05.03","1.05.03"]
[null,null,null,null,null,null,null,null,null,null,"0.94A","1.05.07","1.05.07"]
[null,null,null,null,null,null,null,null,null,null,"0.94T","1.05.08","1.05.08"]
[null,null,null,null,null,null,null,null,null,null,"0.94V","1.05.10","1.05.10"]
[null,null,null,null,null,null,null,null,null,null,"0.95","1.06.01","1.06.01"]
[null,null,null,null,null,null,null,null,null,null,"095","1.06.02","1.06.02"]
[null,null,null,null,null,null,null,null,null,null,"0.95A","1.06.03","1.06.03"]
[null,null,null,null,null,null,null,null,null,null,"0.95T","1.06.04","1.06.04"]
[null,null,null,null,null,null,null,null,null,null,"0.96","1.06.05","1.06.05"]
[null,null,null,null,null,null,null,null,null,null,"0.96A","1.07.01","1.07.01"]
[null,null,null,null,null,null,null,null,null,null,"0.96T","1.07.02","1.07.02"]
[null,null,null,null,null,null,null,null,null,null,"0.98","1.07.03","1.07.03"]
[null,null,null,null,null,null,null,null,null,null,"0.98A","1.07.04","1.07.04"]
[null,null,null,null,null,null,null,null,null,null,"0.98T","1.07.05","1.07.05"]
[null,null,null,null,null,null,null,null,null,null,"1.01","1.07.06","1.07.06"]
[null,null,null,null,null,null,null,null,null,null,"1.01C","1.07.08","1.07.08"]
[null,null,null,null,null,null,null,null,null,null,"1.01D","1.07.09","1.07.09"]
[null,null,null,null,null,null,null,null,null,null,"1.01E","1.07.11","1.07.11"]
[null,null,null,null,null,null,null,null,null,null,"1.01F","1.08.02","1.08.02"]
[null,null,null,null,null,null,null,null,null,null,"1.01S","1.08.06","1.08.06"]
[null,null,null,null,null,null,null,null,null,null,"1.01X","1.08.08","1.08.08"]
[null,null,null,null,null,null,null,null,null,null,"102","1.08.10.8","1.08.10.8"]
[null,null,null,null,null,null,null,null,null,null,"103","1.08.11","1.08.11"]
[null,null,null,null,null,null,null,null,null,null,"1.09","1.08.12","1.08.12"]
[null,null,null,null,null,null,null,null,null,null,"1.09A","1.08.650","1.08.650"]
[null,null,null,null,null,null,null,null,null,null,"1.09D","1.08.803.1","1.08.803.1"]
[null,null,null,null,null,null,null,null,null,null,"1.09E","1.08.803.3",{"$f":"IF($B$7=\"ETE\",K455,L455)","v":"1.08.803.3"}]
[null,null,null,null,null,null,null,null,null,null,"1.09S","1.09.1.01","1.09.1.01"]
[null,null,null,null,null,null,null,null,null,null,"1.09X","1.09.1.02","1.09.1.02"]
[null,null,null,null,null,null,null,null,null,null,"1.105","1.09.1.06","1.09.1.06"]
[null,null,null,null,null,null,null,null,null,null,"1.105A","1.09.1.08","1.09.1.08"]
[null,null,null,null,null,null,null,null,null,null,"1.105D","1.09.1.10","1.09.1.10"]
[null,null,null,null,null,null,null,null,null,null,"1.105F","1.09.1.12","1.09.1.12"]
[null,null,null,null,null,null,null,null,null,null,"1.105M","1.09.1.15","1.09.1.15"]
[null,null,null,null,null,null,null,null,null,null,"1.105T","1.09.2.01","1.09.2.01"]
[null,null,null,null,null,null,null,null,null,null,"1.105V","1.09.2.06","1.09.2.06"]
[null,null,null,null,null,null,null,null,null,null,"1.12","1.09.2.08","1.09.2.08"]
[null,null,null,null,null,null,null,null,null,null,"1.12A","1.09.2.10","1.09.2.10"]
[null,null,null,null,null,null,null,null,null,null,"1.12T","1.09.3.01","1.09.3.01"]
[null,null,null,null,null,null,null,null,null,null,"1.12V","1.09.3.02","1.09.3.02"]
[null,null,null,null,null,null,null,null,null,null,"1.13","1.09.3.06","1.09.3.06"]
[null,null,null,null,null,null,null,null,null,null,"1.13A","1.09.3.08","1.09.3.08"]
[null,null,null,null,null,null,null,null,null,null,"1.13D","1.09.3.10","1.09.3.10"]
[null,null,null,null,null,null,null,null,null,null,"1.13T","1.09.4.01","1.09.4.01"]
[null,null,null,null,null,null,null,null,null,null,"1.13V","1.09.4.06","1.09.4.06"]
[null,null,null,null,null,null,null,null,null,null,"1.14","1.09.4.08","1.09.4.08"]
[null,null,null,null,null,null,null,null,null,null,"1.14A","1.09.4.10","1.09.4.10"]
[null,null,null,null,null,null,null,null,null,null,"1.14D","1.09.5.01","1.09.5.01"]
[null,null,null,null,null,null,null,null,null,null,"1.14R","1.09.5.06","1.09.5.06"]
[null,null,null,null,null,null,null,null,null,null,"1.14T","1.09.5.08","1.09.5.08"]
[null,null,null,null,null,null,null,null,null,null,"1.14V","1.09.5.10","1.09.5.10"]
[null,null,null,null,null,null,null,null,null,null,"1.144","1.09.5.12","1.09.5.12"]
[null,null,null,null,null,null,null,null,null,null,"1.144D","1.09.6.01","1.09.6.01"]
[null,null,null,null,null,null,null,null,null,null,"1.144T","1.09.6.06","1.09.6.06"]
[null,null,null,null,null,null,null,null,null,null,"1.145","1.09.6.08","1.09.6.08"]
[null,null,null,null,null,null,null,null,null,null,"1.145D","1.09.6.10","1.09.6.10"]
[null,null,null,null,null,null,null,null,null,null,"1.145E","1.09.6.12","1.09.6.12"]
[null,null,null,null,null,null,null,null,null,null,"1.145T","11","11"]
[null,null,null,null,null,null,null,null,null,null,"1.146","11.II","11.II"]
[null,null,null,null,null,null,null,null,null,null,"1.147","11.III","11.III"]
[null,null,null,null,null,null,null,null,null,null,"1.147A","11.IV","11.IV"]
[null,null,null,null,null,null,null,null,null,null,"1.147B","11.V","11.V"]
[null,null,null,null,null,null,null,null,null,null,"1.147D","11.VI","11.VI"]
[null,null,null,null,null,null,null,null,null,null,"1.15","11.VII","11.VII"]
[null,null,null,null,null,null,null,null,null,null,"1.15A","11.VIII","11.VIII"]
[null,null,null,null,null,null,null,null,null,null,"1.15S","11.X","11.X"]
[null,null,null,null,null,null,null,null,null,null,"1.15T","11.XI","11.XI"]
[null,null,null,null,null,null,null,null,null,null,"1.15V","11.XII","11.XII"]
[null,null,null,null,null,null,null,null,null,null,"1.16","1.10.01","1.10.01"]
[null,null,null,null,null,null,null,null,null,null,"1.16A","1.10.02","1.10.02"]
[null,null,null,null,null,null,null,null,null,null,"1.16S","1.10.03","1.10.03"]
[null,null,null,null,null,null,null,null,null,null,"1.16V","1.10.04","1.10.04"]
[null,null,null,null,null,null,null,null,null,null,"1.16X","1.10.05","1.10.05"]
[null,null,null,null,null,null,null,null,null,null,"1.17","1.10.06","1.10.06"]
[null,null,null,null,null,null,null,null,null,null,"1.17A","1.10.08","1.10.08"]
[null,null,null,null,null,null,null,null,null,null,"1.17S","1.10.10","1.10.10"]
[null,null,null,null,null,null,null,null,null,null,"1.17X","1.101.02","1.101.02"]
[null,null,null,null,null,null,null,null,null,null,"1.172","1.101.03","1.101.03"]
[null,null,null,null,null,null,null,null,null,null,"1.172A","1.101.04","1.101.04"]
[null,null,null,null,null,null,null,null,null,null,"1.172B","1.101.08","1.101.08"]
[null,null,null,null,null,null,null,null,null,null,"1.172T","1.101.09.09","1.101.09.09"]
[null,null,null,null,null,null,null,null,null,null,"1.172W","1.10.11","1.10.11"]
[null,null,null,null,null,null,null,null,null,null,"1.20","1.101.12","1.101.12"]
[null,null,null,null,null,null,null,null,null,null,"1.20A","1.101.12.01","1.101.12.01"]
[null,null,null,null,null,null,null,null,null,null,"1.20B","1.10.12","1.10.12"]
[null,null,null,null,null,null,null,null,null,null,"1.20D","1.11.02","1.11.02"]
[null,null,null,null,null,null,null,null,null,null,"1.20E","1.11.03","1.11.03"]
[null,null,null,null,null,null,null,null,null,null,"1.20F","1.11.04","1.11.04"]
[null,null,null,null,null,null,null,null,null,null,"1.20G","1.11.05","1.11.05"]
[null,null,null,null,null,null,null,null,null,null,"1.20J","1.11.06","1.11.06"]
[null,null,null,null,null,null,null,null,null,null,"1.20K","1.11.07",{"$f":"IF($B$7=\"ETE\",K519,L519)","v":"1.11.07"}]
[null,null,null,null,null,null,null,null,null,null,"1.20L","1.11.08","1.11.08"]
[null,null,null,null,null,null,null,null,null,null,"1.20M","1.11.10","1.11.10"]
[null,null,null,null,null,null,null,null,null,null,"1.20N","1.11.11","1.11.11"]
[null,null,null,null,null,null,null,null,null,null,"1.20R","1.11.12","1.11.12"]
[null,null,null,null,null,null,null,null,null,null,"1.20S","1.11.13","1.11.13"]
[null,null,null,null,null,null,null,null,null,null,"1.20T","1.11.15","1.11.15"]
[null,null,null,null,null,null,null,null,null,null,"1.20V","1.11.16","1.11.16"]
[null,null,null,null,null,null,null,null,null,null,"1.20W","1.12.01","1.12.01"]
[null,null,null,null,null,null,null,null,null,null,"1.20X","1.12.02","1.12.02"]
[null,null,null,null,null,null,null,null,null,null,"1.20Z","1.12.03","1.12.03"]
[null,null,null,null,null,null,null,null,null,null,"1.201","1.12.04","1.12.04"]
[null,null,null,null,null,null,null,null,null,null,"1.201A","1.12.05","1.12.05"]
[null,null,null,null,null,null,null,null,null,null,"1.201B","1.12.05.08","1.12.05.08"]
[null,null,null,null,null,null,null,null,null,null,"1.201C","1.12.08.1","1.12.08.1"]
[null,null,null,null,null,null,null,null,null,null,"1.201E","1.12.08.3","1.12.08.3"]
[null,null,null,null,null,null,null,null,null,null,"1.201X","1.12.09.1","1.12.09.1"]
[null,null,null,null,null,null,null,null,null,null,"1.202","1.12.09.10","1.12.09.10"]
[null,null,null,null,null,null,null,null,null,null,"1.202A","1.12.09.3","1.12.09.3"]
[null,null,null,null,null,null,null,null,null,null,"1.202B","1.12.10.3","1.12.10.3"]
[null,null,null,null,null,null,null,null,null,null,"1.203","1.12.12","1.12.12"]
[null,null,null,null,null,null,null,null,null,null,"1.203A","1.12.13","1.12.13"]
[null,null,null,null,null,null,null,null,null,null,"1.203B","1.13.01","1.13.01"]
[null,null,null,null,null,null,null,null,null,null,"1.203C","1.13.06","1.13.06"]
[null,null,null,null,null,null,null,null,null,null,"1.203D","1.13.08","1.13.08"]
[null,null,null,null,null,null,null,null,null,null,"1.203E","1.13.10","1.13.10"]
[null,null,null,null,null,null,null,null,null,null,"1.204","1.13.15","1.13.15"]
[null,null,null,null,null,null,null,null,null,null,"1.204A","1.14.01","1.14.01"]
[null,null,null,null,null,null,null,null,null,null,"1.204Y","1.14.02","1.14.02"]
[null,null,null,null,null,null,null,null,null,null,"1.204Z","1.14.06","1.14.06"]
[null,null,null,null,null,null,null,null,null,null,"1.205A","1.14.08","1.14.08"]
[null,null,null,null,null,null,null,null,null,null,"1.21","1.14.10","1.14.10"]
[null,null,null,null,null,null,null,null,null,null,"1.21D","1.14.12","1.14.12"]
[null,null,null,null,null,null,null,null,null,null,"1.21E","1.15.01","1.15.01"]
[null,null,null,null,null,null,null,null,null,null,"1.21F","1.15.02","1.15.02"]
[null,null,null,null,null,null,null,null,null,null,"1.21G","1.16.01","1.16.01"]
[null,null,null,null,null,null,null,null,null,null,"1.21J","1.16.06","1.16.06"]
[null,null,null,null,null,null,null,null,null,null,"1.21K","1.16.08","1.16.08"]
[null,null,null,null,null,null,null,null,null,null,"1.21R","1.16.10","1.16.10"]
[null,null,null,null,null,null,null,null,null,null,"1.21S","1.17.02","1.17.02"]
[null,null,null,null,null,null,null,null,null,null,"1.21W","1.17.03","1.17.03"]
[null,null,null,null,null,null,null,null,null,null,"1.21X","1.17.04","1.17.04"]
[null,null,null,null,null,null,null,null,null,null,"1.22","1.17.06","1.17.06"]
[null,null,null,null,null,null,null,null,null,null,"1.22A","1.17.08","1.17.08"]
[null,null,null,null,null,null,null,null,null,null,"1.22D","1.17.10","1.17.10"]
[null,null,null,null,null,null,null,null,null,null,"1.22E","1.17.12","1.17.12"]
[null,null,null,null,null,null,null,null,null,null,"1.22K","1.18.1.01","1.18.1.01"]
[null,null,null,null,null,null,null,null,null,null,"1.22L","1.18.1.01.08","1.18.1.01.08"]
[null,null,null,null,null,null,null,null,null,null,"1.22M","1.18.1.02","1.18.1.02"]
[null,null,null,null,null,null,null,null,null,null,"1.22R","1.18.1.02.08","1.18.1.02.08"]
[null,null,null,null,null,null,null,null,null,null,"1.22S","1.18.1.03","1.18.1.03"]
[null,null,null,null,null,null,null,null,null,null,"1.22W","1.18.1.03.08","1.18.1.03.08"]
[null,null,null,null,null,null,null,null,null,null,"1.22X","1.18.1.10","1.18.1.10"]
[null,null,null,null,null,null,null,null,null,null,"1.23","1.18.2.01","1.18.2.01"]
[null,null,null,null,null,null,null,null,null,null,"1.23A","1.18.2.08","1.18.2.08"]
[null,null,null,null,null,null,null,null,null,null,"1.23D","1.18.2.10","1.18.2.10"]
[null,null,null,null,null,null,null,null,null,null,"1.23S","1.18.3.01","1.18.3.01"]
[null,null,null,null,null,null,null,null,null,null,"1.23X","1.18.3.08","1.18.3.08"]
[null,null,null,null,null,null,null,null,null,null,"1.26","1.18.3.10","1.18.3.10"]
[null,null,null,null,null,null,null,null,null,null,"1.26A","1.19.01","1.19.01"]
[null,null,null,null,null,null,null,null,null,null,"1.28","1.19.02","1.19.02"]
[null,null,null,null,null,null,null,null,null,null,"1.28A","1.19.03","1.19.03"]
[null,null,null,null,null,null,null,null,null,null,"1.28D","1.19.04","1.19.04"]
[null,null,null,null,null,null,null,null,null,null,"1.28T","1.19.05/A","1.19.05/A"]
[null,null,null,null,null,null,null,null,null,null,"1.30","1.19.05/B",{"$f":"IF($B$7=\"ETE\",K583,L583)","v":"1.19.05/B"}]
[null,null,null,null,null,null,null,null,null,null,"1.30A","1.19.06","1.19.06"]
[null,null,null,null,null,null,null,null,null,null,"1.30D","1.19.07","1.19.07"]
[null,null,null,null,null,null,null,null,null,null,"1.30E","1.19.07/A","1.19.07/A"]
[null,null,null,null,null,null,null,null,null,null,"1.30G","1.19.07/B","1.19.07/B"]
[null,null,null,null,null,null,null,null,null,null,"1.30K","1.19.08","1.19.08"]
[null,null,null,null,null,null,null,null,null,null,"1.30L","1.19.10","1.19.10"]
[null,null,null,null,null,null,null,null,null,null,"1.30S","1.19.11","1.19.11"]
[null,null,null,null,null,null,null,null,null,null,"1.30T","1.19.12","1.19.12"]
[null,null,null,null,null,null,null,null,null,null,"1.30V","1.19.13","1.19.13"]
[null,null,null,null,null,null,null,null,null,null,"1.30X","1.19.14","1.19.14"]
[null,null,null,null,null,null,null,null,null,null,"1.31","1.19.15","1.19.15"]
[null,null,null,null,null,null,null,null,null,null,"1.31D","1.19.16","1.19.16"]
[null,null,null,null,null,null,null,null,null,null,"1.31S","1.19.17","1.19.17"]
[null,null,null,null,null,null,null,null,null,null,"1.31T","12","12"]
[null,null,null,null,null,null,null,null,null,null,"1.31X","1,2.A20","1,2.A20"]
[null,null,null,null,null,null,null,null,null,null,"1.32","1,2.A20.01","1,2.A20.01"]
[null,null,null,null,null,null,null,null,null,null,"1.32A","1,2.A20.08","1,2.A20.08"]
[null,null,null,null,null,null,null,null,null,null,"1.32D","1,2.A21","1,2.A21"]
[null,null,null,null,null,null,null,null,null,null,"1.32E","1,2.A21.01","1,2.A21.01"]
[null,null,null,null,null,null,null,null,null,null,"1.32G","1,2.A21.08","1,2.A21.08"]
[null,null,null,null,null,null,null,null,null,null,"1.32R","1,2.A21.10","1,2.A21.10"]
[null,null,null,null,null,null,null,null,null,null,"1.32T","1,2.B5-1","1,2.B5-1"]
[null,null,null,null,null,null,null,null,null,null,"1.33","1.2.B5-1.00","1.2.B5-1.00"]
[null,null,null,null,null,null,null,null,null,null,"1.33R","1,2.B5-1.01","1,2.B5-1.01"]
[null,null,null,null,null,null,null,null,null,null,"1.33S","1.2.B5-1.01","1.2.B5-1.01"]
[null,null,null,null,null,null,null,null,null,null,"1.33X","1.2.B5-1.03","1.2.B5-1.03"]
[null,null,null,null,null,null,null,null,null,null,"1.34","1.2.B5-1.06","1.2.B5-1.06"]
[null,null,null,null,null,null,null,null,null,null,"1.34A","1,2.B5-1.08","1,2.B5-1.08"]
[null,null,null,null,null,null,null,null,null,null,"1.34R","1.2.B5-1.08","1.2.B5-1.08"]
[null,null,null,null,null,null,null,null,null,null,"1.34S","1.2.B5-1.09","1.2.B5-1.09"]
[null,null,null,null,null,null,null,null,null,null,"1.34T","1,2.B5-1.10","1,2.B5-1.10"]
[null,null,null,null,null,null,null,null,null,null,"1.35","1.2.B5-1.10","1.2.B5-1.10"]
[null,null,null,null,null,null,null,null,null,null,"1.35A","12.I","12.I"]
[null,null,null,null,null,null,null,null,null,null,"1.35D","12.II","12.II"]
[null,null,null,null,null,null,null,null,null,null,"1.35E","12.III","12.III"]
[null,null,null,null,null,null,null,null,null,null,"1.35F","12.IV","12.IV"]
[null,null,null,null,null,null,null,null,null,null,"1.35G","1.2M.02","1.2M.02"]
[null,null,null,null,null,null,null,null,null,null,"1.35J","1.2M.04","1.2M.04"]
[null,null,null,null,null,null,null,null,null,null,"1.35K","1.2M.08","1.2M.08"]
[null,null,null,null,null,null,null,null,null,null,"1.35M","1.2M.09.09","1.2M.09.09"]
[null,null,null,null,null,null,null,null,null,null,"1.35N","1.2M.12","1.2M.12"]
[null,null,null,null,null,null,null,null,null,null,"1.35R","1.2M.12.01","1.2M.12.01"]
[null,null,null,null,null,null,null,null,null,null,"1.35T","12.V","12.V"]
[null,null,null,null,null,null,null,null,null,null,"1.35X","12.XII","12.XII"]
[null,null,null,null,null,null,null,null,null,null,"1.35Z","1.20.01","1.20.01"]
[null,null,null,null,null,null,null,null,null,null,"1.36","1.20.02","1.20.02"]
[null,null,null,null,null,null,null,null,null,null,"1.36A","1.20.03.01","1.20.03.01"]
[null,null,null,null,null,null,null,null,null,null,"1.36D","1.20.03.08","1.20.03.08"]
[null,null,null,null,null,null,null,null,null,null,"1.37","1.20.03.10","1.20.03.10"]
[null,null,null,null,null,null,null,null,null,null,"1.37A","1.20.06","1.20.06"]
[null,null,null,null,null,null,null,null,null,null,"1.37B","1.20.08.1","1.20.08.1"]
[null,null,null,null,null,null,null,null,null,null,"1.37D","1.20.08.2","1.20.08.2"]
[null,null,null,null,null,null,null,null,null,null,"1.37T","1.20.09","1.20.09"]
[null,null,null,null,null,null,null,null,null,null,"1.39","1.20.10.1","1.20.10.1"]
[null,null,null,null,null,null,null,null,null,null,"1.40","1.20.10.2","1.20.10.2"]
[null,null,null,null,null,null,null,null,null,null,"1.40A","1.21.01","1.21.01"]
[null,null,null,null,null,null,null,null,null,null,"1.40D","12.10.2003","12.10.2003"]
[null,null,null,null,null,null,null,null,null,null,"1.40E","1.21.06","1.21.06"]
[null,null,null,null,null,null,null,null,null,null,"1.40F","1.21.08","1.21.08"]
[null,null,null,null,null,null,null,null,null,null,"1.40G","1.21.10","1.21.10"]
[null,null,null,null,null,null,null,null,null,null,"1.40J","1.22.01","1.22.01"]
[null,null,null,null,null,null,null,null,null,null,"1.40L","1.22.08","1.22.08"]
[null,null,null,null,null,null,null,null,null,null,"1.40V","1.22.09","1.22.09"]
[null,null,null,null,null,null,null,null,null,null,"1.40W","1.22.10",{"$f":"IF($B$7=\"ETE\",K647,L647)","v":"1.22.10"}]
[null,null,null,null,null,null,null,null,null,null,"1.41","1.23.01","1.23.01"]
[null,null,null,null,null,null,null,null,null,null,"1.41D","1.23.06","1.23.06"]
[null,null,null,null,null,null,null,null,null,null,"1.41F","1.23.08","1.23.08"]
[null,null,null,null,null,null,null,null,null,null,"1.41G","1.23.10","1.23.10"]
[null,null,null,null,null,null,null,null,null,null,"1.41L","1.24.01","1.24.01"]
[null,null,null,null,null,null,null,null,null,null,"1.41T","1.24.08","1.24.08"]
[null,null,null,null,null,null,null,null,null,null,"1.41V","1.24.10","1.24.10"]
[null,null,null,null,null,null,null,null,null,null,"1.43","1.25.01","1.25.01"]
[null,null,null,null,null,null,null,null,null,null,"1.43A","1.25.02","1.25.02"]
[null,null,null,null,null,null,null,null,null,null,"1.43X","1.25.03","1.25.03"]
[null,null,null,null,null,null,null,null,null,null,"1.43Y","1.25.05","1.25.05"]
[null,null,null,null,null,null,null,null,null,null,"1.44","1.25.06","1.25.06"]
[null,null,null,null,null,null,null,null,null,null,"1.44B","1.25.08","1.25.08"]
[null,null,null,null,null,null,null,null,null,null,"1.44Q","1.25.16","1.25.16"]
[null,null,null,null,null,null,null,null,null,null,"1.44S","1.25.17","1.25.17"]
[null,null,null,null,null,null,null,null,null,null,"1.44T","1.25.18","1.25.18"]
[null,null,null,null,null,null,null,null,null,null,"1.44V","1.25.19","1.25.19"]
[null,null,null,null,null,null,null,null,null,null,"1.51","1.26.1.01","1.26.1.01"]
[null,null,null,null,null,null,null,null,null,null,"1.51A","1.26.1.06","1.26.1.06"]
[null,null,null,null,null,null,null,null,null,null,"1.51D","1.26.1.07","1.26.1.07"]
[null,null,null,null,null,null,null,null,null,null,"1.51E","1.26.1.08.1","1.26.1.08.1"]
[null,null,null,null,null,null,null,null,null,null,"1.51F","1.26.1.08.2","1.26.1.08.2"]
[null,null,null,null,null,null,null,null,null,null,"1.51H","1.26.1.09","1.26.1.09"]
[null,null,null,null,null,null,null,null,null,null,"1.51M","1.26.1.10","1.26.1.10"]
[null,null,null,null,null,null,null,null,null,null,"1.51R","1.26.2.01","1.26.2.01"]
[null,null,null,null,null,null,null,null,null,null,"1.51S","1.26.2.08","1.26.2.08"]
[null,null,null,null,null,null,null,null,null,null,"1.51V","1.26.2.09","1.26.2.09"]
[null,null,null,null,null,null,null,null,null,null,"1.51W","1.26.3.01","1.26.3.01"]
[null,null,null,null,null,null,null,null,null,null,"1.51X","1.26.3.08","1.26.3.08"]
[null,null,null,null,null,null,null,null,null,null,"1.57","1.26.4.01","1.26.4.01"]
[null,null,null,null,null,null,null,null,null,null,"1.57A","1.26.4.08","1.26.4.08"]
[null,null,null,null,null,null,null,null,null,null,"1.57R","1.26.5.01","1.26.5.01"]
[null,null,null,null,null,null,null,null,null,null,"1.57T","1.26.5.07","1.26.5.07"]
[null,null,null,null,null,null,null,null,null,null,"1.57V","1.26.5.08","1.26.5.08"]
[null,null,null,null,null,null,null,null,null,null,"1.58","1.26.6.01","1.26.6.01"]
[null,null,null,null,null,null,null,null,null,null,"1.58A","1.26.6.07","1.26.6.07"]
[null,null,null,null,null,null,null,null,null,null,"1.58E","1.26.6.08","1.26.6.08"]
[null,null,null,null,null,null,null,null,null,null,"1.58G","1.27.1.01","1.27.1.01"]
[null,null,null,null,null,null,null,null,null,null,"1.58GO","1.27.2.01","1.27.2.01"]
[null,null,null,null,null,null,null,null,null,null,"1.58H","1.27.2.08","1.27.2.08"]
[null,null,null,null,null,null,null,null,null,null,"1.58K","1.28.01","1.28.01"]
[null,null,null,null,null,null,null,null,null,null,"1.58W","1.28.02","1.28.02"]
[null,null,null,null,null,null,null,null,null,null,"1.58X","1.28.08.1","1.28.08.1"]
[null,null,null,null,null,null,null,null,null,null,"1.59","1.28.08.3","1.28.08.3"]
[null,null,null,null,null,null,null,null,null,null,"1.59A","12.8.2003","12.8.2003"]
[null,null,null,null,null,null,null,null,null,null,"1.59B","1.29.01","1.29.01"]
[null,null,null,null,null,null,null,null,null,null,"1.59T","1.29.02","1.29.02"]
[null,null,null,null,null,null,null,null,null,null,"1.59V","1.29.08","1.29.08"]
[null,null,null,null,null,null,null,null,null,null,"1.62","1.29.10","1.29.10"]
[null,null,null,null,null,null,null,null,null,null,"1.62D","12.9.2001","12.9.2001"]
[null,null,null,null,null,null,null,null,null,null,"1.62G","12.9.2003","12.9.2003"]
[null,null,null,null,null,null,null,null,null,null,"1.63","12.9.2010","12.9.2010"]
[null,null,null,null,null,null,null,null,null,null,"1.63E","13","13"]
[null,null,null,null,null,null,null,null,null,null,"1.63F","13.I","13.I"]
[null,null,null,null,null,null,null,null,null,null,"1.69","13.VIII","13.VIII"]
[null,null,null,null,null,null,null,null,null,null,"1.69A","13.X","13.X"]
[null,null,null,null,null,null,null,null,null,null,"1.79","1.30.01","1.30.01"]
[null,null,null,null,null,null,null,null,null,null,"1.79A","1.30.02","1.30.02"]
[null,null,null,null,null,null,null,null,null,null,"1.80","1.30.03","1.30.03"]
[null,null,null,null,null,null,null,null,null,null,"1.80A","1.30.04","1.30.04"]
[null,null,null,null,null,null,null,null,null,null,"1.80D","1.30.05","1.30.05"]
[null,null,null,null,null,null,null,null,null,null,"1.80N","1.30.06","1.30.06"]
[null,null,null,null,null,null,null,null,null,null,"1.80Q","1.30.08","1.30.08"]
[null,null,null,null,null,null,null,null,null,null,"1.80S","1.30.08.05",{"$f":"IF($B$7=\"ETE\",K711,L711)","v":"1.30.08.05"}]
[null,null,null,null,null,null,null,null,null,null,"1.80T","1.30.08.06","1.30.08.06"]
[null,null,null,null,null,null,null,null,null,null,"1.80U","1.30.10.05","1.30.10.05"]
[null,null,null,null,null,null,null,null,null,null,"1.80V","1.30.10.06","1.30.10.06"]
[null,null,null,null,null,null,null,null,null,null,"1.80W","1.30.10.1","1.30.10.1"]
[null,null,null,null,null,null,null,null,null,null,"1.80Y","1.30.10.3","1.30.10.3"]
[null,null,null,null,null,null,null,null,null,null,"1.80Z","1.31.01","1.31.01"]
[null,null,null,null,null,null,null,null,null,null,"2.01","1.31.08","1.31.08"]
[null,null,null,null,null,null,null,null,null,null,"2.01D","1.31.10","1.31.10"]
[null,null,null,null,null,null,null,null,null,null,"2.01E","13.15","13.15"]
[null,null,null,null,null,null,null,null,null,null,"2.01F","1.32.XX","1.32.XX"]
[null,null,null,null,null,null,null,null,null,null,"2.01S","1.33.XX","1.33.XX"]
[null,null,null,null,null,null,null,null,null,null,"2.01X","1.34.01","1.34.01"]
[null,null,null,null,null,null,null,null,null,null,"2.09","1.34.08","1.34.08"]
[null,null,null,null,null,null,null,null,null,null,"2.09A","1.35.01","1.35.01"]
[null,null,null,null,null,null,null,null,null,null,"2.09D","1.35.08","1.35.08"]
[null,null,null,null,null,null,null,null,null,null,"2.09E","1.35.10","1.35.10"]
[null,null,null,null,null,null,null,null,null,null,"2.09S","1.36.01","1.36.01"]
[null,null,null,null,null,null,null,null,null,null,"2.09X","1.36.02","1.36.02"]
[null,null,null,null,null,null,null,null,null,null,"2.13","1.36.02.10","1.36.02.10"]
[null,null,null,null,null,null,null,null,null,null,"2.13A","1.36.08.1","1.36.08.1"]
[null,null,null,null,null,null,null,null,null,null,"2.13D","1.36.08.2","1.36.08.2"]
[null,null,null,null,null,null,null,null,null,null,"2.13T","1.37.01","1.37.01"]
[null,null,null,null,null,null,null,null,null,null,"2.13V","1.37.02","1.37.02"]
[null,null,null,null,null,null,null,null,null,null,"2.144","1.37.08","1.37.08"]
[null,null,null,null,null,null,null,null,null,null,"2.144D","1.38.01","1.38.01"]
[null,null,null,null,null,null,null,null,null,null,"2.144T","1.38.03","1.38.03"]
[null,null,null,null,null,null,null,null,null,null,"2.145","1.38.06","1.38.06"]
[null,null,null,null,null,null,null,null,null,null,"2.145D","1.38.08","1.38.08"]
[null,null,null,null,null,null,null,null,null,null,"2.145T","1.38.10","1.38.10"]
[null,null,null,null,null,null,null,null,null,null,"2.146","1.38.12","1.38.12"]
[null,null,null,null,null,null,null,null,null,null,"2.147","1.38.15","1.38.15"]
[null,null,null,null,null,null,null,null,null,null,"2.147A","1.39.01","1.39.01"]
[null,null,null,null,null,null,null,null,null,null,"2.147B","1.39.08","1.39.08"]
[null,null,null,null,null,null,null,null,null,null,"2.147D","1.39.10","1.39.10"]
[null,null,null,null,null,null,null,null,null,null,"2.15","14","14"]
[null,null,null,null,null,null,null,null,null,null,"2.15A","14.I","14.I"]
[null,null,null,null,null,null,null,null,null,null,"2.15S","14.II","14.II"]
[null,null,null,null,null,null,null,null,null,null,"2.15T","14.VI","14.VI"]
[null,null,null,null,null,null,null,null,null,null,"2.15V","14.VIII","14.VIII"]
[null,null,null,null,null,null,null,null,null,null,"2.16","14.X","14.X"]
[null,null,null,null,null,null,null,null,null,null,"2.16A","14.XII","14.XII"]
[null,null,null,null,null,null,null,null,null,null,"2.16S","1.40.01","1.40.01"]
[null,null,null,null,null,null,null,null,null,null,"2.16V","1.40.08","1.40.08"]
[null,null,null,null,null,null,null,null,null,null,"2.16X","1.40.10","1.40.10"]
[null,null,null,null,null,null,null,null,null,null,"2.17","1.41.01","1.41.01"]
[null,null,null,null,null,null,null,null,null,null,"2.17A","1.41.06","1.41.06"]
[null,null,null,null,null,null,null,null,null,null,"2.17S","1.41.07","1.41.07"]
[null,null,null,null,null,null,null,null,null,null,"2.17X","1.41.07A","1.41.07A"]
[null,null,null,null,null,null,null,null,null,null,"2.172","1.41.07B","1.41.07B"]
[null,null,null,null,null,null,null,null,null,null,"2.172A","1.41.08","1.41.08"]
[null,null,null,null,null,null,null,null,null,null,"2.172B","1.41.10","1.41.10"]
[null,null,null,null,null,null,null,null,null,null,"2.172T","1.41.10A","1.41.10A"]
[null,null,null,null,null,null,null,null,null,null,"2.172W","1.41.10B","1.41.10B"]
[null,null,null,null,null,null,null,null,null,null,"2.20","1.42.01","1.42.01"]
[null,null,null,null,null,null,null,null,null,null,"2.20A","1.42.07","1.42.07"]
[null,null,null,null,null,null,null,null,null,null,"2.20B","1.42.08","1.42.08"]
[null,null,null,null,null,null,null,null,null,null,"2.20D","1.42.10","1.42.10"]
[null,null,null,null,null,null,null,null,null,null,"2.20E","1.45.01","1.45.01"]
[null,null,null,null,null,null,null,null,null,null,"2.20F","1.45.02","1.45.02"]
[null,null,null,null,null,null,null,null,null,null,"2.20G","1.45.03","1.45.03"]
[null,null,null,null,null,null,null,null,null,null,"2.20J","1.45.04","1.45.04"]
[null,null,null,null,null,null,null,null,null,null,"2.20K","1.45.05","1.45.05"]
[null,null,null,null,null,null,null,null,null,null,"2.20L","1.45.06","1.45.06"]
[null,null,null,null,null,null,null,null,null,null,"2.20M","1.45.07",{"$f":"IF($B$7=\"ETE\",K775,L775)","v":"1.45.07"}]
[null,null,null,null,null,null,null,null,null,null,"2.20N","1.45.08","1.45.08"]
[null,null,null,null,null,null,null,null,null,null,"2.20R","1.45.09","1.45.09"]
[null,null,null,null,null,null,null,null,null,null,"2.20S","1.45.10","1.45.10"]
[null,null,null,null,null,null,null,null,null,null,"2.20T","1.45.11","1.45.11"]
[null,null,null,null,null,null,null,null,null,null,"2.20V","1.46.01","1.46.01"]
[null,null,null,null,null,null,null,null,null,null,"2.20W","1.46.08","1.46.08"]
[null,null,null,null,null,null,null,null,null,null,"2.20X","1.46.10","1.46.10"]
[null,null,null,null,null,null,null,null,null,null,"2.20Z","1.47.01","1.47.01"]
[null,null,null,null,null,null,null,null,null,null,"2.201","1.47.02","1.47.02"]
[null,null,null,null,null,null,null,null,null,null,"2.201A","1.47.06","1.47.06"]
[null,null,null,null,null,null,null,null,null,null,"2.201B","1.47.08","1.47.08"]
[null,null,null,null,null,null,null,null,null,null,"2.201C","1.47.10","1.47.10"]
[null,null,null,null,null,null,null,null,null,null,"2.201E","1.47.12","1.47.12"]
[null,null,null,null,null,null,null,null,null,null,"2.201X","1.48.01","1.48.01"]
[null,null,null,null,null,null,null,null,null,null,"2.202","1.48.02","1.48.02"]
[null,null,null,null,null,null,null,null,null,null,"2.202A","1.48.03","1.48.03"]
[null,null,null,null,null,null,null,null,null,null,"2.202B","1.48.04","1.48.04"]
[null,null,null,null,null,null,null,null,null,null,"2.203","1.48.05","1.48.05"]
[null,null,null,null,null,null,null,null,null,null,"2.203A","1.48.06","1.48.06"]
[null,null,null,null,null,null,null,null,null,null,"2.203B","1.48.07","1.48.07"]
[null,null,null,null,null,null,null,null,null,null,"2.203C","1.48.08.1","1.48.08.1"]
[null,null,null,null,null,null,null,null,null,null,"2.203D","1.48.08.2","1.48.08.2"]
[null,null,null,null,null,null,null,null,null,null,"2.203E","1.48.09.1","1.48.09.1"]
[null,null,null,null,null,null,null,null,null,null,"2.204","1.48.09.2","1.48.09.2"]
[null,null,null,null,null,null,null,null,null,null,"2.204A","1.48.10","1.48.10"]
[null,null,null,null,null,null,null,null,null,null,"2.204Y","1.48.11","1.48.11"]
[null,null,null,null,null,null,null,null,null,null,"2.204Z","1.48.12","1.48.12"]
[null,null,null,null,null,null,null,null,null,null,"2.205A","1.48.15","1.48.15"]
[null,null,null,null,null,null,null,null,null,null,"2.21","1.48.16","1.48.16"]
[null,null,null,null,null,null,null,null,null,null,"2.21D","1.48.17","1.48.17"]
[null,null,null,null,null,null,null,null,null,null,"2.21E","1.48.18","1.48.18"]
[null,null,null,null,null,null,null,null,null,null,"2.21F","1.48.19","1.48.19"]
[null,null,null,null,null,null,null,null,null,null,"2.21G","1.48.20","1.48.20"]
[null,null,null,null,null,null,null,null,null,null,"2.21J","15","15"]
[null,null,null,null,null,null,null,null,null,null,"2.21K","16","16"]
[null,null,null,null,null,null,null,null,null,null,"2.21R","16.I","16.I"]
[null,null,null,null,null,null,null,null,null,null,"2.21S","16.VI","16.VI"]
[null,null,null,null,null,null,null,null,null,null,"2.21W","16.VIII","16.VIII"]
[null,null,null,null,null,null,null,null,null,null,"2.21X","16.X","16.X"]
[null,null,null,null,null,null,null,null,null,null,"2.22","17","17"]
[null,null,null,null,null,null,null,null,null,null,"2.22A","17.II","17.II"]
[null,null,null,null,null,null,null,null,null,null,"2.22D","17.III","17.III"]
[null,null,null,null,null,null,null,null,null,null,"2.22E","17.IV","17.IV"]
[null,null,null,null,null,null,null,null,null,null,"2.22K","17.VI","17.VI"]
[null,null,null,null,null,null,null,null,null,null,"2.22L","17.VIII","17.VIII"]
[null,null,null,null,null,null,null,null,null,null,"2.22M","17.X","17.X"]
[null,null,null,null,null,null,null,null,null,null,"2.22R","17.XII","17.XII"]
[null,null,null,null,null,null,null,null,null,null,"2.22S","1.77.08","1.77.08"]
[null,null,null,null,null,null,null,null,null,null,"2.22W","1.77.08.2","1.77.08.2"]
[null,null,null,null,null,null,null,null,null,null,"2.22X","18.I","18.I"]
[null,null,null,null,null,null,null,null,null,null,"2.23","18.II","18.II"]
[null,null,null,null,null,null,null,null,null,null,"2.23A","18.III","18.III"]
[null,null,null,null,null,null,null,null,null,null,"2.23D","1.80.01","1.80.01"]
[null,null,null,null,null,null,null,null,null,null,"2.23S","1.80.01.2","1.80.01.2"]
[null,null,null,null,null,null,null,null,null,null,"2.23X","1.80.01.3","1.80.01.3"]
[null,null,null,null,null,null,null,null,null,null,"2.26","1.80.01.4","1.80.01.4"]
[null,null,null,null,null,null,null,null,null,null,"2.26A","1.80.01.5","1.80.01.5"]
[null,null,null,null,null,null,null,null,null,null,"2.27B","1.80.03","1.80.03"]
[null,null,null,null,null,null,null,null,null,null,"2.28","1.80.04","1.80.04"]
[null,null,null,null,null,null,null,null,null,null,"2.28A","1.80.08","1.80.08"]
[null,null,null,null,null,null,null,null,null,null,"2.28D","1.80.09","1.80.09"]
[null,null,null,null,null,null,null,null,null,null,"2.28T","1.81.01","1.81.01"]
[null,null,null,null,null,null,null,null,null,null,"2.30","18.1.01.08","18.1.01.08"]
[null,null,null,null,null,null,null,null,null,null,"2.30A","18.1.01.10",{"$f":"IF($B$7=\"ETE\",K839,L839)","v":"18.1.01.10"}]
[null,null,null,null,null,null,null,null,null,null,"2.30D","1.81.02","1.81.02"]
[null,null,null,null,null,null,null,null,null,null,"2.30E","18.1.02.08","18.1.02.08"]
[null,null,null,null,null,null,null,null,null,null,"2.30G","18.1.03.08","18.1.03.08"]
[null,null,null,null,null,null,null,null,null,null,"2.30K","1.81.09","1.81.09"]
[null,null,null,null,null,null,null,null,null,null,"2.30L","18.1.2001","18.1.2001"]
[null,null,null,null,null,null,null,null,null,null,"2.30S","18.1.2002","18.1.2002"]
[null,null,null,null,null,null,null,null,null,null,"2.30T","18.1.2003","18.1.2003"]
[null,null,null,null,null,null,null,null,null,null,"2.30V","18.1.2010","18.1.2010"]
[null,null,null,null,null,null,null,null,null,null,"2.30X","1.82.02","1.82.02"]
[null,null,null,null,null,null,null,null,null,null,"2.31","1.82.08","1.82.08"]
[null,null,null,null,null,null,null,null,null,null,"2.31D","18.2.2001","18.2.2001"]
[null,null,null,null,null,null,null,null,null,null,"2.31S","18.2.2008","18.2.2008"]
[null,null,null,null,null,null,null,null,null,null,"2.31T","18.2.2010","18.2.2010"]
[null,null,null,null,null,null,null,null,null,null,"2.31X","1.83.01","1.83.01"]
[null,null,null,null,null,null,null,null,null,null,"2.32","1.83.01Z","1.83.01Z"]
[null,null,null,null,null,null,null,null,null,null,"2.32A","1.83.02","1.83.02"]
[null,null,null,null,null,null,null,null,null,null,"2.32D","1.83.02Z","1.83.02Z"]
[null,null,null,null,null,null,null,null,null,null,"2.32E","1.83.03","1.83.03"]
[null,null,null,null,null,null,null,null,null,null,"2.32G","1.83.03Z","1.83.03Z"]
[null,null,null,null,null,null,null,null,null,null,"2.32R","1.83.04Z","1.83.04Z"]
[null,null,null,null,null,null,null,null,null,null,"2.32T","1.83.05","1.83.05"]
[null,null,null,null,null,null,null,null,null,null,"2.33","1.83.05Z","1.83.05Z"]
[null,null,null,null,null,null,null,null,null,null,"2.33R","1.83.06","1.83.06"]
[null,null,null,null,null,null,null,null,null,null,"2.33S","1.83.06Z","1.83.06Z"]
[null,null,null,null,null,null,null,null,null,null,"2.33X","1.83.07Z","1.83.07Z"]
[null,null,null,null,null,null,null,null,null,null,"2.34","1.83.08","1.83.08"]
[null,null,null,null,null,null,null,null,null,null,"2.34A","1.83.08Z","1.83.08Z"]
[null,null,null,null,null,null,null,null,null,null,"2.34R","1.83.10","1.83.10"]
[null,null,null,null,null,null,null,null,null,null,"2.34S","1.83.11","1.83.11"]
[null,null,null,null,null,null,null,null,null,null,"2.34T","1.83.12","1.83.12"]
[null,null,null,null,null,null,null,null,null,null,"2.35","1.83.15","1.83.15"]
[null,null,null,null,null,null,null,null,null,null,"2.35A","1.83.18","1.83.18"]
[null,null,null,null,null,null,null,null,null,null,"2.35D","18.3.2001","18.3.2001"]
[null,null,null,null,null,null,null,null,null,null,"2.35E","18.3.2008","18.3.2008"]
[null,null,null,null,null,null,null,null,null,null,"2.35F","18.3.2010","18.3.2010"]
[null,null,null,null,null,null,null,null,null,null,"2.35G","1.83.34","1.83.34"]
[null,null,null,null,null,null,null,null,null,null,"2.35J","1.83.35","1.83.35"]
[null,null,null,null,null,null,null,null,null,null,"2.35K","1.83.36","1.83.36"]
[null,null,null,null,null,null,null,null,null,null,"2.35M","1.83.38","1.83.38"]
[null,null,null,null,null,null,null,null,null,null,"2.35N","1.83.39","1.83.39"]
[null,null,null,null,null,null,null,null,null,null,"2.35R","1.83.40","1.83.40"]
[null,null,null,null,null,null,null,null,null,null,"2.35T","1.83.41","1.83.41"]
[null,null,null,null,null,null,null,null,null,null,"2.35X","1.83.42","1.83.42"]
[null,null,null,null,null,null,null,null,null,null,"2.36","1.83.43","1.83.43"]
[null,null,null,null,null,null,null,null,null,null,"2.36A","1.83.44","1.83.44"]
[null,null,null,null,null,null,null,null,null,null,"2.36D","1.83.45","1.83.45"]
[null,null,null,null,null,null,null,null,null,null,"2.37","1.83.46","1.83.46"]
[null,null,null,null,null,null,null,null,null,null,"2.37A","1.83.47","1.83.47"]
[null,null,null,null,null,null,null,null,null,null,"2.37B","1.83.48","1.83.48"]
[null,null,null,null,null,null,null,null,null,null,"2.37D","1.84.01","1.84.01"]
[null,null,null,null,null,null,null,null,null,null,"2.37T","1.84.02","1.84.02"]
[null,null,null,null,null,null,null,null,null,null,"2.39","1.84.03","1.84.03"]
[null,null,null,null,null,null,null,null,null,null,"2.40","1.84.04","1.84.04"]
[null,null,null,null,null,null,null,null,null,null,"2.40A","1.85.01","1.85.01"]
[null,null,null,null,null,null,null,null,null,null,"2.40D","1.85.01M","1.85.01M"]
[null,null,null,null,null,null,null,null,null,null,"2.40E","1.85.01.2M","1.85.01.2M"]
[null,null,null,null,null,null,null,null,null,null,"2.40F","1.85.02","1.85.02"]
[null,null,null,null,null,null,null,null,null,null,"2.40G","1.85.02M","1.85.02M"]
[null,null,null,null,null,null,null,null,null,null,"2.40J","1.85.03","1.85.03"]
[null,null,null,null,null,null,null,null,null,null,"2.40L","1.85.03M","1.85.03M"]
[null,null,null,null,null,null,null,null,null,null,"2.40V","1.85.03.2M","1.85.03.2M"]
[null,null,null,null,null,null,null,null,null,null,"2.40W","1.85.04","1.85.04"]
[null,null,null,null,null,null,null,null,null,null,"2.41","1.85.04M","1.85.04M"]
[null,null,null,null,null,null,null,null,null,null,"2.41D","1.85.04.2M",{"$f":"IF($B$7=\"ETE\",K903,L903)","v":"1.85.04.2M"}]
[null,null,null,null,null,null,null,null,null,null,"2.41F","1.85.05","1.85.05"]
[null,null,null,null,null,null,null,null,null,null,"2.41G","1.85.05M","1.85.05M"]
[null,null,null,null,null,null,null,null,null,null,"2.41H","1.85.05.2M","1.85.05.2M"]
[null,null,null,null,null,null,null,null,null,null,"2.41L","1.85.06M","1.85.06M"]
[null,null,null,null,null,null,null,null,null,null,"2.41T","1.85.07M","1.85.07M"]
[null,null,null,null,null,null,null,null,null,null,"2.41V","1.85.07.2M","1.85.07.2M"]
[null,null,null,null,null,null,null,null,null,null,"2.41X","1.85.08M","1.85.08M"]
[null,null,null,null,null,null,null,null,null,null,"2.43","1.85.08.2M","1.85.08.2M"]
[null,null,null,null,null,null,null,null,null,null,"2.43A","1.87.10","1.87.10"]
[null,null,null,null,null,null,null,null,null,null,"2.43X","1.89.01","1.89.01"]
[null,null,null,null,null,null,null,null,null,null,"2.43Y","1.89.02","1.89.02"]
[null,null,null,null,null,null,null,null,null,null,"2.44","1.89.03","1.89.03"]
[null,null,null,null,null,null,null,null,null,null,"2.44B","1.89.04","1.89.04"]
[null,null,null,null,null,null,null,null,null,null,"2.44Q","1.89.06","1.89.06"]
[null,null,null,null,null,null,null,null,null,null,"2.44S","1.89.08","1.89.08"]
[null,null,null,null,null,null,null,null,null,null,"2.44T","1.89.09","1.89.09"]
[null,null,null,null,null,null,null,null,null,null,"2.44V","1.89.09.01","1.89.09.01"]
[null,null,null,null,null,null,null,null,null,null,"2.51","1.89.09.02","1.89.09.02"]
[null,null,null,null,null,null,null,null,null,null,"2.51A","1.89.09.08","1.89.09.08"]
[null,null,null,null,null,null,null,null,null,null,"2.51D","1.89.09.10","1.89.09.10"]
[null,null,null,null,null,null,null,null,null,null,"2.51E","1.89.10","1.89.10"]
[null,null,null,null,null,null,null,null,null,null,"2.51F","1.89.11","1.89.11"]
[null,null,null,null,null,null,null,null,null,null,"2.51H","1.89.12.08","1.89.12.08"]
[null,null,null,null,null,null,null,null,null,null,"2.51M","1.89.12.10","1.89.12.10"]
[null,null,null,null,null,null,null,null,null,null,"2.51R","1.89.13","1.89.13"]
[null,null,null,null,null,null,null,null,null,null,"2.51S","19","19"]
[null,null,null,null,null,null,null,null,null,null,"2.51V","19.I","19.I"]
[null,null,null,null,null,null,null,null,null,null,"2.51W","19.II","19.II"]
[null,null,null,null,null,null,null,null,null,null,"2.51X","19.III","19.III"]
[null,null,null,null,null,null,null,null,null,null,"2.57","19.IV","19.IV"]
[null,null,null,null,null,null,null,null,null,null,"2.57A","19.VI","19.VI"]
[null,null,null,null,null,null,null,null,null,null,"2.57R","19.VII","19.VII"]
[null,null,null,null,null,null,null,null,null,null,"2.57T","19.VIII","19.VIII"]
[null,null,null,null,null,null,null,null,null,null,"2.57V","19.X","19.X"]
[null,null,null,null,null,null,null,null,null,null,"2.58","19.XI","19.XI"]
[null,null,null,null,null,null,null,null,null,null,"2.58A","19.XII","19.XII"]
[null,null,null,null,null,null,null,null,null,null,"2.58E","1.90.01","1.90.01"]
[null,null,null,null,null,null,null,null,null,null,"2.58G","1.90.08","1.90.08"]
[null,null,null,null,null,null,null,null,null,null,"2.58GO","1.90.10","1.90.10"]
[null,null,null,null,null,null,null,null,null,null,"2.58H","19.05A,B","19.05A,B"]
[null,null,null,null,null,null,null,null,null,null,"2.58K","19.07A","19.07A"]
[null,null,null,null,null,null,null,null,null,null,"2.58W","19.07B","19.07B"]
[null,null,null,null,null,null,null,null,null,null,"2.58X","19.13","19.13"]
[null,null,null,null,null,null,null,null,null,null,"2.59","19.14","19.14"]
[null,null,null,null,null,null,null,null,null,null,"2.59A","19.15","19.15"]
[null,null,null,null,null,null,null,null,null,null,"2.59B","19.16","19.16"]
[null,null,null,null,null,null,null,null,null,null,"2.59T","19.17","19.17"]
[null,null,null,null,null,null,null,null,null,null,"2.59V","1.95.00","1.95.00"]
[null,null,null,null,null,null,null,null,null,null,"2.62","2","2"]
[null,null,null,null,null,null,null,null,null,null,"2.62D","2.A1","2.A1"]
[null,null,null,null,null,null,null,null,null,null,"2.62G","2.A10","2.A10"]
[null,null,null,null,null,null,null,null,null,null,"2.63","2.A10.01","2.A10.01"]
[null,null,null,null,null,null,null,null,null,null,"2.63E","2.A10.08","2.A10.08"]
[null,null,null,null,null,null,null,null,null,null,"2.63F","2.A10.08.01","2.A10.08.01"]
[null,null,null,null,null,null,null,null,null,null,"2.69","2.A1.01","2.A1.01"]
[null,null,null,null,null,null,null,null,null,null,"2.69A","2.A10.10","2.A10.10"]
[null,null,null,null,null,null,null,null,null,null,"2.80","2.A10.10.01","2.A10.10.01"]
[null,null,null,null,null,null,null,null,null,null,"2.80A","2.A10-2","2.A10-2"]
[null,null,null,null,null,null,null,null,null,null,"2.80D","2.A10-2.01","2.A10-2.01"]
[null,null,null,null,null,null,null,null,null,null,"2.80H","2.A10-2.02","2.A10-2.02"]
[null,null,null,null,null,null,null,null,null,null,"2.80N","2.A1.08","2.A1.08"]
[null,null,null,null,null,null,null,null,null,null,"2.80Q","2.A1.10","2.A1.10"]
[null,null,null,null,null,null,null,null,null,null,"2.80S","2.A12A","2.A12A"]
[null,null,null,null,null,null,null,null,null,null,"2.80T","2.A12A.08",{"$f":"IF($B$7=\"ETE\",K967,L967)","v":"2.A12A.08"}]
[null,null,null,null,null,null,null,null,null,null,"2.80U","2.A12A.10","2.A12A.10"]
[null,null,null,null,null,null,null,null,null,null,"2.80V","2.A12B","2.A12B"]
[null,null,null,null,null,null,null,null,null,null,"2.80W","2.A12B.01","2.A12B.01"]
[null,null,null,null,null,null,null,null,null,null,"2.80Y","2.A16-1","2.A16-1"]
[null,null,null,null,null,null,null,null,null,null,"2.80Z","2.A16-1.01","2.A16-1.01"]
[null,null,null,null,null,null,null,null,null,null,"5.165","2.A16-1.08","2.A16-1.08"]
[null,null,null,null,null,null,null,null,null,null,"5.79","2.A16-2","2.A16-2"]
[null,null,null,null,null,null,null,null,null,null,"7.44","2.A16-2.01","2.A16-2.01"]
[null,null,null,null,null,null,null,null,null,null,"7.44A","2.A21.01","2.A21.01"]
[null,null,null,null,null,null,null,null,null,null,"7.44Q","2.A21.08","2.A21.08"]
[null,null,null,null,null,null,null,null,null,null,"7.44T","2.A21.10","2.A21.10"]
[null,null,null,null,null,null,null,null,null,null,"7.44V","2.A23A","2.A23A"]
[null,null,null,null,null,null,null,null,null,null,"8.44","2.A23A.05","2.A23A.05"]
[null,null,null,null,null,null,null,null,null,null,"8.44A","2.A23A.08","2.A23A.08"]
[null,null,null,null,null,null,null,null,null,null,"8.44Q","2.A23A.10","2.A23A.10"]
[null,null,null,null,null,null,null,null,null,null,"8.44T","2.A23B","2.A23B"]
[null,null,null,null,null,null,null,null,null,null,"8.44V","2.A23B.01","2.A23B.01"]
[null,null,null,null,null,null,null,null,null,null,"8.47T","2.A23B.08","2.A23B.08"]
[null,null,null,null,null,null,null,null,null,null,"9.01","2.A23B.10","2.A23B.10"]
[null,null,null,null,null,null,null,null,null,null,"9.01A","2.A23C","2.A23C"]
[null,null,null,null,null,null,null,null,null,null,"9.01B","2.A23C.01","2.A23C.01"]
[null,null,null,null,null,null,null,null,null,null,"9.01C","2.A23C.08","2.A23C.08"]
[null,null,null,null,null,null,null,null,null,null,"9.05","2.A23C.10","2.A23C.10"]
[null,null,null,null,null,null,null,null,null,null,"9.145E","2.A23.00","2.A23.00"]
[null,null,null,null,null,null,null,null,null,null,"9.28","2.A23.01","2.A23.01"]
[null,null,null,null,null,null,null,null,null,null,"9.36","2.A23.03","2.A23.03"]
[null,null,null,null,null,null,null,null,null,null,"9.36A","2.A23.05","2.A23.05"]
[null,null,null,null,null,null,null,null,null,null,"9.36V","2.A23.06","2.A23.06"]
[null,null,null,null,null,null,null,null,null,null,"9.42","2.A23.08","2.A23.08"]
[null,null,null,null,null,null,null,null,null,null,"9.43","2.A23.09","2.A23.09"]
[null,null,null,null,null,null,null,null,null,null,"9.47","2.A23.10","2.A23.10"]
[null,null,null,null,null,null,null,null,null,null,"9.47A","2.A25","2.A25"]
[null,null,null,null,null,null,null,null,null,null,"9.47T","2.A25.08","2.A25.08"]
[null,null,null,null,null,null,null,null,null,null,"9.49","2.A25.09","2.A25.09"]
[null,null,null,null,null,null,null,null,null,null,"9.50","2.A25.10","2.A25.10"]
[null,null,null,null,null,null,null,null,null,null,"952","2.A3","2.A3"]
[null,null,null,null,null,null,null,null,null,null,"0.32A","2.A3.01","2.A3.01"]
[null,null,null,null,null,null,null,null,null,null,"0.32V","2.A4","2.A4"]
[null,null,null,null,null,null,null,null,null,null,"0.32T","2.A4.01","2.A4.01"]
[null,null,null,null,null,null,null,null,null,null,"0.33A","2.A4.08","2.A4.08"]
[null,null,null,null,null,null,null,null,null,null,"0.33V","2.A4.10","2.A4.10"]
[null,null,null,null,null,null,null,null,null,null,"0.33T","2.A5","2.A5"]
[null,null,null,null,null,null,null,null,null,null,"0.34A","2.A5.01","2.A5.01"]
[null,null,null,null,null,null,null,null,null,null,"0.34V","2.A5.08","2.A5.08"]
[null,null,null,null,null,null,null,null,null,null,"0.34T","2.A5.10","2.A5.10"]
[null,null,null,null,null,null,null,null,null,null,"N/A","2.A7","2.A7"]
[null,null,null,null,null,null,null,null,null,null," ","2.A7.01","2.A7.01"]
[null,null,null,null,null,null,null,null,null,null," ","2.A7.10","2.A7.10"]
[null,null,null,null,null,null,null,null,null,null," ","2.A8","2.A8"]
[null,null,null,null,null,null,null,null,null,null," ","2.A8.01","2.A8.01"]
[null,null,null,null,null,null,null,null,null,null," ","2.A8.10","2.A8.10"]
[null,null,null,null,null,null,null,null,null,null," ","2.A9","2.A9"]
[null,null,null,null,null,null,null,null,null,null," ","2.A9.01","2.A9.01"]
[null,null,null,null,null,null,null,null,null,null," ","2.A9.02","2.A9.02"]
[null,null,null,null,null,null,null,null,null,null," ","2.A9.08","2.A9.08"]
[null,null,null,null,null,null,null,null,null,null," ","2.A9.10","2.A9.10"]
[null,null,null,null,null,null,null,null,null,null," ","2.A9.12","2.A9.12"]
[null,null,null,null,null,null,null,null,null,null," ","2.A9.14","2.A9.14"]
[null,null,null,null,null,null,null,null,null,null," ","2.B1","2.B1"]
[null,null,null,null,null,null,null,null,null,null," ","2.B10.08","2.B10.08"]
[null,null,null,null,null,null,null,null,null,null," ","2.B1.01","2.B1.01"]
[null,null,null,null,null,null,null,null,null,null," ","2.B1.08","2.B1.08"]
[null,null,null,null,null,null,null,null,null,null," ","2.B1.10","2.B1.10"]
[null,null,null,null,null,null,null,null,null,null," ","2.B13A",{"$f":"IF($B$7=\"ETE\",K1031,L1031)","v":"2.B13A"}]
[null,null,null,null,null,null,null,null,null,null," ","2.B13A.01","2.B13A.01"]
[null,null,null,null,null,null,null,null,null,null," ","2.B13A.02","2.B13A.02"]
[null,null,null,null,null,null,null,null,null,null," ","2.B13A.08","2.B13A.08"]
[null,null,null,null,null,null,null,null,null,null," ","2.B13B","2.B13B"]
[null,null,null,null,null,null,null,null,null,null," ","2.B13B.01","2.B13B.01"]
[null,null,null,null,null,null,null,null,null,null," ","2.B13B.08","2.B13B.08"]
[null,null,null,null,null,null,null,null,null,null," ","2.B13B.09","2.B13B.09"]
[null,null,null,null,null,null,null,null,null,null," ","2.B13B.10","2.B13B.10"]
[null,null,null,null,null,null,null,null,null,null," ","2.B3","2.B3"]
[null,null,null,null,null,null,null,null,null,null," ","2.B3.01","2.B3.01"]
[null,null,null,null,null,null,null,null,null,null," ","2.B3.08","2.B3.08"]
[null,null,null,null,null,null,null,null,null,null," ","2.B3.09","2.B3.09"]
[null,null,null,null,null,null,null,null,null,null," ","2.B3.10","2.B3.10"]
[null,null,null,null,null,null,null,null,null,null," ","2.B4","2.B4"]
[null,null,null,null,null,null,null,null,null,null," ","2.B4.01","2.B4.01"]
[null,null,null,null,null,null,null,null,null,null," ","2.B4.08","2.B4.08"]
[null,null,null,null,null,null,null,null,null,null," ","2.B4.10","2.B4.10"]
[null,null,null,null,null,null,null,null,null,null," ","2.B5-1.01","2.B5-1.01"]
[null,null,null,null,null,null,null,null,null,null," ","2.B5-1.08","2.B5-1.08"]
[null,null,null,null,null,null,null,null,null,null," ","2.B5-1.10","2.B5-1.10"]
[null,null,null,null,null,null,null,null,null,null," ","2.B5-2","2.B5-2"]
[null,null,null,null,null,null,null,null,null,null," ","2.B5-2.01","2.B5-2.01"]
[null,null,null,null,null,null,null,null,null,null," ","2.B5-2.08","2.B5-2.08"]
[null,null,null,null,null,null,null,null,null,null," ","2.B5-2.10","2.B5-2.10"]
[null,null,null,null,null,null,null,null,null,null," ","2.B5-3","2.B5-3"]
[null,null,null,null,null,null,null,null,null,null," ","2.B5-3.01","2.B5-3.01"]
[null,null,null,null,null,null,null,null,null,null," ","2.B5-3.08","2.B5-3.08"]
[null,null,null,null,null,null,null,null,null,null," ","2.B5-3.10","2.B5-3.10"]
[null,null,null,null,null,null,null,null,null,null," ","2.B7.08","2.B7.08"]
[null,null,null,null,null,null,null,null,null,null," ","2.I","2.I"]
[null,null,null,null,null,null,null,null,null,null," ","2.II","2.II"]
[null,null,null,null,null,null,null,null,null,null," ","2.III","2.III"]
[null,null,null,null,null,null,null,null,null,null," ","2M.08","2M.08"]
[null,null,null,null,null,null,null,null,null,null," ","2M.101.03","2M.101.03"]
[null,null,null,null,null,null,null,null,null,null," ","2M.101.04","2M.101.04"]
[null,null,null,null,null,null,null,null,null,null," ","2M.12","2M.12"]
[null,null,null,null,null,null,null,null,null,null," ","2M.12.01","2M.12.01"]
[null,null,null,null,null,null,null,null,null,null," ","2M.12.02","2M.12.02"]
[null,null,null,null,null,null,null,null,null,null," ","2M.74","2M.74"]
[null,null,null,null,null,null,null,null,null,null," ","2M.74.01","2M.74.01"]
[null,null,null,null,null,null,null,null,null,null," ","2M.74.03","2M.74.03"]
[null,null,null,null,null,null,null,null,null,null," ","2M.840.00","2M.840.00"]
[null,null,null,null,null,null,null,null,null,null," ","2M.840.01","2M.840.01"]
[null,null,null,null,null,null,null,null,null,null," ","2M.840.03","2M.840.03"]
[null,null,null,null,null,null,null,null,null,null," ","2M.840.06","2M.840.06"]
[null,null,null,null,null,null,null,null,null,null," ","2M.840.08","2M.840.08"]
[null,null,null,null,null,null,null,null,null,null," ","2M.840.09","2M.840.09"]
[null,null,null,null,null,null,null,null,null,null," ","2M.840.10","2M.840.10"]
[null,null,null,null,null,null,null,null,null,null," ","2M.85","2M.85"]
[null,null,null,null,null,null,null,null,null,null," ","2M.85.01","2M.85.01"]
[null,null,null,null,null,null,null,null,null,null," ","2M.85.02","2M.85.02"]
[null,null,null,null,null,null,null,null,null,null," ","2M.85.03","2M.85.03"]
[null,null,null,null,null,null,null,null,null,null," ","2M.85.04","2M.85.04"]
[null,null,null,null,null,null,null,null,null,null," ","2M.85.05","2M.85.05"]
[null,null,null,null,null,null,null,null,null,null," ","2M.85.06","2M.85.06"]
[null,null,null,null,null,null,null,null,null,null," ","2M.85.07","2M.85.07"]
[null,null,null,null,null,null,null,null,null,null," ","2M.85.08","2M.85.08"]
[null,null,null,null,null,null,null,null,null,null," ","2.VI","2.VI"]
[null,null,null,null,null,null,null,null,null,null," ","2.VIII","2.VIII"]
[null,null,null,null,null,null,null,null,null,null," ","2.XII","2.XII"]
[null,null,null,null,null,null,null,null,null,null," ","20","20"]
[null,null,null,null,null,null,null,null,null,null," ","20.I","20.I"]
[null,null,null,null,null,null,null,null,null,null," ","20.II","20.II"]
[null,null,null,null,null,null,null,null,null,null," ","20.III",{"$f":"IF($B$7=\"ETE\",K1095,L1095)","v":"20.III"}]
[null,null,null,null,null,null,null,null,null,null," ","20.IX","20.IX"]
[null,null,null,null,null,null,null,null,null,null," ","20.VI","20.VI"]
[null,null,null,null,null,null,null,null,null,null," ","20.10.2001","20.10.2001"]
[null,null,null,null,null,null,null,null,null,null," ","20.10.2002","20.10.2002"]
[null,null,null,null,null,null,null,null,null,null," ","20.8.2001","20.8.2001"]
[null,null,null,null,null,null,null,null,null,null," ","20.8.2002","20.8.2002"]
[null,null,null,null,null,null,null,null,null,null," ","21","21"]
[null,null,null,null,null,null,null,null,null,null," ","21.I","21.I"]
[null,null,null,null,null,null,null,null,null,null," ","21.VIII","21.VIII"]
[null,null,null,null,null,null,null,null,null,null," ","21.X","21.X"]
[null,null,null,null,null,null,null,null,null,null," ","22","22"]
[null,null,null,null,null,null,null,null,null,null," ","22.I","22.I"]
[null,null,null,null,null,null,null,null,null,null," ","22.IX","22.IX"]
[null,null,null,null,null,null,null,null,null,null," ","22.VIII","22.VIII"]
[null,null,null,null,null,null,null,null,null,null," ","22.X","22.X"]
[null,null,null,null,null,null,null,null,null,null," ","23","23"]
[null,null,null,null,null,null,null,null,null,null," ","23.I","23.I"]
[null,null,null,null,null,null,null,null,null,null," ","23.VIII","23.VIII"]
[null,null,null,null,null,null,null,null,null,null," ","23.X","23.X"]
[null,null,null,null,null,null,null,null,null,null," ","24","24"]
[null,null,null,null,null,null,null,null,null,null," ","24.I","24.I"]
[null,null,null,null,null,null,null,null,null,null," ","24.VIII","24.VIII"]
[null,null,null,null,null,null,null,null,null,null," ","24.X","24.X"]
[null,null,null,null,null,null,null,null,null,null," ","25","25"]
[null,null,null,null,null,null,null,null,null,null," ","25.I","25.I"]
[null,null,null,null,null,null,null,null,null,null," ","25.II","25.II"]
[null,null,null,null,null,null,null,null,null,null," ","25.III","25.III"]
[null,null,null,null,null,null,null,null,null,null," ","25.V","25.V"]
[null,null,null,null,null,null,null,null,null,null," ","25.VI","25.VI"]
[null,null,null,null,null,null,null,null,null,null," ","25.VIII","25.VIII"]
[null,null,null,null,null,null,null,null,null,null," ","2.51.01","2.51.01"]
[null,null,null,null,null,null,null,null,null,null," ","2.51.02","2.51.02"]
[null,null,null,null,null,null,null,null,null,null," ","2.51.03","2.51.03"]
[null,null,null,null,null,null,null,null,null,null," ","2.51.04","2.51.04"]
[null,null,null,null,null,null,null,null,null,null," ","2.51.05","2.51.05"]
[null,null,null,null,null,null,null,null,null,null," ","2.51.06","2.51.06"]
[null,null,null,null,null,null,null,null,null,null," ","2.51.07","2.51.07"]
[null,null,null,null,null,null,null,null,null,null," ","2.51.08","2.51.08"]
[null,null,null,null,null,null,null,null,null,null," ","2.51.10","2.51.10"]
[null,null,null,null,null,null,null,null,null,null," ","2.51.11","2.51.11"]
[null,null,null,null,null,null,null,null,null,null," ","2.51.12","2.51.12"]
[null,null,null,null,null,null,null,null,null,null," ","2.51.15","2.51.15"]
[null,null,null,null,null,null,null,null,null,null," ","2.51.16","2.51.16"]
[null,null,null,null,null,null,null,null,null,null," ","2.51.17","2.51.17"]
[null,null,null,null,null,null,null,null,null,null," ","25.16","25.16"]
[null,null,null,null,null,null,null,null,null,null," ","25.17","25.17"]
[null,null,null,null,null,null,null,null,null,null," ","25.18","25.18"]
[null,null,null,null,null,null,null,null,null,null," ","25.19","25.19"]
[null,null,null,null,null,null,null,null,null,null," ","2.52.02","2.52.02"]
[null,null,null,null,null,null,null,null,null,null," ","2.52.03","2.52.03"]
[null,null,null,null,null,null,null,null,null,null," ","2.52.06","2.52.06"]
[null,null,null,null,null,null,null,null,null,null," ","2.52.08","2.52.08"]
[null,null,null,null,null,null,null,null,null,null," ","2.52.12","2.52.12"]
[null,null,null,null,null,null,null,null,null,null," ","2.52.15","2.52.15"]
[null,null,null,null,null,null,null,null,null,null," ","2.53.01","2.53.01"]
[null,null,null,null,null,null,null,null,null,null," ","2.53.02","2.53.02"]
[null,null,null,null,null,null,null,null,null,null," ","2.53.03","2.53.03"]
[null,null,null,null,null,null,null,null,null,null," ","2.53.04","2.53.04"]
[null,null,null,null,null,null,null,null,null,null," ","2.53.05","2.53.05"]
[null,null,null,null,null,null,null,null,null,null," ","2.53.06","2.53.06"]
[null,null,null,null,null,null,null,null,null,null," ","2.53.07","2.53.07"]
[null,null,null,null,null,null,null,null,null,null," ","2.53.08","2.53.08"]
[null,null,null,null,null,null,null,null,null,null," ","2.53.10","2.53.10"]
[null,null,null,null,null,null,null,null,null,null," ","2.53.12",{"$f":"IF($B$7=\"ETE\",K1159,L1159)","v":"2.53.12"}]
[null,null,null,null,null,null,null,null,null,null," ","2.53.13","2.53.13"]
[null,null,null,null,null,null,null,null,null,null," ","2.53.15","2.53.15"]
[null,null,null,null,null,null,null,null,null,null," ","2.53.17","2.53.17"]
[null,null,null,null,null,null,null,null,null,null," ","2.54.01","2.54.01"]
[null,null,null,null,null,null,null,null,null,null," ","2.54.02","2.54.02"]
[null,null,null,null,null,null,null,null,null,null," ","2.54.03","2.54.03"]
[null,null,null,null,null,null,null,null,null,null," ","2.54.05","2.54.05"]
[null,null,null,null,null,null,null,null,null,null," ","2.54.06","2.54.06"]
[null,null,null,null,null,null,null,null,null,null," ","2.54.07","2.54.07"]
[null,null,null,null,null,null,null,null,null,null," ","2.54.08","2.54.08"]
[null,null,null,null,null,null,null,null,null,null," ","2.54.09","2.54.09"]
[null,null,null,null,null,null,null,null,null,null," ","2.54.09.01","2.54.09.01"]
[null,null,null,null,null,null,null,null,null,null," ","2.54.09.08","2.54.09.08"]
[null,null,null,null,null,null,null,null,null,null," ","2.54.10","2.54.10"]
[null,null,null,null,null,null,null,null,null,null," ","2.54.10.4","2.54.10.4"]
[null,null,null,null,null,null,null,null,null,null," ","2.54.11","2.54.11"]
[null,null,null,null,null,null,null,null,null,null," ","2.54.12","2.54.12"]
[null,null,null,null,null,null,null,null,null,null," ","2.54.13","2.54.13"]
[null,null,null,null,null,null,null,null,null,null," ","2.54.14","2.54.14"]
[null,null,null,null,null,null,null,null,null,null," ","2.54.15","2.54.15"]
[null,null,null,null,null,null,null,null,null,null," ","2.54.16","2.54.16"]
[null,null,null,null,null,null,null,null,null,null," ","2.55.01","2.55.01"]
[null,null,null,null,null,null,null,null,null,null," ","2.55.07","2.55.07"]
[null,null,null,null,null,null,null,null,null,null," ","2.55.08","2.55.08"]
[null,null,null,null,null,null,null,null,null,null," ","2.55.10","2.55.10"]
[null,null,null,null,null,null,null,null,null,null," ","2.56.08","2.56.08"]
[null,null,null,null,null,null,null,null,null,null," ","2.57.01","2.57.01"]
[null,null,null,null,null,null,null,null,null,null," ","2.57.02","2.57.02"]
[null,null,null,null,null,null,null,null,null,null," ","2.57.08","2.57.08"]
[null,null,null,null,null,null,null,null,null,null," ","2.57.09","2.57.09"]
[null,null,null,null,null,null,null,null,null,null," ","2.58.02","2.58.02"]
[null,null,null,null,null,null,null,null,null,null," ","2.58.08","2.58.08"]
[null,null,null,null,null,null,null,null,null,null," ","2.58.10.8","2.58.10.8"]
[null,null,null,null,null,null,null,null,null,null," ","2.58.17","2.58.17"]
[null,null,null,null,null,null,null,null,null,null," ","2.59.1.01","2.59.1.01"]
[null,null,null,null,null,null,null,null,null,null," ","2.59.1.02","2.59.1.02"]
[null,null,null,null,null,null,null,null,null,null," ","2.59.1.06","2.59.1.06"]
[null,null,null,null,null,null,null,null,null,null," ","2.59.1.08","2.59.1.08"]
[null,null,null,null,null,null,null,null,null,null," ","2.59.1.10","2.59.1.10"]
[null,null,null,null,null,null,null,null,null,null," ","2.59.1.12","2.59.1.12"]
[null,null,null,null,null,null,null,null,null,null," ","2.59.1.15","2.59.1.15"]
[null,null,null,null,null,null,null,null,null,null," ","2.59.3.01","2.59.3.01"]
[null,null,null,null,null,null,null,null,null,null," ","2.59.3.02","2.59.3.02"]
[null,null,null,null,null,null,null,null,null,null," ","2.59.3.08","2.59.3.08"]
[null,null,null,null,null,null,null,null,null,null," ","2.59.3.10","2.59.3.10"]
[null,null,null,null,null,null,null,null,null,null," ","26.I","26.I"]
[null,null,null,null,null,null,null,null,null,null," ","26.II","26.II"]
[null,null,null,null,null,null,null,null,null,null," ","26.III","26.III"]
[null,null,null,null,null,null,null,null,null,null," ","26.IV","26.IV"]
[null,null,null,null,null,null,null,null,null,null," ","26.V","26.V"]
[null,null,null,null,null,null,null,null,null,null," ","26.VI","26.VI"]
[null,null,null,null,null,null,null,null,null,null," ","2.60.01","2.60.01"]
[null,null,null,null,null,null,null,null,null,null," ","2.60.02","2.60.02"]
[null,null,null,null,null,null,null,null,null,null," ","2.60.03","2.60.03"]
[null,null,null,null,null,null,null,null,null,null," ","2.60.04","2.60.04"]
[null,null,null,null,null,null,null,null,null,null," ","2.60.05","2.60.05"]
[null,null,null,null,null,null,null,null,null,null," ","2.60.06","2.60.06"]
[null,null,null,null,null,null,null,null,null,null," ","2.60.08","2.60.08"]
[null,null,null,null,null,null,null,null,null,null," ","2.60.10","2.60.10"]
[null,null,null,null,null,null,null,null,null,null," ","2.60.11","2.60.11"]
[null,null,null,null,null,null,null,null,null,null," ","2.61.02","2.61.02"]
[null,null,null,null,null,null,null,null,null,null," ","2.61.06","2.61.06"]
[null,null,null,null,null,null,null,null,null,null," ","2.61.07","2.61.07"]
[null,null,null,null,null,null,null,null,null,null," ","2.61.08",{"$f":"IF($B$7=\"ETE\",K1223,L1223)","v":"2.61.08"}]
[null,null,null,null,null,null,null,null,null,null," ","26.1.08.1","26.1.08.1"]
[null,null,null,null,null,null,null,null,null,null," ","26.1.08.2","26.1.08.2"]
[null,null,null,null,null,null,null,null,null,null," ","2.61.10","2.61.10"]
[null,null,null,null,null,null,null,null,null,null," ","2.61.11","2.61.11"]
[null,null,null,null,null,null,null,null,null,null," ","2.61.16","2.61.16"]
[null,null,null,null,null,null,null,null,null,null," ","26.1.2001","26.1.2001"]
[null,null,null,null,null,null,null,null,null,null," ","26.1.2006","26.1.2006"]
[null,null,null,null,null,null,null,null,null,null," ","26.1.2007","26.1.2007"]
[null,null,null,null,null,null,null,null,null,null," ","26.1.2009","26.1.2009"]
[null,null,null,null,null,null,null,null,null,null," ","26.1.2010","26.1.2010"]
[null,null,null,null,null,null,null,null,null,null," ","2.62.01","2.62.01"]
[null,null,null,null,null,null,null,null,null,null," ","26.2.2001","26.2.2001"]
[null,null,null,null,null,null,null,null,null,null," ","26.2.2008","26.2.2008"]
[null,null,null,null,null,null,null,null,null,null," ","26.2.2009","26.2.2009"]
[null,null,null,null,null,null,null,null,null,null," ","2.63.01","2.63.01"]
[null,null,null,null,null,null,null,null,null,null," ","26.3.2001","26.3.2001"]
[null,null,null,null,null,null,null,null,null,null," ","26.3.2008","26.3.2008"]
[null,null,null,null,null,null,null,null,null,null," ","2.64.01","2.64.01"]
[null,null,null,null,null,null,null,null,null,null," ","2.64.02","2.64.02"]
[null,null,null,null,null,null,null,null,null,null," ","2.64.04","2.64.04"]
[null,null,null,null,null,null,null,null,null,null," ","2.64.06","2.64.06"]
[null,null,null,null,null,null,null,null,null,null," ","2.64.08","2.64.08"]
[null,null,null,null,null,null,null,null,null,null," ","2.64.10","2.64.10"]
[null,null,null,null,null,null,null,null,null,null," ","2.64.12","2.64.12"]
[null,null,null,null,null,null,null,null,null,null," ","26.4.2001","26.4.2001"]
[null,null,null,null,null,null,null,null,null,null," ","26.4.2008","26.4.2008"]
[null,null,null,null,null,null,null,null,null,null," ","26.5.2001","26.5.2001"]
[null,null,null,null,null,null,null,null,null,null," ","26.5.2007","26.5.2007"]
[null,null,null,null,null,null,null,null,null,null," ","26.5.2008","26.5.2008"]
[null,null,null,null,null,null,null,null,null,null," ","26.6.2001","26.6.2001"]
[null,null,null,null,null,null,null,null,null,null," ","26.6.2007","26.6.2007"]
[null,null,null,null,null,null,null,null,null,null," ","26.6.2008","26.6.2008"]
[null,null,null,null,null,null,null,null,null,null," ","2.67.02","2.67.02"]
[null,null,null,null,null,null,null,null,null,null," ","2.67.03","2.67.03"]
[null,null,null,null,null,null,null,null,null,null," ","2.67.04","2.67.04"]
[null,null,null,null,null,null,null,null,null,null," ","2.67.06","2.67.06"]
[null,null,null,null,null,null,null,null,null,null," ","2.67.08","2.67.08"]
[null,null,null,null,null,null,null,null,null,null," ","2.67.10","2.67.10"]
[null,null,null,null,null,null,null,null,null,null," ","2.67.12","2.67.12"]
[null,null,null,null,null,null,null,null,null,null," ","2.69.07","2.69.07"]
[null,null,null,null,null,null,null,null,null,null," ","2.69.07/B","2.69.07/B"]
[null,null,null,null,null,null,null,null,null,null," ","2.69.10","2.69.10"]
[null,null,null,null,null,null,null,null,null,null," ","2.69.14","2.69.14"]
[null,null,null,null,null,null,null,null,null,null," ","27.I","27.I"]
[null,null,null,null,null,null,null,null,null,null," ","27.II","27.II"]
[null,null,null,null,null,null,null,null,null,null," ","2.70.01","2.70.01"]
[null,null,null,null,null,null,null,null,null,null," ","2.70.02","2.70.02"]
[null,null,null,null,null,null,null,null,null,null," ","2.70.03.01","2.70.03.01"]
[null,null,null,null,null,null,null,null,null,null," ","2.70.03.08","2.70.03.08"]
[null,null,null,null,null,null,null,null,null,null," ","2.70.03.10","2.70.03.10"]
[null,null,null,null,null,null,null,null,null,null," ","2.70.06","2.70.06"]
[null,null,null,null,null,null,null,null,null,null," ","2.70.08.1","2.70.08.1"]
[null,null,null,null,null,null,null,null,null,null," ","2.70.08.2","2.70.08.2"]
[null,null,null,null,null,null,null,null,null,null," ","2.70.09","2.70.09"]
[null,null,null,null,null,null,null,null,null,null," ","2.70.10.1","2.70.10.1"]
[null,null,null,null,null,null,null,null,null,null," ","2.70.10.2","2.70.10.2"]
[null,null,null,null,null,null,null,null,null,null," ","27.1.2001","27.1.2001"]
[null,null,null,null,null,null,null,null,null,null," ","27.2.2001","27.2.2001"]
[null,null,null,null,null,null,null,null,null,null," ","27.2.2008","27.2.2008"]
[null,null,null,null,null,null,null,null,null,null," ","2.74.01","2.74.01"]
[null,null,null,null,null,null,null,null,null,null," ","2.74.03","2.74.03"]
[null,null,null,null,null,null,null,null,null,null," ","2.75.01","2.75.01"]
[null,null,null,null,null,null,null,null,null,null," ","2.75.08","2.75.08"]
[null,null,null,null,null,null,null,null,null,null," ","2.79.01",{"$f":"IF($B$7=\"ETE\",K1287,L1287)","v":"2.79.01"}]
[null,null,null,null,null,null,null,null,null,null," ","2.79.02","2.79.02"]
[null,null,null,null,null,null,null,null,null,null," ","2.79.08","2.79.08"]
[null,null,null,null,null,null,null,null,null,null," ","2.79.10","2.79.10"]
[null,null,null,null,null,null,null,null,null,null," ","28","28"]
[null,null,null,null,null,null,null,null,null,null," ","28.I","28.I"]
[null,null,null,null,null,null,null,null,null,null," ","28.II","28.II"]
[null,null,null,null,null,null,null,null,null,null," ","28.8.2001","28.8.2001"]
[null,null,null,null,null,null,null,null,null,null," ","28.8.2003","28.8.2003"]
[null,null,null,null,null,null,null,null,null,null," ","29","29"]
[null,null,null,null,null,null,null,null,null,null," ","29.I","29.I"]
[null,null,null,null,null,null,null,null,null,null," ","29.VIII","29.VIII"]
[null,null,null,null,null,null,null,null,null,null," ","29.X","29.X"]
[null,null,null,null,null,null,null,null,null,null," ","2.90.01","2.90.01"]
[null,null,null,null,null,null,null,null,null,null," ","2.90.08","2.90.08"]
[null,null,null,null,null,null,null,null,null,null," ","2.90.10","2.90.10"]
[null,null,null,null,null,null,null,null,null,null," ","29.02","29.02"]
[null,null,null,null,null,null,null,null,null,null," ","3","3"]
[null,null,null,null,null,null,null,null,null,null," ","3.A1","3.A1"]
[null,null,null,null,null,null,null,null,null,null," ","3.A10","3.A10"]
[null,null,null,null,null,null,null,null,null,null," ","3.A10.01","3.A10.01"]
[null,null,null,null,null,null,null,null,null,null," ","3.A10.08","3.A10.08"]
[null,null,null,null,null,null,null,null,null,null," ","3.A10.08.01","3.A10.08.01"]
[null,null,null,null,null,null,null,null,null,null," ","3.A1.01","3.A1.01"]
[null,null,null,null,null,null,null,null,null,null," ","3.A10.10","3.A10.10"]
[null,null,null,null,null,null,null,null,null,null," ","3.A10.10.01","3.A10.10.01"]
[null,null,null,null,null,null,null,null,null,null," ","3.A10-2","3.A10-2"]
[null,null,null,null,null,null,null,null,null,null," ","3.A10-2.01","3.A10-2.01"]
[null,null,null,null,null,null,null,null,null,null," ","3.A10-2.02","3.A10-2.02"]
[null,null,null,null,null,null,null,null,null,null," ","3.A1.08","3.A1.08"]
[null,null,null,null,null,null,null,null,null,null," ","3.A1.10","3.A1.10"]
[null,null,null,null,null,null,null,null,null,null," ","3.A12A","3.A12A"]
[null,null,null,null,null,null,null,null,null,null," ","3.A12A.08","3.A12A.08"]
[null,null,null,null,null,null,null,null,null,null," ","3.A12A.10","3.A12A.10"]
[null,null,null,null,null,null,null,null,null,null," ","3.A12B","3.A12B"]
[null,null,null,null,null,null,null,null,null,null," ","3.A12B.01","3.A12B.01"]
[null,null,null,null,null,null,null,null,null,null," ","3.A16-1","3.A16-1"]
[null,null,null,null,null,null,null,null,null,null," ","3.A16-1.01","3.A16-1.01"]
[null,null,null,null,null,null,null,null,null,null," ","3.A16-1.08","3.A16-1.08"]
[null,null,null,null,null,null,null,null,null,null," ","3.A16-2","3.A16-2"]
[null,null,null,null,null,null,null,null,null,null," ","3.A16-2.01","3.A16-2.01"]
[null,null,null,null,null,null,null,null,null,null," ","3.A21.01","3.A21.01"]
[null,null,null,null,null,null,null,null,null,null," ","3.A21.08","3.A21.08"]
[null,null,null,null,null,null,null,null,null,null," ","3.A21.10","3.A21.10"]
[null,null,null,null,null,null,null,null,null,null," ","3.A23A","3.A23A"]
[null,null,null,null,null,null,null,null,null,null," ","3.A23A.05","3.A23A.05"]
[null,null,null,null,null,null,null,null,null,null," ","3.A23A.08","3.A23A.08"]
[null,null,null,null,null,null,null,null,null,null," ","3.A23A.10","3.A23A.10"]
[null,null,null,null,null,null,null,null,null,null," ","3.A23B","3.A23B"]
[null,null,null,null,null,null,null,null,null,null," ","3.A23B.01","3.A23B.01"]
[null,null,null,null,null,null,null,null,null,null," ","3.A23B.08","3.A23B.08"]
[null,null,null,null,null,null,null,null,null,null," ","3.A23B.10","3.A23B.10"]
[null,null,null,null,null,null,null,null,null,null," ","3.A23C","3.A23C"]
[null,null,null,null,null,null,null,null,null,null," ","3.A23C.01","3.A23C.01"]
[null,null,null,null,null,null,null,null,null,null," ","3.A23C.08","3.A23C.08"]
[null,null,null,null,null,null,null,null,null,null," ","3.A23C.10","3.A23C.10"]
[null,null,null,null,null,null,null,null,null,null," ","3.A23.00","3.A23.00"]
[null,null,null,null,null,null,null,null,null,null," ","3.A23.01","3.A23.01"]
[null,null,null,null,null,null,null,null,null,null," ","3.A23.03","3.A23.03"]
[null,null,null,null,null,null,null,null,null,null," ","3.A23.05","3.A23.05"]
[null,null,null,null,null,null,null,null,null,null," ","3.A23.06","3.A23.06"]
[null,null,null,null,null,null,null,null,null,null," ","3.A23.08","3.A23.08"]
[null,null,null,null,null,null,null,null,null,null," ","3.A23.09","3.A23.09"]
[null,null,null,null,null,null,null,null,null,null," ","3.A23.10","3.A23.10"]
[null,null,null,null,null,null,null,null,null,null," ","3.A25",{"$f":"IF($B$7=\"ETE\",K1351,L1351)","v":"3.A25"}]
[null,null,null,null,null,null,null,null,null,null," ","3.A25.08","3.A25.08"]
[null,null,null,null,null,null,null,null,null,null," ","3.A25.09","3.A25.09"]
[null,null,null,null,null,null,null,null,null,null," ","3.A25.10","3.A25.10"]
[null,null,null,null,null,null,null,null,null,null," ","3.A3","3.A3"]
[null,null,null,null,null,null,null,null,null,null," ","3.A3.01","3.A3.01"]
[null,null,null,null,null,null,null,null,null,null," ","3.A4","3.A4"]
[null,null,null,null,null,null,null,null,null,null," ","3.A4.01","3.A4.01"]
[null,null,null,null,null,null,null,null,null,null," ","3.A4.08","3.A4.08"]
[null,null,null,null,null,null,null,null,null,null," ","3.A4.10","3.A4.10"]
[null,null,null,null,null,null,null,null,null,null," ","3.A5","3.A5"]
[null,null,null,null,null,null,null,null,null,null," ","3.A5.01","3.A5.01"]
[null,null,null,null,null,null,null,null,null,null," ","3.A5.08","3.A5.08"]
[null,null,null,null,null,null,null,null,null,null," ","3.A5.10","3.A5.10"]
[null,null,null,null,null,null,null,null,null,null," ","3.A7","3.A7"]
[null,null,null,null,null,null,null,null,null,null," ","3.A7.01","3.A7.01"]
[null,null,null,null,null,null,null,null,null,null," ","3.A7.10","3.A7.10"]
[null,null,null,null,null,null,null,null,null,null," ","3.A8","3.A8"]
[null,null,null,null,null,null,null,null,null,null," ","3.A8.01","3.A8.01"]
[null,null,null,null,null,null,null,null,null,null," ","3.A8.10","3.A8.10"]
[null,null,null,null,null,null,null,null,null,null," ","3.A9","3.A9"]
[null,null,null,null,null,null,null,null,null,null," ","3.A9.01","3.A9.01"]
[null,null,null,null,null,null,null,null,null,null," ","3.A9.02","3.A9.02"]
[null,null,null,null,null,null,null,null,null,null," ","3.A9.08","3.A9.08"]
[null,null,null,null,null,null,null,null,null,null," ","3.A9.10","3.A9.10"]
[null,null,null,null,null,null,null,null,null,null," ","3.A9.12","3.A9.12"]
[null,null,null,null,null,null,null,null,null,null," ","3.A9.14","3.A9.14"]
[null,null,null,null,null,null,null,null,null,null," ","3.B1","3.B1"]
[null,null,null,null,null,null,null,null,null,null," ","3.B10.08","3.B10.08"]
[null,null,null,null,null,null,null,null,null,null," ","3.B1.01","3.B1.01"]
[null,null,null,null,null,null,null,null,null,null," ","3.B1.08","3.B1.08"]
[null,null,null,null,null,null,null,null,null,null," ","3.B1.10","3.B1.10"]
[null,null,null,null,null,null,null,null,null,null," ","3.B13A","3.B13A"]
[null,null,null,null,null,null,null,null,null,null," ","3.B13A.01","3.B13A.01"]
[null,null,null,null,null,null,null,null,null,null," ","3.B13A.02","3.B13A.02"]
[null,null,null,null,null,null,null,null,null,null," ","3.B13A.08","3.B13A.08"]
[null,null,null,null,null,null,null,null,null,null," ","3.B13B","3.B13B"]
[null,null,null,null,null,null,null,null,null,null," ","3.B13B.01","3.B13B.01"]
[null,null,null,null,null,null,null,null,null,null," ","3.B13B.08","3.B13B.08"]
[null,null,null,null,null,null,null,null,null,null," ","3.B13B.09","3.B13B.09"]
[null,null,null,null,null,null,null,null,null,null," ","3.B13B.10","3.B13B.10"]
[null,null,null,null,null,null,null,null,null,null," ","3.B3","3.B3"]
[null,null,null,null,null,null,null,null,null,null," ","3.B3.01","3.B3.01"]
[null,null,null,null,null,null,null,null,null,null," ","3.B3.08","3.B3.08"]
[null,null,null,null,null,null,null,null,null,null," ","3.B3.09","3.B3.09"]
[null,null,null,null,null,null,null,null,null,null," ","3.B3.10","3.B3.10"]
[null,null,null,null,null,null,null,null,null,null," ","3.B4","3.B4"]
[null,null,null,null,null,null,null,null,null,null," ","3.B4.01","3.B4.01"]
[null,null,null,null,null,null,null,null,null,null," ","3.B4.08","3.B4.08"]
[null,null,null,null,null,null,null,null,null,null," ","3.B4.10","3.B4.10"]
[null,null,null,null,null,null,null,null,null,null," ","3.B5-1.01","3.B5-1.01"]
[null,null,null,null,null,null,null,null,null,null," ","3.B5-1.08","3.B5-1.08"]
[null,null,null,null,null,null,null,null,null,null," ","3.B5-1.10","3.B5-1.10"]
[null,null,null,null,null,null,null,null,null,null," ","3.B5-2","3.B5-2"]
[null,null,null,null,null,null,null,null,null,null," ","3.B5-2.01","3.B5-2.01"]
[null,null,null,null,null,null,null,null,null,null," ","3.B5-2.08","3.B5-2.08"]
[null,null,null,null,null,null,null,null,null,null," ","3.B5-2.10","3.B5-2.10"]
[null,null,null,null,null,null,null,null,null,null," ","3.B5-3","3.B5-3"]
[null,null,null,null,null,null,null,null,null,null," ","3.B5-3.01","3.B5-3.01"]
[null,null,null,null,null,null,null,null,null,null," ","3.B5-3.08","3.B5-3.08"]
[null,null,null,null,null,null,null,null,null,null," ","3.B5-3.10","3.B5-3.10"]
[null,null,null,null,null,null,null,null,null,null," ","3.B7.08","3.B7.08"]
[null,null,null,null,null,null,null,null,null,null," ","3.I","3.I"]
[null,null,null,null,null,null,null,null,null,null," ","3.II","3.II"]
[null,null,null,null,null,null,null,null,null,null," ","3.III",{"$f":"IF($B$7=\"ETE\",K1415,L1415)","v":"3.III"}]
[null,null,null,null,null,null,null,null,null,null," ","3.IV","3.IV"]
[null,null,null,null,null,null,null,null,null,null," ","3.V","3.V"]
[null,null,null,null,null,null,null,null,null,null," ","3.VI","3.VI"]
[null,null,null,null,null,null,null,null,null,null," ","3.VII","3.VII"]
[null,null,null,null,null,null,null,null,null,null," ","3.VIII","3.VIII"]
[null,null,null,null,null,null,null,null,null,null," ","3.X","3.X"]
[null,null,null,null,null,null,null,null,null,null," ","3.XI","3.XI"]
[null,null,null,null,null,null,null,null,null,null," ","3.XII","3.XII"]
[null,null,null,null,null,null,null,null,null,null," ","30","30"]
[null,null,null,null,null,null,null,null,null,null," ","30.I","30.I"]
[null,null,null,null,null,null,null,null,null,null," ","30.III","30.III"]
[null,null,null,null,null,null,null,null,null,null," ","30.V","30.V"]
[null,null,null,null,null,null,null,null,null,null," ","30.VI","30.VI"]
[null,null,null,null,null,null,null,null,null,null," ","30.VIII","30.VIII"]
[null,null,null,null,null,null,null,null,null,null," ","3.01.01","3.01.01"]
[null,null,null,null,null,null,null,null,null,null," ","3.01.02","3.01.02"]
[null,null,null,null,null,null,null,null,null,null," ","30.10.2001","30.10.2001"]
[null,null,null,null,null,null,null,null,null,null," ","30.10.2003","30.10.2003"]
[null,null,null,null,null,null,null,null,null,null," ","30.10.2005","30.10.2005"]
[null,null,null,null,null,null,null,null,null,null," ","30.10.2006","30.10.2006"]
[null,null,null,null,null,null,null,null,null,null," ","3.01.03","3.01.03"]
[null,null,null,null,null,null,null,null,null,null," ","3.01.04","3.01.04"]
[null,null,null,null,null,null,null,null,null,null," ","3.01.05","3.01.05"]
[null,null,null,null,null,null,null,null,null,null," ","3.01.06","3.01.06"]
[null,null,null,null,null,null,null,null,null,null," ","3.01.07","3.01.07"]
[null,null,null,null,null,null,null,null,null,null," ","3.01.08","3.01.08"]
[null,null,null,null,null,null,null,null,null,null," ","3.01.10","3.01.10"]
[null,null,null,null,null,null,null,null,null,null," ","3.01.11","3.01.11"]
[null,null,null,null,null,null,null,null,null,null," ","3.01.12","3.01.12"]
[null,null,null,null,null,null,null,null,null,null," ","3.01.15","3.01.15"]
[null,null,null,null,null,null,null,null,null,null," ","3.01.16","3.01.16"]
[null,null,null,null,null,null,null,null,null,null," ","3.01.17","3.01.17"]
[null,null,null,null,null,null,null,null,null,null," ","3.02.01","3.02.01"]
[null,null,null,null,null,null,null,null,null,null," ","3.02.02","3.02.02"]
[null,null,null,null,null,null,null,null,null,null," ","3.02.03","3.02.03"]
[null,null,null,null,null,null,null,null,null,null," ","3.02.06","3.02.06"]
[null,null,null,null,null,null,null,null,null,null," ","3.02.08","3.02.08"]
[null,null,null,null,null,null,null,null,null,null," ","3.02.12","3.02.12"]
[null,null,null,null,null,null,null,null,null,null," ","3.02.15","3.02.15"]
[null,null,null,null,null,null,null,null,null,null," ","3.03.01","3.03.01"]
[null,null,null,null,null,null,null,null,null,null," ","3.03.02","3.03.02"]
[null,null,null,null,null,null,null,null,null,null," ","3.03.03","3.03.03"]
[null,null,null,null,null,null,null,null,null,null," ","3.03.04","3.03.04"]
[null,null,null,null,null,null,null,null,null,null," ","3.03.05","3.03.05"]
[null,null,null,null,null,null,null,null,null,null," ","3.03.06","3.03.06"]
[null,null,null,null,null,null,null,null,null,null," ","3.03.07","3.03.07"]
[null,null,null,null,null,null,null,null,null,null," ","3.03.08","3.03.08"]
[null,null,null,null,null,null,null,null,null,null," ","3.03.10","3.03.10"]
[null,null,null,null,null,null,null,null,null,null," ","3.03.12","3.03.12"]
[null,null,null,null,null,null,null,null,null,null," ","3.03.13","3.03.13"]
[null,null,null,null,null,null,null,null,null,null," ","3.03.15","3.03.15"]
[null,null,null,null,null,null,null,null,null,null," ","3.03.17","3.03.17"]
[null,null,null,null,null,null,null,null,null,null," ","3.04.01","3.04.01"]
[null,null,null,null,null,null,null,null,null,null," ","3.04.02","3.04.02"]
[null,null,null,null,null,null,null,null,null,null," ","3.04.03","3.04.03"]
[null,null,null,null,null,null,null,null,null,null," ","3.04.05","3.04.05"]
[null,null,null,null,null,null,null,null,null,null," ","3.04.06","3.04.06"]
[null,null,null,null,null,null,null,null,null,null," ","3.04.07","3.04.07"]
[null,null,null,null,null,null,null,null,null,null," ","3.04.08","3.04.08"]
[null,null,null,null,null,null,null,null,null,null," ","3.04.09","3.04.09"]
[null,null,null,null,null,null,null,null,null,null," ","3.04.09.01","3.04.09.01"]
[null,null,null,null,null,null,null,null,null,null," ","3.04.09.08","3.04.09.08"]
[null,null,null,null,null,null,null,null,null,null," ","3.04.10","3.04.10"]
[null,null,null,null,null,null,null,null,null,null," ","3.04.10.4",{"$f":"IF($B$7=\"ETE\",K1479,L1479)","v":"3.04.10.4"}]
[null,null,null,null,null,null,null,null,null,null," ","3.04.11","3.04.11"]
[null,null,null,null,null,null,null,null,null,null," ","3.04.12","3.04.12"]
[null,null,null,null,null,null,null,null,null,null," ","3.04.13","3.04.13"]
[null,null,null,null,null,null,null,null,null,null," ","3.04.14","3.04.14"]
[null,null,null,null,null,null,null,null,null,null," ","3.04.15","3.04.15"]
[null,null,null,null,null,null,null,null,null,null," ","3.04.16","3.04.16"]
[null,null,null,null,null,null,null,null,null,null," ","3.04.17","3.04.17"]
[null,null,null,null,null,null,null,null,null,null," ","3.04.17.01","3.04.17.01"]
[null,null,null,null,null,null,null,null,null,null," ","3.04.17.06","3.04.17.06"]
[null,null,null,null,null,null,null,null,null,null," ","3.04.17.08","3.04.17.08"]
[null,null,null,null,null,null,null,null,null,null," ","3.05.01","3.05.01"]
[null,null,null,null,null,null,null,null,null,null," ","3.05.02","3.05.02"]
[null,null,null,null,null,null,null,null,null,null," ","3.05.07","3.05.07"]
[null,null,null,null,null,null,null,null,null,null," ","3.05.08","3.05.08"]
[null,null,null,null,null,null,null,null,null,null," ","3.05.10","3.05.10"]
[null,null,null,null,null,null,null,null,null,null," ","3.07.01","3.07.01"]
[null,null,null,null,null,null,null,null,null,null," ","3.07.02","3.07.02"]
[null,null,null,null,null,null,null,null,null,null," ","3.07.03","3.07.03"]
[null,null,null,null,null,null,null,null,null,null," ","3.07.04","3.07.04"]
[null,null,null,null,null,null,null,null,null,null," ","3.07.05","3.07.05"]
[null,null,null,null,null,null,null,null,null,null," ","3.07.06","3.07.06"]
[null,null,null,null,null,null,null,null,null,null," ","3.07.08","3.07.08"]
[null,null,null,null,null,null,null,null,null,null," ","3.07.09","3.07.09"]
[null,null,null,null,null,null,null,null,null,null," ","3.07.10","3.07.10"]
[null,null,null,null,null,null,null,null,null,null," ","3.08.02","3.08.02"]
[null,null,null,null,null,null,null,null,null,null," ","3.08.08","3.08.08"]
[null,null,null,null,null,null,null,null,null,null," ","3.08.10.8","3.08.10.8"]
[null,null,null,null,null,null,null,null,null,null," ","3.08.17","3.08.17"]
[null,null,null,null,null,null,null,null,null,null," ","30.8.2005","30.8.2005"]
[null,null,null,null,null,null,null,null,null,null," ","30.8.2006","30.8.2006"]
[null,null,null,null,null,null,null,null,null,null," ","3.08.803","3.08.803"]
[null,null,null,null,null,null,null,null,null,null," ","3.08.803.1","3.08.803.1"]
[null,null,null,null,null,null,null,null,null,null," ","3.08.803.3","3.08.803.3"]
[null,null,null,null,null,null,null,null,null,null," ","3.09.1.01","3.09.1.01"]
[null,null,null,null,null,null,null,null,null,null," ","3.09.1.02","3.09.1.02"]
[null,null,null,null,null,null,null,null,null,null," ","3.09.1.06","3.09.1.06"]
[null,null,null,null,null,null,null,null,null,null," ","3.09.1.08","3.09.1.08"]
[null,null,null,null,null,null,null,null,null,null," ","3.09.1.10","3.09.1.10"]
[null,null,null,null,null,null,null,null,null,null," ","3.09.1.12","3.09.1.12"]
[null,null,null,null,null,null,null,null,null,null," ","3.09.1.15","3.09.1.15"]
[null,null,null,null,null,null,null,null,null,null," ","3.09.2.01","3.09.2.01"]
[null,null,null,null,null,null,null,null,null,null," ","3.09.2.06","3.09.2.06"]
[null,null,null,null,null,null,null,null,null,null," ","3.09.2.08","3.09.2.08"]
[null,null,null,null,null,null,null,null,null,null," ","3.09.2.10","3.09.2.10"]
[null,null,null,null,null,null,null,null,null,null," ","3.09.3.01","3.09.3.01"]
[null,null,null,null,null,null,null,null,null,null," ","3.09.3.02","3.09.3.02"]
[null,null,null,null,null,null,null,null,null,null," ","3.09.3.06","3.09.3.06"]
[null,null,null,null,null,null,null,null,null,null," ","3.09.3.08","3.09.3.08"]
[null,null,null,null,null,null,null,null,null,null," ","3.09.3.10","3.09.3.10"]
[null,null,null,null,null,null,null,null,null,null," ","3.09.4.01","3.09.4.01"]
[null,null,null,null,null,null,null,null,null,null," ","3.09.4.06","3.09.4.06"]
[null,null,null,null,null,null,null,null,null,null," ","3.09.4.08","3.09.4.08"]
[null,null,null,null,null,null,null,null,null,null," ","3.09.4.10","3.09.4.10"]
[null,null,null,null,null,null,null,null,null,null," ","31","31"]
[null,null,null,null,null,null,null,null,null,null," ","31.I","31.I"]
[null,null,null,null,null,null,null,null,null,null," ","31.VIII","31.VIII"]
[null,null,null,null,null,null,null,null,null,null," ","31.X","31.X"]
[null,null,null,null,null,null,null,null,null,null," ","3.10.01","3.10.01"]
[null,null,null,null,null,null,null,null,null,null," ","3.10.02","3.10.02"]
[null,null,null,null,null,null,null,null,null,null," ","3.10.03","3.10.03"]
[null,null,null,null,null,null,null,null,null,null," ","3.10.04","3.10.04"]
[null,null,null,null,null,null,null,null,null,null," ","3.10.05","3.10.05"]
[null,null,null,null,null,null,null,null,null,null," ","3.10.06","3.10.06"]
[null,null,null,null,null,null,null,null,null,null," ","3.10.08",{"$f":"IF($B$7=\"ETE\",K1543,L1543)","v":"3.10.08"}]
[null,null,null,null,null,null,null,null,null,null," ","3.10.10","3.10.10"]
[null,null,null,null,null,null,null,null,null,null," ","3.10.11","3.10.11"]
[null,null,null,null,null,null,null,null,null,null," ","3.10.12","3.10.12"]
[null,null,null,null,null,null,null,null,null,null," ","3.10.2001","3.10.2001"]
[null,null,null,null,null,null,null,null,null,null," ","3.10.2002","3.10.2002"]
[null,null,null,null,null,null,null,null,null,null," ","3.10.2003","3.10.2003"]
[null,null,null,null,null,null,null,null,null,null," ","3.10.2004","3.10.2004"]
[null,null,null,null,null,null,null,null,null,null," ","3.10.2005","3.10.2005"]
[null,null,null,null,null,null,null,null,null,null," ","3.10.2008","3.10.2008"]
[null,null,null,null,null,null,null,null,null,null," ","3.10.2010","3.10.2010"]
[null,null,null,null,null,null,null,null,null,null," ","3.10.2011","3.10.2011"]
[null,null,null,null,null,null,null,null,null,null," ","3.10.2012","3.10.2012"]
[null,null,null,null,null,null,null,null,null,null," ","3.11.02","3.11.02"]
[null,null,null,null,null,null,null,null,null,null," ","3.11.03","3.11.03"]
[null,null,null,null,null,null,null,null,null,null," ","3.11.04","3.11.04"]
[null,null,null,null,null,null,null,null,null,null," ","3.11.05","3.11.05"]
[null,null,null,null,null,null,null,null,null,null," ","3.11.06","3.11.06"]
[null,null,null,null,null,null,null,null,null,null," ","3.11.07","3.11.07"]
[null,null,null,null,null,null,null,null,null,null," ","3.11.08","3.11.08"]
[null,null,null,null,null,null,null,null,null,null," ","3.11.10","3.11.10"]
[null,null,null,null,null,null,null,null,null,null," ","3.11.11","3.11.11"]
[null,null,null,null,null,null,null,null,null,null," ","3.11.12","3.11.12"]
[null,null,null,null,null,null,null,null,null,null," ","3.11.13","3.11.13"]
[null,null,null,null,null,null,null,null,null,null," ","3.11.15","3.11.15"]
[null,null,null,null,null,null,null,null,null,null," ","3.11.16","3.11.16"]
[null,null,null,null,null,null,null,null,null,null," ","3.11.2002","3.11.2002"]
[null,null,null,null,null,null,null,null,null,null," ","3.11.2003","3.11.2003"]
[null,null,null,null,null,null,null,null,null,null," ","3.11.2004","3.11.2004"]
[null,null,null,null,null,null,null,null,null,null," ","3.11.2005","3.11.2005"]
[null,null,null,null,null,null,null,null,null,null," ","3.11.2006","3.11.2006"]
[null,null,null,null,null,null,null,null,null,null," ","3.11.2007","3.11.2007"]
[null,null,null,null,null,null,null,null,null,null," ","3.11.2008","3.11.2008"]
[null,null,null,null,null,null,null,null,null,null," ","3.11.2010","3.11.2010"]
[null,null,null,null,null,null,null,null,null,null," ","3.11.2011","3.11.2011"]
[null,null,null,null,null,null,null,null,null,null," ","3.11.2012","3.11.2012"]
[null,null,null,null,null,null,null,null,null,null," ","3.11.2013","3.11.2013"]
[null,null,null,null,null,null,null,null,null,null," ","3.11.2015","3.11.2015"]
[null,null,null,null,null,null,null,null,null,null," ","3.11.2016","3.11.2016"]
[null,null,null,null,null,null,null,null,null,null," ","3.1.2001","3.1.2001"]
[null,null,null,null,null,null,null,null,null,null," ","3.1.2002","3.1.2002"]
[null,null,null,null,null,null,null,null,null,null," ","3.1.2003","3.1.2003"]
[null,null,null,null,null,null,null,null,null,null," ","3.1.2004","3.1.2004"]
[null,null,null,null,null,null,null,null,null,null," ","3.1.2005","3.1.2005"]
[null,null,null,null,null,null,null,null,null,null," ","3.1.2006","3.1.2006"]
[null,null,null,null,null,null,null,null,null,null," ","3.1.2007","3.1.2007"]
[null,null,null,null,null,null,null,null,null,null," ","3.1.2008","3.1.2008"]
[null,null,null,null,null,null,null,null,null,null," ","3.12.01","3.12.01"]
[null,null,null,null,null,null,null,null,null,null," ","3.1.2010","3.1.2010"]
[null,null,null,null,null,null,null,null,null,null," ","3.1.2011","3.1.2011"]
[null,null,null,null,null,null,null,null,null,null," ","3.1.2012","3.1.2012"]
[null,null,null,null,null,null,null,null,null,null," ","3.1.2015","3.1.2015"]
[null,null,null,null,null,null,null,null,null,null," ","3.1.2016","3.1.2016"]
[null,null,null,null,null,null,null,null,null,null," ","3.12.04","3.12.04"]
[null,null,null,null,null,null,null,null,null,null," ","3.12.05","3.12.05"]
[null,null,null,null,null,null,null,null,null,null," ","3.12.05.08","3.12.05.08"]
[null,null,null,null,null,null,null,null,null,null," ","3.12.08.1","3.12.08.1"]
[null,null,null,null,null,null,null,null,null,null," ","3.12.09.1","3.12.09.1"]
[null,null,null,null,null,null,null,null,null,null," ","3.12.09.10","3.12.09.10"]
[null,null,null,null,null,null,null,null,null,null," ","3.12.2001","3.12.2001"]
[null,null,null,null,null,null,null,null,null,null," ","3.12.2004","3.12.2004"]
[null,null,null,null,null,null,null,null,null,null," ","3.12.2005","3.12.2005"]
[null,null,null,null,null,null,null,null,null,null," ","3.13.01","3.13.01"]
[null,null,null,null,null,null,null,null,null,null," ","3.13.06","3.13.06"]
[null,null,null,null,null,null,null,null,null,null," ","3.13.08",{"$f":"IF($B$7=\"ETE\",K1607,L1607)","v":"3.13.08"}]
[null,null,null,null,null,null,null,null,null,null," ","3.13.10","3.13.10"]
[null,null,null,null,null,null,null,null,null,null," ","3.13.15","3.13.15"]
[null,null,null,null,null,null,null,null,null,null," ","3.14.01","3.14.01"]
[null,null,null,null,null,null,null,null,null,null," ","3.14.02","3.14.02"]
[null,null,null,null,null,null,null,null,null,null," ","3.14.06","3.14.06"]
[null,null,null,null,null,null,null,null,null,null," ","3.14.08","3.14.08"]
[null,null,null,null,null,null,null,null,null,null," ","3.14.10","3.14.10"]
[null,null,null,null,null,null,null,null,null,null," ","3.14.12","3.14.12"]
[null,null,null,null,null,null,null,null,null,null," ","3.15.01","3.15.01"]
[null,null,null,null,null,null,null,null,null,null," ","3.15.02","3.15.02"]
[null,null,null,null,null,null,null,null,null,null," ","3.16.01","3.16.01"]
[null,null,null,null,null,null,null,null,null,null," ","3.16.06","3.16.06"]
[null,null,null,null,null,null,null,null,null,null," ","3.16.08","3.16.08"]
[null,null,null,null,null,null,null,null,null,null," ","3.16.10","3.16.10"]
[null,null,null,null,null,null,null,null,null,null," ","3.17.02","3.17.02"]
[null,null,null,null,null,null,null,null,null,null," ","3.17.03","3.17.03"]
[null,null,null,null,null,null,null,null,null,null," ","3.17.04","3.17.04"]
[null,null,null,null,null,null,null,null,null,null," ","3.17.06","3.17.06"]
[null,null,null,null,null,null,null,null,null,null," ","3.17.08","3.17.08"]
[null,null,null,null,null,null,null,null,null,null," ","3.17.10","3.17.10"]
[null,null,null,null,null,null,null,null,null,null," ","3.17.12","3.17.12"]
[null,null,null,null,null,null,null,null,null,null," ","3.18.1.01.10","3.18.1.01.10"]
[null,null,null,null,null,null,null,null,null,null," ","3.18.1.03","3.18.1.03"]
[null,null,null,null,null,null,null,null,null,null," ","3.18.1.03.08","3.18.1.03.08"]
[null,null,null,null,null,null,null,null,null,null," ","3.18.1.10","3.18.1.10"]
[null,null,null,null,null,null,null,null,null,null," ","3.19.01","3.19.01"]
[null,null,null,null,null,null,null,null,null,null," ","3.19.02","3.19.02"]
[null,null,null,null,null,null,null,null,null,null," ","3.19.03","3.19.03"]
[null,null,null,null,null,null,null,null,null,null," ","3.19.04","3.19.04"]
[null,null,null,null,null,null,null,null,null,null," ","3.19.05/A","3.19.05/A"]
[null,null,null,null,null,null,null,null,null,null," ","3.19.05A,B","3.19.05A,B"]
[null,null,null,null,null,null,null,null,null,null," ","3.19.05/B","3.19.05/B"]
[null,null,null,null,null,null,null,null,null,null," ","3.19.06","3.19.06"]
[null,null,null,null,null,null,null,null,null,null," ","3.19.07","3.19.07"]
[null,null,null,null,null,null,null,null,null,null," ","3.19.07/A","3.19.07/A"]
[null,null,null,null,null,null,null,null,null,null," ","3.19.07A","3.19.07A"]
[null,null,null,null,null,null,null,null,null,null," ","3.19.07/B","3.19.07/B"]
[null,null,null,null,null,null,null,null,null,null," ","3.19.07B","3.19.07B"]
[null,null,null,null,null,null,null,null,null,null," ","3.19.08","3.19.08"]
[null,null,null,null,null,null,null,null,null,null," ","3.19.10","3.19.10"]
[null,null,null,null,null,null,null,null,null,null," ","3.19.11","3.19.11"]
[null,null,null,null,null,null,null,null,null,null," ","3.19.12","3.19.12"]
[null,null,null,null,null,null,null,null,null,null," ","3.19.13","3.19.13"]
[null,null,null,null,null,null,null,null,null,null," ","3.19.14","3.19.14"]
[null,null,null,null,null,null,null,null,null,null," ","3.19.15","3.19.15"]
[null,null,null,null,null,null,null,null,null,null," ","3.19.16","3.19.16"]
[null,null,null,null,null,null,null,null,null,null," ","3.19.17.08","3.19.17.08"]
[null,null,null,null,null,null,null,null,null,null," ","32","32"]
[null,null,null,null,null,null,null,null,null,null," ","3.20.01","3.20.01"]
[null,null,null,null,null,null,null,null,null,null," ","3.20.02","3.20.02"]
[null,null,null,null,null,null,null,null,null,null," ","3.20.03","3.20.03"]
[null,null,null,null,null,null,null,null,null,null," ","3.20.03.01","3.20.03.01"]
[null,null,null,null,null,null,null,null,null,null," ","3.20.03.08","3.20.03.08"]
[null,null,null,null,null,null,null,null,null,null," ","3.20.03.10","3.20.03.10"]
[null,null,null,null,null,null,null,null,null,null," ","3.20.06","3.20.06"]
[null,null,null,null,null,null,null,null,null,null," ","3.20.08.1","3.20.08.1"]
[null,null,null,null,null,null,null,null,null,null," ","3.20.08.2","3.20.08.2"]
[null,null,null,null,null,null,null,null,null,null," ","3.20.09","3.20.09"]
[null,null,null,null,null,null,null,null,null,null," ","320/100.00","320/100.00"]
[null,null,null,null,null,null,null,null,null,null," ","320/100.01","320/100.01"]
[null,null,null,null,null,null,null,null,null,null," ","320/100.03","320/100.03"]
[null,null,null,null,null,null,null,null,null,null," ","320/100.06","320/100.06"]
[null,null,null,null,null,null,null,null,null,null," ","320/100.08","320/100.08"]
[null,null,null,null,null,null,null,null,null,null," ","320/100.09",{"$f":"IF($B$7=\"ETE\",K1671,L1671)","v":"320/100.09"}]
[null,null,null,null,null,null,null,null,null,null," ","320/100.10","320/100.10"]
[null,null,null,null,null,null,null,null,null,null," ","3.20.10.1","3.20.10.1"]
[null,null,null,null,null,null,null,null,null,null," ","3.20.10.2","3.20.10.2"]
[null,null,null,null,null,null,null,null,null,null," ","320/1-03.00","320/1-03.00"]
[null,null,null,null,null,null,null,null,null,null," ","320/1-03.01","320/1-03.01"]
[null,null,null,null,null,null,null,null,null,null," ","320/1-05.00","320/1-05.00"]
[null,null,null,null,null,null,null,null,null,null," ","320/1-05.01","320/1-05.01"]
[null,null,null,null,null,null,null,null,null,null," ","320/1-05.03","320/1-05.03"]
[null,null,null,null,null,null,null,null,null,null," ","320/1-05.06","320/1-05.06"]
[null,null,null,null,null,null,null,null,null,null," ","320/1-05.08","320/1-05.08"]
[null,null,null,null,null,null,null,null,null,null," ","320/1-05.09","320/1-05.09"]
[null,null,null,null,null,null,null,null,null,null," ","320/1-05.10","320/1-05.10"]
[null,null,null,null,null,null,null,null,null,null," ","320/1-17.00","320/1-17.00"]
[null,null,null,null,null,null,null,null,null,null," ","320/1-17.01","320/1-17.01"]
[null,null,null,null,null,null,null,null,null,null," ","320/1-17.03","320/1-17.03"]
[null,null,null,null,null,null,null,null,null,null," ","320/1-17.06","320/1-17.06"]
[null,null,null,null,null,null,null,null,null,null," ","320/1-17.08","320/1-17.08"]
[null,null,null,null,null,null,null,null,null,null," ","320/1-17.09","320/1-17.09"]
[null,null,null,null,null,null,null,null,null,null," ","320/1-17.10","320/1-17.10"]
[null,null,null,null,null,null,null,null,null,null," ","320/1-18.00","320/1-18.00"]
[null,null,null,null,null,null,null,null,null,null," ","320/1-18.01","320/1-18.01"]
[null,null,null,null,null,null,null,null,null,null," ","320/1-18.03","320/1-18.03"]
[null,null,null,null,null,null,null,null,null,null," ","320/1-18.06","320/1-18.06"]
[null,null,null,null,null,null,null,null,null,null," ","320/1-18.08","320/1-18.08"]
[null,null,null,null,null,null,null,null,null,null," ","320/1-18.09","320/1-18.09"]
[null,null,null,null,null,null,null,null,null,null," ","320/1-18.10","320/1-18.10"]
[null,null,null,null,null,null,null,null,null,null," ","320/1-20.00","320/1-20.00"]
[null,null,null,null,null,null,null,null,null,null," ","320/1-20.01","320/1-20.01"]
[null,null,null,null,null,null,null,null,null,null," ","320/1-20.03","320/1-20.03"]
[null,null,null,null,null,null,null,null,null,null," ","320/1-20.06","320/1-20.06"]
[null,null,null,null,null,null,null,null,null,null," ","320/1-20.08","320/1-20.08"]
[null,null,null,null,null,null,null,null,null,null," ","320/1-20.09","320/1-20.09"]
[null,null,null,null,null,null,null,null,null,null," ","320/1-20.10","320/1-20.10"]
[null,null,null,null,null,null,null,null,null,null," ","321/3-03.00","321/3-03.00"]
[null,null,null,null,null,null,null,null,null,null," ","321/3-03.01","321/3-03.01"]
[null,null,null,null,null,null,null,null,null,null," ","321/3-03.03","321/3-03.03"]
[null,null,null,null,null,null,null,null,null,null," ","321/3-03.06","321/3-03.06"]
[null,null,null,null,null,null,null,null,null,null," ","321/3-03.08","321/3-03.08"]
[null,null,null,null,null,null,null,null,null,null," ","321/3-03.09","321/3-03.09"]
[null,null,null,null,null,null,null,null,null,null," ","321/3-03.10","321/3-03.10"]
[null,null,null,null,null,null,null,null,null,null," ","321/3-03.1.00","321/3-03.1.00"]
[null,null,null,null,null,null,null,null,null,null," ","321/3-03.1.01","321/3-03.1.01"]
[null,null,null,null,null,null,null,null,null,null," ","321/3-03.1.03","321/3-03.1.03"]
[null,null,null,null,null,null,null,null,null,null," ","321/3-03.1.06","321/3-03.1.06"]
[null,null,null,null,null,null,null,null,null,null," ","321/3-03.1.08","321/3-03.1.08"]
[null,null,null,null,null,null,null,null,null,null," ","321/3-03.1.09","321/3-03.1.09"]
[null,null,null,null,null,null,null,null,null,null," ","321/3-03.1.10","321/3-03.1.10"]
[null,null,null,null,null,null,null,null,null,null," ","321/4-01.00","321/4-01.00"]
[null,null,null,null,null,null,null,null,null,null," ","321/4-01.01","321/4-01.01"]
[null,null,null,null,null,null,null,null,null,null," ","321/4-01.03","321/4-01.03"]
[null,null,null,null,null,null,null,null,null,null," ","321/4-01.06","321/4-01.06"]
[null,null,null,null,null,null,null,null,null,null," ","321/4-01.08","321/4-01.08"]
[null,null,null,null,null,null,null,null,null,null," ","321/4-01.09","321/4-01.09"]
[null,null,null,null,null,null,null,null,null,null," ","321/4-01.10","321/4-01.10"]
[null,null,null,null,null,null,null,null,null,null," ","321/4-02.00","321/4-02.00"]
[null,null,null,null,null,null,null,null,null,null," ","321/4-02.01","321/4-02.01"]
[null,null,null,null,null,null,null,null,null,null," ","321/4-02.03","321/4-02.03"]
[null,null,null,null,null,null,null,null,null,null," ","321/4-02.06","321/4-02.06"]
[null,null,null,null,null,null,null,null,null,null," ","321/4-02.08","321/4-02.08"]
[null,null,null,null,null,null,null,null,null,null," ","321/4-02.09","321/4-02.09"]
[null,null,null,null,null,null,null,null,null,null," ","321/4-02.10","321/4-02.10"]
[null,null,null,null,null,null,null,null,null,null," ","3.2.2001","3.2.2001"]
[null,null,null,null,null,null,null,null,null,null," ","3.2.2002","3.2.2002"]
[null,null,null,null,null,null,null,null,null,null," ","3.2.2003",{"$f":"IF($B$7=\"ETE\",K1735,L1735)","v":"3.2.2003"}]
[null,null,null,null,null,null,null,null,null,null," ","3.2.2006","3.2.2006"]
[null,null,null,null,null,null,null,null,null,null," ","3.2.2008","3.2.2008"]
[null,null,null,null,null,null,null,null,null,null," ","3.22.01","3.22.01"]
[null,null,null,null,null,null,null,null,null,null," ","3.2.2012","3.2.2012"]
[null,null,null,null,null,null,null,null,null,null," ","3.2.2015","3.2.2015"]
[null,null,null,null,null,null,null,null,null,null," ","3.22.08","3.22.08"]
[null,null,null,null,null,null,null,null,null,null," ","3.22.09","3.22.09"]
[null,null,null,null,null,null,null,null,null,null," ","3.22.09.10","3.22.09.10"]
[null,null,null,null,null,null,null,null,null,null," ","3.22.10","3.22.10"]
[null,null,null,null,null,null,null,null,null,null," ","3.25.01","3.25.01"]
[null,null,null,null,null,null,null,null,null,null," ","3.25.02","3.25.02"]
[null,null,null,null,null,null,null,null,null,null," ","3.25.03","3.25.03"]
[null,null,null,null,null,null,null,null,null,null," ","3.25.05","3.25.05"]
[null,null,null,null,null,null,null,null,null,null," ","3.25.06","3.25.06"]
[null,null,null,null,null,null,null,null,null,null," ","3.25.08","3.25.08"]
[null,null,null,null,null,null,null,null,null,null," ","3.25.16","3.25.16"]
[null,null,null,null,null,null,null,null,null,null," ","3.25.17","3.25.17"]
[null,null,null,null,null,null,null,null,null,null," ","3.25.18","3.25.18"]
[null,null,null,null,null,null,null,null,null,null," ","3.25.19","3.25.19"]
[null,null,null,null,null,null,null,null,null,null," ","3.29.01","3.29.01"]
[null,null,null,null,null,null,null,null,null,null," ","3.29.02","3.29.02"]
[null,null,null,null,null,null,null,null,null,null," ","3.29.08","3.29.08"]
[null,null,null,null,null,null,null,null,null,null," ","3.29.10","3.29.10"]
[null,null,null,null,null,null,null,null,null,null," ","33","33"]
[null,null,null,null,null,null,null,null,null,null," ","3.30.01","3.30.01"]
[null,null,null,null,null,null,null,null,null,null," ","3.30.02","3.30.02"]
[null,null,null,null,null,null,null,null,null,null," ","3.30.03","3.30.03"]
[null,null,null,null,null,null,null,null,null,null," ","3.30.04","3.30.04"]
[null,null,null,null,null,null,null,null,null,null," ","3.30.06","3.30.06"]
[null,null,null,null,null,null,null,null,null,null," ","3.30.07","3.30.07"]
[null,null,null,null,null,null,null,null,null,null," ","3.30.10.02","3.30.10.02"]
[null,null,null,null,null,null,null,null,null,null," ","3.30.10.04","3.30.10.04"]
[null,null,null,null,null,null,null,null,null,null," ","3.30.10.1","3.30.10.1"]
[null,null,null,null,null,null,null,null,null,null," ","3.30.10.2","3.30.10.2"]
[null,null,null,null,null,null,null,null,null,null," ","3.30.10.3","3.30.10.3"]
[null,null,null,null,null,null,null,null,null,null," ","3.30.10.6","3.30.10.6"]
[null,null,null,null,null,null,null,null,null,null," ","3.31.01","3.31.01"]
[null,null,null,null,null,null,null,null,null,null," ","3.31.08","3.31.08"]
[null,null,null,null,null,null,null,null,null,null," ","3.31.10","3.31.10"]
[null,null,null,null,null,null,null,null,null,null," ","3.31.12","3.31.12"]
[null,null,null,null,null,null,null,null,null,null," ","3.3.2001","3.3.2001"]
[null,null,null,null,null,null,null,null,null,null," ","3.3.2002","3.3.2002"]
[null,null,null,null,null,null,null,null,null,null," ","3.3.2003","3.3.2003"]
[null,null,null,null,null,null,null,null,null,null," ","3.3.2004","3.3.2004"]
[null,null,null,null,null,null,null,null,null,null," ","3.3.2005","3.3.2005"]
[null,null,null,null,null,null,null,null,null,null," ","3.3.2006","3.3.2006"]
[null,null,null,null,null,null,null,null,null,null," ","3.3.2007","3.3.2007"]
[null,null,null,null,null,null,null,null,null,null," ","3.3.2008","3.3.2008"]
[null,null,null,null,null,null,null,null,null,null," ","3.3.2010","3.3.2010"]
[null,null,null,null,null,null,null,null,null,null," ","3.3.2012","3.3.2012"]
[null,null,null,null,null,null,null,null,null,null," ","3.3.2013","3.3.2013"]
[null,null,null,null,null,null,null,null,null,null," ","3.3.2015","3.3.2015"]
[null,null,null,null,null,null,null,null,null,null," ","3.3.2017","3.3.2017"]
[null,null,null,null,null,null,null,null,null,null," ","3.37.01","3.37.01"]
[null,null,null,null,null,null,null,null,null,null," ","3.37.08","3.37.08"]
[null,null,null,null,null,null,null,null,null,null," ","3.38.01","3.38.01"]
[null,null,null,null,null,null,null,null,null,null," ","3.38.03","3.38.03"]
[null,null,null,null,null,null,null,null,null,null," ","3.38.06","3.38.06"]
[null,null,null,null,null,null,null,null,null,null," ","3.38.08","3.38.08"]
[null,null,null,null,null,null,null,null,null,null," ","3.38.10","3.38.10"]
[null,null,null,null,null,null,null,null,null,null," ","3.38.12","3.38.12"]
[null,null,null,null,null,null,null,null,null,null," ","3.38.15","3.38.15"]
[null,null,null,null,null,null,null,null,null,null," ","34","34"]
[null,null,null,null,null,null,null,null,null,null," ","3,4.A20",{"$f":"IF($B$7=\"ETE\",K1799,L1799)","v":"3,4.A20"}]
[null,null,null,null,null,null,null,null,null,null," ","3,4.A20.01","3,4.A20.01"]
[null,null,null,null,null,null,null,null,null,null," ","3,4.A20.08","3,4.A20.08"]
[null,null,null,null,null,null,null,null,null,null," ","3,4.A21","3,4.A21"]
[null,null,null,null,null,null,null,null,null,null," ","3,4.A21.01","3,4.A21.01"]
[null,null,null,null,null,null,null,null,null,null," ","3,4.A21.08","3,4.A21.08"]
[null,null,null,null,null,null,null,null,null,null," ","3,4.A21.10","3,4.A21.10"]
[null,null,null,null,null,null,null,null,null,null," ","3,4.B5-1","3,4.B5-1"]
[null,null,null,null,null,null,null,null,null,null," ","3.4.B5-1.00","3.4.B5-1.00"]
[null,null,null,null,null,null,null,null,null,null," ","3,4.B5-1.01","3,4.B5-1.01"]
[null,null,null,null,null,null,null,null,null,null," ","3.4.B5-1.01","3.4.B5-1.01"]
[null,null,null,null,null,null,null,null,null,null," ","3.4.B5-1.03","3.4.B5-1.03"]
[null,null,null,null,null,null,null,null,null,null," ","3.4.B5-1.06","3.4.B5-1.06"]
[null,null,null,null,null,null,null,null,null,null," ","3,4.B5-1.08","3,4.B5-1.08"]
[null,null,null,null,null,null,null,null,null,null," ","3.4.B5-1.08","3.4.B5-1.08"]
[null,null,null,null,null,null,null,null,null,null," ","3.4.B5-1.09","3.4.B5-1.09"]
[null,null,null,null,null,null,null,null,null,null," ","3,4.B5-1.10","3,4.B5-1.10"]
[null,null,null,null,null,null,null,null,null,null," ","3.4.B5-1.10","3.4.B5-1.10"]
[null,null,null,null,null,null,null,null,null,null," ","3.40.01","3.40.01"]
[null,null,null,null,null,null,null,null,null,null," ","3.40.08","3.40.08"]
[null,null,null,null,null,null,null,null,null,null," ","34.01","34.01"]
[null,null,null,null,null,null,null,null,null,null," ","3.40.10","3.40.10"]
[null,null,null,null,null,null,null,null,null,null," ","340/1-01.08","340/1-01.08"]
[null,null,null,null,null,null,null,null,null,null," ","340/1-03.08","340/1-03.08"]
[null,null,null,null,null,null,null,null,null,null," ","34.08","34.08"]
[null,null,null,null,null,null,null,null,null,null," ","3.4.2001","3.4.2001"]
[null,null,null,null,null,null,null,null,null,null," ","3.4.2002","3.4.2002"]
[null,null,null,null,null,null,null,null,null,null," ","3.4.2003","3.4.2003"]
[null,null,null,null,null,null,null,null,null,null," ","3.4.2005","3.4.2005"]
[null,null,null,null,null,null,null,null,null,null," ","3.4.2006","3.4.2006"]
[null,null,null,null,null,null,null,null,null,null," ","3.4.2007","3.4.2007"]
[null,null,null,null,null,null,null,null,null,null," ","3.4.2008","3.4.2008"]
[null,null,null,null,null,null,null,null,null,null," ","3.4.2010","3.4.2010"]
[null,null,null,null,null,null,null,null,null,null," ","3.4.2011","3.4.2011"]
[null,null,null,null,null,null,null,null,null,null," ","3.4.2012","3.4.2012"]
[null,null,null,null,null,null,null,null,null,null," ","3.4.2013","3.4.2013"]
[null,null,null,null,null,null,null,null,null,null," ","3.4.2014","3.4.2014"]
[null,null,null,null,null,null,null,null,null,null," ","3.4.2015","3.4.2015"]
[null,null,null,null,null,null,null,null,null,null," ","3.4.2016","3.4.2016"]
[null,null,null,null,null,null,null,null,null,null," ","3.4.2017","3.4.2017"]
[null,null,null,null,null,null,null,null,null,null," ","3.46.01","3.46.01"]
[null,null,null,null,null,null,null,null,null,null," ","3.46.08","3.46.08"]
[null,null,null,null,null,null,null,null,null,null," ","3.46.10","3.46.10"]
[null,null,null,null,null,null,null,null,null,null," ","35","35"]
[null,null,null,null,null,null,null,null,null,null," ","35.01","35.01"]
[null,null,null,null,null,null,null,null,null,null," ","350/1-01.00","350/1-01.00"]
[null,null,null,null,null,null,null,null,null,null," ","350/1-01.01","350/1-01.01"]
[null,null,null,null,null,null,null,null,null,null," ","350/1-01.03","350/1-01.03"]
[null,null,null,null,null,null,null,null,null,null," ","350/1-01.06","350/1-01.06"]
[null,null,null,null,null,null,null,null,null,null," ","350/1-01.08","350/1-01.08"]
[null,null,null,null,null,null,null,null,null,null," ","350/1-01.09","350/1-01.09"]
[null,null,null,null,null,null,null,null,null,null," ","350/1-01.10","350/1-01.10"]
[null,null,null,null,null,null,null,null,null,null," ","350/1-02.00","350/1-02.00"]
[null,null,null,null,null,null,null,null,null,null," ","350/1-02.01","350/1-02.01"]
[null,null,null,null,null,null,null,null,null,null," ","350/1-02.03","350/1-02.03"]
[null,null,null,null,null,null,null,null,null,null," ","350/1-02.06","350/1-02.06"]
[null,null,null,null,null,null,null,null,null,null," ","350/1-02.08","350/1-02.08"]
[null,null,null,null,null,null,null,null,null,null," ","350/1-02.09","350/1-02.09"]
[null,null,null,null,null,null,null,null,null,null," ","350/1-02.10","350/1-02.10"]
[null,null,null,null,null,null,null,null,null,null," ","35.08","35.08"]
[null,null,null,null,null,null,null,null,null,null," ","35.10","35.10"]
[null,null,null,null,null,null,null,null,null,null," ","3.5.2001","3.5.2001"]
[null,null,null,null,null,null,null,null,null,null," ","3.5.2002","3.5.2002"]
[null,null,null,null,null,null,null,null,null,null," ","3.5.2007","3.5.2007"]
[null,null,null,null,null,null,null,null,null,null," ","3.5.2008",{"$f":"IF($B$7=\"ETE\",K1863,L1863)","v":"3.5.2008"}]
[null,null,null,null,null,null,null,null,null,null," ","3.5.2010","3.5.2010"]
[null,null,null,null,null,null,null,null,null,null," ","355/4-01.00","355/4-01.00"]
[null,null,null,null,null,null,null,null,null,null," ","355/4-01.01","355/4-01.01"]
[null,null,null,null,null,null,null,null,null,null," ","355/4-01.03","355/4-01.03"]
[null,null,null,null,null,null,null,null,null,null," ","355/4-01.06","355/4-01.06"]
[null,null,null,null,null,null,null,null,null,null," ","355/4-01.08","355/4-01.08"]
[null,null,null,null,null,null,null,null,null,null," ","355/4-01.09","355/4-01.09"]
[null,null,null,null,null,null,null,null,null,null," ","355/4-01.10","355/4-01.10"]
[null,null,null,null,null,null,null,null,null,null," ","36","36"]
[null,null,null,null,null,null,null,null,null,null," ","36.01","36.01"]
[null,null,null,null,null,null,null,null,null,null," ","360/1-01.00","360/1-01.00"]
[null,null,null,null,null,null,null,null,null,null," ","360/1-01.01","360/1-01.01"]
[null,null,null,null,null,null,null,null,null,null," ","360/1-01.03","360/1-01.03"]
[null,null,null,null,null,null,null,null,null,null," ","360/1-01.06","360/1-01.06"]
[null,null,null,null,null,null,null,null,null,null," ","360/1-01.08","360/1-01.08"]
[null,null,null,null,null,null,null,null,null,null," ","360/1-01.09","360/1-01.09"]
[null,null,null,null,null,null,null,null,null,null," ","360/1-01.10","360/1-01.10"]
[null,null,null,null,null,null,null,null,null,null," ","360/1-11.00","360/1-11.00"]
[null,null,null,null,null,null,null,null,null,null," ","360/1-11.01","360/1-11.01"]
[null,null,null,null,null,null,null,null,null,null," ","360/1-11.03","360/1-11.03"]
[null,null,null,null,null,null,null,null,null,null," ","360/1-11.06","360/1-11.06"]
[null,null,null,null,null,null,null,null,null,null," ","360/1-11.08","360/1-11.08"]
[null,null,null,null,null,null,null,null,null,null," ","360/1-11.09","360/1-11.09"]
[null,null,null,null,null,null,null,null,null,null," ","360/1-11.10","360/1-11.10"]
[null,null,null,null,null,null,null,null,null,null," ","36.02","36.02"]
[null,null,null,null,null,null,null,null,null,null," ","36.02.10","36.02.10"]
[null,null,null,null,null,null,null,null,null,null," ","36.08.1","36.08.1"]
[null,null,null,null,null,null,null,null,null,null," ","36.08.2","36.08.2"]
[null,null,null,null,null,null,null,null,null,null," ","361/1-01.00","361/1-01.00"]
[null,null,null,null,null,null,null,null,null,null," ","361/1-01.01","361/1-01.01"]
[null,null,null,null,null,null,null,null,null,null," ","361/1-01.03","361/1-01.03"]
[null,null,null,null,null,null,null,null,null,null," ","361/1-01.06","361/1-01.06"]
[null,null,null,null,null,null,null,null,null,null," ","361/1-01.08","361/1-01.08"]
[null,null,null,null,null,null,null,null,null,null," ","361/1-01.09","361/1-01.09"]
[null,null,null,null,null,null,null,null,null,null," ","361/1-01.10","361/1-01.10"]
[null,null,null,null,null,null,null,null,null,null," ","361/1-11.00","361/1-11.00"]
[null,null,null,null,null,null,null,null,null,null," ","361/1-11.01","361/1-11.01"]
[null,null,null,null,null,null,null,null,null,null," ","361/1-11.03","361/1-11.03"]
[null,null,null,null,null,null,null,null,null,null," ","361/1-11.06","361/1-11.06"]
[null,null,null,null,null,null,null,null,null,null," ","361/1-11.08","361/1-11.08"]
[null,null,null,null,null,null,null,null,null,null," ","361/1-11.09","361/1-11.09"]
[null,null,null,null,null,null,null,null,null,null," ","361/1-11.10","361/1-11.10"]
[null,null,null,null,null,null,null,null,null,null," ","361/3-03.00","361/3-03.00"]
[null,null,null,null,null,null,null,null,null,null," ","361/3-03.01","361/3-03.01"]
[null,null,null,null,null,null,null,null,null,null," ","361/3-03.03","361/3-03.03"]
[null,null,null,null,null,null,null,null,null,null," ","361/3-03.06","361/3-03.06"]
[null,null,null,null,null,null,null,null,null,null," ","361/3-03.08","361/3-03.08"]
[null,null,null,null,null,null,null,null,null,null," ","361/3-03.09","361/3-03.09"]
[null,null,null,null,null,null,null,null,null,null," ","361/3-03.10","361/3-03.10"]
[null,null,null,null,null,null,null,null,null,null," ","363/1-01.00","363/1-01.00"]
[null,null,null,null,null,null,null,null,null,null," ","363/1-01.01","363/1-01.01"]
[null,null,null,null,null,null,null,null,null,null," ","363/1-01.03","363/1-01.03"]
[null,null,null,null,null,null,null,null,null,null," ","363/1-01.06","363/1-01.06"]
[null,null,null,null,null,null,null,null,null,null," ","363/1-01.08","363/1-01.08"]
[null,null,null,null,null,null,null,null,null,null," ","363/1-01.09","363/1-01.09"]
[null,null,null,null,null,null,null,null,null,null," ","363/1-01.10","363/1-01.10"]
[null,null,null,null,null,null,null,null,null,null," ","363/1-02.00","363/1-02.00"]
[null,null,null,null,null,null,null,null,null,null," ","363/1-02.01","363/1-02.01"]
[null,null,null,null,null,null,null,null,null,null," ","363/1-02.03","363/1-02.03"]
[null,null,null,null,null,null,null,null,null,null," ","363/1-02.06","363/1-02.06"]
[null,null,null,null,null,null,null,null,null,null," ","363/1-02.08","363/1-02.08"]
[null,null,null,null,null,null,null,null,null,null," ","363/1-02.09","363/1-02.09"]
[null,null,null,null,null,null,null,null,null,null," ","363/1-02.10","363/1-02.10"]
[null,null,null,null,null,null,null,null,null,null," ","364/1-01.00",{"$f":"IF($B$7=\"ETE\",K1927,L1927)","v":"364/1-01.00"}]
[null,null,null,null,null,null,null,null,null,null," ","364/1-01.01","364/1-01.01"]
[null,null,null,null,null,null,null,null,null,null," ","364/1-01.03","364/1-01.03"]
[null,null,null,null,null,null,null,null,null,null," ","364/1-01.06","364/1-01.06"]
[null,null,null,null,null,null,null,null,null,null," ","364/1-01.08","364/1-01.08"]
[null,null,null,null,null,null,null,null,null,null," ","364/1-01.09","364/1-01.09"]
[null,null,null,null,null,null,null,null,null,null," ","364/1-01.10","364/1-01.10"]
[null,null,null,null,null,null,null,null,null,null," ","367/1-01.00","367/1-01.00"]
[null,null,null,null,null,null,null,null,null,null," ","367/1-01.01","367/1-01.01"]
[null,null,null,null,null,null,null,null,null,null," ","367/1-01.03","367/1-01.03"]
[null,null,null,null,null,null,null,null,null,null," ","367/1-01.06","367/1-01.06"]
[null,null,null,null,null,null,null,null,null,null," ","367/1-01.08","367/1-01.08"]
[null,null,null,null,null,null,null,null,null,null," ","367/1-01.09","367/1-01.09"]
[null,null,null,null,null,null,null,null,null,null," ","367/1-01.10","367/1-01.10"]
[null,null,null,null,null,null,null,null,null,null," ","368/1-01.00","368/1-01.00"]
[null,null,null,null,null,null,null,null,null,null," ","368/1-01.01","368/1-01.01"]
[null,null,null,null,null,null,null,null,null,null," ","368/1-01.03","368/1-01.03"]
[null,null,null,null,null,null,null,null,null,null," ","368/1-01.06","368/1-01.06"]
[null,null,null,null,null,null,null,null,null,null," ","368/1-01.08","368/1-01.08"]
[null,null,null,null,null,null,null,null,null,null," ","368/1-01.09","368/1-01.09"]
[null,null,null,null,null,null,null,null,null,null," ","368/1-01.10","368/1-01.10"]
[null,null,null,null,null,null,null,null,null,null," ","368/1-02.03","368/1-02.03"]
[null,null,null,null,null,null,null,null,null,null," ","368/1-02.06","368/1-02.06"]
[null,null,null,null,null,null,null,null,null,null," ","368/1-02.08","368/1-02.08"]
[null,null,null,null,null,null,null,null,null,null," ","368/1-02.09","368/1-02.09"]
[null,null,null,null,null,null,null,null,null,null," ","368/1-02.10","368/1-02.10"]
[null,null,null,null,null,null,null,null,null,null," ","368/1-11.03","368/1-11.03"]
[null,null,null,null,null,null,null,null,null,null," ","368/1-11.06","368/1-11.06"]
[null,null,null,null,null,null,null,null,null,null," ","368/1-11.08","368/1-11.08"]
[null,null,null,null,null,null,null,null,null,null," ","368/1-11.09","368/1-11.09"]
[null,null,null,null,null,null,null,null,null,null," ","368/1-11.10","368/1-11.10"]
[null,null,null,null,null,null,null,null,null,null," ","37","37"]
[null,null,null,null,null,null,null,null,null,null," ","37.01","37.01"]
[null,null,null,null,null,null,null,null,null,null," ","37.02","37.02"]
[null,null,null,null,null,null,null,null,null,null," ","37.04","37.04"]
[null,null,null,null,null,null,null,null,null,null," ","37.08","37.08"]
[null,null,null,null,null,null,null,null,null,null," ","371/1-01.00","371/1-01.00"]
[null,null,null,null,null,null,null,null,null,null," ","371/1-01.01","371/1-01.01"]
[null,null,null,null,null,null,null,null,null,null," ","371/1-01.03","371/1-01.03"]
[null,null,null,null,null,null,null,null,null,null," ","371/1-01.06","371/1-01.06"]
[null,null,null,null,null,null,null,null,null,null," ","371/1-01.08","371/1-01.08"]
[null,null,null,null,null,null,null,null,null,null," ","371/1-01.09","371/1-01.09"]
[null,null,null,null,null,null,null,null,null,null," ","371/1-01.10","371/1-01.10"]
[null,null,null,null,null,null,null,null,null,null," ","371/1-11.00","371/1-11.00"]
[null,null,null,null,null,null,null,null,null,null," ","371/1-11.01","371/1-11.01"]
[null,null,null,null,null,null,null,null,null,null," ","371/1-11.03","371/1-11.03"]
[null,null,null,null,null,null,null,null,null,null," ","371/1-11.06","371/1-11.06"]
[null,null,null,null,null,null,null,null,null,null," ","371/1-11.08","371/1-11.08"]
[null,null,null,null,null,null,null,null,null,null," ","371/1-11.09","371/1-11.09"]
[null,null,null,null,null,null,null,null,null,null," ","371/1-11.10","371/1-11.10"]
[null,null,null,null,null,null,null,null,null,null," ","371/3-03.00","371/3-03.00"]
[null,null,null,null,null,null,null,null,null,null," ","371/3-03.01","371/3-03.01"]
[null,null,null,null,null,null,null,null,null,null," ","371/3-03.03","371/3-03.03"]
[null,null,null,null,null,null,null,null,null,null," ","371/3-03.06","371/3-03.06"]
[null,null,null,null,null,null,null,null,null,null," ","371/3-03.08","371/3-03.08"]
[null,null,null,null,null,null,null,null,null,null," ","371/3-03.09","371/3-03.09"]
[null,null,null,null,null,null,null,null,null,null," ","371/3-03.10","371/3-03.10"]
[null,null,null,null,null,null,null,null,null,null," ","3.7.2001","3.7.2001"]
[null,null,null,null,null,null,null,null,null,null," ","3.7.2002","3.7.2002"]
[null,null,null,null,null,null,null,null,null,null," ","3.7.2003","3.7.2003"]
[null,null,null,null,null,null,null,null,null,null," ","3.7.2004","3.7.2004"]
[null,null,null,null,null,null,null,null,null,null," ","3.7.2005","3.7.2005"]
[null,null,null,null,null,null,null,null,null,null," ","3.7.2006","3.7.2006"]
[null,null,null,null,null,null,null,null,null,null," ","3.7.2008","3.7.2008"]
[null,null,null,null,null,null,null,null,null,null," ","3.7.2009",{"$f":"IF($B$7=\"ETE\",K1991,L1991)","v":"3.7.2009"}]
[null,null,null,null,null,null,null,null,null,null," ","372/1-01.00","372/1-01.00"]
[null,null,null,null,null,null,null,null,null,null," ","372/1-01.01","372/1-01.01"]
[null,null,null,null,null,null,null,null,null,null," ","372/1-01.03","372/1-01.03"]
[null,null,null,null,null,null,null,null,null,null," ","372/1-01.06","372/1-01.06"]
[null,null,null,null,null,null,null,null,null,null," ","372/1-01.08","372/1-01.08"]
[null,null,null,null,null,null,null,null,null,null," ","372/1-01.09","372/1-01.09"]
[null,null,null,null,null,null,null,null,null,null," ","372/1-01.10","372/1-01.10"]
[null,null,null,null,null,null,null,null,null,null," ","3.74.01","3.74.01"]
[null,null,null,null,null,null,null,null,null,null," ","3.74.03","3.74.03"]
[null,null,null,null,null,null,null,null,null,null," ","3.74.1","3.74.1"]
[null,null,null,null,null,null,null,null,null,null," ","377/1-01.00","377/1-01.00"]
[null,null,null,null,null,null,null,null,null,null," ","377/1-01.01","377/1-01.01"]
[null,null,null,null,null,null,null,null,null,null," ","377/1-01.03","377/1-01.03"]
[null,null,null,null,null,null,null,null,null,null," ","377/1-01.06","377/1-01.06"]
[null,null,null,null,null,null,null,null,null,null," ","377/1-01.08","377/1-01.08"]
[null,null,null,null,null,null,null,null,null,null," ","377/1-01.09","377/1-01.09"]
[null,null,null,null,null,null,null,null,null,null," ","377/1-01.10","377/1-01.10"]
[null,null,null,null,null,null,null,null,null,null," ","377/6-02.00","377/6-02.00"]
[null,null,null,null,null,null,null,null,null,null," ","377/6-02.01","377/6-02.01"]
[null,null,null,null,null,null,null,null,null,null," ","377/6-02.03","377/6-02.03"]
[null,null,null,null,null,null,null,null,null,null," ","377/6-02.06","377/6-02.06"]
[null,null,null,null,null,null,null,null,null,null," ","377/6-02.08","377/6-02.08"]
[null,null,null,null,null,null,null,null,null,null," ","377/6-02.09","377/6-02.09"]
[null,null,null,null,null,null,null,null,null,null," ","377/6-02.10","377/6-02.10"]
[null,null,null,null,null,null,null,null,null,null," ","38","38"]
[null,null,null,null,null,null,null,null,null,null," ","38.01","38.01"]
[null,null,null,null,null,null,null,null,null,null," ","38.03","38.03"]
[null,null,null,null,null,null,null,null,null,null," ","38.06","38.06"]
[null,null,null,null,null,null,null,null,null,null," ","38.08","38.08"]
[null,null,null,null,null,null,null,null,null,null," ","38.10","38.10"]
[null,null,null,null,null,null,null,null,null,null," ","381/1-01.00","381/1-01.00"]
[null,null,null,null,null,null,null,null,null,null," ","381/1-01.01","381/1-01.01"]
[null,null,null,null,null,null,null,null,null,null," ","381/1-01.03","381/1-01.03"]
[null,null,null,null,null,null,null,null,null,null," ","381/1-01.06","381/1-01.06"]
[null,null,null,null,null,null,null,null,null,null," ","381/1-01.08","381/1-01.08"]
[null,null,null,null,null,null,null,null,null,null," ","381/1-01.09","381/1-01.09"]
[null,null,null,null,null,null,null,null,null,null," ","381/1-01.10","381/1-01.10"]
[null,null,null,null,null,null,null,null,null,null," ","381/1-02.00","381/1-02.00"]
[null,null,null,null,null,null,null,null,null,null," ","381/1-02.01","381/1-02.01"]
[null,null,null,null,null,null,null,null,null,null," ","381/1-02.03","381/1-02.03"]
[null,null,null,null,null,null,null,null,null,null," ","381/1-02.06","381/1-02.06"]
[null,null,null,null,null,null,null,null,null,null," ","381/1-02.08","381/1-02.08"]
[null,null,null,null,null,null,null,null,null,null," ","381/1-02.09","381/1-02.09"]
[null,null,null,null,null,null,null,null,null,null," ","381/1-02.10","381/1-02.10"]
[null,null,null,null,null,null,null,null,null,null," ","38.12","38.12"]
[null,null,null,null,null,null,null,null,null,null," ","38.15","38.15"]
[null,null,null,null,null,null,null,null,null,null," ","3.8.2002","3.8.2002"]
[null,null,null,null,null,null,null,null,null,null," ","3.8.2008","3.8.2008"]
[null,null,null,null,null,null,null,null,null,null," ","39","39"]
[null,null,null,null,null,null,null,null,null,null," ","39.01","39.01"]
[null,null,null,null,null,null,null,null,null,null," ","39.08","39.08"]
[null,null,null,null,null,null,null,null,null,null," ","39.10","39.10"]
[null,null,null,null,null,null,null,null,null,null," ","3.9.2001","3.9.2001"]
[null,null,null,null,null,null,null,null,null,null," ","3.9.2002","3.9.2002"]
[null,null,null,null,null,null,null,null,null,null," ","3.9.2003","3.9.2003"]
[null,null,null,null,null,null,null,null,null,null," ","3.9.2004","3.9.2004"]
[null,null,null,null,null,null,null,null,null,null," ","4","4"]
[null,null,null,null,null,null,null,null,null,null," ","4.A1","4.A1"]
[null,null,null,null,null,null,null,null,null,null," ","4.A10","4.A10"]
[null,null,null,null,null,null,null,null,null,null," ","4.A10.01","4.A10.01"]
[null,null,null,null,null,null,null,null,null,null," ","4.A10.08","4.A10.08"]
[null,null,null,null,null,null,null,null,null,null," ","4.A10.08.01","4.A10.08.01"]
[null,null,null,null,null,null,null,null,null,null," ","4.A1.01","4.A1.01"]
[null,null,null,null,null,null,null,null,null,null," ","4.A10.10",{"$f":"IF($B$7=\"ETE\",K2055,L2055)","v":"4.A10.10"}]
[null,null,null,null,null,null,null,null,null,null," ","4.A10.10.01","4.A10.10.01"]
[null,null,null,null,null,null,null,null,null,null," ","4.A10-2","4.A10-2"]
[null,null,null,null,null,null,null,null,null,null," ","4.A10-2.01","4.A10-2.01"]
[null,null,null,null,null,null,null,null,null,null," ","4.A10-2.02","4.A10-2.02"]
[null,null,null,null,null,null,null,null,null,null," ","4.A1.08","4.A1.08"]
[null,null,null,null,null,null,null,null,null,null," ","4.A1.10","4.A1.10"]
[null,null,null,null,null,null,null,null,null,null," ","4.A12A","4.A12A"]
[null,null,null,null,null,null,null,null,null,null," ","4.A12A.08","4.A12A.08"]
[null,null,null,null,null,null,null,null,null,null," ","4.A12A.10","4.A12A.10"]
[null,null,null,null,null,null,null,null,null,null," ","4.A12B","4.A12B"]
[null,null,null,null,null,null,null,null,null,null," ","4.A12B.01","4.A12B.01"]
[null,null,null,null,null,null,null,null,null,null," ","4.A16-1","4.A16-1"]
[null,null,null,null,null,null,null,null,null,null," ","4.A16-1.01","4.A16-1.01"]
[null,null,null,null,null,null,null,null,null,null," ","4.A16-1.08","4.A16-1.08"]
[null,null,null,null,null,null,null,null,null,null," ","4.A16-2","4.A16-2"]
[null,null,null,null,null,null,null,null,null,null," ","4.A16-2.01","4.A16-2.01"]
[null,null,null,null,null,null,null,null,null,null," ","4.A21.01","4.A21.01"]
[null,null,null,null,null,null,null,null,null,null," ","4.A21.08","4.A21.08"]
[null,null,null,null,null,null,null,null,null,null," ","4.A21.10","4.A21.10"]
[null,null,null,null,null,null,null,null,null,null," ","4.A23A","4.A23A"]
[null,null,null,null,null,null,null,null,null,null," ","4.A23A.05","4.A23A.05"]
[null,null,null,null,null,null,null,null,null,null," ","4.A23A.08","4.A23A.08"]
[null,null,null,null,null,null,null,null,null,null," ","4.A23A.10","4.A23A.10"]
[null,null,null,null,null,null,null,null,null,null," ","4.A23B","4.A23B"]
[null,null,null,null,null,null,null,null,null,null," ","4.A23B.01","4.A23B.01"]
[null,null,null,null,null,null,null,null,null,null," ","4.A23B.08","4.A23B.08"]
[null,null,null,null,null,null,null,null,null,null," ","4.A23B.10","4.A23B.10"]
[null,null,null,null,null,null,null,null,null,null," ","4.A23C","4.A23C"]
[null,null,null,null,null,null,null,null,null,null," ","4.A23C.01","4.A23C.01"]
[null,null,null,null,null,null,null,null,null,null," ","4.A23C.08","4.A23C.08"]
[null,null,null,null,null,null,null,null,null,null," ","4.A23C.10","4.A23C.10"]
[null,null,null,null,null,null,null,null,null,null," ","4.A23.00","4.A23.00"]
[null,null,null,null,null,null,null,null,null,null," ","4.A23.01","4.A23.01"]
[null,null,null,null,null,null,null,null,null,null," ","4.A23.03","4.A23.03"]
[null,null,null,null,null,null,null,null,null,null," ","4.A23.05","4.A23.05"]
[null,null,null,null,null,null,null,null,null,null," ","4.A23.06","4.A23.06"]
[null,null,null,null,null,null,null,null,null,null," ","4.A23.08","4.A23.08"]
[null,null,null,null,null,null,null,null,null,null," ","4.A23.09","4.A23.09"]
[null,null,null,null,null,null,null,null,null,null," ","4.A23.10","4.A23.10"]
[null,null,null,null,null,null,null,null,null,null," ","4.A25","4.A25"]
[null,null,null,null,null,null,null,null,null,null," ","4.A25.08","4.A25.08"]
[null,null,null,null,null,null,null,null,null,null," ","4.A25.09","4.A25.09"]
[null,null,null,null,null,null,null,null,null,null," ","4.A25.10","4.A25.10"]
[null,null,null,null,null,null,null,null,null,null," ","4.A3","4.A3"]
[null,null,null,null,null,null,null,null,null,null," ","4.A3.01","4.A3.01"]
[null,null,null,null,null,null,null,null,null,null," ","4.A4","4.A4"]
[null,null,null,null,null,null,null,null,null,null," ","4.A4.01","4.A4.01"]
[null,null,null,null,null,null,null,null,null,null," ","4.A4.08","4.A4.08"]
[null,null,null,null,null,null,null,null,null,null," ","4.A4.10","4.A4.10"]
[null,null,null,null,null,null,null,null,null,null," ","4.A5","4.A5"]
[null,null,null,null,null,null,null,null,null,null," ","4.A5.01","4.A5.01"]
[null,null,null,null,null,null,null,null,null,null," ","4.A5.08","4.A5.08"]
[null,null,null,null,null,null,null,null,null,null," ","4.A5.10","4.A5.10"]
[null,null,null,null,null,null,null,null,null,null," ","4.A7","4.A7"]
[null,null,null,null,null,null,null,null,null,null," ","4.A7.01","4.A7.01"]
[null,null,null,null,null,null,null,null,null,null," ","4.A7.10","4.A7.10"]
[null,null,null,null,null,null,null,null,null,null," ","4.A8","4.A8"]
[null,null,null,null,null,null,null,null,null,null," ","4.A8.01","4.A8.01"]
[null,null,null,null,null,null,null,null,null,null," ","4.A8.10","4.A8.10"]
[null,null,null,null,null,null,null,null,null,null," ","4.A9","4.A9"]
[null,null,null,null,null,null,null,null,null,null," ","4.A9.01","4.A9.01"]
[null,null,null,null,null,null,null,null,null,null," ","4.A9.02","4.A9.02"]
[null,null,null,null,null,null,null,null,null,null," ","4.A9.08","4.A9.08"]
[null,null,null,null,null,null,null,null,null,null," ","4.A9.10",{"$f":"IF($B$7=\"ETE\",K2119,L2119)","v":"4.A9.10"}]
[null,null,null,null,null,null,null,null,null,null," ","4.A9.12","4.A9.12"]
[null,null,null,null,null,null,null,null,null,null," ","4.A9.14","4.A9.14"]
[null,null,null,null,null,null,null,null,null,null," ","4.B1","4.B1"]
[null,null,null,null,null,null,null,null,null,null," ","4.B10.08","4.B10.08"]
[null,null,null,null,null,null,null,null,null,null," ","4.B1.01","4.B1.01"]
[null,null,null,null,null,null,null,null,null,null," ","4.B1.08","4.B1.08"]
[null,null,null,null,null,null,null,null,null,null," ","4.B1.10","4.B1.10"]
[null,null,null,null,null,null,null,null,null,null," ","4.B13A","4.B13A"]
[null,null,null,null,null,null,null,null,null,null," ","4.B13A.01","4.B13A.01"]
[null,null,null,null,null,null,null,null,null,null," ","4.B13A.02","4.B13A.02"]
[null,null,null,null,null,null,null,null,null,null," ","4.B13A.08","4.B13A.08"]
[null,null,null,null,null,null,null,null,null,null," ","4.B13B","4.B13B"]
[null,null,null,null,null,null,null,null,null,null," ","4.B13B.01","4.B13B.01"]
[null,null,null,null,null,null,null,null,null,null," ","4.B13B.08","4.B13B.08"]
[null,null,null,null,null,null,null,null,null,null," ","4.B13B.09","4.B13B.09"]
[null,null,null,null,null,null,null,null,null,null," ","4.B13B.10","4.B13B.10"]
[null,null,null,null,null,null,null,null,null,null," ","4.B3","4.B3"]
[null,null,null,null,null,null,null,null,null,null," ","4.B3.01","4.B3.01"]
[null,null,null,null,null,null,null,null,null,null," ","4.B3.08","4.B3.08"]
[null,null,null,null,null,null,null,null,null,null," ","4.B3.09","4.B3.09"]
[null,null,null,null,null,null,null,null,null,null," ","4.B3.10","4.B3.10"]
[null,null,null,null,null,null,null,null,null,null," ","4.B4","4.B4"]
[null,null,null,null,null,null,null,null,null,null," ","4.B4.01","4.B4.01"]
[null,null,null,null,null,null,null,null,null,null," ","4.B4.08","4.B4.08"]
[null,null,null,null,null,null,null,null,null,null," ","4.B4.10","4.B4.10"]
[null,null,null,null,null,null,null,null,null,null," ","4.B5-1.01","4.B5-1.01"]
[null,null,null,null,null,null,null,null,null,null," ","4.B5-1.08","4.B5-1.08"]
[null,null,null,null,null,null,null,null,null,null," ","4.B5-1.10","4.B5-1.10"]
[null,null,null,null,null,null,null,null,null,null," ","4.B5-2","4.B5-2"]
[null,null,null,null,null,null,null,null,null,null," ","4.B5-2.01","4.B5-2.01"]
[null,null,null,null,null,null,null,null,null,null," ","4.B5-2.08","4.B5-2.08"]
[null,null,null,null,null,null,null,null,null,null," ","4.B5-2.10","4.B5-2.10"]
[null,null,null,null,null,null,null,null,null,null," ","4.B5-3","4.B5-3"]
[null,null,null,null,null,null,null,null,null,null," ","4.B5-3.01","4.B5-3.01"]
[null,null,null,null,null,null,null,null,null,null," ","4.B5-3.08","4.B5-3.08"]
[null,null,null,null,null,null,null,null,null,null," ","4.B5-3.10","4.B5-3.10"]
[null,null,null,null,null,null,null,null,null,null," ","4.B7.08","4.B7.08"]
[null,null,null,null,null,null,null,null,null,null," ","4.I","4.I"]
[null,null,null,null,null,null,null,null,null,null," ","4.II","4.II"]
[null,null,null,null,null,null,null,null,null,null," ","4.III","4.III"]
[null,null,null,null,null,null,null,null,null,null," ","4.V","4.V"]
[null,null,null,null,null,null,null,null,null,null," ","4.VI","4.VI"]
[null,null,null,null,null,null,null,null,null,null," ","4.VII","4.VII"]
[null,null,null,null,null,null,null,null,null,null," ","4.VIII","4.VIII"]
[null,null,null,null,null,null,null,null,null,null," ","4.X","4.X"]
[null,null,null,null,null,null,null,null,null,null," ","4.XI","4.XI"]
[null,null,null,null,null,null,null,null,null,null," ","4.XII","4.XII"]
[null,null,null,null,null,null,null,null,null,null," ","40","40"]
[null,null,null,null,null,null,null,null,null,null," ","40.01","40.01"]
[null,null,null,null,null,null,null,null,null,null," ","40.08","40.08"]
[null,null,null,null,null,null,null,null,null,null," ","40.10","40.10"]
[null,null,null,null,null,null,null,null,null,null," ","401/1-01.00","401/1-01.00"]
[null,null,null,null,null,null,null,null,null,null," ","401/1-01.01","401/1-01.01"]
[null,null,null,null,null,null,null,null,null,null," ","401/1-01.03","401/1-01.03"]
[null,null,null,null,null,null,null,null,null,null," ","401/1-01.06","401/1-01.06"]
[null,null,null,null,null,null,null,null,null,null," ","401/1-01.08","401/1-01.08"]
[null,null,null,null,null,null,null,null,null,null," ","401/1-01.09","401/1-01.09"]
[null,null,null,null,null,null,null,null,null,null," ","401/1-01.10","401/1-01.10"]
[null,null,null,null,null,null,null,null,null,null," ","401/1-02.00","401/1-02.00"]
[null,null,null,null,null,null,null,null,null,null," ","401/1-02.01","401/1-02.01"]
[null,null,null,null,null,null,null,null,null,null," ","401/1-02.03","401/1-02.03"]
[null,null,null,null,null,null,null,null,null,null," ","401/1-02.06","401/1-02.06"]
[null,null,null,null,null,null,null,null,null,null," ","401/1-02.08","401/1-02.08"]
[null,null,null,null,null,null,null,null,null,null," ","401/1-02.09",{"$f":"IF($B$7=\"ETE\",K2183,L2183)","v":"401/1-02.09"}]
[null,null,null,null,null,null,null,null,null,null," ","401/1-02.10","401/1-02.10"]
[null,null,null,null,null,null,null,null,null,null," ","41","41"]
[null,null,null,null,null,null,null,null,null,null," ","41.01","41.01"]
[null,null,null,null,null,null,null,null,null,null," ","4.10.2004","4.10.2004"]
[null,null,null,null,null,null,null,null,null,null," ","41.07","41.07"]
[null,null,null,null,null,null,null,null,null,null," ","41.07B","41.07B"]
[null,null,null,null,null,null,null,null,null,null," ","41.08","41.08"]
[null,null,null,null,null,null,null,null,null,null," ","41.10","41.10"]
[null,null,null,null,null,null,null,null,null,null," ","41.10A","41.10A"]
[null,null,null,null,null,null,null,null,null,null," ","41.10B","41.10B"]
[null,null,null,null,null,null,null,null,null,null," ","42","42"]
[null,null,null,null,null,null,null,null,null,null," ","42.01","42.01"]
[null,null,null,null,null,null,null,null,null,null," ","42.07","42.07"]
[null,null,null,null,null,null,null,null,null,null," ","42.08","42.08"]
[null,null,null,null,null,null,null,null,null,null," ","42.10","42.10"]
[null,null,null,null,null,null,null,null,null,null," ","43","43"]
[null,null,null,null,null,null,null,null,null,null," ","43.308.01","43.308.01"]
[null,null,null,null,null,null,null,null,null,null," ","43.308.02","43.308.02"]
[null,null,null,null,null,null,null,null,null,null," ","43.308.03","43.308.03"]
[null,null,null,null,null,null,null,null,null,null," ","43.308.04","43.308.04"]
[null,null,null,null,null,null,null,null,null,null," ","43.308.05","43.308.05"]
[null,null,null,null,null,null,null,null,null,null," ","43.308.06","43.308.06"]
[null,null,null,null,null,null,null,null,null,null," ","43.308.07","43.308.07"]
[null,null,null,null,null,null,null,null,null,null," ","43.663.01","43.663.01"]
[null,null,null,null,null,null,null,null,null,null," ","43.663.02","43.663.02"]
[null,null,null,null,null,null,null,null,null,null," ","43.664.01","43.664.01"]
[null,null,null,null,null,null,null,null,null,null," ","43.664.02","43.664.02"]
[null,null,null,null,null,null,null,null,null,null," ","43.664.05","43.664.05"]
[null,null,null,null,null,null,null,null,null,null," ","43.664.06","43.664.06"]
[null,null,null,null,null,null,null,null,null,null," ","43.664.07","43.664.07"]
[null,null,null,null,null,null,null,null,null,null," ","44","44"]
[null,null,null,null,null,null,null,null,null,null," ","441/1-01.00","441/1-01.00"]
[null,null,null,null,null,null,null,null,null,null," ","441/1-01.01","441/1-01.01"]
[null,null,null,null,null,null,null,null,null,null," ","441/1-01.03","441/1-01.03"]
[null,null,null,null,null,null,null,null,null,null," ","441/1-01.06","441/1-01.06"]
[null,null,null,null,null,null,null,null,null,null," ","441/1-01.08","441/1-01.08"]
[null,null,null,null,null,null,null,null,null,null," ","441/1-01.09","441/1-01.09"]
[null,null,null,null,null,null,null,null,null,null," ","441/1-01.10","441/1-01.10"]
[null,null,null,null,null,null,null,null,null,null," ","442/1-01.00","442/1-01.00"]
[null,null,null,null,null,null,null,null,null,null," ","442/1-01.01","442/1-01.01"]
[null,null,null,null,null,null,null,null,null,null," ","442/1-01.03","442/1-01.03"]
[null,null,null,null,null,null,null,null,null,null," ","442/1-01.06","442/1-01.06"]
[null,null,null,null,null,null,null,null,null,null," ","442/1-01.08","442/1-01.08"]
[null,null,null,null,null,null,null,null,null,null," ","442/1-01.09","442/1-01.09"]
[null,null,null,null,null,null,null,null,null,null," ","442/1-01.10","442/1-01.10"]
[null,null,null,null,null,null,null,null,null,null," ","442/3-01.00","442/3-01.00"]
[null,null,null,null,null,null,null,null,null,null," ","442/3-01.01","442/3-01.01"]
[null,null,null,null,null,null,null,null,null,null," ","442/3-01.03","442/3-01.03"]
[null,null,null,null,null,null,null,null,null,null," ","442/3-01.06","442/3-01.06"]
[null,null,null,null,null,null,null,null,null,null," ","442/3-01.08","442/3-01.08"]
[null,null,null,null,null,null,null,null,null,null," ","442/3-01.09","442/3-01.09"]
[null,null,null,null,null,null,null,null,null,null," ","442/3-01.10","442/3-01.10"]
[null,null,null,null,null,null,null,null,null,null," ","45","45"]
[null,null,null,null,null,null,null,null,null,null," ","45.01","45.01"]
[null,null,null,null,null,null,null,null,null,null," ","45.02","45.02"]
[null,null,null,null,null,null,null,null,null,null," ","45.03","45.03"]
[null,null,null,null,null,null,null,null,null,null," ","45.04","45.04"]
[null,null,null,null,null,null,null,null,null,null," ","45.05","45.05"]
[null,null,null,null,null,null,null,null,null,null," ","45.06","45.06"]
[null,null,null,null,null,null,null,null,null,null," ","45.07","45.07"]
[null,null,null,null,null,null,null,null,null,null," ","45.08","45.08"]
[null,null,null,null,null,null,null,null,null,null," ","45.09","45.09"]
[null,null,null,null,null,null,null,null,null,null," ","45.10","45.10"]
[null,null,null,null,null,null,null,null,null,null," ","4.51.01",{"$f":"IF($B$7=\"ETE\",K2247,L2247)","v":"4.51.01"}]
[null,null,null,null,null,null,null,null,null,null," ","4.51.02","4.51.02"]
[null,null,null,null,null,null,null,null,null,null," ","4.51.03","4.51.03"]
[null,null,null,null,null,null,null,null,null,null," ","4.51.04","4.51.04"]
[null,null,null,null,null,null,null,null,null,null," ","4.51.05","4.51.05"]
[null,null,null,null,null,null,null,null,null,null," ","4.51.06","4.51.06"]
[null,null,null,null,null,null,null,null,null,null," ","4.51.07","4.51.07"]
[null,null,null,null,null,null,null,null,null,null," ","4.51.08","4.51.08"]
[null,null,null,null,null,null,null,null,null,null," ","4.51.10","4.51.10"]
[null,null,null,null,null,null,null,null,null,null," ","4.51.11","4.51.11"]
[null,null,null,null,null,null,null,null,null,null," ","4.51.12","4.51.12"]
[null,null,null,null,null,null,null,null,null,null," ","4.51.15","4.51.15"]
[null,null,null,null,null,null,null,null,null,null," ","4.51.16","4.51.16"]
[null,null,null,null,null,null,null,null,null,null," ","4.51.17","4.51.17"]
[null,null,null,null,null,null,null,null,null,null," ","4.52.02","4.52.02"]
[null,null,null,null,null,null,null,null,null,null," ","4.52.03","4.52.03"]
[null,null,null,null,null,null,null,null,null,null," ","4.52.06","4.52.06"]
[null,null,null,null,null,null,null,null,null,null," ","4.52.08","4.52.08"]
[null,null,null,null,null,null,null,null,null,null," ","4.52.12","4.52.12"]
[null,null,null,null,null,null,null,null,null,null," ","4.52.15","4.52.15"]
[null,null,null,null,null,null,null,null,null,null," ","4.53.01","4.53.01"]
[null,null,null,null,null,null,null,null,null,null," ","4.53.02","4.53.02"]
[null,null,null,null,null,null,null,null,null,null," ","4.53.03","4.53.03"]
[null,null,null,null,null,null,null,null,null,null," ","4.53.04","4.53.04"]
[null,null,null,null,null,null,null,null,null,null," ","4.53.05","4.53.05"]
[null,null,null,null,null,null,null,null,null,null," ","4.53.06","4.53.06"]
[null,null,null,null,null,null,null,null,null,null," ","4.53.07","4.53.07"]
[null,null,null,null,null,null,null,null,null,null," ","4.53.08","4.53.08"]
[null,null,null,null,null,null,null,null,null,null," ","4.53.10","4.53.10"]
[null,null,null,null,null,null,null,null,null,null," ","4.53.12","4.53.12"]
[null,null,null,null,null,null,null,null,null,null," ","4.53.13","4.53.13"]
[null,null,null,null,null,null,null,null,null,null," ","4.53.15","4.53.15"]
[null,null,null,null,null,null,null,null,null,null," ","4.53.17","4.53.17"]
[null,null,null,null,null,null,null,null,null,null," ","4.54.01","4.54.01"]
[null,null,null,null,null,null,null,null,null,null," ","4.54.02","4.54.02"]
[null,null,null,null,null,null,null,null,null,null," ","4.54.03","4.54.03"]
[null,null,null,null,null,null,null,null,null,null," ","4.54.05","4.54.05"]
[null,null,null,null,null,null,null,null,null,null," ","4.54.06","4.54.06"]
[null,null,null,null,null,null,null,null,null,null," ","4.54.07","4.54.07"]
[null,null,null,null,null,null,null,null,null,null," ","4.54.08","4.54.08"]
[null,null,null,null,null,null,null,null,null,null," ","4.54.09","4.54.09"]
[null,null,null,null,null,null,null,null,null,null," ","4.54.09.01","4.54.09.01"]
[null,null,null,null,null,null,null,null,null,null," ","4.54.09.08","4.54.09.08"]
[null,null,null,null,null,null,null,null,null,null," ","4.54.10","4.54.10"]
[null,null,null,null,null,null,null,null,null,null," ","4.54.10.4","4.54.10.4"]
[null,null,null,null,null,null,null,null,null,null," ","4.54.11","4.54.11"]
[null,null,null,null,null,null,null,null,null,null," ","4.54.12","4.54.12"]
[null,null,null,null,null,null,null,null,null,null," ","4.54.13","4.54.13"]
[null,null,null,null,null,null,null,null,null,null," ","4.54.14","4.54.14"]
[null,null,null,null,null,null,null,null,null,null," ","4.54.15","4.54.15"]
[null,null,null,null,null,null,null,null,null,null," ","4.54.16","4.54.16"]
[null,null,null,null,null,null,null,null,null,null," ","4.55.01","4.55.01"]
[null,null,null,null,null,null,null,null,null,null," ","4.55.07","4.55.07"]
[null,null,null,null,null,null,null,null,null,null," ","4.55.08","4.55.08"]
[null,null,null,null,null,null,null,null,null,null," ","4.55.10","4.55.10"]
[null,null,null,null,null,null,null,null,null,null," ","4.57.01","4.57.01"]
[null,null,null,null,null,null,null,null,null,null," ","4.57.02","4.57.02"]
[null,null,null,null,null,null,null,null,null,null," ","4.57.08","4.57.08"]
[null,null,null,null,null,null,null,null,null,null," ","4.57.09","4.57.09"]
[null,null,null,null,null,null,null,null,null,null," ","4.57.10","4.57.10"]
[null,null,null,null,null,null,null,null,null,null," ","4.58.02","4.58.02"]
[null,null,null,null,null,null,null,null,null,null," ","4.58.08","4.58.08"]
[null,null,null,null,null,null,null,null,null,null," ","4.58.10.8","4.58.10.8"]
[null,null,null,null,null,null,null,null,null,null," ","4.58.17","4.58.17"]
[null,null,null,null,null,null,null,null,null,null," ","4.59.1",{"$f":"IF($B$7=\"ETE\",K2311,L2311)","v":"4.59.1"}]
[null,null,null,null,null,null,null,null,null,null," ","4.59.1.01","4.59.1.01"]
[null,null,null,null,null,null,null,null,null,null," ","4.59.1.02","4.59.1.02"]
[null,null,null,null,null,null,null,null,null,null," ","4.59.1.06","4.59.1.06"]
[null,null,null,null,null,null,null,null,null,null," ","4.59.1.08","4.59.1.08"]
[null,null,null,null,null,null,null,null,null,null," ","4.59.1.10","4.59.1.10"]
[null,null,null,null,null,null,null,null,null,null," ","4.59.1.12","4.59.1.12"]
[null,null,null,null,null,null,null,null,null,null," ","4.59.1.15","4.59.1.15"]
[null,null,null,null,null,null,null,null,null,null," ","4.59.3","4.59.3"]
[null,null,null,null,null,null,null,null,null,null," ","4.59.3.01","4.59.3.01"]
[null,null,null,null,null,null,null,null,null,null," ","4.59.3.02","4.59.3.02"]
[null,null,null,null,null,null,null,null,null,null," ","4.59.3.08","4.59.3.08"]
[null,null,null,null,null,null,null,null,null,null," ","4.59.3.10","4.59.3.10"]
[null,null,null,null,null,null,null,null,null,null," ","46","46"]
[null,null,null,null,null,null,null,null,null,null," ","4.60.01","4.60.01"]
[null,null,null,null,null,null,null,null,null,null," ","4.60.02","4.60.02"]
[null,null,null,null,null,null,null,null,null,null," ","4.60.03","4.60.03"]
[null,null,null,null,null,null,null,null,null,null," ","4.60.04","4.60.04"]
[null,null,null,null,null,null,null,null,null,null," ","4.60.05","4.60.05"]
[null,null,null,null,null,null,null,null,null,null," ","4.60.06","4.60.06"]
[null,null,null,null,null,null,null,null,null,null," ","4.60.08","4.60.08"]
[null,null,null,null,null,null,null,null,null,null," ","46.01","46.01"]
[null,null,null,null,null,null,null,null,null,null," ","4.60.10","4.60.10"]
[null,null,null,null,null,null,null,null,null,null," ","460/1-01.00","460/1-01.00"]
[null,null,null,null,null,null,null,null,null,null," ","460/1-01.01","460/1-01.01"]
[null,null,null,null,null,null,null,null,null,null," ","460/1-01.03","460/1-01.03"]
[null,null,null,null,null,null,null,null,null,null," ","460/1-01.06","460/1-01.06"]
[null,null,null,null,null,null,null,null,null,null," ","460/1-01.08","460/1-01.08"]
[null,null,null,null,null,null,null,null,null,null," ","460/1-01.09","460/1-01.09"]
[null,null,null,null,null,null,null,null,null,null," ","460/1-01.10","460/1-01.10"]
[null,null,null,null,null,null,null,null,null,null," ","460/1-02.00","460/1-02.00"]
[null,null,null,null,null,null,null,null,null,null," ","460/1-02.01","460/1-02.01"]
[null,null,null,null,null,null,null,null,null,null," ","460/1-02.03","460/1-02.03"]
[null,null,null,null,null,null,null,null,null,null," ","460/1-02.06","460/1-02.06"]
[null,null,null,null,null,null,null,null,null,null," ","460/1-02.08","460/1-02.08"]
[null,null,null,null,null,null,null,null,null,null," ","460/1-02.09","460/1-02.09"]
[null,null,null,null,null,null,null,null,null,null," ","460/1-02.10","460/1-02.10"]
[null,null,null,null,null,null,null,null,null,null," ","4.60.11","4.60.11"]
[null,null,null,null,null,null,null,null,null,null," ","46.08","46.08"]
[null,null,null,null,null,null,null,null,null,null," ","46.10","46.10"]
[null,null,null,null,null,null,null,null,null,null," ","4.61.02","4.61.02"]
[null,null,null,null,null,null,null,null,null,null," ","4.61.06","4.61.06"]
[null,null,null,null,null,null,null,null,null,null," ","4.61.07","4.61.07"]
[null,null,null,null,null,null,null,null,null,null," ","4.61.08","4.61.08"]
[null,null,null,null,null,null,null,null,null,null," ","4.61.10","4.61.10"]
[null,null,null,null,null,null,null,null,null,null," ","4.61.11","4.61.11"]
[null,null,null,null,null,null,null,null,null,null," ","4.61.16","4.61.16"]
[null,null,null,null,null,null,null,null,null,null," ","4.62.01","4.62.01"]
[null,null,null,null,null,null,null,null,null,null," ","4.63.01","4.63.01"]
[null,null,null,null,null,null,null,null,null,null," ","4.64.01","4.64.01"]
[null,null,null,null,null,null,null,null,null,null," ","4.64.02","4.64.02"]
[null,null,null,null,null,null,null,null,null,null," ","4.64.06","4.64.06"]
[null,null,null,null,null,null,null,null,null,null," ","4.64.08","4.64.08"]
[null,null,null,null,null,null,null,null,null,null," ","4.64.10","4.64.10"]
[null,null,null,null,null,null,null,null,null,null," ","4.64.12","4.64.12"]
[null,null,null,null,null,null,null,null,null,null," ","4.67.02","4.67.02"]
[null,null,null,null,null,null,null,null,null,null," ","4.67.03","4.67.03"]
[null,null,null,null,null,null,null,null,null,null," ","4.67.04","4.67.04"]
[null,null,null,null,null,null,null,null,null,null," ","4.67.06","4.67.06"]
[null,null,null,null,null,null,null,null,null,null," ","4.67.08","4.67.08"]
[null,null,null,null,null,null,null,null,null,null," ","4.67.10","4.67.10"]
[null,null,null,null,null,null,null,null,null,null," ","4.67.12","4.67.12"]
[null,null,null,null,null,null,null,null,null,null," ","4.69.07","4.69.07"]
[null,null,null,null,null,null,null,null,null,null," ","4.69.07/B","4.69.07/B"]
[null,null,null,null,null,null,null,null,null,null," ","4.69.07B",{"$f":"IF($B$7=\"ETE\",K2375,L2375)","v":"4.69.07B"}]
[null,null,null,null,null,null,null,null,null,null," ","4.69.10","4.69.10"]
[null,null,null,null,null,null,null,null,null,null," ","4.69.14","4.69.14"]
[null,null,null,null,null,null,null,null,null,null," ","47","47"]
[null,null,null,null,null,null,null,null,null,null," ","4.70.01","4.70.01"]
[null,null,null,null,null,null,null,null,null,null," ","4.70.02","4.70.02"]
[null,null,null,null,null,null,null,null,null,null," ","4.70.03","4.70.03"]
[null,null,null,null,null,null,null,null,null,null," ","4.70.03.01","4.70.03.01"]
[null,null,null,null,null,null,null,null,null,null," ","4.70.03.08","4.70.03.08"]
[null,null,null,null,null,null,null,null,null,null," ","4.70.03.10","4.70.03.10"]
[null,null,null,null,null,null,null,null,null,null," ","4.70.06","4.70.06"]
[null,null,null,null,null,null,null,null,null,null," ","4.70.08.1","4.70.08.1"]
[null,null,null,null,null,null,null,null,null,null," ","4.70.08.2","4.70.08.2"]
[null,null,null,null,null,null,null,null,null,null," ","4.70.09","4.70.09"]
[null,null,null,null,null,null,null,null,null,null," ","47.01","47.01"]
[null,null,null,null,null,null,null,null,null,null," ","4.70.10.1","4.70.10.1"]
[null,null,null,null,null,null,null,null,null,null," ","4.70.10.2","4.70.10.2"]
[null,null,null,null,null,null,null,null,null,null," ","47.02","47.02"]
[null,null,null,null,null,null,null,null,null,null," ","47.06","47.06"]
[null,null,null,null,null,null,null,null,null,null," ","47.08","47.08"]
[null,null,null,null,null,null,null,null,null,null," ","47.10","47.10"]
[null,null,null,null,null,null,null,null,null,null," ","47.12","47.12"]
[null,null,null,null,null,null,null,null,null,null," ","4.75.01","4.75.01"]
[null,null,null,null,null,null,null,null,null,null," ","4.75.08","4.75.08"]
[null,null,null,null,null,null,null,null,null,null," ","4.79.01","4.79.01"]
[null,null,null,null,null,null,null,null,null,null," ","4.79.02","4.79.02"]
[null,null,null,null,null,null,null,null,null,null," ","4.79.08","4.79.08"]
[null,null,null,null,null,null,null,null,null,null," ","4.79.10","4.79.10"]
[null,null,null,null,null,null,null,null,null,null," ","48","48"]
[null,null,null,null,null,null,null,null,null,null," ","48.01","48.01"]
[null,null,null,null,null,null,null,null,null,null," ","48.02","48.02"]
[null,null,null,null,null,null,null,null,null,null," ","48.03","48.03"]
[null,null,null,null,null,null,null,null,null,null," ","48.04","48.04"]
[null,null,null,null,null,null,null,null,null,null," ","48.05","48.05"]
[null,null,null,null,null,null,null,null,null,null," ","48.06","48.06"]
[null,null,null,null,null,null,null,null,null,null," ","48.07","48.07"]
[null,null,null,null,null,null,null,null,null,null," ","48.08.1","48.08.1"]
[null,null,null,null,null,null,null,null,null,null," ","48.08.2","48.08.2"]
[null,null,null,null,null,null,null,null,null,null," ","48.09.1","48.09.1"]
[null,null,null,null,null,null,null,null,null,null," ","48.09.2","48.09.2"]
[null,null,null,null,null,null,null,null,null,null," ","48.10","48.10"]
[null,null,null,null,null,null,null,null,null,null," ","48.11","48.11"]
[null,null,null,null,null,null,null,null,null,null," ","48.12","48.12"]
[null,null,null,null,null,null,null,null,null,null," ","48.15","48.15"]
[null,null,null,null,null,null,null,null,null,null," ","48.16","48.16"]
[null,null,null,null,null,null,null,null,null,null," ","48.17","48.17"]
[null,null,null,null,null,null,null,null,null,null," ","48.18","48.18"]
[null,null,null,null,null,null,null,null,null,null," ","48.19","48.19"]
[null,null,null,null,null,null,null,null,null,null," ","48.20","48.20"]
[null,null,null,null,null,null,null,null,null,null," ","4.90.01","4.90.01"]
[null,null,null,null,null,null,null,null,null,null," ","4.90.08","4.90.08"]
[null,null,null,null,null,null,null,null,null,null," ","4.90.10","4.90.10"]
[null,null,null,null,null,null,null,null,null,null," ","490/1-01.00","490/1-01.00"]
[null,null,null,null,null,null,null,null,null,null," ","490/1-01.01","490/1-01.01"]
[null,null,null,null,null,null,null,null,null,null," ","490/1-01.03","490/1-01.03"]
[null,null,null,null,null,null,null,null,null,null," ","490/1-01.06","490/1-01.06"]
[null,null,null,null,null,null,null,null,null,null," ","490/1-01.08","490/1-01.08"]
[null,null,null,null,null,null,null,null,null,null," ","490/1-01.09","490/1-01.09"]
[null,null,null,null,null,null,null,null,null,null," ","490/1-01.10","490/1-01.10"]
[null,null,null,null,null,null,null,null,null,null," ","490/1-02.00","490/1-02.00"]
[null,null,null,null,null,null,null,null,null,null," ","490/1-02.01","490/1-02.01"]
[null,null,null,null,null,null,null,null,null,null," ","490/1-02.03","490/1-02.03"]
[null,null,null,null,null,null,null,null,null,null," ","490/1-02.06","490/1-02.06"]
[null,null,null,null,null,null,null,null,null,null," ","490/1-02.08","490/1-02.08"]
[null,null,null,null,null,null,null,null,null,null," ","490/1-02.09",{"$f":"IF($B$7=\"ETE\",K2439,L2439)","v":"490/1-02.09"}]
[null,null,null,null,null,null,null,null,null,null," ","490/1-02.10","490/1-02.10"]
[null,null,null,null,null,null,null,null,null,null," ","5","5"]
[null,null,null,null,null,null,null,null,null,null," ","5.I","5.I"]
[null,null,null,null,null,null,null,null,null,null," ","5.II","5.II"]
[null,null,null,null,null,null,null,null,null,null," ","5.III","5.III"]
[null,null,null,null,null,null,null,null,null,null," ","5.VII","5.VII"]
[null,null,null,null,null,null,null,null,null,null," ","5.VIII","5.VIII"]
[null,null,null,null,null,null,null,null,null,null," ","5.X","5.X"]
[null,null,null,null,null,null,null,null,null,null," ","50","50"]
[null,null,null,null,null,null,null,null,null,null," ","51","51"]
[null,null,null,null,null,null,null,null,null,null," ","51.01","51.01"]
[null,null,null,null,null,null,null,null,null,null," ","510/1-01.00","510/1-01.00"]
[null,null,null,null,null,null,null,null,null,null," ","510/1-01.01","510/1-01.01"]
[null,null,null,null,null,null,null,null,null,null," ","510/1-01.03","510/1-01.03"]
[null,null,null,null,null,null,null,null,null,null," ","510/1-01.06","510/1-01.06"]
[null,null,null,null,null,null,null,null,null,null," ","510/1-01.08","510/1-01.08"]
[null,null,null,null,null,null,null,null,null,null," ","510/1-01.09","510/1-01.09"]
[null,null,null,null,null,null,null,null,null,null," ","510/1-01.10","510/1-01.10"]
[null,null,null,null,null,null,null,null,null,null," ","510/1-02.00","510/1-02.00"]
[null,null,null,null,null,null,null,null,null,null," ","510/1-02.01","510/1-02.01"]
[null,null,null,null,null,null,null,null,null,null," ","510/1-02.03","510/1-02.03"]
[null,null,null,null,null,null,null,null,null,null," ","510/1-02.06","510/1-02.06"]
[null,null,null,null,null,null,null,null,null,null," ","510/1-02.08","510/1-02.08"]
[null,null,null,null,null,null,null,null,null,null," ","510/1-02.09","510/1-02.09"]
[null,null,null,null,null,null,null,null,null,null," ","510/1-02.10","510/1-02.10"]
[null,null,null,null,null,null,null,null,null,null," ","51.02","51.02"]
[null,null,null,null,null,null,null,null,null,null," ","51.03","51.03"]
[null,null,null,null,null,null,null,null,null,null," ","51.04","51.04"]
[null,null,null,null,null,null,null,null,null,null," ","51.05","51.05"]
[null,null,null,null,null,null,null,null,null,null," ","51.06","51.06"]
[null,null,null,null,null,null,null,null,null,null," ","51.07","51.07"]
[null,null,null,null,null,null,null,null,null,null," ","51.08","51.08"]
[null,null,null,null,null,null,null,null,null,null," ","51.10","51.10"]
[null,null,null,null,null,null,null,null,null,null," ","51.11","51.11"]
[null,null,null,null,null,null,null,null,null,null," ","511/1-01.00","511/1-01.00"]
[null,null,null,null,null,null,null,null,null,null," ","511/1-01.01","511/1-01.01"]
[null,null,null,null,null,null,null,null,null,null," ","511/1-01.03","511/1-01.03"]
[null,null,null,null,null,null,null,null,null,null," ","511/1-01.06","511/1-01.06"]
[null,null,null,null,null,null,null,null,null,null," ","511/1-01.08","511/1-01.08"]
[null,null,null,null,null,null,null,null,null,null," ","511/1-01.09","511/1-01.09"]
[null,null,null,null,null,null,null,null,null,null," ","511/1-01.10","511/1-01.10"]
[null,null,null,null,null,null,null,null,null,null," ","511/1-02.00","511/1-02.00"]
[null,null,null,null,null,null,null,null,null,null," ","511/1-02.01","511/1-02.01"]
[null,null,null,null,null,null,null,null,null,null," ","511/1-02.03","511/1-02.03"]
[null,null,null,null,null,null,null,null,null,null," ","511/1-02.06","511/1-02.06"]
[null,null,null,null,null,null,null,null,null,null," ","511/1-02.08","511/1-02.08"]
[null,null,null,null,null,null,null,null,null,null," ","511/1-02.09","511/1-02.09"]
[null,null,null,null,null,null,null,null,null,null," ","511/1-02.10","511/1-02.10"]
[null,null,null,null,null,null,null,null,null,null," ","51.12","51.12"]
[null,null,null,null,null,null,null,null,null,null," ","51.15","51.15"]
[null,null,null,null,null,null,null,null,null,null," ","51.16","51.16"]
[null,null,null,null,null,null,null,null,null,null," ","52","52"]
[null,null,null,null,null,null,null,null,null,null," ","52.02","52.02"]
[null,null,null,null,null,null,null,null,null,null," ","52.03","52.03"]
[null,null,null,null,null,null,null,null,null,null," ","52.06","52.06"]
[null,null,null,null,null,null,null,null,null,null," ","52.08","52.08"]
[null,null,null,null,null,null,null,null,null,null," ","521/1-01.00","521/1-01.00"]
[null,null,null,null,null,null,null,null,null,null," ","521/1-01.01","521/1-01.01"]
[null,null,null,null,null,null,null,null,null,null," ","521/1-01.03","521/1-01.03"]
[null,null,null,null,null,null,null,null,null,null," ","521/1-01.06","521/1-01.06"]
[null,null,null,null,null,null,null,null,null,null," ","521/1-01.08","521/1-01.08"]
[null,null,null,null,null,null,null,null,null,null," ","521/1-01.09","521/1-01.09"]
[null,null,null,null,null,null,null,null,null,null," ","521/1-01.10","521/1-01.10"]
[null,null,null,null,null,null,null,null,null,null," ","521/1-02.00",{"$f":"IF($B$7=\"ETE\",K2503,L2503)","v":"521/1-02.00"}]
[null,null,null,null,null,null,null,null,null,null," ","521/1-02.01","521/1-02.01"]
[null,null,null,null,null,null,null,null,null,null," ","521/1-02.03","521/1-02.03"]
[null,null,null,null,null,null,null,null,null,null," ","521/1-02.06","521/1-02.06"]
[null,null,null,null,null,null,null,null,null,null," ","521/1-02.08","521/1-02.08"]
[null,null,null,null,null,null,null,null,null,null," ","521/1-02.09","521/1-02.09"]
[null,null,null,null,null,null,null,null,null,null," ","521/1-02.10","521/1-02.10"]
[null,null,null,null,null,null,null,null,null,null," ","521/1-03.00","521/1-03.00"]
[null,null,null,null,null,null,null,null,null,null," ","521/1-03.08","521/1-03.08"]
[null,null,null,null,null,null,null,null,null,null," ","521/1-04.00","521/1-04.00"]
[null,null,null,null,null,null,null,null,null,null," ","521/1-04.08","521/1-04.08"]
[null,null,null,null,null,null,null,null,null,null," ","521/1-05.08","521/1-05.08"]
[null,null,null,null,null,null,null,null,null,null," ","52.12","52.12"]
[null,null,null,null,null,null,null,null,null,null," ","52.15","52.15"]
[null,null,null,null,null,null,null,null,null,null," ","522/1-01.00","522/1-01.00"]
[null,null,null,null,null,null,null,null,null,null," ","522/1-01.01","522/1-01.01"]
[null,null,null,null,null,null,null,null,null,null," ","522/1-01.03","522/1-01.03"]
[null,null,null,null,null,null,null,null,null,null," ","522/1-01.06","522/1-01.06"]
[null,null,null,null,null,null,null,null,null,null," ","522/1-01.08","522/1-01.08"]
[null,null,null,null,null,null,null,null,null,null," ","522/1-01.09","522/1-01.09"]
[null,null,null,null,null,null,null,null,null,null," ","522/1-01.10","522/1-01.10"]
[null,null,null,null,null,null,null,null,null,null," ","522/1-02.00","522/1-02.00"]
[null,null,null,null,null,null,null,null,null,null," ","522/1-02.01","522/1-02.01"]
[null,null,null,null,null,null,null,null,null,null," ","522/1-02.03","522/1-02.03"]
[null,null,null,null,null,null,null,null,null,null," ","522/1-02.06","522/1-02.06"]
[null,null,null,null,null,null,null,null,null,null," ","522/1-02.08","522/1-02.08"]
[null,null,null,null,null,null,null,null,null,null," ","522/1-02.09","522/1-02.09"]
[null,null,null,null,null,null,null,null,null,null," ","522/1-02.10","522/1-02.10"]
[null,null,null,null,null,null,null,null,null,null," ","524/1-01.00","524/1-01.00"]
[null,null,null,null,null,null,null,null,null,null," ","524/1-01.01","524/1-01.01"]
[null,null,null,null,null,null,null,null,null,null," ","524/1-01.03","524/1-01.03"]
[null,null,null,null,null,null,null,null,null,null," ","524/1-01.06","524/1-01.06"]
[null,null,null,null,null,null,null,null,null,null," ","524/1-01.08","524/1-01.08"]
[null,null,null,null,null,null,null,null,null,null," ","524/1-01.09","524/1-01.09"]
[null,null,null,null,null,null,null,null,null,null," ","524/1-01.10","524/1-01.10"]
[null,null,null,null,null,null,null,null,null,null," ","524/1-02.00","524/1-02.00"]
[null,null,null,null,null,null,null,null,null,null," ","524/1-02.01","524/1-02.01"]
[null,null,null,null,null,null,null,null,null,null," ","524/1-02.03","524/1-02.03"]
[null,null,null,null,null,null,null,null,null,null," ","524/1-02.06","524/1-02.06"]
[null,null,null,null,null,null,null,null,null,null," ","524/1-02.08","524/1-02.08"]
[null,null,null,null,null,null,null,null,null,null," ","524/1-02.09","524/1-02.09"]
[null,null,null,null,null,null,null,null,null,null," ","524/1-02.10","524/1-02.10"]
[null,null,null,null,null,null,null,null,null,null," ","528/3-01.00","528/3-01.00"]
[null,null,null,null,null,null,null,null,null,null," ","528/3-01.01","528/3-01.01"]
[null,null,null,null,null,null,null,null,null,null," ","528/3-01.03","528/3-01.03"]
[null,null,null,null,null,null,null,null,null,null," ","528/3-01.06","528/3-01.06"]
[null,null,null,null,null,null,null,null,null,null," ","528/3-01.08","528/3-01.08"]
[null,null,null,null,null,null,null,null,null,null," ","528/3-01.09","528/3-01.09"]
[null,null,null,null,null,null,null,null,null,null," ","528/3-01.10","528/3-01.10"]
[null,null,null,null,null,null,null,null,null,null," ","529/1-01.00","529/1-01.00"]
[null,null,null,null,null,null,null,null,null,null," ","529/1-01.01","529/1-01.01"]
[null,null,null,null,null,null,null,null,null,null," ","529/1-01.03","529/1-01.03"]
[null,null,null,null,null,null,null,null,null,null," ","529/1-01.06","529/1-01.06"]
[null,null,null,null,null,null,null,null,null,null," ","529/1-01.08","529/1-01.08"]
[null,null,null,null,null,null,null,null,null,null," ","529/1-01.09","529/1-01.09"]
[null,null,null,null,null,null,null,null,null,null," ","529/1-01.10","529/1-01.10"]
[null,null,null,null,null,null,null,null,null,null," ","529/1-16.2.00","529/1-16.2.00"]
[null,null,null,null,null,null,null,null,null,null," ","529/1-16.2.01","529/1-16.2.01"]
[null,null,null,null,null,null,null,null,null,null," ","529/1-16.2.03","529/1-16.2.03"]
[null,null,null,null,null,null,null,null,null,null," ","529/1-16.2.06","529/1-16.2.06"]
[null,null,null,null,null,null,null,null,null,null," ","529/1-16.2.08","529/1-16.2.08"]
[null,null,null,null,null,null,null,null,null,null," ","529/1-16.2.09","529/1-16.2.09"]
[null,null,null,null,null,null,null,null,null,null," ","529/1-16.2.10","529/1-16.2.10"]
[null,null,null,null,null,null,null,null,null,null," ","53","53"]
[null,null,null,null,null,null,null,null,null,null," ","53.01",{"$f":"IF($B$7=\"ETE\",K2567,L2567)","v":"53.01"}]
[null,null,null,null,null,null,null,null,null,null," ","530/1-01.00","530/1-01.00"]
[null,null,null,null,null,null,null,null,null,null," ","530/1-01.01","530/1-01.01"]
[null,null,null,null,null,null,null,null,null,null," ","530/1-01.03","530/1-01.03"]
[null,null,null,null,null,null,null,null,null,null," ","530/1-01.06","530/1-01.06"]
[null,null,null,null,null,null,null,null,null,null," ","530/1-01.08","530/1-01.08"]
[null,null,null,null,null,null,null,null,null,null," ","530/1-01.09","530/1-01.09"]
[null,null,null,null,null,null,null,null,null,null," ","530/1-01.10","530/1-01.10"]
[null,null,null,null,null,null,null,null,null,null," ","530/1-01.2.00","530/1-01.2.00"]
[null,null,null,null,null,null,null,null,null,null," ","530/1-01.2.01","530/1-01.2.01"]
[null,null,null,null,null,null,null,null,null,null," ","530/1-01.2.03","530/1-01.2.03"]
[null,null,null,null,null,null,null,null,null,null," ","530/1-01.2.06","530/1-01.2.06"]
[null,null,null,null,null,null,null,null,null,null," ","530/1-01.2.08","530/1-01.2.08"]
[null,null,null,null,null,null,null,null,null,null," ","530/1-01.2.09","530/1-01.2.09"]
[null,null,null,null,null,null,null,null,null,null," ","530/1-01.2.10","530/1-01.2.10"]
[null,null,null,null,null,null,null,null,null,null," ","530/1-01.3.00","530/1-01.3.00"]
[null,null,null,null,null,null,null,null,null,null," ","530/1-01.3.01","530/1-01.3.01"]
[null,null,null,null,null,null,null,null,null,null," ","530/1-01.3.03","530/1-01.3.03"]
[null,null,null,null,null,null,null,null,null,null," ","530/1-01.3.06","530/1-01.3.06"]
[null,null,null,null,null,null,null,null,null,null," ","530/1-01.3.08","530/1-01.3.08"]
[null,null,null,null,null,null,null,null,null,null," ","530/1-01.3.09","530/1-01.3.09"]
[null,null,null,null,null,null,null,null,null,null," ","530/1-01.3.10","530/1-01.3.10"]
[null,null,null,null,null,null,null,null,null,null," ","530/1-02.00","530/1-02.00"]
[null,null,null,null,null,null,null,null,null,null," ","530/1-02.01","530/1-02.01"]
[null,null,null,null,null,null,null,null,null,null," ","530/1-02.03","530/1-02.03"]
[null,null,null,null,null,null,null,null,null,null," ","530/1-02.06","530/1-02.06"]
[null,null,null,null,null,null,null,null,null,null," ","530/1-02.08","530/1-02.08"]
[null,null,null,null,null,null,null,null,null,null," ","530/1-02.09","530/1-02.09"]
[null,null,null,null,null,null,null,null,null,null," ","530/1-02.10","530/1-02.10"]
[null,null,null,null,null,null,null,null,null,null," ","530/1-02.2.00","530/1-02.2.00"]
[null,null,null,null,null,null,null,null,null,null," ","530/1-02.2.01","530/1-02.2.01"]
[null,null,null,null,null,null,null,null,null,null," ","530/1-02.2.03","530/1-02.2.03"]
[null,null,null,null,null,null,null,null,null,null," ","530/1-02.2.06","530/1-02.2.06"]
[null,null,null,null,null,null,null,null,null,null," ","530/1-02.2.08","530/1-02.2.08"]
[null,null,null,null,null,null,null,null,null,null," ","530/1-02.2.09","530/1-02.2.09"]
[null,null,null,null,null,null,null,null,null,null," ","530/1-02.2.10","530/1-02.2.10"]
[null,null,null,null,null,null,null,null,null,null," ","530/1-02.3.00","530/1-02.3.00"]
[null,null,null,null,null,null,null,null,null,null," ","530/1-02.3.01","530/1-02.3.01"]
[null,null,null,null,null,null,null,null,null,null," ","530/1-02.3.03","530/1-02.3.03"]
[null,null,null,null,null,null,null,null,null,null," ","530/1-02.3.06","530/1-02.3.06"]
[null,null,null,null,null,null,null,null,null,null," ","530/1-02.3.08","530/1-02.3.08"]
[null,null,null,null,null,null,null,null,null,null," ","530/1-02.3.09","530/1-02.3.09"]
[null,null,null,null,null,null,null,null,null,null," ","530/1-02.3.10","530/1-02.3.10"]
[null,null,null,null,null,null,null,null,null,null," ","530/1-03.00","530/1-03.00"]
[null,null,null,null,null,null,null,null,null,null," ","530/1-03.01","530/1-03.01"]
[null,null,null,null,null,null,null,null,null,null," ","530/1-04.00","530/1-04.00"]
[null,null,null,null,null,null,null,null,null,null," ","530/1-04.01","530/1-04.01"]
[null,null,null,null,null,null,null,null,null,null," ","53.02","53.02"]
[null,null,null,null,null,null,null,null,null,null," ","53.03","53.03"]
[null,null,null,null,null,null,null,null,null,null," ","53.04","53.04"]
[null,null,null,null,null,null,null,null,null,null," ","53.05","53.05"]
[null,null,null,null,null,null,null,null,null,null," ","53.06","53.06"]
[null,null,null,null,null,null,null,null,null,null," ","53.07","53.07"]
[null,null,null,null,null,null,null,null,null,null," ","53.08","53.08"]
[null,null,null,null,null,null,null,null,null,null," ","53.10","53.10"]
[null,null,null,null,null,null,null,null,null,null," ","531/1-01.00","531/1-01.00"]
[null,null,null,null,null,null,null,null,null,null," ","531/1-01.01","531/1-01.01"]
[null,null,null,null,null,null,null,null,null,null," ","531/1-01.03","531/1-01.03"]
[null,null,null,null,null,null,null,null,null,null," ","531/1-01.06","531/1-01.06"]
[null,null,null,null,null,null,null,null,null,null," ","531/1-01.08","531/1-01.08"]
[null,null,null,null,null,null,null,null,null,null," ","531/1-01.09","531/1-01.09"]
[null,null,null,null,null,null,null,null,null,null," ","531/1-01.10","531/1-01.10"]
[null,null,null,null,null,null,null,null,null,null," ","531/1-02.00","531/1-02.00"]
[null,null,null,null,null,null,null,null,null,null," ","531/1-02.01","531/1-02.01"]
[null,null,null,null,null,null,null,null,null,null," ","531/1-02.03",{"$f":"IF($B$7=\"ETE\",K2631,L2631)","v":"531/1-02.03"}]
[null,null,null,null,null,null,null,null,null,null," ","531/1-02.06","531/1-02.06"]
[null,null,null,null,null,null,null,null,null,null," ","531/1-02.08","531/1-02.08"]
[null,null,null,null,null,null,null,null,null,null," ","531/1-02.10","531/1-02.10"]
[null,null,null,null,null,null,null,null,null,null," ","531/1-03.00","531/1-03.00"]
[null,null,null,null,null,null,null,null,null,null," ","531/1-03.01","531/1-03.01"]
[null,null,null,null,null,null,null,null,null,null," ","531/1-04.00","531/1-04.00"]
[null,null,null,null,null,null,null,null,null,null," ","531/1-04.01","531/1-04.01"]
[null,null,null,null,null,null,null,null,null,null," ","53.12","53.12"]
[null,null,null,null,null,null,null,null,null,null," ","53.13","53.13"]
[null,null,null,null,null,null,null,null,null,null," ","53.15","53.15"]
[null,null,null,null,null,null,null,null,null,null," ","53.17","53.17"]
[null,null,null,null,null,null,null,null,null,null," ","532/1-01.00","532/1-01.00"]
[null,null,null,null,null,null,null,null,null,null," ","532/1-01.01","532/1-01.01"]
[null,null,null,null,null,null,null,null,null,null," ","532/1-01.03","532/1-01.03"]
[null,null,null,null,null,null,null,null,null,null," ","532/1-01.06","532/1-01.06"]
[null,null,null,null,null,null,null,null,null,null," ","532/1-01.08","532/1-01.08"]
[null,null,null,null,null,null,null,null,null,null," ","532/1-01.09","532/1-01.09"]
[null,null,null,null,null,null,null,null,null,null," ","532/1-01.10","532/1-01.10"]
[null,null,null,null,null,null,null,null,null,null," ","54","54"]
[null,null,null,null,null,null,null,null,null,null," ","54.01","54.01"]
[null,null,null,null,null,null,null,null,null,null," ","54.02","54.02"]
[null,null,null,null,null,null,null,null,null,null," ","54.03","54.03"]
[null,null,null,null,null,null,null,null,null,null," ","54.05","54.05"]
[null,null,null,null,null,null,null,null,null,null," ","54.06","54.06"]
[null,null,null,null,null,null,null,null,null,null," ","54.07","54.07"]
[null,null,null,null,null,null,null,null,null,null," ","54.08","54.08"]
[null,null,null,null,null,null,null,null,null,null," ","54.10","54.10"]
[null,null,null,null,null,null,null,null,null,null," ","54.10.4","54.10.4"]
[null,null,null,null,null,null,null,null,null,null," ","54.11","54.11"]
[null,null,null,null,null,null,null,null,null,null," ","54.12","54.12"]
[null,null,null,null,null,null,null,null,null,null," ","54.13","54.13"]
[null,null,null,null,null,null,null,null,null,null," ","54.14","54.14"]
[null,null,null,null,null,null,null,null,null,null," ","54.15","54.15"]
[null,null,null,null,null,null,null,null,null,null," ","54.16","54.16"]
[null,null,null,null,null,null,null,null,null,null," ","55","55"]
[null,null,null,null,null,null,null,null,null,null," ","55.01","55.01"]
[null,null,null,null,null,null,null,null,null,null," ","55.07","55.07"]
[null,null,null,null,null,null,null,null,null,null," ","55.08","55.08"]
[null,null,null,null,null,null,null,null,null,null," ","55.10","55.10"]
[null,null,null,null,null,null,null,null,null,null," ","561/1-01.00","561/1-01.00"]
[null,null,null,null,null,null,null,null,null,null," ","561/1-01.01","561/1-01.01"]
[null,null,null,null,null,null,null,null,null,null," ","561/1-01.03","561/1-01.03"]
[null,null,null,null,null,null,null,null,null,null," ","561/1-01.06","561/1-01.06"]
[null,null,null,null,null,null,null,null,null,null," ","561/1-01.08","561/1-01.08"]
[null,null,null,null,null,null,null,null,null,null," ","561/1-01.09","561/1-01.09"]
[null,null,null,null,null,null,null,null,null,null," ","561/1-01.10","561/1-01.10"]
[null,null,null,null,null,null,null,null,null,null," ","561/3-01.00","561/3-01.00"]
[null,null,null,null,null,null,null,null,null,null," ","561/3-01.01","561/3-01.01"]
[null,null,null,null,null,null,null,null,null,null," ","561/3-01.03","561/3-01.03"]
[null,null,null,null,null,null,null,null,null,null," ","561/3-01.06","561/3-01.06"]
[null,null,null,null,null,null,null,null,null,null," ","561/3-01.08","561/3-01.08"]
[null,null,null,null,null,null,null,null,null,null," ","561/3-01.09","561/3-01.09"]
[null,null,null,null,null,null,null,null,null,null," ","561/3-01.10","561/3-01.10"]
[null,null,null,null,null,null,null,null,null,null," ","562/1-01.00","562/1-01.00"]
[null,null,null,null,null,null,null,null,null,null," ","562/1-01.01","562/1-01.01"]
[null,null,null,null,null,null,null,null,null,null," ","562/1-01.03","562/1-01.03"]
[null,null,null,null,null,null,null,null,null,null," ","562/1-01.06","562/1-01.06"]
[null,null,null,null,null,null,null,null,null,null," ","562/1-01.08","562/1-01.08"]
[null,null,null,null,null,null,null,null,null,null," ","562/1-01.09","562/1-01.09"]
[null,null,null,null,null,null,null,null,null,null," ","562/1-01.10","562/1-01.10"]
[null,null,null,null,null,null,null,null,null,null," ","57","57"]
[null,null,null,null,null,null,null,null,null,null," ","57.01","57.01"]
[null,null,null,null,null,null,null,null,null,null," ","57.02","57.02"]
[null,null,null,null,null,null,null,null,null,null," ","57.08",{"$f":"IF($B$7=\"ETE\",K2695,L2695)","v":"57.08"}]
[null,null,null,null,null,null,null,null,null,null," ","57.09","57.09"]
[null,null,null,null,null,null,null,null,null,null," ","573/4-01.00","573/4-01.00"]
[null,null,null,null,null,null,null,null,null,null," ","573/4-01.01","573/4-01.01"]
[null,null,null,null,null,null,null,null,null,null," ","573/4-01.03","573/4-01.03"]
[null,null,null,null,null,null,null,null,null,null," ","573/4-01.06","573/4-01.06"]
[null,null,null,null,null,null,null,null,null,null," ","573/4-01.08","573/4-01.08"]
[null,null,null,null,null,null,null,null,null,null," ","573/4-01.09","573/4-01.09"]
[null,null,null,null,null,null,null,null,null,null," ","573/4-01.10","573/4-01.10"]
[null,null,null,null,null,null,null,null,null,null," ","576/4-01.00","576/4-01.00"]
[null,null,null,null,null,null,null,null,null,null," ","576/4-01.01","576/4-01.01"]
[null,null,null,null,null,null,null,null,null,null," ","576/4-01.03","576/4-01.03"]
[null,null,null,null,null,null,null,null,null,null," ","576/4-01.06","576/4-01.06"]
[null,null,null,null,null,null,null,null,null,null," ","576/4-01.08","576/4-01.08"]
[null,null,null,null,null,null,null,null,null,null," ","576/4-01.09","576/4-01.09"]
[null,null,null,null,null,null,null,null,null,null," ","576/4-01.10","576/4-01.10"]
[null,null,null,null,null,null,null,null,null,null," ","58","58"]
[null,null,null,null,null,null,null,null,null,null," ","580/1-01.00","580/1-01.00"]
[null,null,null,null,null,null,null,null,null,null," ","580/1-01.03","580/1-01.03"]
[null,null,null,null,null,null,null,null,null,null," ","580/1-01.08","580/1-01.08"]
[null,null,null,null,null,null,null,null,null,null," ","580/1-01.09","580/1-01.09"]
[null,null,null,null,null,null,null,null,null,null," ","580/1-02.00","580/1-02.00"]
[null,null,null,null,null,null,null,null,null,null," ","580/1-02.03","580/1-02.03"]
[null,null,null,null,null,null,null,null,null,null," ","580/1-02.08","580/1-02.08"]
[null,null,null,null,null,null,null,null,null,null," ","580/1-02.09","580/1-02.09"]
[null,null,null,null,null,null,null,null,null,null," ","58.02","58.02"]
[null,null,null,null,null,null,null,null,null,null," ","58.08","58.08"]
[null,null,null,null,null,null,null,null,null,null," ","58.10.8","58.10.8"]
[null,null,null,null,null,null,null,null,null,null," ","581/1-01.00","581/1-01.00"]
[null,null,null,null,null,null,null,null,null,null," ","581/1-01.01","581/1-01.01"]
[null,null,null,null,null,null,null,null,null,null," ","581/1-01.03","581/1-01.03"]
[null,null,null,null,null,null,null,null,null,null," ","581/1-01.06","581/1-01.06"]
[null,null,null,null,null,null,null,null,null,null," ","581/1-01.08","581/1-01.08"]
[null,null,null,null,null,null,null,null,null,null," ","581/1-01.09","581/1-01.09"]
[null,null,null,null,null,null,null,null,null,null," ","581/1-01.10","581/1-01.10"]
[null,null,null,null,null,null,null,null,null,null," ","581/1-02.00","581/1-02.00"]
[null,null,null,null,null,null,null,null,null,null," ","581/1-02.01","581/1-02.01"]
[null,null,null,null,null,null,null,null,null,null," ","581/1-02.03","581/1-02.03"]
[null,null,null,null,null,null,null,null,null,null," ","581/1-02.06","581/1-02.06"]
[null,null,null,null,null,null,null,null,null,null," ","581/1-02.08","581/1-02.08"]
[null,null,null,null,null,null,null,null,null,null," ","581/1-02.09","581/1-02.09"]
[null,null,null,null,null,null,null,null,null,null," ","581/1-02.10","581/1-02.10"]
[null,null,null,null,null,null,null,null,null,null," ","581/1-03.00","581/1-03.00"]
[null,null,null,null,null,null,null,null,null,null," ","581/1-03.01","581/1-03.01"]
[null,null,null,null,null,null,null,null,null,null," ","581/1-03.03","581/1-03.03"]
[null,null,null,null,null,null,null,null,null,null," ","581/1-03.06","581/1-03.06"]
[null,null,null,null,null,null,null,null,null,null," ","581/1-03.08","581/1-03.08"]
[null,null,null,null,null,null,null,null,null,null," ","581/1-03.09","581/1-03.09"]
[null,null,null,null,null,null,null,null,null,null," ","581/1-03.10","581/1-03.10"]
[null,null,null,null,null,null,null,null,null,null," ","581/1-04.00","581/1-04.00"]
[null,null,null,null,null,null,null,null,null,null," ","581/1-04.01","581/1-04.01"]
[null,null,null,null,null,null,null,null,null,null," ","581/1-04.03","581/1-04.03"]
[null,null,null,null,null,null,null,null,null,null," ","581/1-04.06","581/1-04.06"]
[null,null,null,null,null,null,null,null,null,null," ","581/1-04.08","581/1-04.08"]
[null,null,null,null,null,null,null,null,null,null," ","581/1-04.09","581/1-04.09"]
[null,null,null,null,null,null,null,null,null,null," ","581/1-04.10","581/1-04.10"]
[null,null,null,null,null,null,null,null,null,null," ","581/1-05.00","581/1-05.00"]
[null,null,null,null,null,null,null,null,null,null," ","581/1-05.01","581/1-05.01"]
[null,null,null,null,null,null,null,null,null,null," ","581/1-05.03","581/1-05.03"]
[null,null,null,null,null,null,null,null,null,null," ","581/1-05.06","581/1-05.06"]
[null,null,null,null,null,null,null,null,null,null," ","581/1-05.08","581/1-05.08"]
[null,null,null,null,null,null,null,null,null,null," ","581/1-05.09","581/1-05.09"]
[null,null,null,null,null,null,null,null,null,null," ","581/1-05.10","581/1-05.10"]
[null,null,null,null,null,null,null,null,null,null," ","581/1-06.00","581/1-06.00"]
[null,null,null,null,null,null,null,null,null,null," ","581/1-06.01",{"$f":"IF($B$7=\"ETE\",K2759,L2759)","v":"581/1-06.01"}]
[null,null,null,null,null,null,null,null,null,null," ","581/1-06.03","581/1-06.03"]
[null,null,null,null,null,null,null,null,null,null," ","581/1-06.06","581/1-06.06"]
[null,null,null,null,null,null,null,null,null,null," ","581/1-06.08","581/1-06.08"]
[null,null,null,null,null,null,null,null,null,null," ","581/1-06.09","581/1-06.09"]
[null,null,null,null,null,null,null,null,null,null," ","581/1-06.10","581/1-06.10"]
[null,null,null,null,null,null,null,null,null,null," ","581/1-07.00","581/1-07.00"]
[null,null,null,null,null,null,null,null,null,null," ","581/1-07.01","581/1-07.01"]
[null,null,null,null,null,null,null,null,null,null," ","581/1-07.03","581/1-07.03"]
[null,null,null,null,null,null,null,null,null,null," ","581/1-07.06","581/1-07.06"]
[null,null,null,null,null,null,null,null,null,null," ","581/1-07.08","581/1-07.08"]
[null,null,null,null,null,null,null,null,null,null," ","581/1-07.09","581/1-07.09"]
[null,null,null,null,null,null,null,null,null,null," ","581/1-07.10","581/1-07.10"]
[null,null,null,null,null,null,null,null,null,null," ","581/1-08.00","581/1-08.00"]
[null,null,null,null,null,null,null,null,null,null," ","581/1-08.01","581/1-08.01"]
[null,null,null,null,null,null,null,null,null,null," ","581/1-08.03","581/1-08.03"]
[null,null,null,null,null,null,null,null,null,null," ","581/1-08.06","581/1-08.06"]
[null,null,null,null,null,null,null,null,null,null," ","581/1-08.08","581/1-08.08"]
[null,null,null,null,null,null,null,null,null,null," ","581/1-08.09","581/1-08.09"]
[null,null,null,null,null,null,null,null,null,null," ","581/1-08.10","581/1-08.10"]
[null,null,null,null,null,null,null,null,null,null," ","581/1-09.00","581/1-09.00"]
[null,null,null,null,null,null,null,null,null,null," ","581/1-09.01","581/1-09.01"]
[null,null,null,null,null,null,null,null,null,null," ","581/1-09.03","581/1-09.03"]
[null,null,null,null,null,null,null,null,null,null," ","581/1-09.06","581/1-09.06"]
[null,null,null,null,null,null,null,null,null,null," ","581/1-09.08","581/1-09.08"]
[null,null,null,null,null,null,null,null,null,null," ","581/1-09.09","581/1-09.09"]
[null,null,null,null,null,null,null,null,null,null," ","581/1-09.10","581/1-09.10"]
[null,null,null,null,null,null,null,null,null,null," ","581/1-10.00","581/1-10.00"]
[null,null,null,null,null,null,null,null,null,null," ","581/1-10.01","581/1-10.01"]
[null,null,null,null,null,null,null,null,null,null," ","581/1-10.03","581/1-10.03"]
[null,null,null,null,null,null,null,null,null,null," ","581/1-10.06","581/1-10.06"]
[null,null,null,null,null,null,null,null,null,null," ","581/1-10.08","581/1-10.08"]
[null,null,null,null,null,null,null,null,null,null," ","581/1-10.09","581/1-10.09"]
[null,null,null,null,null,null,null,null,null,null," ","581/1-10.10","581/1-10.10"]
[null,null,null,null,null,null,null,null,null,null," ","582/1-01.00","582/1-01.00"]
[null,null,null,null,null,null,null,null,null,null," ","582/1-01.01","582/1-01.01"]
[null,null,null,null,null,null,null,null,null,null," ","582/1-01.03","582/1-01.03"]
[null,null,null,null,null,null,null,null,null,null," ","582/1-01.06","582/1-01.06"]
[null,null,null,null,null,null,null,null,null,null," ","582/1-01.08","582/1-01.08"]
[null,null,null,null,null,null,null,null,null,null," ","582/1-01.09","582/1-01.09"]
[null,null,null,null,null,null,null,null,null,null," ","582/1-01.10","582/1-01.10"]
[null,null,null,null,null,null,null,null,null,null," ","582/1-02.00","582/1-02.00"]
[null,null,null,null,null,null,null,null,null,null," ","582/1-02.01","582/1-02.01"]
[null,null,null,null,null,null,null,null,null,null," ","582/1-02.03","582/1-02.03"]
[null,null,null,null,null,null,null,null,null,null," ","582/1-02.06","582/1-02.06"]
[null,null,null,null,null,null,null,null,null,null," ","582/1-02.08","582/1-02.08"]
[null,null,null,null,null,null,null,null,null,null," ","582/1-02.09","582/1-02.09"]
[null,null,null,null,null,null,null,null,null,null," ","582/1-02.10","582/1-02.10"]
[null,null,null,null,null,null,null,null,null,null," ","582/1-03.00","582/1-03.00"]
[null,null,null,null,null,null,null,null,null,null," ","582/1-03.01","582/1-03.01"]
[null,null,null,null,null,null,null,null,null,null," ","582/1-03.03","582/1-03.03"]
[null,null,null,null,null,null,null,null,null,null," ","582/1-03.06","582/1-03.06"]
[null,null,null,null,null,null,null,null,null,null," ","582/1-03.08","582/1-03.08"]
[null,null,null,null,null,null,null,null,null,null," ","582/1-03.09","582/1-03.09"]
[null,null,null,null,null,null,null,null,null,null," ","582/1-03.10","582/1-03.10"]
[null,null,null,null,null,null,null,null,null,null," ","583/1-01.00","583/1-01.00"]
[null,null,null,null,null,null,null,null,null,null," ","583/1-01.01","583/1-01.01"]
[null,null,null,null,null,null,null,null,null,null," ","583/1-01.03","583/1-01.03"]
[null,null,null,null,null,null,null,null,null,null," ","583/1-01.06","583/1-01.06"]
[null,null,null,null,null,null,null,null,null,null," ","583/1-01.08","583/1-01.08"]
[null,null,null,null,null,null,null,null,null,null," ","583/1-01.09","583/1-01.09"]
[null,null,null,null,null,null,null,null,null,null," ","583/1-01.10","583/1-01.10"]
[null,null,null,null,null,null,null,null,null,null," ","583/1-02.00","583/1-02.00"]
[null,null,null,null,null,null,null,null,null,null," ","583/1-02.01","583/1-02.01"]
[null,null,null,null,null,null,null,null,null,null," ","583/1-02.06",{"$f":"IF($B$7=\"ETE\",K2823,L2823)","v":"583/1-02.06"}]
[null,null,null,null,null,null,null,null,null,null," ","583/1-02.08","583/1-02.08"]
[null,null,null,null,null,null,null,null,null,null," ","583/1-02.10","583/1-02.10"]
[null,null,null,null,null,null,null,null,null,null," ","584/1-01.00","584/1-01.00"]
[null,null,null,null,null,null,null,null,null,null," ","584/1-01.01","584/1-01.01"]
[null,null,null,null,null,null,null,null,null,null," ","584/1-01.03","584/1-01.03"]
[null,null,null,null,null,null,null,null,null,null," ","584/1-01.06","584/1-01.06"]
[null,null,null,null,null,null,null,null,null,null," ","584/1-01.08","584/1-01.08"]
[null,null,null,null,null,null,null,null,null,null," ","584/1-01.09","584/1-01.09"]
[null,null,null,null,null,null,null,null,null,null," ","584/1-01.10","584/1-01.10"]
[null,null,null,null,null,null,null,null,null,null," ","584/1-02.00","584/1-02.00"]
[null,null,null,null,null,null,null,null,null,null," ","584/1-02.01","584/1-02.01"]
[null,null,null,null,null,null,null,null,null,null," ","584/1-02.03","584/1-02.03"]
[null,null,null,null,null,null,null,null,null,null," ","584/1-02.06","584/1-02.06"]
[null,null,null,null,null,null,null,null,null,null," ","584/1-02.08","584/1-02.08"]
[null,null,null,null,null,null,null,null,null,null," ","584/1-02.09","584/1-02.09"]
[null,null,null,null,null,null,null,null,null,null," ","584/1-02.10","584/1-02.10"]
[null,null,null,null,null,null,null,null,null,null," ","590/1-01.00","590/1-01.00"]
[null,null,null,null,null,null,null,null,null,null," ","590/1-01.01","590/1-01.01"]
[null,null,null,null,null,null,null,null,null,null," ","590/1-01.03","590/1-01.03"]
[null,null,null,null,null,null,null,null,null,null," ","590/1-01.06","590/1-01.06"]
[null,null,null,null,null,null,null,null,null,null," ","590/1-01.08","590/1-01.08"]
[null,null,null,null,null,null,null,null,null,null," ","590/1-01.09","590/1-01.09"]
[null,null,null,null,null,null,null,null,null,null," ","590/1-01.10","590/1-01.10"]
[null,null,null,null,null,null,null,null,null,null," ","590/1-02.00","590/1-02.00"]
[null,null,null,null,null,null,null,null,null,null," ","590/1-02.01","590/1-02.01"]
[null,null,null,null,null,null,null,null,null,null," ","590/1-02.03","590/1-02.03"]
[null,null,null,null,null,null,null,null,null,null," ","590/1-02.06","590/1-02.06"]
[null,null,null,null,null,null,null,null,null,null," ","590/1-02.08","590/1-02.08"]
[null,null,null,null,null,null,null,null,null,null," ","590/1-02.09","590/1-02.09"]
[null,null,null,null,null,null,null,null,null,null," ","590/1-02.10","590/1-02.10"]
[null,null,null,null,null,null,null,null,null,null," ","59.1","59.1"]
[null,null,null,null,null,null,null,null,null,null," ","59.1.01","59.1.01"]
[null,null,null,null,null,null,null,null,null,null," ","59.1.02","59.1.02"]
[null,null,null,null,null,null,null,null,null,null," ","59.1.06","59.1.06"]
[null,null,null,null,null,null,null,null,null,null," ","59.1.08","59.1.08"]
[null,null,null,null,null,null,null,null,null,null," ","59.1.10","59.1.10"]
[null,null,null,null,null,null,null,null,null,null," ","591/1-01.00","591/1-01.00"]
[null,null,null,null,null,null,null,null,null,null," ","591/1-01.01","591/1-01.01"]
[null,null,null,null,null,null,null,null,null,null," ","591/1-01.03","591/1-01.03"]
[null,null,null,null,null,null,null,null,null,null," ","591/1-01.06","591/1-01.06"]
[null,null,null,null,null,null,null,null,null,null," ","591/1-01.08","591/1-01.08"]
[null,null,null,null,null,null,null,null,null,null," ","591/1-01.09","591/1-01.09"]
[null,null,null,null,null,null,null,null,null,null," ","591/1-01.10","591/1-01.10"]
[null,null,null,null,null,null,null,null,null,null," ","59.1.12","59.1.12"]
[null,null,null,null,null,null,null,null,null,null," ","59.1.15","59.1.15"]
[null,null,null,null,null,null,null,null,null,null," ","592/1-01.00","592/1-01.00"]
[null,null,null,null,null,null,null,null,null,null," ","592/1-01.01","592/1-01.01"]
[null,null,null,null,null,null,null,null,null,null," ","592/1-01.03","592/1-01.03"]
[null,null,null,null,null,null,null,null,null,null," ","592/1-01.06","592/1-01.06"]
[null,null,null,null,null,null,null,null,null,null," ","592/1-01.08","592/1-01.08"]
[null,null,null,null,null,null,null,null,null,null," ","592/1-01.09","592/1-01.09"]
[null,null,null,null,null,null,null,null,null,null," ","592/1-01.10","592/1-01.10"]
[null,null,null,null,null,null,null,null,null,null," ","59.3","59.3"]
[null,null,null,null,null,null,null,null,null,null," ","59.3.01","59.3.01"]
[null,null,null,null,null,null,null,null,null,null," ","59.3.02","59.3.02"]
[null,null,null,null,null,null,null,null,null,null," ","59.3.08","59.3.08"]
[null,null,null,null,null,null,null,null,null,null," ","59.3.10","59.3.10"]
[null,null,null,null,null,null,null,null,null,null," ","593/1-01.00","593/1-01.00"]
[null,null,null,null,null,null,null,null,null,null," ","593/1-01.01","593/1-01.01"]
[null,null,null,null,null,null,null,null,null,null," ","593/1-01.03","593/1-01.03"]
[null,null,null,null,null,null,null,null,null,null," ","593/1-01.06","593/1-01.06"]
[null,null,null,null,null,null,null,null,null,null," ","593/1-01.08","593/1-01.08"]
[null,null,null,null,null,null,null,null,null,null," ","593/1-01.09","593/1-01.09"]
[null,null,null,null,null,null,null,null,null,null," ","593/1-01.10",{"$f":"IF($B$7=\"ETE\",K2887,L2887)","v":"593/1-01.10"}]
[null,null,null,null,null,null,null,null,null,null," ","593/1-02.00","593/1-02.00"]
[null,null,null,null,null,null,null,null,null,null," ","593/1-02.01","593/1-02.01"]
[null,null,null,null,null,null,null,null,null,null," ","593/1-02.03","593/1-02.03"]
[null,null,null,null,null,null,null,null,null,null," ","593/1-02.06","593/1-02.06"]
[null,null,null,null,null,null,null,null,null,null," ","593/1-02.08","593/1-02.08"]
[null,null,null,null,null,null,null,null,null,null," ","593/1-02.09","593/1-02.09"]
[null,null,null,null,null,null,null,null,null,null," ","593/1-02.10","593/1-02.10"]
[null,null,null,null,null,null,null,null,null,null," ","593/1-03.00","593/1-03.00"]
[null,null,null,null,null,null,null,null,null,null," ","593/1-03.01","593/1-03.01"]
[null,null,null,null,null,null,null,null,null,null," ","593/1-04.00","593/1-04.00"]
[null,null,null,null,null,null,null,null,null,null," ","593/1-04.01","593/1-04.01"]
[null,null,null,null,null,null,null,null,null,null," ","6","6"]
[null,null,null,null,null,null,null,null,null,null," ","6.I","6.I"]
[null,null,null,null,null,null,null,null,null,null," ","6.II","6.II"]
[null,null,null,null,null,null,null,null,null,null," ","6.III","6.III"]
[null,null,null,null,null,null,null,null,null,null," ","60","60"]
[null,null,null,null,null,null,null,null,null,null," ","60.01","60.01"]
[null,null,null,null,null,null,null,null,null,null," ","60.02","60.02"]
[null,null,null,null,null,null,null,null,null,null," ","60.03","60.03"]
[null,null,null,null,null,null,null,null,null,null," ","60.04","60.04"]
[null,null,null,null,null,null,null,null,null,null," ","60.05","60.05"]
[null,null,null,null,null,null,null,null,null,null," ","60.08","60.08"]
[null,null,null,null,null,null,null,null,null,null," ","60.10","60.10"]
[null,null,null,null,null,null,null,null,null,null," ","60.11","60.11"]
[null,null,null,null,null,null,null,null,null,null," ","602/010.00","602/010.00"]
[null,null,null,null,null,null,null,null,null,null," ","602/010.01","602/010.01"]
[null,null,null,null,null,null,null,null,null,null," ","602/010.03","602/010.03"]
[null,null,null,null,null,null,null,null,null,null," ","602/010.06","602/010.06"]
[null,null,null,null,null,null,null,null,null,null," ","602/010.08","602/010.08"]
[null,null,null,null,null,null,null,null,null,null," ","602/010.09","602/010.09"]
[null,null,null,null,null,null,null,null,null,null," ","602/010.10","602/010.10"]
[null,null,null,null,null,null,null,null,null,null," ","602/015.00","602/015.00"]
[null,null,null,null,null,null,null,null,null,null," ","602/015.01","602/015.01"]
[null,null,null,null,null,null,null,null,null,null," ","602/020.00","602/020.00"]
[null,null,null,null,null,null,null,null,null,null," ","602/020.01","602/020.01"]
[null,null,null,null,null,null,null,null,null,null," ","602/020.03","602/020.03"]
[null,null,null,null,null,null,null,null,null,null," ","602/020.06","602/020.06"]
[null,null,null,null,null,null,null,null,null,null," ","602/020.08","602/020.08"]
[null,null,null,null,null,null,null,null,null,null," ","602/020.09","602/020.09"]
[null,null,null,null,null,null,null,null,null,null," ","602/020.10","602/020.10"]
[null,null,null,null,null,null,null,null,null,null," ","602/030.00","602/030.00"]
[null,null,null,null,null,null,null,null,null,null," ","602/030.01","602/030.01"]
[null,null,null,null,null,null,null,null,null,null," ","602/030.03","602/030.03"]
[null,null,null,null,null,null,null,null,null,null," ","602/030.06","602/030.06"]
[null,null,null,null,null,null,null,null,null,null," ","602/030.08","602/030.08"]
[null,null,null,null,null,null,null,null,null,null," ","602/030.09","602/030.09"]
[null,null,null,null,null,null,null,null,null,null," ","602/030.10","602/030.10"]
[null,null,null,null,null,null,null,null,null,null," ","602/040.00","602/040.00"]
[null,null,null,null,null,null,null,null,null,null," ","602/040.01","602/040.01"]
[null,null,null,null,null,null,null,null,null,null," ","602/040.03","602/040.03"]
[null,null,null,null,null,null,null,null,null,null," ","602/040.06","602/040.06"]
[null,null,null,null,null,null,null,null,null,null," ","602/040.08","602/040.08"]
[null,null,null,null,null,null,null,null,null,null," ","602/040.09","602/040.09"]
[null,null,null,null,null,null,null,null,null,null," ","602/040.10","602/040.10"]
[null,null,null,null,null,null,null,null,null,null," ","602/050.00","602/050.00"]
[null,null,null,null,null,null,null,null,null,null," ","602/050.01","602/050.01"]
[null,null,null,null,null,null,null,null,null,null," ","602/050.03","602/050.03"]
[null,null,null,null,null,null,null,null,null,null," ","602/050.06","602/050.06"]
[null,null,null,null,null,null,null,null,null,null," ","602/050.08","602/050.08"]
[null,null,null,null,null,null,null,null,null,null," ","602/050.09","602/050.09"]
[null,null,null,null,null,null,null,null,null,null," ","602/050.10","602/050.10"]
[null,null,null,null,null,null,null,null,null,null," ","606/010.00","606/010.00"]
[null,null,null,null,null,null,null,null,null,null," ","606/010.01","606/010.01"]
[null,null,null,null,null,null,null,null,null,null," ","606/010.03",{"$f":"IF($B$7=\"ETE\",K2951,L2951)","v":"606/010.03"}]
[null,null,null,null,null,null,null,null,null,null," ","606/010.06","606/010.06"]
[null,null,null,null,null,null,null,null,null,null," ","606/010.08","606/010.08"]
[null,null,null,null,null,null,null,null,null,null," ","606/010.09","606/010.09"]
[null,null,null,null,null,null,null,null,null,null," ","606/010.10","606/010.10"]
[null,null,null,null,null,null,null,null,null,null," ","61","61"]
[null,null,null,null,null,null,null,null,null,null," ","61.02","61.02"]
[null,null,null,null,null,null,null,null,null,null," ","61.06","61.06"]
[null,null,null,null,null,null,null,null,null,null," ","61.07","61.07"]
[null,null,null,null,null,null,null,null,null,null," ","61.08","61.08"]
[null,null,null,null,null,null,null,null,null,null," ","61.10","61.10"]
[null,null,null,null,null,null,null,null,null,null," ","61.11","61.11"]
[null,null,null,null,null,null,null,null,null,null," ","61.16","61.16"]
[null,null,null,null,null,null,null,null,null,null," ","62","62"]
[null,null,null,null,null,null,null,null,null,null," ","62.01","62.01"]
[null,null,null,null,null,null,null,null,null,null," ","63.01","63.01"]
[null,null,null,null,null,null,null,null,null,null," ","632/030.00","632/030.00"]
[null,null,null,null,null,null,null,null,null,null," ","632/030.01","632/030.01"]
[null,null,null,null,null,null,null,null,null,null," ","632/030.03","632/030.03"]
[null,null,null,null,null,null,null,null,null,null," ","632/030.06","632/030.06"]
[null,null,null,null,null,null,null,null,null,null," ","632/030.08","632/030.08"]
[null,null,null,null,null,null,null,null,null,null," ","632/030.09","632/030.09"]
[null,null,null,null,null,null,null,null,null,null," ","632/030.10","632/030.10"]
[null,null,null,null,null,null,null,null,null,null," ","632/040A.00","632/040A.00"]
[null,null,null,null,null,null,null,null,null,null," ","632/040A.01","632/040A.01"]
[null,null,null,null,null,null,null,null,null,null," ","632/040A.03","632/040A.03"]
[null,null,null,null,null,null,null,null,null,null," ","632/040A.06","632/040A.06"]
[null,null,null,null,null,null,null,null,null,null," ","632/040A.08","632/040A.08"]
[null,null,null,null,null,null,null,null,null,null," ","632/040A.09","632/040A.09"]
[null,null,null,null,null,null,null,null,null,null," ","632/040A.10","632/040A.10"]
[null,null,null,null,null,null,null,null,null,null," ","632/040B.00","632/040B.00"]
[null,null,null,null,null,null,null,null,null,null," ","632/040B.01","632/040B.01"]
[null,null,null,null,null,null,null,null,null,null," ","632/040B.03","632/040B.03"]
[null,null,null,null,null,null,null,null,null,null," ","632/040B.06","632/040B.06"]
[null,null,null,null,null,null,null,null,null,null," ","632/040B.08","632/040B.08"]
[null,null,null,null,null,null,null,null,null,null," ","632/040B.09","632/040B.09"]
[null,null,null,null,null,null,null,null,null,null," ","632/040B.10","632/040B.10"]
[null,null,null,null,null,null,null,null,null,null," ","632/050A.00","632/050A.00"]
[null,null,null,null,null,null,null,null,null,null," ","632/050A.01","632/050A.01"]
[null,null,null,null,null,null,null,null,null,null," ","632/050A.03","632/050A.03"]
[null,null,null,null,null,null,null,null,null,null," ","632/050A.06","632/050A.06"]
[null,null,null,null,null,null,null,null,null,null," ","632/050A.08","632/050A.08"]
[null,null,null,null,null,null,null,null,null,null," ","632/050A.09","632/050A.09"]
[null,null,null,null,null,null,null,null,null,null," ","632/050A.10","632/050A.10"]
[null,null,null,null,null,null,null,null,null,null," ","632/050B.00","632/050B.00"]
[null,null,null,null,null,null,null,null,null,null," ","632/050B.01","632/050B.01"]
[null,null,null,null,null,null,null,null,null,null," ","632/050B.03","632/050B.03"]
[null,null,null,null,null,null,null,null,null,null," ","632/050B.06","632/050B.06"]
[null,null,null,null,null,null,null,null,null,null," ","632/050B.08","632/050B.08"]
[null,null,null,null,null,null,null,null,null,null," ","632/050B.09","632/050B.09"]
[null,null,null,null,null,null,null,null,null,null," ","632/050B.10","632/050B.10"]
[null,null,null,null,null,null,null,null,null,null," ","633/1-01.00","633/1-01.00"]
[null,null,null,null,null,null,null,null,null,null," ","633/1-01.01","633/1-01.01"]
[null,null,null,null,null,null,null,null,null,null," ","633/1-01.03","633/1-01.03"]
[null,null,null,null,null,null,null,null,null,null," ","633/1-01.06","633/1-01.06"]
[null,null,null,null,null,null,null,null,null,null," ","633/1-01.08","633/1-01.08"]
[null,null,null,null,null,null,null,null,null,null," ","633/1-01.09","633/1-01.09"]
[null,null,null,null,null,null,null,null,null,null," ","633/1-01.10","633/1-01.10"]
[null,null,null,null,null,null,null,null,null,null," ","64","64"]
[null,null,null,null,null,null,null,null,null,null," ","64.01","64.01"]
[null,null,null,null,null,null,null,null,null,null," ","640/1-01.00","640/1-01.00"]
[null,null,null,null,null,null,null,null,null,null," ","640/1-01.01","640/1-01.01"]
[null,null,null,null,null,null,null,null,null,null," ","640/1-01.03","640/1-01.03"]
[null,null,null,null,null,null,null,null,null,null," ","640/1-01.06","640/1-01.06"]
[null,null,null,null,null,null,null,null,null,null," ","640/1-01.08",{"$f":"IF($B$7=\"ETE\",K3015,L3015)","v":"640/1-01.08"}]
[null,null,null,null,null,null,null,null,null,null," ","640/1-01.09","640/1-01.09"]
[null,null,null,null,null,null,null,null,null,null," ","640/1-01.10","640/1-01.10"]
[null,null,null,null,null,null,null,null,null,null," ","64.02","64.02"]
[null,null,null,null,null,null,null,null,null,null," ","64.06","64.06"]
[null,null,null,null,null,null,null,null,null,null," ","64.08","64.08"]
[null,null,null,null,null,null,null,null,null,null," ","64.10","64.10"]
[null,null,null,null,null,null,null,null,null,null," ","641/1-01.00","641/1-01.00"]
[null,null,null,null,null,null,null,null,null,null," ","641/1-01.01","641/1-01.01"]
[null,null,null,null,null,null,null,null,null,null," ","641/1-01.03","641/1-01.03"]
[null,null,null,null,null,null,null,null,null,null," ","641/1-01.06","641/1-01.06"]
[null,null,null,null,null,null,null,null,null,null," ","641/1-01.08","641/1-01.08"]
[null,null,null,null,null,null,null,null,null,null," ","641/1-01.09","641/1-01.09"]
[null,null,null,null,null,null,null,null,null,null," ","641/1-01.10","641/1-01.10"]
[null,null,null,null,null,null,null,null,null,null," ","64.12","64.12"]
[null,null,null,null,null,null,null,null,null,null," ","642/1-01.00","642/1-01.00"]
[null,null,null,null,null,null,null,null,null,null," ","642/1-01.01","642/1-01.01"]
[null,null,null,null,null,null,null,null,null,null," ","642/1-01.03","642/1-01.03"]
[null,null,null,null,null,null,null,null,null,null," ","642/1-01.06","642/1-01.06"]
[null,null,null,null,null,null,null,null,null,null," ","642/1-01.08","642/1-01.08"]
[null,null,null,null,null,null,null,null,null,null," ","642/1-01.09","642/1-01.09"]
[null,null,null,null,null,null,null,null,null,null," ","642/1-01.10","642/1-01.10"]
[null,null,null,null,null,null,null,null,null,null," ","642/3-01.00","642/3-01.00"]
[null,null,null,null,null,null,null,null,null,null," ","642/3-01.01","642/3-01.01"]
[null,null,null,null,null,null,null,null,null,null," ","642/3-01.03","642/3-01.03"]
[null,null,null,null,null,null,null,null,null,null," ","642/3-01.06","642/3-01.06"]
[null,null,null,null,null,null,null,null,null,null," ","642/3-01.08","642/3-01.08"]
[null,null,null,null,null,null,null,null,null,null," ","642/3-01.09","642/3-01.09"]
[null,null,null,null,null,null,null,null,null,null," ","642/3-01.10","642/3-01.10"]
[null,null,null,null,null,null,null,null,null,null," ","643/1-01.00","643/1-01.00"]
[null,null,null,null,null,null,null,null,null,null," ","643/1-01.01","643/1-01.01"]
[null,null,null,null,null,null,null,null,null,null," ","643/1-01.03","643/1-01.03"]
[null,null,null,null,null,null,null,null,null,null," ","643/1-01.06","643/1-01.06"]
[null,null,null,null,null,null,null,null,null,null," ","643/1-01.08","643/1-01.08"]
[null,null,null,null,null,null,null,null,null,null," ","643/1-01.09","643/1-01.09"]
[null,null,null,null,null,null,null,null,null,null," ","643/1-01.10","643/1-01.10"]
[null,null,null,null,null,null,null,null,null,null," ","644/1-01.00","644/1-01.00"]
[null,null,null,null,null,null,null,null,null,null," ","644/1-01.01","644/1-01.01"]
[null,null,null,null,null,null,null,null,null,null," ","644/1-01.03","644/1-01.03"]
[null,null,null,null,null,null,null,null,null,null," ","644/1-01.06","644/1-01.06"]
[null,null,null,null,null,null,null,null,null,null," ","644/1-01.08","644/1-01.08"]
[null,null,null,null,null,null,null,null,null,null," ","644/1-01.09","644/1-01.09"]
[null,null,null,null,null,null,null,null,null,null," ","644/1-01.10","644/1-01.10"]
[null,null,null,null,null,null,null,null,null,null," ","644/1-02.00","644/1-02.00"]
[null,null,null,null,null,null,null,null,null,null," ","644/1-02.01","644/1-02.01"]
[null,null,null,null,null,null,null,null,null,null," ","644/1-02.03","644/1-02.03"]
[null,null,null,null,null,null,null,null,null,null," ","644/1-02.06","644/1-02.06"]
[null,null,null,null,null,null,null,null,null,null," ","644/1-02.08","644/1-02.08"]
[null,null,null,null,null,null,null,null,null,null," ","644/1-02.09","644/1-02.09"]
[null,null,null,null,null,null,null,null,null,null," ","644/1-02.10","644/1-02.10"]
[null,null,null,null,null,null,null,null,null,null," ","644/1-02.1.00","644/1-02.1.00"]
[null,null,null,null,null,null,null,null,null,null," ","644/1-02.1.01","644/1-02.1.01"]
[null,null,null,null,null,null,null,null,null,null," ","644/1-02.1.03","644/1-02.1.03"]
[null,null,null,null,null,null,null,null,null,null," ","644/1-02.1.06","644/1-02.1.06"]
[null,null,null,null,null,null,null,null,null,null," ","644/1-02.1.08","644/1-02.1.08"]
[null,null,null,null,null,null,null,null,null,null," ","644/1-02.1.09","644/1-02.1.09"]
[null,null,null,null,null,null,null,null,null,null," ","644/1-02.1.10","644/1-02.1.10"]
[null,null,null,null,null,null,null,null,null,null," ","644/1-02.2.00","644/1-02.2.00"]
[null,null,null,null,null,null,null,null,null,null," ","644/1-02.2.01","644/1-02.2.01"]
[null,null,null,null,null,null,null,null,null,null," ","644/1-02.2.03","644/1-02.2.03"]
[null,null,null,null,null,null,null,null,null,null," ","644/1-02.2.06","644/1-02.2.06"]
[null,null,null,null,null,null,null,null,null,null," ","644/1-02.2.08","644/1-02.2.08"]
[null,null,null,null,null,null,null,null,null,null," ","644/1-02.2.09","644/1-02.2.09"]
[null,null,null,null,null,null,null,null,null,null," ","644/1-02.2.10","644/1-02.2.10"]
[null,null,null,null,null,null,null,null,null,null," ","647/1-01.00",{"$f":"IF($B$7=\"ETE\",K3079,L3079)","v":"647/1-01.00"}]
[null,null,null,null,null,null,null,null,null,null," ","647/1-01.01","647/1-01.01"]
[null,null,null,null,null,null,null,null,null,null," ","647/1-01.03","647/1-01.03"]
[null,null,null,null,null,null,null,null,null,null," ","647/1-01.06","647/1-01.06"]
[null,null,null,null,null,null,null,null,null,null," ","647/1-01.08","647/1-01.08"]
[null,null,null,null,null,null,null,null,null,null," ","647/1-01.09","647/1-01.09"]
[null,null,null,null,null,null,null,null,null,null," ","647/1-01.10","647/1-01.10"]
[null,null,null,null,null,null,null,null,null,null," ","648/1-01.00","648/1-01.00"]
[null,null,null,null,null,null,null,null,null,null," ","648/1-01.01","648/1-01.01"]
[null,null,null,null,null,null,null,null,null,null," ","648/1-01.03","648/1-01.03"]
[null,null,null,null,null,null,null,null,null,null," ","648/1-01.06","648/1-01.06"]
[null,null,null,null,null,null,null,null,null,null," ","648/1-01.08","648/1-01.08"]
[null,null,null,null,null,null,null,null,null,null," ","648/1-01.09","648/1-01.09"]
[null,null,null,null,null,null,null,null,null,null," ","648/1-01.10","648/1-01.10"]
[null,null,null,null,null,null,null,null,null,null," ","650/1-01.00","650/1-01.00"]
[null,null,null,null,null,null,null,null,null,null," ","650/1-01.01","650/1-01.01"]
[null,null,null,null,null,null,null,null,null,null," ","650/1-01.03","650/1-01.03"]
[null,null,null,null,null,null,null,null,null,null," ","650/1-01.06","650/1-01.06"]
[null,null,null,null,null,null,null,null,null,null," ","650/1-01.08","650/1-01.08"]
[null,null,null,null,null,null,null,null,null,null," ","650/1-01.09","650/1-01.09"]
[null,null,null,null,null,null,null,null,null,null," ","650/1-01.10","650/1-01.10"]
[null,null,null,null,null,null,null,null,null,null," ","650/1-02.00","650/1-02.00"]
[null,null,null,null,null,null,null,null,null,null," ","650/1-02.01","650/1-02.01"]
[null,null,null,null,null,null,null,null,null,null," ","650/1-02.03","650/1-02.03"]
[null,null,null,null,null,null,null,null,null,null," ","650/1-02.06","650/1-02.06"]
[null,null,null,null,null,null,null,null,null,null," ","650/1-02.08","650/1-02.08"]
[null,null,null,null,null,null,null,null,null,null," ","650/1-02.09","650/1-02.09"]
[null,null,null,null,null,null,null,null,null,null," ","650/1-02.10","650/1-02.10"]
[null,null,null,null,null,null,null,null,null,null," ","650/1-03.00","650/1-03.00"]
[null,null,null,null,null,null,null,null,null,null," ","650/1-03.01","650/1-03.01"]
[null,null,null,null,null,null,null,null,null,null," ","650/1-03.03","650/1-03.03"]
[null,null,null,null,null,null,null,null,null,null," ","650/1-03.06","650/1-03.06"]
[null,null,null,null,null,null,null,null,null,null," ","650/1-03.08","650/1-03.08"]
[null,null,null,null,null,null,null,null,null,null," ","650/1-03.09","650/1-03.09"]
[null,null,null,null,null,null,null,null,null,null," ","650/1-03.10","650/1-03.10"]
[null,null,null,null,null,null,null,null,null,null," ","651/1-01.00","651/1-01.00"]
[null,null,null,null,null,null,null,null,null,null," ","651/1-01.01","651/1-01.01"]
[null,null,null,null,null,null,null,null,null,null," ","651/1-01.03","651/1-01.03"]
[null,null,null,null,null,null,null,null,null,null," ","651/1-01.06","651/1-01.06"]
[null,null,null,null,null,null,null,null,null,null," ","651/1-01.08","651/1-01.08"]
[null,null,null,null,null,null,null,null,null,null," ","651/1-01.09","651/1-01.09"]
[null,null,null,null,null,null,null,null,null,null," ","651/1-01.10","651/1-01.10"]
[null,null,null,null,null,null,null,null,null,null," ","652/1-01.00","652/1-01.00"]
[null,null,null,null,null,null,null,null,null,null," ","652/1-01.01","652/1-01.01"]
[null,null,null,null,null,null,null,null,null,null," ","652/1-01.03","652/1-01.03"]
[null,null,null,null,null,null,null,null,null,null," ","652/1-01.06","652/1-01.06"]
[null,null,null,null,null,null,null,null,null,null," ","652/1-01.08","652/1-01.08"]
[null,null,null,null,null,null,null,null,null,null," ","652/1-01.09","652/1-01.09"]
[null,null,null,null,null,null,null,null,null,null," ","652/1-01.10","652/1-01.10"]
[null,null,null,null,null,null,null,null,null,null," ","653/1-01.00","653/1-01.00"]
[null,null,null,null,null,null,null,null,null,null," ","653/1-01.01","653/1-01.01"]
[null,null,null,null,null,null,null,null,null,null," ","653/1-01.03","653/1-01.03"]
[null,null,null,null,null,null,null,null,null,null," ","653/1-01.06","653/1-01.06"]
[null,null,null,null,null,null,null,null,null,null," ","653/1-01.08","653/1-01.08"]
[null,null,null,null,null,null,null,null,null,null," ","653/1-01.09","653/1-01.09"]
[null,null,null,null,null,null,null,null,null,null," ","653/1-01.10","653/1-01.10"]
[null,null,null,null,null,null,null,null,null,null," ","654/1-01.00","654/1-01.00"]
[null,null,null,null,null,null,null,null,null,null," ","654/1-01.01","654/1-01.01"]
[null,null,null,null,null,null,null,null,null,null," ","654/1-01.03","654/1-01.03"]
[null,null,null,null,null,null,null,null,null,null," ","654/1-01.06","654/1-01.06"]
[null,null,null,null,null,null,null,null,null,null," ","654/1-01.08","654/1-01.08"]
[null,null,null,null,null,null,null,null,null,null," ","654/1-01.09","654/1-01.09"]
[null,null,null,null,null,null,null,null,null,null," ","654/1-01.10","654/1-01.10"]
[null,null,null,null,null,null,null,null,null,null," ","654/1-01.2.00","654/1-01.2.00"]
[null,null,null,null,null,null,null,null,null,null," ","654/1-01.2.01",{"$f":"IF($B$7=\"ETE\",K3143,L3143)","v":"654/1-01.2.01"}]
[null,null,null,null,null,null,null,null,null,null," ","654/1-01.2.03","654/1-01.2.03"]
[null,null,null,null,null,null,null,null,null,null," ","654/1-01.2.06","654/1-01.2.06"]
[null,null,null,null,null,null,null,null,null,null," ","654/1-01.2.08","654/1-01.2.08"]
[null,null,null,null,null,null,null,null,null,null," ","654/1-01.2.09","654/1-01.2.09"]
[null,null,null,null,null,null,null,null,null,null," ","654/1-01.2.10","654/1-01.2.10"]
[null,null,null,null,null,null,null,null,null,null," ","654/1-02.00","654/1-02.00"]
[null,null,null,null,null,null,null,null,null,null," ","654/1-02.01","654/1-02.01"]
[null,null,null,null,null,null,null,null,null,null," ","654/1-02.03","654/1-02.03"]
[null,null,null,null,null,null,null,null,null,null," ","654/1-02.06","654/1-02.06"]
[null,null,null,null,null,null,null,null,null,null," ","654/1-02.08","654/1-02.08"]
[null,null,null,null,null,null,null,null,null,null," ","654/1-02.09","654/1-02.09"]
[null,null,null,null,null,null,null,null,null,null," ","654/1-02.10","654/1-02.10"]
[null,null,null,null,null,null,null,null,null,null," ","654/1-11.00","654/1-11.00"]
[null,null,null,null,null,null,null,null,null,null," ","654/1-11.01","654/1-11.01"]
[null,null,null,null,null,null,null,null,null,null," ","654/1-11.03","654/1-11.03"]
[null,null,null,null,null,null,null,null,null,null," ","654/1-11.06","654/1-11.06"]
[null,null,null,null,null,null,null,null,null,null," ","654/1-11.08","654/1-11.08"]
[null,null,null,null,null,null,null,null,null,null," ","654/1-11.09","654/1-11.09"]
[null,null,null,null,null,null,null,null,null,null," ","654/1-11.10","654/1-11.10"]
[null,null,null,null,null,null,null,null,null,null," ","658/1-01.00","658/1-01.00"]
[null,null,null,null,null,null,null,null,null,null," ","658/1-01.01","658/1-01.01"]
[null,null,null,null,null,null,null,null,null,null," ","658/1-01.03","658/1-01.03"]
[null,null,null,null,null,null,null,null,null,null," ","658/1-01.06","658/1-01.06"]
[null,null,null,null,null,null,null,null,null,null," ","658/1-01.08","658/1-01.08"]
[null,null,null,null,null,null,null,null,null,null," ","658/1-01.09","658/1-01.09"]
[null,null,null,null,null,null,null,null,null,null," ","658/1-01.10","658/1-01.10"]
[null,null,null,null,null,null,null,null,null,null," ","67","67"]
[null,null,null,null,null,null,null,null,null,null," ","67.02","67.02"]
[null,null,null,null,null,null,null,null,null,null," ","67.03","67.03"]
[null,null,null,null,null,null,null,null,null,null," ","67.04","67.04"]
[null,null,null,null,null,null,null,null,null,null," ","67.06","67.06"]
[null,null,null,null,null,null,null,null,null,null," ","67.08","67.08"]
[null,null,null,null,null,null,null,null,null,null," ","67.10","67.10"]
[null,null,null,null,null,null,null,null,null,null," ","67.12","67.12"]
[null,null,null,null,null,null,null,null,null,null," ","681/1-01.00","681/1-01.00"]
[null,null,null,null,null,null,null,null,null,null," ","681/1-01.01","681/1-01.01"]
[null,null,null,null,null,null,null,null,null,null," ","681/1-01.03","681/1-01.03"]
[null,null,null,null,null,null,null,null,null,null," ","681/1-01.06","681/1-01.06"]
[null,null,null,null,null,null,null,null,null,null," ","681/1-01.08","681/1-01.08"]
[null,null,null,null,null,null,null,null,null,null," ","681/1-01.09","681/1-01.09"]
[null,null,null,null,null,null,null,null,null,null," ","681/1-01.10","681/1-01.10"]
[null,null,null,null,null,null,null,null,null,null," ","69.07","69.07"]
[null,null,null,null,null,null,null,null,null,null," ","69.07B","69.07B"]
[null,null,null,null,null,null,null,null,null,null," ","69.10","69.10"]
[null,null,null,null,null,null,null,null,null,null," ","69.14","69.14"]
[null,null,null,null,null,null,null,null,null,null," ","7","7"]
[null,null,null,null,null,null,null,null,null,null," ","7.I","7.I"]
[null,null,null,null,null,null,null,null,null,null," ","7.II","7.II"]
[null,null,null,null,null,null,null,null,null,null," ","7.III","7.III"]
[null,null,null,null,null,null,null,null,null,null," ","7.IV","7.IV"]
[null,null,null,null,null,null,null,null,null,null," ","7.IX","7.IX"]
[null,null,null,null,null,null,null,null,null,null," ","7.V","7.V"]
[null,null,null,null,null,null,null,null,null,null," ","7.VI","7.VI"]
[null,null,null,null,null,null,null,null,null,null," ","7.VIII","7.VIII"]
[null,null,null,null,null,null,null,null,null,null," ","7.XI","7.XI"]
[null,null,null,null,null,null,null,null,null,null," ","70","70"]
[null,null,null,null,null,null,null,null,null,null," ","70.01","70.01"]
[null,null,null,null,null,null,null,null,null,null," ","700/1-01.00","700/1-01.00"]
[null,null,null,null,null,null,null,null,null,null," ","700/1-01.01","700/1-01.01"]
[null,null,null,null,null,null,null,null,null,null," ","700/1-01.03","700/1-01.03"]
[null,null,null,null,null,null,null,null,null,null," ","700/1-01.06","700/1-01.06"]
[null,null,null,null,null,null,null,null,null,null," ","700/1-01.08","700/1-01.08"]
[null,null,null,null,null,null,null,null,null,null," ","700/1-01.09","700/1-01.09"]
[null,null,null,null,null,null,null,null,null,null," ","700/1-01.10",{"$f":"IF($B$7=\"ETE\",K3207,L3207)","v":"700/1-01.10"}]
[null,null,null,null,null,null,null,null,null,null," ","70.02","70.02"]
[null,null,null,null,null,null,null,null,null,null," ","70.03","70.03"]
[null,null,null,null,null,null,null,null,null,null," ","70.06","70.06"]
[null,null,null,null,null,null,null,null,null,null," ","70.08.1","70.08.1"]
[null,null,null,null,null,null,null,null,null,null," ","70.08.2","70.08.2"]
[null,null,null,null,null,null,null,null,null,null," ","70.09","70.09"]
[null,null,null,null,null,null,null,null,null,null," ","70.10.1","70.10.1"]
[null,null,null,null,null,null,null,null,null,null," ","70.10.2","70.10.2"]
[null,null,null,null,null,null,null,null,null,null," ","701/1-01.00","701/1-01.00"]
[null,null,null,null,null,null,null,null,null,null," ","701/1-01.01","701/1-01.01"]
[null,null,null,null,null,null,null,null,null,null," ","701/1-01.03","701/1-01.03"]
[null,null,null,null,null,null,null,null,null,null," ","701/1-01.06","701/1-01.06"]
[null,null,null,null,null,null,null,null,null,null," ","701/1-01.08","701/1-01.08"]
[null,null,null,null,null,null,null,null,null,null," ","701/1-01.09","701/1-01.09"]
[null,null,null,null,null,null,null,null,null,null," ","701/1-01.10","701/1-01.10"]
[null,null,null,null,null,null,null,null,null,null," ","701/1-02.00","701/1-02.00"]
[null,null,null,null,null,null,null,null,null,null," ","701/1-02.01","701/1-02.01"]
[null,null,null,null,null,null,null,null,null,null," ","701/1-02.03","701/1-02.03"]
[null,null,null,null,null,null,null,null,null,null," ","701/1-02.06","701/1-02.06"]
[null,null,null,null,null,null,null,null,null,null," ","701/1-02.08","701/1-02.08"]
[null,null,null,null,null,null,null,null,null,null," ","701/1-02.09","701/1-02.09"]
[null,null,null,null,null,null,null,null,null,null," ","701/1-02.10","701/1-02.10"]
[null,null,null,null,null,null,null,null,null,null," ","701/1-03.00","701/1-03.00"]
[null,null,null,null,null,null,null,null,null,null," ","701/1-03.01","701/1-03.01"]
[null,null,null,null,null,null,null,null,null,null," ","701/1-03.03","701/1-03.03"]
[null,null,null,null,null,null,null,null,null,null," ","701/1-03.06","701/1-03.06"]
[null,null,null,null,null,null,null,null,null,null," ","701/1-03.08","701/1-03.08"]
[null,null,null,null,null,null,null,null,null,null," ","701/1-03.09","701/1-03.09"]
[null,null,null,null,null,null,null,null,null,null," ","701/1-03.10","701/1-03.10"]
[null,null,null,null,null,null,null,null,null,null," ","701/3-01.00","701/3-01.00"]
[null,null,null,null,null,null,null,null,null,null," ","701/3-01.01","701/3-01.01"]
[null,null,null,null,null,null,null,null,null,null," ","701/3-01.03","701/3-01.03"]
[null,null,null,null,null,null,null,null,null,null," ","701/3-01.06","701/3-01.06"]
[null,null,null,null,null,null,null,null,null,null," ","701/3-01.08","701/3-01.08"]
[null,null,null,null,null,null,null,null,null,null," ","701/3-01.09","701/3-01.09"]
[null,null,null,null,null,null,null,null,null,null," ","701/3-01.10","701/3-01.10"]
[null,null,null,null,null,null,null,null,null,null," ","702/020.00","702/020.00"]
[null,null,null,null,null,null,null,null,null,null," ","702/020.01","702/020.01"]
[null,null,null,null,null,null,null,null,null,null," ","702/020.03","702/020.03"]
[null,null,null,null,null,null,null,null,null,null," ","702/020.06","702/020.06"]
[null,null,null,null,null,null,null,null,null,null," ","702/020.08","702/020.08"]
[null,null,null,null,null,null,null,null,null,null," ","702/020.09","702/020.09"]
[null,null,null,null,null,null,null,null,null,null," ","702/020.10","702/020.10"]
[null,null,null,null,null,null,null,null,null,null," ","702/040.00","702/040.00"]
[null,null,null,null,null,null,null,null,null,null," ","702/040.01","702/040.01"]
[null,null,null,null,null,null,null,null,null,null," ","702/040.03","702/040.03"]
[null,null,null,null,null,null,null,null,null,null," ","702/040.06","702/040.06"]
[null,null,null,null,null,null,null,null,null,null," ","702/040.08","702/040.08"]
[null,null,null,null,null,null,null,null,null,null," ","702/040.09","702/040.09"]
[null,null,null,null,null,null,null,null,null,null," ","702/040.10","702/040.10"]
[null,null,null,null,null,null,null,null,null,null," ","702/1-01.00","702/1-01.00"]
[null,null,null,null,null,null,null,null,null,null," ","702/1-01.01","702/1-01.01"]
[null,null,null,null,null,null,null,null,null,null," ","702/1-01.03","702/1-01.03"]
[null,null,null,null,null,null,null,null,null,null," ","702/1-01.06","702/1-01.06"]
[null,null,null,null,null,null,null,null,null,null," ","702/1-01.08","702/1-01.08"]
[null,null,null,null,null,null,null,null,null,null," ","702/1-01.09","702/1-01.09"]
[null,null,null,null,null,null,null,null,null,null," ","702/1-01.10","702/1-01.10"]
[null,null,null,null,null,null,null,null,null,null," ","702/140.00","702/140.00"]
[null,null,null,null,null,null,null,null,null,null," ","702/140.01","702/140.01"]
[null,null,null,null,null,null,null,null,null,null," ","702/140.03","702/140.03"]
[null,null,null,null,null,null,null,null,null,null," ","702/140.06","702/140.06"]
[null,null,null,null,null,null,null,null,null,null," ","702/140.08","702/140.08"]
[null,null,null,null,null,null,null,null,null,null," ","702/140.09","702/140.09"]
[null,null,null,null,null,null,null,null,null,null," ","702/140.10",{"$f":"IF($B$7=\"ETE\",K3271,L3271)","v":"702/140.10"}]
[null,null,null,null,null,null,null,null,null,null," ","703/020.00","703/020.00"]
[null,null,null,null,null,null,null,null,null,null," ","703/020.01","703/020.01"]
[null,null,null,null,null,null,null,null,null,null," ","703/020.03","703/020.03"]
[null,null,null,null,null,null,null,null,null,null," ","703/020.06","703/020.06"]
[null,null,null,null,null,null,null,null,null,null," ","703/020.08","703/020.08"]
[null,null,null,null,null,null,null,null,null,null," ","703/020.09","703/020.09"]
[null,null,null,null,null,null,null,null,null,null," ","703/020.10","703/020.10"]
[null,null,null,null,null,null,null,null,null,null," ","703/1-01.00","703/1-01.00"]
[null,null,null,null,null,null,null,null,null,null," ","703/1-01.01","703/1-01.01"]
[null,null,null,null,null,null,null,null,null,null," ","703/1-01.03","703/1-01.03"]
[null,null,null,null,null,null,null,null,null,null," ","703/1-01.06","703/1-01.06"]
[null,null,null,null,null,null,null,null,null,null," ","703/1-01.08","703/1-01.08"]
[null,null,null,null,null,null,null,null,null,null," ","703/1-01.09","703/1-01.09"]
[null,null,null,null,null,null,null,null,null,null," ","703/1-01.10","703/1-01.10"]
[null,null,null,null,null,null,null,null,null,null," ","703/1-02.00","703/1-02.00"]
[null,null,null,null,null,null,null,null,null,null," ","703/1-02.01","703/1-02.01"]
[null,null,null,null,null,null,null,null,null,null," ","703/1-02.03","703/1-02.03"]
[null,null,null,null,null,null,null,null,null,null," ","703/1-02.06","703/1-02.06"]
[null,null,null,null,null,null,null,null,null,null," ","703/1-02.08","703/1-02.08"]
[null,null,null,null,null,null,null,null,null,null," ","703/1-02.09","703/1-02.09"]
[null,null,null,null,null,null,null,null,null,null," ","703/1-02.10","703/1-02.10"]
[null,null,null,null,null,null,null,null,null,null," ","703/151.00","703/151.00"]
[null,null,null,null,null,null,null,null,null,null," ","703/151.01","703/151.01"]
[null,null,null,null,null,null,null,null,null,null," ","703/151.03","703/151.03"]
[null,null,null,null,null,null,null,null,null,null," ","703/151.06","703/151.06"]
[null,null,null,null,null,null,null,null,null,null," ","703/151.08","703/151.08"]
[null,null,null,null,null,null,null,null,null,null," ","703/151.09","703/151.09"]
[null,null,null,null,null,null,null,null,null,null," ","703/151.10","703/151.10"]
[null,null,null,null,null,null,null,null,null,null," ","704/220.00","704/220.00"]
[null,null,null,null,null,null,null,null,null,null," ","704/220.01","704/220.01"]
[null,null,null,null,null,null,null,null,null,null," ","704/220.03","704/220.03"]
[null,null,null,null,null,null,null,null,null,null," ","704/220.06","704/220.06"]
[null,null,null,null,null,null,null,null,null,null," ","704/220.08","704/220.08"]
[null,null,null,null,null,null,null,null,null,null," ","704/220.09","704/220.09"]
[null,null,null,null,null,null,null,null,null,null," ","704/220.10","704/220.10"]
[null,null,null,null,null,null,null,null,null,null," ","704/221.00","704/221.00"]
[null,null,null,null,null,null,null,null,null,null," ","704/221.08","704/221.08"]
[null,null,null,null,null,null,null,null,null,null," ","7.20.01","7.20.01"]
[null,null,null,null,null,null,null,null,null,null," ","7.20.08","7.20.08"]
[null,null,null,null,null,null,null,null,null,null," ","7.20.09","7.20.09"]
[null,null,null,null,null,null,null,null,null,null," ","7.20.10","7.20.10"]
[null,null,null,null,null,null,null,null,null,null," ","720/150.00","720/150.00"]
[null,null,null,null,null,null,null,null,null,null," ","720/150.01","720/150.01"]
[null,null,null,null,null,null,null,null,null,null," ","720/150.03","720/150.03"]
[null,null,null,null,null,null,null,null,null,null," ","720/150.06","720/150.06"]
[null,null,null,null,null,null,null,null,null,null," ","720/150.08","720/150.08"]
[null,null,null,null,null,null,null,null,null,null," ","720/150.09","720/150.09"]
[null,null,null,null,null,null,null,null,null,null," ","720/150.10","720/150.10"]
[null,null,null,null,null,null,null,null,null,null," ","73","73"]
[null,null,null,null,null,null,null,null,null,null," ","74","74"]
[null,null,null,null,null,null,null,null,null,null," ","74.01","74.01"]
[null,null,null,null,null,null,null,null,null,null," ","74.03","74.03"]
[null,null,null,null,null,null,null,null,null,null," ","74.1","74.1"]
[null,null,null,null,null,null,null,null,null,null," ","7.49.01","7.49.01"]
[null,null,null,null,null,null,null,null,null,null," ","7.49.02","7.49.02"]
[null,null,null,null,null,null,null,null,null,null," ","7.49.08","7.49.08"]
[null,null,null,null,null,null,null,null,null,null," ","7.49.10","7.49.10"]
[null,null,null,null,null,null,null,null,null,null," ","75","75"]
[null,null,null,null,null,null,null,null,null,null," ","75.01","75.01"]
[null,null,null,null,null,null,null,null,null,null," ","75.08","75.08"]
[null,null,null,null,null,null,null,null,null,null," ","76","76"]
[null,null,null,null,null,null,null,null,null,null," ","77","77"]
[null,null,null,null,null,null,null,null,null,null," ","77.08","77.08"]
[null,null,null,null,null,null,null,null,null,null," ","77.08.2",{"$f":"IF($B$7=\"ETE\",K3335,L3335)","v":"77.08.2"}]
[null,null,null,null,null,null,null,null,null,null," ","780/1-01.00","780/1-01.00"]
[null,null,null,null,null,null,null,null,null,null," ","780/1-01.01","780/1-01.01"]
[null,null,null,null,null,null,null,null,null,null," ","780/1-01.03","780/1-01.03"]
[null,null,null,null,null,null,null,null,null,null," ","780/1-01.06","780/1-01.06"]
[null,null,null,null,null,null,null,null,null,null," ","780/1-01.08","780/1-01.08"]
[null,null,null,null,null,null,null,null,null,null," ","780/1-01.09","780/1-01.09"]
[null,null,null,null,null,null,null,null,null,null," ","780/1-01.10","780/1-01.10"]
[null,null,null,null,null,null,null,null,null,null," ","780/1-02.00","780/1-02.00"]
[null,null,null,null,null,null,null,null,null,null," ","780/1-02.01","780/1-02.01"]
[null,null,null,null,null,null,null,null,null,null," ","780/1-02.03","780/1-02.03"]
[null,null,null,null,null,null,null,null,null,null," ","780/1-02.06","780/1-02.06"]
[null,null,null,null,null,null,null,null,null,null," ","780/1-02.08","780/1-02.08"]
[null,null,null,null,null,null,null,null,null,null," ","780/1-02.09","780/1-02.09"]
[null,null,null,null,null,null,null,null,null,null," ","780/1-02.10","780/1-02.10"]
[null,null,null,null,null,null,null,null,null,null," ","780/1-03.00","780/1-03.00"]
[null,null,null,null,null,null,null,null,null,null," ","780/1-03.01","780/1-03.01"]
[null,null,null,null,null,null,null,null,null,null," ","780/1-03.03","780/1-03.03"]
[null,null,null,null,null,null,null,null,null,null," ","780/1-03.06","780/1-03.06"]
[null,null,null,null,null,null,null,null,null,null," ","780/1-03.08","780/1-03.08"]
[null,null,null,null,null,null,null,null,null,null," ","780/1-03.09","780/1-03.09"]
[null,null,null,null,null,null,null,null,null,null," ","780/1-03.10","780/1-03.10"]
[null,null,null,null,null,null,null,null,null,null," ","780/1-04.00","780/1-04.00"]
[null,null,null,null,null,null,null,null,null,null," ","780/1-04.01","780/1-04.01"]
[null,null,null,null,null,null,null,null,null,null," ","780/1-04.03","780/1-04.03"]
[null,null,null,null,null,null,null,null,null,null," ","780/1-04.06","780/1-04.06"]
[null,null,null,null,null,null,null,null,null,null," ","780/1-04.08","780/1-04.08"]
[null,null,null,null,null,null,null,null,null,null," ","780/1-04.09","780/1-04.09"]
[null,null,null,null,null,null,null,null,null,null," ","780/1-04.10","780/1-04.10"]
[null,null,null,null,null,null,null,null,null,null," ","79","79"]
[null,null,null,null,null,null,null,null,null,null," ","79.01","79.01"]
[null,null,null,null,null,null,null,null,null,null," ","79.02","79.02"]
[null,null,null,null,null,null,null,null,null,null," ","79.08","79.08"]
[null,null,null,null,null,null,null,null,null,null," ","79.10","79.10"]
[null,null,null,null,null,null,null,null,null,null," ","794/1-01.00","794/1-01.00"]
[null,null,null,null,null,null,null,null,null,null," ","8","8"]
[null,null,null,null,null,null,null,null,null,null," ","8.II","8.II"]
[null,null,null,null,null,null,null,null,null,null," ","8.VIII","8.VIII"]
[null,null,null,null,null,null,null,null,null,null," ","8.XI","8.XI"]
[null,null,null,null,null,null,null,null,null,null," ","8.XII","8.XII"]
[null,null,null,null,null,null,null,null,null,null," ","80","80"]
[null,null,null,null,null,null,null,null,null,null," ","800/0-00.00","800/0-00.00"]
[null,null,null,null,null,null,null,null,null,null," ","80.01","80.01"]
[null,null,null,null,null,null,null,null,null,null," ","800/1-01.00","800/1-01.00"]
[null,null,null,null,null,null,null,null,null,null," ","800/1-01.01","800/1-01.01"]
[null,null,null,null,null,null,null,null,null,null," ","800/1-01.03","800/1-01.03"]
[null,null,null,null,null,null,null,null,null,null," ","800/1-01.06","800/1-01.06"]
[null,null,null,null,null,null,null,null,null,null," ","800/1-01.08","800/1-01.08"]
[null,null,null,null,null,null,null,null,null,null," ","800/1-01.09","800/1-01.09"]
[null,null,null,null,null,null,null,null,null,null," ","800/1-01.10","800/1-01.10"]
[null,null,null,null,null,null,null,null,null,null," ","800/1-02.00","800/1-02.00"]
[null,null,null,null,null,null,null,null,null,null," ","800/1-02.01","800/1-02.01"]
[null,null,null,null,null,null,null,null,null,null," ","800/1-02.03","800/1-02.03"]
[null,null,null,null,null,null,null,null,null,null," ","800/1-02.06","800/1-02.06"]
[null,null,null,null,null,null,null,null,null,null," ","800/1-02.08","800/1-02.08"]
[null,null,null,null,null,null,null,null,null,null," ","800/1-02.09","800/1-02.09"]
[null,null,null,null,null,null,null,null,null,null," ","800/1-02.10","800/1-02.10"]
[null,null,null,null,null,null,null,null,null,null," ","80.01.2","80.01.2"]
[null,null,null,null,null,null,null,null,null,null," ","80.01.3-5","80.01.3-5"]
[null,null,null,null,null,null,null,null,null,null," ","80.03","80.03"]
[null,null,null,null,null,null,null,null,null,null," ","80.04","80.04"]
[null,null,null,null,null,null,null,null,null,null," ","80.08","80.08"]
[null,null,null,null,null,null,null,null,null,null," ","80.09","80.09"]
[null,null,null,null,null,null,null,null,null,null," ","801/1-01.00","801/1-01.00"]
[null,null,null,null,null,null,null,null,null,null," ","801/1-01.01",{"$f":"IF($B$7=\"ETE\",K3399,L3399)","v":"801/1-01.01"}]
[null,null,null,null,null,null,null,null,null,null," ","801/1-01.03","801/1-01.03"]
[null,null,null,null,null,null,null,null,null,null," ","801/1-01.06","801/1-01.06"]
[null,null,null,null,null,null,null,null,null,null," ","801/1-01.08","801/1-01.08"]
[null,null,null,null,null,null,null,null,null,null," ","801/1-01.09","801/1-01.09"]
[null,null,null,null,null,null,null,null,null,null," ","801/1-01.10","801/1-01.10"]
[null,null,null,null,null,null,null,null,null,null," ","801/1-02.00","801/1-02.00"]
[null,null,null,null,null,null,null,null,null,null," ","801/1-02.01","801/1-02.01"]
[null,null,null,null,null,null,null,null,null,null," ","801/1-02.03","801/1-02.03"]
[null,null,null,null,null,null,null,null,null,null," ","801/1-02.06","801/1-02.06"]
[null,null,null,null,null,null,null,null,null,null," ","801/1-02.08","801/1-02.08"]
[null,null,null,null,null,null,null,null,null,null," ","801/1-02.09","801/1-02.09"]
[null,null,null,null,null,null,null,null,null,null," ","801/1-02.10","801/1-02.10"]
[null,null,null,null,null,null,null,null,null,null," ","801/1-03.00","801/1-03.00"]
[null,null,null,null,null,null,null,null,null,null," ","801/1-03.01","801/1-03.01"]
[null,null,null,null,null,null,null,null,null,null," ","801/1-03.03","801/1-03.03"]
[null,null,null,null,null,null,null,null,null,null," ","801/1-03.06","801/1-03.06"]
[null,null,null,null,null,null,null,null,null,null," ","801/1-03.08","801/1-03.08"]
[null,null,null,null,null,null,null,null,null,null," ","801/1-03.09","801/1-03.09"]
[null,null,null,null,null,null,null,null,null,null," ","801/1-03.10","801/1-03.10"]
[null,null,null,null,null,null,null,null,null,null," ","801/1-04.00","801/1-04.00"]
[null,null,null,null,null,null,null,null,null,null," ","801/1-04.01","801/1-04.01"]
[null,null,null,null,null,null,null,null,null,null," ","801/1-04.03","801/1-04.03"]
[null,null,null,null,null,null,null,null,null,null," ","801/1-04.06","801/1-04.06"]
[null,null,null,null,null,null,null,null,null,null," ","801/1-04.08","801/1-04.08"]
[null,null,null,null,null,null,null,null,null,null," ","801/1-04.09","801/1-04.09"]
[null,null,null,null,null,null,null,null,null,null," ","801/1-04.10","801/1-04.10"]
[null,null,null,null,null,null,null,null,null,null," ","803/1-01.00","803/1-01.00"]
[null,null,null,null,null,null,null,null,null,null," ","803/1-01.01","803/1-01.01"]
[null,null,null,null,null,null,null,null,null,null," ","803/1-01.03","803/1-01.03"]
[null,null,null,null,null,null,null,null,null,null," ","803/1-01.06","803/1-01.06"]
[null,null,null,null,null,null,null,null,null,null," ","803/1-01.08","803/1-01.08"]
[null,null,null,null,null,null,null,null,null,null," ","803/1-01.09","803/1-01.09"]
[null,null,null,null,null,null,null,null,null,null," ","803/1-01.10","803/1-01.10"]
[null,null,null,null,null,null,null,null,null,null," ","803/1-02.00","803/1-02.00"]
[null,null,null,null,null,null,null,null,null,null," ","803/1-02.01","803/1-02.01"]
[null,null,null,null,null,null,null,null,null,null," ","803/1-02.03","803/1-02.03"]
[null,null,null,null,null,null,null,null,null,null," ","803/1-02.06","803/1-02.06"]
[null,null,null,null,null,null,null,null,null,null," ","803/1-02.08","803/1-02.08"]
[null,null,null,null,null,null,null,null,null,null," ","803/1-02.09","803/1-02.09"]
[null,null,null,null,null,null,null,null,null,null," ","803/1-02.10","803/1-02.10"]
[null,null,null,null,null,null,null,null,null,null," ","804/1-01.00","804/1-01.00"]
[null,null,null,null,null,null,null,null,null,null," ","804/1-01.01","804/1-01.01"]
[null,null,null,null,null,null,null,null,null,null," ","804/1-01.03","804/1-01.03"]
[null,null,null,null,null,null,null,null,null,null," ","804/1-01.06","804/1-01.06"]
[null,null,null,null,null,null,null,null,null,null," ","804/1-01.08","804/1-01.08"]
[null,null,null,null,null,null,null,null,null,null," ","804/1-01.09","804/1-01.09"]
[null,null,null,null,null,null,null,null,null,null," ","804/1-01.10","804/1-01.10"]
[null,null,null,null,null,null,null,null,null,null," ","804/1-02.00","804/1-02.00"]
[null,null,null,null,null,null,null,null,null,null," ","804/1-02.01","804/1-02.01"]
[null,null,null,null,null,null,null,null,null,null," ","804/1-02.03","804/1-02.03"]
[null,null,null,null,null,null,null,null,null,null," ","804/1-02.06","804/1-02.06"]
[null,null,null,null,null,null,null,null,null,null," ","804/1-02.08","804/1-02.08"]
[null,null,null,null,null,null,null,null,null,null," ","804/1-02.09","804/1-02.09"]
[null,null,null,null,null,null,null,null,null,null," ","804/1-02.10","804/1-02.10"]
[null,null,null,null,null,null,null,null,null,null," ","805/1-01.00","805/1-01.00"]
[null,null,null,null,null,null,null,null,null,null," ","805/1-01.01","805/1-01.01"]
[null,null,null,null,null,null,null,null,null,null," ","805/1-01.03","805/1-01.03"]
[null,null,null,null,null,null,null,null,null,null," ","805/1-01.06","805/1-01.06"]
[null,null,null,null,null,null,null,null,null,null," ","805/1-01.08","805/1-01.08"]
[null,null,null,null,null,null,null,null,null,null," ","805/1-01.09","805/1-01.09"]
[null,null,null,null,null,null,null,null,null,null," ","805/1-01.10","805/1-01.10"]
[null,null,null,null,null,null,null,null,null,null," ","805/1-02.00","805/1-02.00"]
[null,null,null,null,null,null,null,null,null,null," ","805/1-02.01","805/1-02.01"]
[null,null,null,null,null,null,null,null,null,null," ","805/1-02.03",{"$f":"IF($B$7=\"ETE\",K3463,L3463)","v":"805/1-02.03"}]
[null,null,null,null,null,null,null,null,null,null," ","805/1-02.06","805/1-02.06"]
[null,null,null,null,null,null,null,null,null,null," ","805/1-02.08","805/1-02.08"]
[null,null,null,null,null,null,null,null,null,null," ","805/1-02.09","805/1-02.09"]
[null,null,null,null,null,null,null,null,null,null," ","805/1-02.10","805/1-02.10"]
[null,null,null,null,null,null,null,null,null,null," ","806/1-01.00","806/1-01.00"]
[null,null,null,null,null,null,null,null,null,null," ","806/1-01.01","806/1-01.01"]
[null,null,null,null,null,null,null,null,null,null," ","806/1-01.03","806/1-01.03"]
[null,null,null,null,null,null,null,null,null,null," ","806/1-01.06","806/1-01.06"]
[null,null,null,null,null,null,null,null,null,null," ","806/1-01.08","806/1-01.08"]
[null,null,null,null,null,null,null,null,null,null," ","806/1-01.09","806/1-01.09"]
[null,null,null,null,null,null,null,null,null,null," ","806/1-01.10","806/1-01.10"]
[null,null,null,null,null,null,null,null,null,null," ","806/1-02.00","806/1-02.00"]
[null,null,null,null,null,null,null,null,null,null," ","806/1-02.01","806/1-02.01"]
[null,null,null,null,null,null,null,null,null,null," ","806/1-02.03","806/1-02.03"]
[null,null,null,null,null,null,null,null,null,null," ","806/1-02.06","806/1-02.06"]
[null,null,null,null,null,null,null,null,null,null," ","806/1-02.08","806/1-02.08"]
[null,null,null,null,null,null,null,null,null,null," ","806/1-02.09","806/1-02.09"]
[null,null,null,null,null,null,null,null,null,null," ","806/1-02.10","806/1-02.10"]
[null,null,null,null,null,null,null,null,null,null," ","806/1-03.00","806/1-03.00"]
[null,null,null,null,null,null,null,null,null,null," ","806/1-03.01","806/1-03.01"]
[null,null,null,null,null,null,null,null,null,null," ","806/1-03.03","806/1-03.03"]
[null,null,null,null,null,null,null,null,null,null," ","806/1-03.06","806/1-03.06"]
[null,null,null,null,null,null,null,null,null,null," ","806/1-03.08","806/1-03.08"]
[null,null,null,null,null,null,null,null,null,null," ","806/1-03.09","806/1-03.09"]
[null,null,null,null,null,null,null,null,null,null," ","806/1-03.10","806/1-03.10"]
[null,null,null,null,null,null,null,null,null,null," ","806/1-04.00","806/1-04.00"]
[null,null,null,null,null,null,null,null,null,null," ","806/1-04.01","806/1-04.01"]
[null,null,null,null,null,null,null,null,null,null," ","806/1-04.03","806/1-04.03"]
[null,null,null,null,null,null,null,null,null,null," ","806/1-04.06","806/1-04.06"]
[null,null,null,null,null,null,null,null,null,null," ","806/1-04.08","806/1-04.08"]
[null,null,null,null,null,null,null,null,null,null," ","806/1-04.09","806/1-04.09"]
[null,null,null,null,null,null,null,null,null,null," ","806/1-04.10","806/1-04.10"]
[null,null,null,null,null,null,null,null,null,null," ","809/1-01.00","809/1-01.00"]
[null,null,null,null,null,null,null,null,null,null," ","809/1-01.01","809/1-01.01"]
[null,null,null,null,null,null,null,null,null,null," ","809/1-01.03","809/1-01.03"]
[null,null,null,null,null,null,null,null,null,null," ","809/1-01.06","809/1-01.06"]
[null,null,null,null,null,null,null,null,null,null," ","809/1-01.08","809/1-01.08"]
[null,null,null,null,null,null,null,null,null,null," ","809/1-01.09","809/1-01.09"]
[null,null,null,null,null,null,null,null,null,null," ","809/1-01.10","809/1-01.10"]
[null,null,null,null,null,null,null,null,null,null," ","81","81"]
[null,null,null,null,null,null,null,null,null,null," ","81.01","81.01"]
[null,null,null,null,null,null,null,null,null,null," ","81.02","81.02"]
[null,null,null,null,null,null,null,null,null,null," ","8.10.2008","8.10.2008"]
[null,null,null,null,null,null,null,null,null,null," ","81.09","81.09"]
[null,null,null,null,null,null,null,null,null,null," ","82","82"]
[null,null,null,null,null,null,null,null,null,null," ","82.02","82.02"]
[null,null,null,null,null,null,null,null,null,null," ","82.08","82.08"]
[null,null,null,null,null,null,null,null,null,null," ","83","83"]
[null,null,null,null,null,null,null,null,null,null," ","83.01","83.01"]
[null,null,null,null,null,null,null,null,null,null," ","83.02","83.02"]
[null,null,null,null,null,null,null,null,null,null," ","83.03","83.03"]
[null,null,null,null,null,null,null,null,null,null," ","83.05","83.05"]
[null,null,null,null,null,null,null,null,null,null," ","83.06","83.06"]
[null,null,null,null,null,null,null,null,null,null," ","83.08","83.08"]
[null,null,null,null,null,null,null,null,null,null," ","83.10","83.10"]
[null,null,null,null,null,null,null,null,null,null," ","83.11","83.11"]
[null,null,null,null,null,null,null,null,null,null," ","83.12","83.12"]
[null,null,null,null,null,null,null,null,null,null," ","83.15","83.15"]
[null,null,null,null,null,null,null,null,null,null," ","83.18","83.18"]
[null,null,null,null,null,null,null,null,null,null," ","83.34","83.34"]
[null,null,null,null,null,null,null,null,null,null," ","83.35","83.35"]
[null,null,null,null,null,null,null,null,null,null," ","83.36","83.36"]
[null,null,null,null,null,null,null,null,null,null," ","83.38","83.38"]
[null,null,null,null,null,null,null,null,null,null," ","83.39",{"$f":"IF($B$7=\"ETE\",K3527,L3527)","v":"83.39"}]
[null,null,null,null,null,null,null,null,null,null," ","83.40","83.40"]
[null,null,null,null,null,null,null,null,null,null," ","83.41","83.41"]
[null,null,null,null,null,null,null,null,null,null," ","83.42","83.42"]
[null,null,null,null,null,null,null,null,null,null," ","83.43","83.43"]
[null,null,null,null,null,null,null,null,null,null," ","83.44","83.44"]
[null,null,null,null,null,null,null,null,null,null," ","83.45","83.45"]
[null,null,null,null,null,null,null,null,null,null," ","83.46","83.46"]
[null,null,null,null,null,null,null,null,null,null," ","84","84"]
[null,null,null,null,null,null,null,null,null,null," ","84.01","84.01"]
[null,null,null,null,null,null,null,null,null,null," ","840/1-01.00","840/1-01.00"]
[null,null,null,null,null,null,null,null,null,null," ","840/1-01.01","840/1-01.01"]
[null,null,null,null,null,null,null,null,null,null," ","840/1-01.03","840/1-01.03"]
[null,null,null,null,null,null,null,null,null,null," ","840/1-01.06","840/1-01.06"]
[null,null,null,null,null,null,null,null,null,null," ","840/1-01.08","840/1-01.08"]
[null,null,null,null,null,null,null,null,null,null," ","840/1-01.09","840/1-01.09"]
[null,null,null,null,null,null,null,null,null,null," ","840/1-01.10","840/1-01.10"]
[null,null,null,null,null,null,null,null,null,null," ","84.02","84.02"]
[null,null,null,null,null,null,null,null,null,null," ","84.03","84.03"]
[null,null,null,null,null,null,null,null,null,null," ","84.04","84.04"]
[null,null,null,null,null,null,null,null,null,null," ","85","85"]
[null,null,null,null,null,null,null,null,null,null," ","85.01","85.01"]
[null,null,null,null,null,null,null,null,null,null," ","85.02","85.02"]
[null,null,null,null,null,null,null,null,null,null," ","85.03","85.03"]
[null,null,null,null,null,null,null,null,null,null," ","850/3-01.00","850/3-01.00"]
[null,null,null,null,null,null,null,null,null,null," ","850/3-01.01","850/3-01.01"]
[null,null,null,null,null,null,null,null,null,null," ","850/3-01.03","850/3-01.03"]
[null,null,null,null,null,null,null,null,null,null," ","850/3-01.06","850/3-01.06"]
[null,null,null,null,null,null,null,null,null,null," ","850/3-01.08","850/3-01.08"]
[null,null,null,null,null,null,null,null,null,null," ","850/3-01.09","850/3-01.09"]
[null,null,null,null,null,null,null,null,null,null," ","850/3-01.10","850/3-01.10"]
[null,null,null,null,null,null,null,null,null,null," ","86","86"]
[null,null,null,null,null,null,null,null,null,null," ","89","89"]
[null,null,null,null,null,null,null,null,null,null," ","89.01","89.01"]
[null,null,null,null,null,null,null,null,null,null," ","89.02","89.02"]
[null,null,null,null,null,null,null,null,null,null," ","89.03","89.03"]
[null,null,null,null,null,null,null,null,null,null," ","89.04","89.04"]
[null,null,null,null,null,null,null,null,null,null," ","89.06","89.06"]
[null,null,null,null,null,null,null,null,null,null," ","89.08","89.08"]
[null,null,null,null,null,null,null,null,null,null," ","89.09","89.09"]
[null,null,null,null,null,null,null,null,null,null," ","89.09.01","89.09.01"]
[null,null,null,null,null,null,null,null,null,null," ","89.09.02","89.09.02"]
[null,null,null,null,null,null,null,null,null,null," ","89.09.08","89.09.08"]
[null,null,null,null,null,null,null,null,null,null," ","89.09.10","89.09.10"]
[null,null,null,null,null,null,null,null,null,null," ","89.10","89.10"]
[null,null,null,null,null,null,null,null,null,null," ","89.11","89.11"]
[null,null,null,null,null,null,null,null,null,null," ","9.I","9.I"]
[null,null,null,null,null,null,null,null,null,null," ","9.II","9.II"]
[null,null,null,null,null,null,null,null,null,null," ","9.III","9.III"]
[null,null,null,null,null,null,null,null,null,null," ","9.IV","9.IV"]
[null,null,null,null,null,null,null,null,null,null," ","9.V","9.V"]
[null,null,null,null,null,null,null,null,null,null," ","9.VI","9.VI"]
[null,null,null,null,null,null,null,null,null,null," ","90","90"]
[null,null,null,null,null,null,null,null,null,null," ","90.01","90.01"]
[null,null,null,null,null,null,null,null,null,null," ","90.08","90.08"]
[null,null,null,null,null,null,null,null,null,null," ","90.10","90.10"]
[null,null,null,null,null,null,null,null,null,null," ","901/1-01.00","901/1-01.00"]
[null,null,null,null,null,null,null,null,null,null," ","901/1-01.01","901/1-01.01"]
[null,null,null,null,null,null,null,null,null,null," ","901/1-01.03","901/1-01.03"]
[null,null,null,null,null,null,null,null,null,null," ","901/1-01.06","901/1-01.06"]
[null,null,null,null,null,null,null,null,null,null," ","901/1-01.08","901/1-01.08"]
[null,null,null,null,null,null,null,null,null,null," ","901/1-01.09","901/1-01.09"]
[null,null,null,null,null,null,null,null,null,null," ","901/1-01.10","901/1-01.10"]
[null,null,null,null,null,null,null,null,null,null," ","902/010.00","902/010.00"]
[null,null,null,null,null,null,null,null,null,null," ","902/010.01",{"$f":"IF($B$7=\"ETE\",K3591,L3591)","v":"902/010.01"}]
[null,null,null,null,null,null,null,null,null,null," ","902/010.03","902/010.03"]
[null,null,null,null,null,null,null,null,null,null," ","902/010.06","902/010.06"]
[null,null,null,null,null,null,null,null,null,null," ","902/010.08","902/010.08"]
[null,null,null,null,null,null,null,null,null,null," ","902/010.09","902/010.09"]
[null,null,null,null,null,null,null,null,null,null," ","902/010.10","902/010.10"]
[null,null,null,null,null,null,null,null,null,null," ","903/010.00","903/010.00"]
[null,null,null,null,null,null,null,null,null,null," ","903/010.01","903/010.01"]
[null,null,null,null,null,null,null,null,null,null," ","903/010.03","903/010.03"]
[null,null,null,null,null,null,null,null,null,null," ","903/010.06","903/010.06"]
[null,null,null,null,null,null,null,null,null,null," ","903/010.08","903/010.08"]
[null,null,null,null,null,null,null,null,null,null," ","903/010.09","903/010.09"]
[null,null,null,null,null,null,null,null,null,null," ","903/010.10","903/010.10"]
[null,null,null,null,null,null,null,null,null,null," ","903/020.00","903/020.00"]
[null,null,null,null,null,null,null,null,null,null," ","903/020.01","903/020.01"]
[null,null,null,null,null,null,null,null,null,null," ","903/020.03","903/020.03"]
[null,null,null,null,null,null,null,null,null,null," ","903/020.06","903/020.06"]
[null,null,null,null,null,null,null,null,null,null," ","903/020.08","903/020.08"]
[null,null,null,null,null,null,null,null,null,null," ","903/020.09","903/020.09"]
[null,null,null,null,null,null,null,null,null,null," ","903/020.10","903/020.10"]
[null,null,null,null,null,null,null,null,null,null," ","903/050.00","903/050.00"]
[null,null,null,null,null,null,null,null,null,null," ","903/050.01","903/050.01"]
[null,null,null,null,null,null,null,null,null,null," ","903/050.03","903/050.03"]
[null,null,null,null,null,null,null,null,null,null," ","903/050.06","903/050.06"]
[null,null,null,null,null,null,null,null,null,null," ","903/050.08","903/050.08"]
[null,null,null,null,null,null,null,null,null,null," ","903/050.09","903/050.09"]
[null,null,null,null,null,null,null,null,null,null," ","903/050.10","903/050.10"]
[null,null,null,null,null,null,null,null,null,null," ","903/060.00","903/060.00"]
[null,null,null,null,null,null,null,null,null,null," ","903/060.01","903/060.01"]
[null,null,null,null,null,null,null,null,null,null," ","903/060.03","903/060.03"]
[null,null,null,null,null,null,null,null,null,null," ","903/060.06","903/060.06"]
[null,null,null,null,null,null,null,null,null,null," ","903/060.08","903/060.08"]
[null,null,null,null,null,null,null,null,null,null," ","903/060.09","903/060.09"]
[null,null,null,null,null,null,null,null,null,null," ","903/060.10","903/060.10"]
[null,null,null,null,null,null,null,null,null,null," ","903/070.00","903/070.00"]
[null,null,null,null,null,null,null,null,null,null," ","903/070.01","903/070.01"]
[null,null,null,null,null,null,null,null,null,null," ","903/070.03","903/070.03"]
[null,null,null,null,null,null,null,null,null,null," ","903/070.06","903/070.06"]
[null,null,null,null,null,null,null,null,null,null," ","903/070.08","903/070.08"]
[null,null,null,null,null,null,null,null,null,null," ","903/070.09","903/070.09"]
[null,null,null,null,null,null,null,null,null,null," ","903/070.10","903/070.10"]
[null,null,null,null,null,null,null,null,null,null," ","903/090.00","903/090.00"]
[null,null,null,null,null,null,null,null,null,null," ","903/090.01","903/090.01"]
[null,null,null,null,null,null,null,null,null,null," ","903/090.03","903/090.03"]
[null,null,null,null,null,null,null,null,null,null," ","903/090.06","903/090.06"]
[null,null,null,null,null,null,null,null,null,null," ","903/090.08","903/090.08"]
[null,null,null,null,null,null,null,null,null,null," ","903/090.09","903/090.09"]
[null,null,null,null,null,null,null,null,null,null," ","903/090.10","903/090.10"]
[null,null,null,null,null,null,null,null,null,null," ","903/130.00","903/130.00"]
[null,null,null,null,null,null,null,null,null,null," ","903/130.01","903/130.01"]
[null,null,null,null,null,null,null,null,null,null," ","903/130.03","903/130.03"]
[null,null,null,null,null,null,null,null,null,null," ","903/130.06","903/130.06"]
[null,null,null,null,null,null,null,null,null,null," ","903/130.08","903/130.08"]
[null,null,null,null,null,null,null,null,null,null," ","903/130.09","903/130.09"]
[null,null,null,null,null,null,null,null,null,null," ","903/130.10","903/130.10"]
[null,null,null,null,null,null,null,null,null,null," ","904/030.00","904/030.00"]
[null,null,null,null,null,null,null,null,null,null," ","904/030.01","904/030.01"]
[null,null,null,null,null,null,null,null,null,null," ","904/030.03","904/030.03"]
[null,null,null,null,null,null,null,null,null,null," ","904/030.06","904/030.06"]
[null,null,null,null,null,null,null,null,null,null," ","904/030.08","904/030.08"]
[null,null,null,null,null,null,null,null,null,null," ","904/030.09","904/030.09"]
[null,null,null,null,null,null,null,null,null,null," ","904/030.10","904/030.10"]
[null,null,null,null,null,null,null,null,null,null," ","904/070.00","904/070.00"]
[null,null,null,null,null,null,null,null,null,null," ","904/070.01","904/070.01"]
[null,null,null,null,null,null,null,null,null,null," ","904/070.03",{"$f":"IF($B$7=\"ETE\",K3655,L3655)","v":"904/070.03"}]
[null,null,null,null,null,null,null,null,null,null," ","904/070.06","904/070.06"]
[null,null,null,null,null,null,null,null,null,null," ","904/070.08","904/070.08"]
[null,null,null,null,null,null,null,null,null,null," ","904/070.09","904/070.09"]
[null,null,null,null,null,null,null,null,null,null," ","904/070.10","904/070.10"]
[null,null,null,null,null,null,null,null,null,null," ","905/040.00","905/040.00"]
[null,null,null,null,null,null,null,null,null,null," ","905/040.01","905/040.01"]
[null,null,null,null,null,null,null,null,null,null," ","905/040.03","905/040.03"]
[null,null,null,null,null,null,null,null,null,null," ","905/040.06","905/040.06"]
[null,null,null,null,null,null,null,null,null,null," ","905/040.08","905/040.08"]
[null,null,null,null,null,null,null,null,null,null," ","905/040.09","905/040.09"]
[null,null,null,null,null,null,null,null,null,null," ","905/040.10","905/040.10"]
[null,null,null,null,null,null,null,null,null,null," ","906/071.00","906/071.00"]
[null,null,null,null,null,null,null,null,null,null," ","906/071.01","906/071.01"]
[null,null,null,null,null,null,null,null,null,null," ","906/071.03","906/071.03"]
[null,null,null,null,null,null,null,null,null,null," ","906/071.06","906/071.06"]
[null,null,null,null,null,null,null,null,null,null," ","906/071.08","906/071.08"]
[null,null,null,null,null,null,null,null,null,null," ","906/071.09","906/071.09"]
[null,null,null,null,null,null,null,null,null,null," ","906/071.10","906/071.10"]
[null,null,null,null,null,null,null,null,null,null," ","906/080.00","906/080.00"]
[null,null,null,null,null,null,null,null,null,null," ","906/080.01","906/080.01"]
[null,null,null,null,null,null,null,null,null,null," ","906/080.03","906/080.03"]
[null,null,null,null,null,null,null,null,null,null," ","906/080.06","906/080.06"]
[null,null,null,null,null,null,null,null,null,null," ","906/080.08","906/080.08"]
[null,null,null,null,null,null,null,null,null,null," ","906/080.09","906/080.09"]
[null,null,null,null,null,null,null,null,null,null," ","906/080.10","906/080.10"]
[null,null,null,null,null,null,null,null,null,null," ","91","91"]
[null,null,null,null,null,null,null,null,null,null," ","92","92"]
[null,null,null,null,null,null,null,null,null,null," ","93","93"]
[null,null,null,null,null,null,null,null,null,null," ","94","94"]
[null,null,null,null,null,null,null,null,null,null," ","942/1-03.00","942/1-03.00"]
[null,null,null,null,null,null,null,null,null,null," ","942/1-03.01","942/1-03.01"]
[null,null,null,null,null,null,null,null,null,null," ","942/1-03.03","942/1-03.03"]
[null,null,null,null,null,null,null,null,null,null," ","942/1-03.06","942/1-03.06"]
[null,null,null,null,null,null,null,null,null,null," ","942/1-03.08","942/1-03.08"]
[null,null,null,null,null,null,null,null,null,null," ","942/1-03.09","942/1-03.09"]
[null,null,null,null,null,null,null,null,null,null," ","942/1-03.10","942/1-03.10"]
[null,null,null,null,null,null,null,null,null,null," ","942/1-04.00","942/1-04.00"]
[null,null,null,null,null,null,null,null,null,null," ","942/1-04.01","942/1-04.01"]
[null,null,null,null,null,null,null,null,null,null," ","942/1-04.03","942/1-04.03"]
[null,null,null,null,null,null,null,null,null,null," ","942/1-04.06","942/1-04.06"]
[null,null,null,null,null,null,null,null,null,null," ","942/1-04.08","942/1-04.08"]
[null,null,null,null,null,null,null,null,null,null," ","942/1-04.09","942/1-04.09"]
[null,null,null,null,null,null,null,null,null,null," ","942/1-04.10","942/1-04.10"]
[null,null,null,null,null,null,null,null,null,null," ","942/1-05.00","942/1-05.00"]
[null,null,null,null,null,null,null,null,null,null," ","942/1-05.01","942/1-05.01"]
[null,null,null,null,null,null,null,null,null,null," ","942/1-05.03","942/1-05.03"]
[null,null,null,null,null,null,null,null,null,null," ","942/1-05.06","942/1-05.06"]
[null,null,null,null,null,null,null,null,null,null," ","942/1-05.08","942/1-05.08"]
[null,null,null,null,null,null,null,null,null,null," ","942/1-05.09","942/1-05.09"]
[null,null,null,null,null,null,null,null,null,null," ","942/1-05.10","942/1-05.10"]
[null,null,null,null,null,null,null,null,null,null," ","942/1-06.00","942/1-06.00"]
[null,null,null,null,null,null,null,null,null,null," ","942/1-06.01","942/1-06.01"]
[null,null,null,null,null,null,null,null,null,null," ","942/1-06.03","942/1-06.03"]
[null,null,null,null,null,null,null,null,null,null," ","942/1-06.06","942/1-06.06"]
[null,null,null,null,null,null,null,null,null,null," ","942/1-06.08","942/1-06.08"]
[null,null,null,null,null,null,null,null,null,null," ","942/1-06.09","942/1-06.09"]
[null,null,null,null,null,null,null,null,null,null," ","942/1-06.10","942/1-06.10"]
[null,null,null,null,null,null,null,null,null,null," ","942/1-08.00","942/1-08.00"]
[null,null,null,null,null,null,null,null,null,null," ","942/1-08.01","942/1-08.01"]
[null,null,null,null,null,null,null,null,null,null," ","942/1-08.03","942/1-08.03"]
[null,null,null,null,null,null,null,null,null,null," ","942/1-08.06","942/1-08.06"]
[null,null,null,null,null,null,null,null,null,null," ","942/1-08.08","942/1-08.08"]
[null,null,null,null,null,null,null,null,null,null," ","942/1-08.09","942/1-08.09"]
[null,null,null,null,null,null,null,null,null,null," ","942/1-08.10",{"$f":"IF($B$7=\"ETE\",K3719,L3719)","v":"942/1-08.10"}]
[null,null,null,null,null,null,null,null,null,null," ","943/1-02.00","943/1-02.00"]
[null,null,null,null,null,null,null,null,null,null," ","943/1-02.01","943/1-02.01"]
[null,null,null,null,null,null,null,null,null,null," ","943/1-02.03","943/1-02.03"]
[null,null,null,null,null,null,null,null,null,null," ","943/1-02.06","943/1-02.06"]
[null,null,null,null,null,null,null,null,null,null," ","943/1-02.08","943/1-02.08"]
[null,null,null,null,null,null,null,null,null,null," ","943/1-02.09","943/1-02.09"]
[null,null,null,null,null,null,null,null,null,null," ","943/1-02.10","943/1-02.10"]
[null,null,null,null,null,null,null,null,null,null," ","95","95"]
[null,null,null,null,null,null,null,null,null,null," ","N/A","N/A"]